{"text_format":"1","workbook":"xlsx","n_sheets":3,"sheets":["Nutrient Monitoring","Nutrient Budget","Instructions"],"not_rendered":{"charts":0,"images":4,"macros":1,"external_links":0,"defined_names":22,"comments":0,"pivot_tables":0},"unopened":[],"bounds":{"document_bytes":16777216,"sheet_cells":100000,"rows_first":2000,"rows_last":500,"rows_between":2000,"halvings":0,"cell_chars":16384,"cell_head_chars":4096},"cells_cut":0,"cells_raw":0,"read":"whole","date_system":"1900"}

{"sheet":"Nutrient Monitoring","index":0,"n_rows":1170,"n_cols":64,"rows_kept":1170,"cut":false,"hidden":false,"merged":[[381,41,381,42],[385,41,385,42],[383,41,383,42],[4,5,4,20],[4,1,4,4],[5,1,5,4],[6,1,6,4],[5,5,5,11],[6,5,6,8],[5,12,5,13],[4,21,4,22],[5,30,5,35],[6,33,6,35],[7,29,7,35],[8,29,8,35],[5,14,5,15],[8,7,8,22],[9,1,9,35],[351,34,351,35],[348,31,348,32],[349,31,349,32],[350,31,350,32],[351,31,351,32],[6,23,6,27],[6,28,6,32],[322,34,322,35],[11,13,11,14],[12,13,12,14],[293,13,293,14],[11,16,11,17],[345,13,345,14],[384,41,384,42],[418,1,418,3],[416,1,416,3],[417,1,417,3],[345,34,345,35],[3,1,3,35],[350,34,350,35],[393,1,393,28],[9,46,9,50],[10,47,10,50],[405,9,405,13],[405,14,405,18],[405,19,405,23],[405,24,405,28],[406,9,406,13],[406,14,406,18],[406,19,406,23],[406,24,406,28],[407,9,407,13],[407,14,407,18],[407,19,407,23],[407,24,407,28],[399,24,399,28],[400,9,400,13],[400,14,400,18],[400,19,400,23],[400,24,400,28],[401,9,401,13],[401,14,401,18],[401,19,401,23],[401,24,401,28],[402,9,402,13],[402,14,402,18],[406,1,406,3],[399,1,399,3],[400,1,400,3],[401,1,401,3],[399,9,399,13],[399,14,399,18],[411,9,411,13],[403,14,403,18],[403,19,403,23],[399,4,399,8],[400,4,400,8],[401,4,401,8],[402,4,402,8],[403,4,403,8],[404,4,404,8],[399,19,399,23],[404,9,404,13],[404,14,404,18],[404,19,404,23],[402,19,402,23],[419,1,419,3],[415,1,415,3],[1167,1,1167,3],[1157,4,1157,5],[1158,4,1158,5],[1159,4,1159,5],[1160,4,1160,5],[1161,4,1161,5],[1162,4,1162,5],[1163,4,1163,5],[388,21,388,23],[389,21,389,23],[1164,4,1164,5],[1165,4,1165,5],[1162,19,1162,20],[1163,19,1163,20],[1164,19,1164,20],[1165,19,1165,20],[801,19,801,20],[1141,19,1141,20],[1142,19,1142,20],[1143,19,1143,20],[1164,13,1164,14],[1165,13,1165,14],[1153,19,1153,20],[1154,19,1154,20],[1155,19,1155,20],[1156,19,1156,20],[1157,19,1157,20],[1158,19,1158,20],[1159,19,1159,20],[1160,19,1160,20],[1161,19,1161,20],[1144,19,1144,20],[1157,25,1157,26],[1158,25,1158,26],[1159,25,1159,26],[1160,25,1160,26],[1161,25,1161,26],[1162,25,1162,26],[1163,25,1163,26],[1164,25,1164,26],[1165,25,1165,26],[1167,7,1167,8],[1167,13,1167,14],[1167,19,1167,20],[1167,25,1167,26],[800,4,800,5],[801,4,801,5],[1141,4,1141,5],[1142,4,1142,5],[1143,4,1143,5],[1144,4,1144,5],[1145,4,1145,5],[1146,4,1146,5],[1147,4,1147,5],[1148,4,1148,5],[1149,4,1149,5],[1150,4,1150,5],[1151,4,1151,5],[1152,4,1152,5],[1153,4,1153,5],[1154,4,1154,5],[1167,4,1167,5],[1155,4,1155,5],[804,13,804,14],[1156,4,1156,5],[1141,25,1141,26],[1142,25,1142,26],[1143,25,1143,26],[1144,25,1144,26],[1145,25,1145,26],[1146,25,1146,26],[1147,25,1147,26],[1148,25,1148,26],[1095,25,1095,26],[1149,25,1149,26],[1150,25,1150,26],[1151,25,1151,26],[1152,25,1152,26],[1153,25,1153,26],[1154,25,1154,26],[1155,25,1155,26],[1156,25,1156,26],[1146,19,1146,20],[1147,19,1147,20],[1148,19,1148,20],[1149,19,1149,20],[1150,19,1150,20],[1151,19,1151,20],[1152,19,1152,20],[1141,7,1141,8],[1142,7,1142,8],[1143,7,1143,8],[1144,7,1144,8],[1145,7,1145,8],[1146,7,1146,8],[1147,7,1147,8],[1158,7,1158,8],[1159,7,1159,8],[1160,7,1160,8],[1161,7,1161,8],[1162,7,1162,8],[1163,7,1163,8],[1164,7,1164,8],[1165,7,1165,8],[801,13,801,14],[1141,13,1141,14],[1142,13,1142,14],[1143,13,1143,14],[1144,13,1144,14],[1145,13,1145,14],[1146,13,1146,14],[1147,13,1147,14],[1148,13,1148,14],[1149,13,1149,14],[1150,13,1150,14],[1151,13,1151,14],[1152,13,1152,14],[1153,13,1153,14],[1154,13,1154,14],[1155,13,1155,14],[1156,13,1156,14],[1157,13,1157,14],[1158,13,1158,14],[1159,13,1159,14],[1160,13,1160,14],[1161,13,1161,14],[1162,13,1162,14],[1163,13,1163,14],[1148,7,1148,8],[1149,7,1149,8],[1150,7,1150,8],[1151,7,1151,8],[1152,7,1152,8],[1153,7,1153,8],[1154,7,1154,8],[1155,7,1155,8],[1156,7,1156,8],[1157,7,1157,8],[30,31,30,32],[30,34,30,35],[31,31,31,32],[31,34,31,35],[32,31,32,32],[800,7,800,8],[800,13,800,14],[800,19,800,20],[800,25,800,26],[374,34,374,35],[375,34,375,35],[377,34,377,35],[362,34,362,35],[363,34,363,35],[364,34,364,35],[365,34,365,35],[366,34,366,35],[373,34,373,35],[425,10,425,11],[45,34,45,35],[47,31,47,32],[47,34,47,35],[49,31,49,32],[11,19,11,20],[20,34,20,35],[373,13,373,14],[344,34,344,35],[1145,19,1145,20],[27,34,27,35],[28,31,28,32],[28,34,28,35],[29,31,29,32],[29,34,29,35],[46,34,46,35],[48,31,48,32],[48,34,48,35],[50,31,50,32],[50,34,50,35],[52,31,52,32],[345,31,345,32],[49,34,49,35],[48,22,48,23],[48,25,48,26],[48,28,48,29],[90,34,90,35],[92,34,92,35],[104,34,104,35],[106,34,106,35],[108,34,108,35],[11,28,11,29],[13,28,13,29],[14,22,14,23],[14,25,14,26],[11,22,11,23],[12,22,12,23],[12,28,12,29],[11,25,11,26],[12,25,12,26],[14,28,14,29],[16,22,16,23],[12,19,12,20],[293,19,293,20],[16,19,16,20],[16,25,16,26],[16,31,16,32],[44,31,44,32],[18,28,18,29],[74,31,74,32],[76,31,76,32],[45,31,45,32],[120,31,120,32],[122,31,122,32],[27,31,27,32],[12,31,12,32],[13,31,13,32],[45,19,45,20],[45,25,45,26],[45,28,45,29],[54,19,54,20],[54,22,54,23],[54,25,54,26],[68,31,68,32],[54,28,54,29],[54,31,54,32],[355,1,355,3],[354,4,354,5],[355,4,355,5],[349,10,349,11],[374,7,374,8],[374,10,374,11],[373,10,373,11],[366,10,366,11],[353,7,353,8],[350,7,350,8],[350,10,350,11],[351,7,351,8],[31,1,31,3],[5,27,5,29],[12,34,12,35],[293,34,293,35],[321,34,321,35],[321,22,321,23],[293,25,293,26],[21,31,21,32],[21,34,21,35],[22,31,22,32],[22,34,22,35],[23,31,23,32],[23,34,23,35],[24,31,24,32],[24,34,24,35],[25,31,25,32],[25,34,25,35],[26,31,26,32],[26,34,26,35],[11,34,11,35],[348,7,348,8],[346,7,346,8],[347,7,347,8],[345,4,345,5],[346,4,346,5],[12,1,12,3],[293,1,293,3],[347,4,347,5],[348,4,348,5],[321,7,321,8],[322,7,322,8],[344,7,344,8],[345,7,345,8],[52,1,52,3],[53,1,53,3],[54,1,54,3],[55,1,55,3],[38,1,38,3],[39,1,39,3],[40,1,40,3],[41,1,41,3],[42,1,42,3],[43,1,43,3],[44,1,44,3],[45,1,45,3],[46,1,46,3],[65,1,65,3],[29,1,29,3],[30,1,30,3],[322,4,322,5],[344,4,344,5],[23,1,23,3],[28,1,28,3],[47,1,47,3],[48,1,48,3],[49,1,49,3],[50,1,50,3],[51,1,51,3],[88,31,88,32],[321,4,321,5],[321,13,321,14],[322,13,322,14],[344,13,344,14],[10,6,10,11],[321,10,321,11],[293,7,293,8],[322,10,322,11],[344,10,344,11],[12,10,12,11],[293,10,293,11],[16,13,16,14],[16,16,16,17],[11,31,11,32],[321,31,321,32],[322,31,322,32],[344,31,344,32],[10,13,10,17],[12,7,12,8],[15,1,15,3],[16,1,16,3],[12,16,12,17],[17,1,17,3],[18,1,18,3],[19,1,19,3],[346,10,346,11],[375,1,375,3],[358,1,358,3],[359,1,359,3],[360,1,360,3],[361,1,361,3],[362,1,362,3],[359,4,359,5],[32,1,32,3],[33,1,33,3],[34,1,34,3],[35,1,35,3],[36,1,36,3],[37,1,37,3],[20,1,20,3],[21,1,21,3],[22,1,22,3],[358,7,358,8],[359,7,359,8],[374,1,374,3],[363,1,363,3],[364,1,364,3],[351,10,351,11],[349,7,349,8],[353,10,353,11],[24,1,24,3],[25,1,25,3],[26,1,26,3],[27,1,27,3],[352,7,352,8],[347,10,347,11],[348,10,348,11],[354,10,354,11],[363,19,363,20],[357,16,357,17],[368,13,368,14],[368,16,368,17],[370,4,370,5],[370,7,370,8],[370,10,370,11],[370,13,370,14],[370,16,370,17],[355,13,355,14],[362,16,362,17],[363,16,363,17],[364,16,364,17],[365,16,365,17],[366,16,366,17],[363,13,363,14],[364,13,364,14],[362,13,362,14],[362,10,362,11],[365,7,365,8],[363,7,363,8],[364,7,364,8],[365,10,365,11],[364,10,364,11],[363,10,363,11],[368,4,368,5],[368,7,368,8],[368,10,368,11],[358,4,358,5],[355,10,355,11],[366,13,366,14],[360,4,360,5],[361,4,361,5],[362,4,362,5],[363,4,363,5],[364,4,364,5],[369,4,369,5],[369,7,369,8],[369,10,369,11],[369,13,369,14],[365,4,365,5],[360,7,360,8],[366,7,366,8],[366,4,366,5],[361,7,361,8],[362,7,362,8],[356,10,356,11],[357,13,357,14],[356,13,356,14],[358,10,358,11],[365,13,365,14],[357,7,357,8],[361,10,361,11],[360,10,360,11],[359,10,359,11],[361,13,361,14],[349,13,349,14],[350,13,350,14],[358,13,358,14],[353,25,353,26],[359,13,359,14],[360,13,360,14],[353,13,353,14],[349,19,349,20],[350,19,350,20],[351,19,351,20],[350,4,350,5],[351,4,351,5],[349,4,349,5],[352,4,352,5],[353,4,353,5],[354,7,354,8],[355,7,355,8],[356,7,356,8],[355,16,355,17],[353,19,353,20],[357,10,357,11],[357,19,357,20],[356,19,356,20],[352,19,352,20],[351,16,351,17],[352,16,352,17],[349,16,349,17],[354,13,354,14],[356,4,356,5],[357,4,357,5],[352,13,352,14],[353,16,353,17],[356,34,356,35],[353,34,353,35],[355,22,355,23],[354,22,354,23],[354,31,354,32],[355,31,355,32],[356,31,356,32],[357,31,357,32],[358,31,358,32],[360,25,360,26],[359,25,359,26],[355,28,355,29],[359,19,359,20],[358,19,358,20],[358,16,358,17],[359,16,359,17],[347,19,347,20],[348,19,348,20],[349,25,349,26],[351,22,351,23],[358,25,358,26],[357,25,357,26],[359,22,359,23],[352,31,352,32],[356,25,356,26],[358,22,358,23],[357,22,357,23],[347,22,347,23],[347,25,347,26],[352,25,352,26],[351,25,351,26],[348,25,348,26],[368,34,368,35],[370,34,370,35],[363,31,363,32],[355,25,355,26],[354,25,354,26],[361,25,361,26],[359,31,359,32],[356,28,356,29],[357,28,357,29],[362,22,362,23],[368,19,368,20],[368,22,368,23],[370,19,370,20],[370,22,370,23],[355,19,355,20],[361,19,361,20],[360,19,360,20],[356,22,356,23],[366,25,366,26],[366,19,366,20],[365,19,365,20],[357,34,357,35],[358,34,358,35],[359,34,359,35],[365,25,365,26],[369,19,369,20],[369,22,369,23],[360,34,360,35],[361,34,361,35],[354,34,354,35],[355,34,355,35],[368,31,368,32],[348,13,348,14],[1,1,1,35],[2,1,2,35],[350,28,350,29],[349,28,349,29],[321,28,321,29],[322,28,322,29],[344,28,344,29],[345,28,345,29],[10,1,11,3],[10,30,10,35],[10,4,10,5],[11,4,11,5],[12,4,12,5],[293,4,293,5],[11,10,11,11],[346,28,346,29],[321,19,321,20],[322,19,322,20],[344,19,344,20],[345,19,345,20],[347,16,347,17],[348,16,348,17],[5,23,5,26],[5,16,5,20],[5,21,5,22],[321,1,321,3],[322,1,322,3],[344,1,344,3],[11,7,11,8],[10,18,10,23],[10,24,10,29],[345,10,345,11],[375,22,375,23],[377,31,377,32],[364,31,364,32],[347,28,347,29],[348,28,348,29],[92,31,92,32],[94,31,94,32],[96,31,96,32],[98,31,98,32],[100,31,100,32],[102,31,102,32],[104,31,104,32],[106,31,106,32],[108,31,108,32],[110,31,110,32],[112,31,112,32],[114,31,114,32],[349,22,349,23],[350,22,350,23],[362,25,362,26],[364,19,364,20],[364,25,364,26],[360,16,360,17],[361,16,361,17],[346,13,346,14],[351,13,351,14],[352,10,352,11],[347,13,347,14],[321,16,321,17],[322,16,322,17],[346,22,346,23],[346,25,346,26],[344,16,344,17],[345,16,345,17],[350,16,350,17],[346,19,346,20],[321,25,321,26],[322,25,322,26],[344,25,344,26],[345,25,345,26],[322,22,322,23],[344,22,344,23],[348,22,348,23],[354,16,354,17],[356,16,356,17],[352,22,352,23],[368,25,368,26],[368,28,368,29],[354,19,354,20],[346,16,346,17],[366,22,366,23],[365,22,365,23],[364,22,364,23],[364,28,364,29],[365,28,365,29],[345,22,345,23],[361,28,361,29],[351,28,351,29],[352,28,352,29],[363,25,363,26],[363,22,363,23],[350,25,350,26],[346,31,346,32],[347,31,347,32],[0,1,0,35],[0,0,390,0],[389,24,389,31],[380,1,380,35],[390,1,390,35],[388,32,389,35],[388,1,388,5],[388,6,388,8],[388,9,388,17],[388,18,388,20],[388,24,388,31],[389,1,389,5],[389,6,389,8],[389,9,389,17],[389,18,389,20],[378,34,378,35],[379,34,379,35],[379,1,379,8],[387,1,387,34],[363,28,363,29],[362,19,362,20],[362,31,362,32],[13,1,13,3],[14,1,14,3],[13,22,13,23],[13,25,13,26],[373,28,373,29],[374,28,374,29],[8,5,8,6],[8,1,8,4],[7,1,7,4],[7,5,7,6],[66,1,66,3],[67,1,67,3],[68,1,68,3],[69,1,69,3],[70,1,70,3],[71,1,71,3],[72,1,72,3],[73,1,73,3],[56,1,56,3],[57,1,57,3],[58,1,58,3],[59,1,59,3],[60,1,60,3],[61,1,61,3],[62,1,62,3],[63,1,63,3],[64,1,64,3],[49,4,49,5],[13,4,13,5],[17,4,17,5],[21,4,21,5],[23,4,23,5],[25,4,25,5],[27,4,27,5],[29,4,29,5],[31,4,31,5],[33,4,33,5],[35,4,35,5],[37,4,37,5],[39,4,39,5],[13,34,13,35],[14,31,14,32],[14,34,14,35],[15,22,15,23],[15,25,15,26],[15,28,15,29],[15,31,15,32],[15,34,15,35],[16,34,16,35],[60,34,60,35],[62,31,62,32],[62,34,62,35],[64,31,64,32],[44,34,44,35],[46,31,46,32],[51,22,51,23],[51,25,51,26],[51,28,51,29],[51,31,51,32],[51,34,51,35],[53,31,53,32],[53,34,53,35],[52,34,52,35],[18,31,18,32],[18,34,18,35],[19,31,19,32],[19,34,19,35],[20,31,20,32],[55,22,55,23],[55,25,55,26],[55,28,55,29],[45,22,45,23],[49,7,49,8],[49,10,49,11],[49,13,49,14],[49,16,49,17],[49,19,49,20],[49,22,49,23],[49,25,49,26],[49,28,49,29],[48,4,48,5],[48,7,48,8],[48,10,48,11],[48,13,48,14],[48,16,48,17],[48,19,48,20],[51,19,51,20],[83,1,83,3],[84,1,84,3],[55,7,55,8],[55,10,55,11],[55,13,55,14],[55,16,55,17],[55,19,55,20],[61,7,61,8],[54,4,54,5],[54,7,54,8],[54,10,54,11],[54,13,54,14],[54,16,54,17],[50,4,50,5],[50,7,50,8],[50,10,50,11],[50,13,50,14],[85,1,85,3],[86,1,86,3],[87,1,87,3],[88,1,88,3],[89,1,89,3],[90,1,90,3],[91,1,91,3],[74,1,74,3],[75,1,75,3],[76,1,76,3],[77,1,77,3],[78,1,78,3],[79,1,79,3],[80,1,80,3],[81,1,81,3],[82,1,82,3],[55,4,55,5],[61,4,61,5],[59,4,59,5],[63,4,63,5],[65,4,65,5],[67,4,67,5],[69,4,69,5],[71,4,71,5],[73,4,73,5],[75,4,75,5],[77,4,77,5],[79,4,79,5],[81,4,81,5],[83,4,83,5],[85,4,85,5],[87,4,87,5],[101,1,101,3],[102,1,102,3],[103,1,103,3],[104,1,104,3],[105,1,105,3],[106,1,106,3],[107,1,107,3],[108,1,108,3],[109,1,109,3],[92,1,92,3],[93,1,93,3],[94,1,94,3],[95,1,95,3],[96,1,96,3],[97,1,97,3],[98,1,98,3],[99,1,99,3],[100,1,100,3],[119,1,119,3],[120,1,120,3],[121,1,121,3],[122,1,122,3],[123,1,123,3],[124,1,124,3],[125,1,125,3],[126,1,126,3],[127,1,127,3],[110,1,110,3],[111,1,111,3],[112,1,112,3],[113,1,113,3],[114,1,114,3],[115,1,115,3],[116,1,116,3],[117,1,117,3],[118,1,118,3],[137,1,137,3],[138,1,138,3],[139,1,139,3],[140,1,140,3],[141,1,141,3],[142,1,142,3],[143,1,143,3],[144,1,144,3],[145,1,145,3],[128,1,128,3],[129,1,129,3],[130,1,130,3],[131,1,131,3],[132,1,132,3],[133,1,133,3],[134,1,134,3],[135,1,135,3],[136,1,136,3],[155,1,155,3],[156,1,156,3],[157,1,157,3],[158,1,158,3],[159,1,159,3],[160,1,160,3],[161,1,161,3],[162,1,162,3],[163,1,163,3],[146,1,146,3],[147,1,147,3],[148,1,148,3],[149,1,149,3],[150,1,150,3],[151,1,151,3],[152,1,152,3],[153,1,153,3],[154,1,154,3],[173,1,173,3],[174,1,174,3],[175,1,175,3],[176,1,176,3],[177,1,177,3],[178,1,178,3],[179,1,179,3],[180,1,180,3],[181,1,181,3],[164,1,164,3],[165,1,165,3],[166,1,166,3],[167,1,167,3],[168,1,168,3],[169,1,169,3],[170,1,170,3],[171,1,171,3],[172,1,172,3],[191,1,191,3],[192,1,192,3],[193,1,193,3],[194,1,194,3],[195,1,195,3],[196,1,196,3],[197,1,197,3],[198,1,198,3],[199,1,199,3],[182,1,182,3],[183,1,183,3],[184,1,184,3],[185,1,185,3],[186,1,186,3],[187,1,187,3],[188,1,188,3],[189,1,189,3],[190,1,190,3],[209,1,209,3],[210,1,210,3],[211,1,211,3],[212,1,212,3],[213,1,213,3],[214,1,214,3],[215,1,215,3],[216,1,216,3],[217,1,217,3],[200,1,200,3],[201,1,201,3],[202,1,202,3],[203,1,203,3],[204,1,204,3],[205,1,205,3],[206,1,206,3],[207,1,207,3],[208,1,208,3],[227,1,227,3],[228,1,228,3],[229,1,229,3],[230,1,230,3],[231,1,231,3],[232,1,232,3],[233,1,233,3],[234,1,234,3],[235,1,235,3],[218,1,218,3],[219,1,219,3],[220,1,220,3],[221,1,221,3],[222,1,222,3],[223,1,223,3],[224,1,224,3],[225,1,225,3],[226,1,226,3],[245,1,245,3],[246,1,246,3],[247,1,247,3],[248,1,248,3],[249,1,249,3],[250,1,250,3],[251,1,251,3],[252,1,252,3],[253,1,253,3],[236,1,236,3],[237,1,237,3],[238,1,238,3]],"merged_total":6515,"flags":["merged_cut"]}
[null,"Version 2.2, 10/15/2020",null,null,null,null,null,null,null,null,null,null,null,null,null,null,null,null,null,null,null,null,null,null,null,null,null,null,null,null,null,null,null,null,null,null,null,null,true,2021,"<","Yes","No"]
[null,"CHESAPEAKE BAY SUPPLEMENTAL REPORT",null,null,null,null,null,null,null,null,null,null,null,null,null,null,null,null,null,null,null,null,null,null,null,null,null,null,null,null,null,null,null,null,null,null,null,null,1,2022,null,"No"]
[null,"ANNUAL NUTRIENT MONITORING",null,null,null,null,null,null,null,null,null,null,null,null,null,null,null,null,null,null,null,null,null,null,null,null,null,null,null,null,null,null,null,null,null,null,null,null,null,2023]
[null,null,null,null,null,null,null,null,null,null,null,null,null,null,null,null,null,null,null,null,null,null,null,null,null,null,null,null,null,null,null,null,null,null,null,null,null,null,null,2024]
[null,"Facility Name:",null,null,null,null,null,null,null,null,null,null,null,null,null,null,null,null,null,null,null,null,null,"Compliance Year:",null,null,null,2024,null,null,null,"Outfall:",null,null,null,null,null,null,null,2025]
[null,"Municipality:",null,null,null,null,null,null,null,null,null,null,null,null,"County:",null,null,null,null,null,null,null,null,"NPDES Permit No.:",null,null,null,null,null,null,null,null,null,null,null,null,null,null,null,2026]
[null,"Watershed:",null,null,null,null,null,null,null,null,null,null,null,null,null,null,null,null,null,null,null,null,null,"This permit will expire on:",null,null,null,null,null,null,null,null,null,null,null,null,null,null,null,2027]
[null,"TN Cap Load (lbs):",null,null,null,null,null,null,null,null,null,null,null,null,null,"Sewage",null,null,"Industrial Waste",null,null,null,null,"TP Cap Load (lbs):",null,null,null,null,null,null,null,null,null,null,null,null,null,null,null,2028]
[null,"TN Delivery Ratio:",null,null,null,null,null,null,null,null,null,null,null,null,null,null,null,null,null,null,null,null,null,"TP Delivery Ratio:",null,null,null,null,null,null,null,null,null,null,null,null,null,null,null,2029]
[null,{"$f":"IF($AB$5<>\"\",DATE($AB$5-1,10,1),\"\")","v":"2023-10-01"},null,null,null,null,null,null,null,null,null,null,null,null,null,null,null,null,null,null,null,null,null,null,null,null,null,null,null,null,null,null,null,null,null,null,null,null,null,2030,null,null,null,null,null,null,"Local Limit Evaluation (no longer used)"]
[null,"Sample Date",null,null,"FLOW",null,"Total Phosporus (TP)",null,null,null,null,null,null,"NH3-N",null,null,null,null,"TKN",null,null,null,null,null,"NO2+NO3 as N",null,null,null,null,null,"Total Nitrogen (TN)",null,null,null,null,null,null,null,null,2031,null,null,null,null,null,null,null,"Avg Mo Conc"]
[null,null,null,null,"MGD",null,"Q","mg/L",null,"Q","lbs/day",null,"Q","mg/L",null,"Q","lbs/day",null,"Q","mg/L",null,"Q","lbs/day",null,"Q","mg/L",null,"Q","lbs/day",null,"Q","mg/L",null,"Q","lbs/day",null,null,null,null,2032,null,null,null,"TN Daily Load Below Baseline","TP Daily Load Below Baseline",null,"Month","TP","Viol?","TN","Viol?"]
[null,{"$f":"IF(B10<>\"\",B10,\"\")","v":"2023-10-01"},null,null,null,null,null,null,null,{"$f":"IF(AND(E13>0,H13>0),IF(G13=\"<\",\"<\",\"\"),\"\")","v":""},{"$f":"IF(AND(E13>0,H13>0),E13*H13*8.34,\"\")","v":""},null,null,null,null,{"$f":"IF(AND(E13>0,N13>0),IF(M13=\"<\",\"<\",\"\"),\"\")","v":""},{"$f":"IF(AND(E13>0,N13>0),E13*N13*8.34,\"\")","v":""},null,null,null,null,{"$f":"IF(AND($E13>0,T13>0),IF($S13=\"<\",\"<\",\"\"),\"\")","v":""},{"$f":"IF(AND($E13>0,T13>0),E13*T13*8.34,\"\")","v":""},null,null,null,null,{"$f":"IF(AND($E13>0,Z13>0),IF($Y13=\"<\",\"<\",\"\"),\"\")","v":""},{"$f":"IF(AND($E13>0,Z13>0),E13*Z13*8.34,\"\")","v":""},null,{"$f":"IF(OR(S13=\"<\",Y13=\"<\"),\"<\",\"\")","v":""},{"$f":"IF(AND(T13>0,Z13>0),IF(AND(N13>0,N13<>\"\",N13>T13),N13,T13)+Z13,\"\")","v":""},null,{"$f":"IF(AE13=\"<\",\"<\",\"\")","v":""},{"$f":"IF(AND(AF13>0,E13>0,T13>0,Z13>0),IF(AND(Q13>0,Q13<>\"\",Q13>W13),Q13,W13)+AC13,\"\")","v":""},null,null,null,null,2033,null,null,null,{"$f":"IF(AND(AF13<>\"\",AI13<>\"\"),(6-AF13)*E13*8.34,\"\")","v":""},{"$f":"IF(AND(H13<>\"\",K13<>\"\"),(0.8-H13)*E13*8.34,\"\")","v":""},null,"Oct",{"$f":"IF(SUM(H13:H43)>0,AVERAGE(H13:H43),\"\")","v":""},{"$f":"IF(AND($S$9<>\"\",AV13<>\"\"),IF(AV13<=$S$9,\"No\",\"Yes\"),\"\")","v":""},{"$f":"IF(SUM(AF13:AF43)>0,AVERAGE(AF13:AF43),\"\")","v":""},{"$f":"IF(AND($S$8<>\"\",AX13<>\"\"),IF(AX13<=$S$8,\"No\",\"Yes\"),\"\")","v":""}]
[null,{"$f":"IF(B13<>\"\",B13+1,\"\")","v":"2023-10-02"},null,null,null,null,null,null,null,{"$f":"IF(AND(E14>0,H14>0),IF(G14=\"<\",\"<\",\"\"),\"\")","v":""},{"$f":"IF(AND(E14>0,H14>0),E14*H14*8.34,\"\")","v":""},null,null,null,null,{"$f":"IF(AND(E14>0,N14>0),IF(M14=\"<\",\"<\",\"\"),\"\")","v":""},{"$f":"IF(AND(E14>0,N14>0),E14*N14*8.34,\"\")","v":""},null,null,null,null,{"$f":"IF(AND($E14>0,T14>0),IF($S14=\"<\",\"<\",\"\"),\"\")","v":""},{"$f":"IF(AND($E14>0,T14>0),E14*T14*8.34,\"\")","v":""},null,null,null,null,{"$f":"IF(AND($E14>0,Z14>0),IF($Y14=\"<\",\"<\",\"\"),\"\")","v":""},{"$f":"IF(AND($E14>0,Z14>0),E14*Z14*8.34,\"\")","v":""},null,{"$f":"IF(OR(S14=\"<\",Y14=\"<\"),\"<\",\"\")","v":""},{"$f":"IF(AND(T14>0,Z14>0),IF(AND(N14>0,N14<>\"\",N14>T14),N14,T14)+Z14,\"\")","v":""},null,{"$f":"IF(AE14=\"<\",\"<\",\"\")","v":""},{"$f":"IF(AND(AF14>0,E14>0,T14>0,Z14>0),IF(AND(Q14>0,Q14<>\"\",Q14>W14),Q14,W14)+AC14,\"\")","v":""},null,null,null,null,2034,null,null,null,{"$f":"IF(AND(AF14<>\"\",AI14<>\"\"),(6-AF14)*E14*8.34,\"\")","v":""},"",null,"Nov",{"$f":"IF(SUM(H44:H73)>0,AVERAGE(H44:H73),\"\")","v":""},{"$f":"IF(AND($S$9<>\"\",AV14<>\"\"),IF(AV14<=$S$9,\"No\",\"Yes\"),\"\")","v":""},{"$f":"IF(SUM(AF44:AF73)>0,AVERAGE(AF44:AF73),\"\")","v":""},{"$f":"IF(AND($S$8<>\"\",AX14<>\"\"),IF(AX14<=$S$8,\"No\",\"Yes\"),\"\")","v":""}]
[null,{"$f":"IF(B14<>\"\",B14+1,\"\")","v":"2023-10-03"},null,null,null,null,null,null,null,"","",null,null,null,null,"","",null,null,null,null,"","",null,null,null,null,"","",null,"","",null,"","",null,null,null,null,2035,null,null,null,"","",null,"Dec",{"$f":"IF(SUM(H74:H104)>0,AVERAGE(H74:H104),\"\")","v":""},"",{"$f":"IF(SUM(AF74:AF104)>0,AVERAGE(AF74:AF104),\"\")","v":""},""]
[null,"2023-10-04",null,null,null,null,null,null,null,"","",null,null,null,null,"","",null,null,null,null,"","",null,null,null,null,"","",null,"","",null,"","",null,null,null,null,2036,null,null,null,"","",null,"Jan",{"$f":"IF(SUM(H105:H135)>0,AVERAGE(H105:H135),\"\")","v":""},"",{"$f":"IF(SUM(AF105:AF135)>0,AVERAGE(AF105:AF135),\"\")","v":""},""]
[null,"2023-10-05",null,null,null,null,null,null,null,"","",null,null,null,null,"","",null,null,null,null,"","",null,null,null,null,"","",null,"","",null,"","",null,null,null,null,2037,null,null,null,"","",null,"Feb",{"$f":"IF(AND($AB$5<>2020,$AB$5<>2024,$AB$5<>2028,$AB$5<>2032,SUM(H$136:H$163)>0),AVERAGE(H$136:H$163),IF(AND(OR($AB$5=2020,$AB$5=2024,$AB$5=2028,$AB$5=2032),SUM(H$136:H$164)>0),AVERAGE(H$136:H$164),\"\"))","v":""},"",{"$f":"IF(AND($AB$5<>2020,$AB$5<>2024,$AB$5<>2028,$AB$5<>2032,SUM(AF$136:AF$163)>0),AVERAGE(AF$136:AF$163),IF(AND(OR($AB$5=2020,$AB$5=2024,$AB$5=2028,$AB$5=2032),SUM(AF$136:AF$164)>0),AVERAGE(AF$136:AF$164),\"\"))","v":""},""]
[null,"2023-10-06",null,null,null,null,null,null,null,"","",null,null,null,null,"","",null,null,null,null,"","",null,null,null,null,"","",null,"","",null,"","",null,null,null,null,2038,null,null,null,"","",null,"Mar",{"$f":"IF(AND($AB$5<>2020,$AB$5<>2024,$AB$5<>2028,$AB$5<>2032,SUM(H$164:H$194)>0),AVERAGE(H$164:H$194),IF(AND(OR($AB$5=2020,$AB$5=2024,$AB$5=2028,$AB$5=2032),SUM(H$165:H$195)>0),AVERAGE(H$165:H$195),\"\"))","v":""},"",{"$f":"IF(AND($AB$5<>2020,$AB$5<>2024,$AB$5<>2028,$AB$5<>2032,SUM(AF$164:AF$194)>0),AVERAGE(AF$164:AF$194),IF(AND(OR($AB$5=2020,$AB$5=2024,$AB$5=2028,$AB$5=2032),SUM(AF$165:AF$195)>0),AVERAGE(AF$165:AF$195),\"\"))","v":""},""]
[null,"2023-10-07",null,null,null,null,null,null,null,"","",null,null,null,null,"","",null,null,null,null,"","",null,null,null,null,"","",null,"","",null,"","",null,null,null,null,2039,null,null,null,"","",null,"Apr",{"$f":"IF(AND($AB$5<>2020,$AB$5<>2024,$AB$5<>2028,$AB$5<>2032,SUM(H$195:H$224)>0),AVERAGE(H$195:H$224),IF(AND(OR($AB$5=2020,$AB$5=2024,$AB$5=2028,$AB$5=2032),SUM(H$196:H$225)>0),AVERAGE(H$196:H$225),\"\"))","v":""},"",{"$f":"IF(AND($AB$5<>2020,$AB$5<>2024,$AB$5<>2028,$AB$5<>2032,SUM(AF$195:AF$224)>0),AVERAGE(AF$195:AF$224),IF(AND(OR($AB$5=2020,$AB$5=2024,$AB$5=2028,$AB$5=2032),SUM(AF$196:AF$225)>0),AVERAGE(AF$196:AF$225),\"\"))","v":""},""]
[null,"2023-10-08",null,null,null,null,null,null,null,"","",null,null,null,null,"","",null,null,null,null,"","",null,null,null,null,"","",null,"","",null,"","",null,null,null,null,2040,null,null,null,"","",null,"May",{"$f":"IF(AND($AB$5<>2020,$AB$5<>2024,$AB$5<>2028,$AB$5<>2032,SUM(H$225:H$255)>0),AVERAGE(H$225:H$255),IF(AND(OR($AB$5=2020,$AB$5=2024,$AB$5=2028,$AB$5=2032),SUM(H$226:H$256)>0),AVERAGE(H$226:H$256),\"\"))","v":""},"",{"$f":"IF(AND($AB$5<>2020,$AB$5<>2024,$AB$5<>2028,$AB$5<>2032,SUM(AF$225:AF$255)>0),AVERAGE(AF$225:AF$255),IF(AND(OR($AB$5=2020,$AB$5=2024,$AB$5=2028,$AB$5=2032),SUM(AF$226:AF$256)>0),AVERAGE(AF$226:AF$256),\"\"))","v":""},""]
[null,"2023-10-09",null,null,null,null,null,null,null,"","",null,null,null,null,"","",null,null,null,null,"","",null,null,null,null,"","",null,"","",null,"","",null,null,null,null,2041,null,null,null,"","",null,"Jun",{"$f":"IF(AND($AB$5<>2020,$AB$5<>2024,$AB$5<>2028,$AB$5<>2032,SUM(H$256:H$285)>0),AVERAGE(H$256:H$285),IF(AND(OR($AB$5=2020,$AB$5=2024,$AB$5=2028,$AB$5=2032),SUM(H$257:H$286)>0),AVERAGE(H$257:H$286),\"\"))","v":""},"",{"$f":"IF(AND($AB$5<>2020,$AB$5<>2024,$AB$5<>2028,$AB$5<>2032,SUM(AF$256:AF$285)>0),AVERAGE(AF$256:AF$285),IF(AND(OR($AB$5=2020,$AB$5=2024,$AB$5=2028,$AB$5=2032),SUM(AF$257:AF$286)>0),AVERAGE(AF$257:AF$286),\"\"))","v":""},""]
[null,"2023-10-10",null,null,null,null,null,null,null,"","",null,null,null,null,"","",null,null,null,null,"","",null,null,null,null,"","",null,"","",null,"","",null,null,null,null,2042,null,null,null,"","",null,"Jul",{"$f":"IF(AND($AB$5<>2020,$AB$5<>2024,$AB$5<>2028,$AB$5<>2032,SUM(H$286:H$316)>0),AVERAGE(H$286:H$316),IF(AND(OR($AB$5=2020,$AB$5=2024,$AB$5=2028,$AB$5=2032),SUM(H$287:H$317)>0),AVERAGE(H$287:H$317),\"\"))","v":""},"",{"$f":"IF(AND($AB$5<>2020,$AB$5<>2024,$AB$5<>2028,$AB$5<>2032,SUM(AF$286:AF$316)>0),AVERAGE(AF$286:AF$316),IF(AND(OR($AB$5=2020,$AB$5=2024,$AB$5=2028,$AB$5=2032),SUM(AF$287:AF$317)>0),AVERAGE(AF$287:AF$317),\"\"))","v":""},""]
[null,"2023-10-11",null,null,null,null,null,null,null,"","",null,null,null,null,"","",null,null,null,null,"","",null,null,null,null,"","",null,"","",null,"","",null,null,null,null,2043,null,null,null,"","",null,"Aug",{"$f":"IF(AND($AB$5<>2020,$AB$5<>2024,$AB$5<>2028,$AB$5<>2032,SUM(H$317:H$347)>0),AVERAGE(H$317:H$347),IF(AND(OR($AB$5=2020,$AB$5=2024,$AB$5=2028,$AB$5=2032),SUM(H$318:H$348)>0),AVERAGE(H$318:H$348),\"\"))","v":""},"",{"$f":"IF(AND($AB$5<>2020,$AB$5<>2024,$AB$5<>2028,$AB$5<>2032,SUM(AF$317:AF$347)>0),AVERAGE(AF$317:AF$347),IF(AND(OR($AB$5=2020,$AB$5=2024,$AB$5=2028,$AB$5=2032),SUM(AF$318:AF$348)>0),AVERAGE(AF$318:AF$348),\"\"))","v":""},""]
[null,"2023-10-12",null,null,null,null,null,null,null,"","",null,null,null,null,"","",null,null,null,null,"","",null,null,null,null,"","",null,"","",null,"","",null,null,null,null,2044,null,null,null,"","",null,"Sep",{"$f":"IF(AND($AB$5<>2020,$AB$5<>2024,$AB$5<>2028,$AB$5<>2032,SUM(H$348:H$377)>0),AVERAGE(H$348:H$377),IF(AND(OR($AB$5=2020,$AB$5=2024,$AB$5=2028,$AB$5=2032),SUM(H$349:H$378)>0),AVERAGE(H$349:H$378),\"\"))","v":""},"",{"$f":"IF(AND($AB$5<>2020,$AB$5<>2024,$AB$5<>2028,$AB$5<>2032,SUM(AF$348:AF$377)>0),AVERAGE(AF$348:AF$377),IF(AND(OR($AB$5=2020,$AB$5=2024,$AB$5=2028,$AB$5=2032),SUM(AF$349:AF$378)>0),AVERAGE(AF$349:AF$378),\"\"))","v":""},""]
[null,"2023-10-13",null,null,null,null,null,null,null,"","",null,null,null,null,"","",null,null,null,null,"","",null,null,null,null,"","",null,"","",null,"","",null,null,null,null,2045,null,null,null,"","",null,"No. Viols",null,{"$f":"COUNTIF(AW13:AW24,\"Yes\")","v":0},null,{"$f":"COUNTIF(AY13:AY24,\"Yes\")","v":0}]
[null,"2023-10-14",null,null,null,null,null,null,null,"","",null,null,null,null,"","",null,null,null,null,"","",null,null,null,null,"","",null,"","",null,"","",null,null,null,null,2046,null,null,null,"","",null,"Eligible?",null,{"$f":"IF(AND($S$9<>\"\",AW25>=2),\"No\",\"Yes\")","v":"Yes"},null,{"$f":"IF(AND($S$8<>\"\",AY25>=2),\"No\",\"Yes\")","v":"Yes"}]
[null,"2023-10-15",null,null,null,null,null,null,null,"","",null,null,null,null,"","",null,null,null,null,"","",null,null,null,null,"","",null,"","",null,"","",null,null,null,null,2047,null,null,null,"",""]
[null,"2023-10-16",null,null,null,null,null,null,null,"","",null,null,null,null,"","",null,null,null,null,"","",null,null,null,null,"","",null,"","",null,"","",null,null,null,null,2048,null,null,null,"",""]
[null,"2023-10-17",null,null,null,null,null,null,null,"","",null,null,null,null,"","",null,null,null,null,"","",null,null,null,null,"","",null,"","",null,"","",null,null,null,null,2049,null,null,null,"",""]
[null,"2023-10-18",null,null,null,null,null,null,null,"","",null,null,null,null,"","",null,null,null,null,"","",null,null,null,null,"","",null,"","",null,"","",null,null,null,null,2050,null,null,null,"",""]
[null,"2023-10-19",null,null,null,null,null,null,null,"","",null,null,null,null,"","",null,null,null,null,"","",null,null,null,null,"","",null,"","",null,"","",null,null,null,null,null,null,null,null,"",""]
[null,"2023-10-20",null,null,null,null,null,null,null,"","",null,null,null,null,"","",null,null,null,null,"","",null,null,null,null,"","",null,"","",null,"","",null,null,null,null,null,null,null,null,"",""]
[null,"2023-10-21",null,null,null,null,null,null,null,"","",null,null,null,null,"","",null,null,null,null,"","",null,null,null,null,"","",null,"","",null,"","",null,null,null,null,null,null,null,null,"",""]
[null,"2023-10-22",null,null,null,null,null,null,null,"","",null,null,null,null,"","",null,null,null,null,"","",null,null,null,null,"","",null,"","",null,"","",null,null,null,null,null,null,null,null,"",""]
[null,"2023-10-23",null,null,null,null,null,null,null,"","",null,null,null,null,"","",null,null,null,null,"","",null,null,null,null,"","",null,"","",null,"","",null,null,null,null,null,null,null,null,"",""]
[null,"2023-10-24",null,null,null,null,null,null,null,"","",null,null,null,null,"","",null,null,null,null,"","",null,null,null,null,"","",null,"","",null,"","",null,null,null,null,null,null,null,null,"",""]
[null,"2023-10-25",null,null,null,null,null,null,null,"","",null,null,null,null,"","",null,null,null,null,"","",null,null,null,null,"","",null,"","",null,"","",null,null,null,null,null,null,null,null,"",""]
[null,"2023-10-26",null,null,null,null,null,null,null,"","",null,null,null,null,"","",null,null,null,null,"","",null,null,null,null,"","",null,"","",null,"","",null,null,null,null,null,null,null,null,"",""]
[null,"2023-10-27",null,null,null,null,null,null,null,"","",null,null,null,null,"","",null,null,null,null,"","",null,null,null,null,"","",null,"","",null,"","",null,null,null,null,null,null,null,null,"",""]
[null,"2023-10-28",null,null,null,null,null,null,null,"","",null,null,null,null,"","",null,null,null,null,"","",null,null,null,null,"","",null,"","",null,"","",null,null,null,null,null,null,null,null,"",""]
[null,"2023-10-29",null,null,null,null,null,null,null,"","",null,null,null,null,"","",null,null,null,null,"","",null,null,null,null,"","",null,"","",null,"","",null,null,null,null,null,null,null,null,"",""]
[null,"2023-10-30",null,null,null,null,null,null,null,"","",null,null,null,null,"","",null,null,null,null,"","",null,null,null,null,"","",null,"","",null,"","",null,null,null,null,null,null,null,null,"",""]
[null,"2023-10-31",null,null,null,null,null,null,null,"","",null,null,null,null,"","",null,null,null,null,"","",null,null,null,null,"","",null,"","",null,"","",null,null,null,null,null,null,null,null,"",""]
[null,"2023-11-01",null,null,null,null,null,null,null,"","",null,null,null,null,"","",null,null,null,null,"","",null,null,null,null,"","",null,"","",null,"","",null,null,null,null,null,null,null,null,"",""]
[null,"2023-11-02",null,null,null,null,null,null,null,"","",null,null,null,null,"","",null,null,null,null,"","",null,null,null,null,"","",null,"","",null,"","",null,null,null,null,null,null,null,null,"",""]
[null,"2023-11-03",null,null,null,null,null,null,null,"","",null,null,null,null,"","",null,null,null,null,"","",null,null,null,null,"","",null,"","",null,"","",null,null,null,null,null,null,null,null,"",""]
[null,"2023-11-04",null,null,null,null,null,null,null,"","",null,null,null,null,"","",null,null,null,null,"","",null,null,null,null,"","",null,"","",null,"","",null,null,null,null,null,null,null,null,"",""]
[null,"2023-11-05",null,null,null,null,null,null,null,"","",null,null,null,null,"","",null,null,null,null,"","",null,null,null,null,"","",null,"","",null,"","",null,null,null,null,null,null,null,null,"",""]
[null,"2023-11-06",null,null,null,null,null,null,null,"","",null,null,null,null,"","",null,null,null,null,"","",null,null,null,null,"","",null,"","",null,"","",null,null,null,null,null,null,null,null,"",""]
[null,"2023-11-07",null,null,null,null,null,null,null,"","",null,null,null,null,"","",null,null,null,null,"","",null,null,null,null,"","",null,"","",null,"","",null,null,null,null,null,null,null,null,"",""]
[null,"2023-11-08",null,null,null,null,null,null,null,"","",null,null,null,null,"","",null,null,null,null,"","",null,null,null,null,"","",null,"","",null,"","",null,null,null,null,null,null,null,null,"",""]
[null,"2023-11-09",null,null,null,null,null,null,null,"","",null,null,null,null,"","",null,null,null,null,"","",null,null,null,null,"","",null,"","",null,"","",null,null,null,null,null,null,null,null,"",""]
[null,"2023-11-10",null,null,null,null,null,null,null,"","",null,null,null,null,"","",null,null,null,null,"","",null,null,null,null,"","",null,"","",null,"","",null,null,null,null,null,null,null,null,"",""]
[null,"2023-11-11",null,null,null,null,null,null,null,"","",null,null,null,null,"","",null,null,null,null,"","",null,null,null,null,"","",null,"","",null,"","",null,null,null,null,null,null,null,null,"",""]
[null,"2023-11-12",null,null,null,null,null,null,null,"","",null,null,null,null,"","",null,null,null,null,"","",null,null,null,null,"","",null,"","",null,"","",null,null,null,null,null,null,null,null,"",""]
[null,"2023-11-13",null,null,null,null,null,null,null,"","",null,null,null,null,"","",null,null,null,null,"","",null,null,null,null,"","",null,"","",null,"","",null,null,null,null,null,null,null,null,"",""]
[null,"2023-11-14",null,null,null,null,null,null,null,"","",null,null,null,null,"","",null,null,null,null,"","",null,null,null,null,"","",null,"","",null,"","",null,null,null,null,null,null,null,null,"",""]
[null,"2023-11-15",null,null,null,null,null,null,null,"","",null,null,null,null,"","",null,null,null,null,"","",null,null,null,null,"","",null,"","",null,"","",null,null,null,null,null,null,null,null,"",""]
[null,"2023-11-16",null,null,null,null,null,null,null,"","",null,null,null,null,"","",null,null,null,null,"","",null,null,null,null,"","",null,"","",null,"","",null,null,null,null,null,null,null,null,"",""]
[null,"2023-11-17",null,null,null,null,null,null,null,"","",null,null,null,null,"","",null,null,null,null,"","",null,null,null,null,"","",null,"","",null,"","",null,null,null,null,null,null,null,null,"",""]
[null,"2023-11-18",null,null,null,null,null,null,null,"","",null,null,null,null,"","",null,null,null,null,"","",null,null,null,null,"","",null,"","",null,"","",null,null,null,null,null,null,null,null,"",""]
[null,"2023-11-19",null,null,null,null,null,null,null,"","",null,null,null,null,"","",null,null,null,null,"","",null,null,null,null,"","",null,"","",null,"","",null,null,null,null,null,null,null,null,"",""]
[null,"2023-11-20",null,null,null,null,null,null,null,"","",null,null,null,null,"","",null,null,null,null,"","",null,null,null,null,"","",null,"","",null,"","",null,null,null,null,null,null,null,null,"",""]
[null,"2023-11-21",null,null,null,null,null,null,null,"","",null,null,null,null,"","",null,null,null,null,"","",null,null,null,null,"","",null,"","",null,"","",null,null,null,null,null,null,null,null,"",""]
[null,"2023-11-22",null,null,null,null,null,null,null,"","",null,null,null,null,"","",null,null,null,null,"","",null,null,null,null,"","",null,"","",null,"","",null,null,null,null,null,null,null,null,"",""]
[null,"2023-11-23",null,null,null,null,null,null,null,"","",null,null,null,null,"","",null,null,null,null,"","",null,null,null,null,"","",null,"","",null,"","",null,null,null,null,null,null,null,null,"",""]
[null,"2023-11-24",null,null,null,null,null,null,null,"","",null,null,null,null,"","",null,null,null,null,"","",null,null,null,null,"","",null,"","",null,"","",null,null,null,null,null,null,null,null,"",""]
[null,"2023-11-25",null,null,null,null,null,null,null,"","",null,null,null,null,"","",null,null,null,null,"","",null,null,null,null,"","",null,"","",null,"","",null,null,null,null,null,null,null,null,"",""]
[null,"2023-11-26",null,null,null,null,null,null,null,"","",null,null,null,null,"","",null,null,null,null,"","",null,null,null,null,"","",null,"","",null,"","",null,null,null,null,null,null,null,null,"",""]
[null,"2023-11-27",null,null,null,null,null,null,null,"","",null,null,null,null,"","",null,null,null,null,"","",null,null,null,null,"","",null,"","",null,"","",null,null,null,null,null,null,null,null,"",""]
[null,"2023-11-28",null,null,null,null,null,null,null,"","",null,null,null,null,"","",null,null,null,null,"","",null,null,null,null,"","",null,"","",null,"","",null,null,null,null,null,null,null,null,"",""]
[null,"2023-11-29",null,null,null,null,null,null,null,"","",null,null,null,null,"","",null,null,null,null,"","",null,null,null,null,"","",null,"","",null,"","",null,null,null,null,null,null,null,null,"",""]
[null,"2023-11-30",null,null,null,null,null,null,null,"","",null,null,null,null,"","",null,null,null,null,"","",null,null,null,null,"","",null,"","",null,"","",null,null,null,null,null,null,null,null,"",""]
[null,"2023-12-01",null,null,null,null,null,null,null,"","",null,null,null,null,"","",null,null,null,null,"","",null,null,null,null,"","",null,"","",null,"","",null,null,null,null,null,null,null,null,"",""]
[null,"2023-12-02",null,null,null,null,null,null,null,"","",null,null,null,null,"","",null,null,null,null,"","",null,null,null,null,"","",null,"","",null,"","",null,null,null,null,null,null,null,null,"",""]
[null,"2023-12-03",null,null,null,null,null,null,null,"","",null,null,null,null,"","",null,null,null,null,"","",null,null,null,null,"","",null,"","",null,"","",null,null,null,null,null,null,null,null,"",""]
[null,"2023-12-04",null,null,null,null,null,null,null,"","",null,null,null,null,"","",null,null,null,null,"","",null,null,null,null,"","",null,"","",null,"","",null,null,null,null,null,null,null,null,"",{"$f":"IF(AND(H77<>\"\",K77<>\"\"),(0.8-H77)*E77*8.34,\"\")","v":""}]
[null,"2023-12-05",null,null,null,null,null,null,null,{"$f":"IF(AND(E78>0,H78>0),IF(G78=\"<\",\"<\",\"\"),\"\")","v":""},{"$f":"IF(AND(E78>0,H78>0),E78*H78*8.34,\"\")","v":""},null,null,null,null,{"$f":"IF(AND(E78>0,N78>0),IF(M78=\"<\",\"<\",\"\"),\"\")","v":""},{"$f":"IF(AND(E78>0,N78>0),E78*N78*8.34,\"\")","v":""},null,null,null,null,{"$f":"IF(AND($E78>0,T78>0),IF($S78=\"<\",\"<\",\"\"),\"\")","v":""},{"$f":"IF(AND($E78>0,T78>0),E78*T78*8.34,\"\")","v":""},null,null,null,null,{"$f":"IF(AND($E78>0,Z78>0),IF($Y78=\"<\",\"<\",\"\"),\"\")","v":""},{"$f":"IF(AND($E78>0,Z78>0),E78*Z78*8.34,\"\")","v":""},null,{"$f":"IF(OR(S78=\"<\",Y78=\"<\"),\"<\",\"\")","v":""},{"$f":"IF(AND(T78>0,Z78>0),IF(AND(N78>0,N78<>\"\",N78>T78),N78,T78)+Z78,\"\")","v":""},null,{"$f":"IF(AE78=\"<\",\"<\",\"\")","v":""},{"$f":"IF(AND(AF78>0,E78>0,T78>0,Z78>0),IF(AND(Q78>0,Q78<>\"\",Q78>W78),Q78,W78)+AC78,\"\")","v":""},null,null,null,null,null,null,null,null,{"$f":"IF(AND(AF78<>\"\",AI78<>\"\"),(6-AF78)*E78*8.34,\"\")","v":""},""]
[null,{"$f":"IF(B78<>\"\",B78+1,\"\")","v":"2023-12-06"},null,null,null,null,null,null,null,"","",null,null,null,null,"","",null,null,null,null,"","",null,null,null,null,"","",null,"","",null,"","",null,null,null,null,null,null,null,null,"",""]
[null,"2023-12-07",null,null,null,null,null,null,null,"","",null,null,null,null,"","",null,null,null,null,"","",null,null,null,null,"","",null,"","",null,"","",null,null,null,null,null,null,null,null,"",""]
[null,"2023-12-08",null,null,null,null,null,null,null,"","",null,null,null,null,"","",null,null,null,null,"","",null,null,null,null,"","",null,"","",null,"","",null,null,null,null,null,null,null,null,"",""]
[null,"2023-12-09",null,null,null,null,null,null,null,"","",null,null,null,null,"","",null,null,null,null,"","",null,null,null,null,"","",null,"","",null,"","",null,null,null,null,null,null,null,null,"",""]
[null,"2023-12-10",null,null,null,null,null,null,null,"","",null,null,null,null,"","",null,null,null,null,"","",null,null,null,null,"","",null,"","",null,"","",null,null,null,null,null,null,null,null,"",""]
[null,"2023-12-11",null,null,null,null,null,null,null,"","",null,null,null,null,"","",null,null,null,null,"","",null,null,null,null,"","",null,"","",null,"","",null,null,null,null,null,null,null,null,"",""]
[null,"2023-12-12",null,null,null,null,null,null,null,"","",null,null,null,null,"","",null,null,null,null,"","",null,null,null,null,"","",null,"","",null,"","",null,null,null,null,null,null,null,null,"",""]
[null,"2023-12-13",null,null,null,null,null,null,null,"","",null,null,null,null,"","",null,null,null,null,"","",null,null,null,null,"","",null,"","",null,"","",null,null,null,null,null,null,null,null,"",""]
[null,"2023-12-14",null,null,null,null,null,null,null,"","",null,null,null,null,"","",null,null,null,null,"","",null,null,null,null,"","",null,"","",null,"","",null,null,null,null,null,null,null,null,"",""]
[null,"2023-12-15",null,null,null,null,null,null,null,"","",null,null,null,null,"","",null,null,null,null,"","",null,null,null,null,"","",null,"","",null,"","",null,null,null,null,null,null,null,null,"",""]
[null,"2023-12-16",null,null,null,null,null,null,null,"","",null,null,null,null,"","",null,null,null,null,"","",null,null,null,null,"","",null,"","",null,"","",null,null,null,null,null,null,null,null,"",""]
[null,"2023-12-17",null,null,null,null,null,null,null,"","",null,null,null,null,"","",null,null,null,null,"","",null,null,null,null,"","",null,"","",null,"","",null,null,null,null,null,null,null,null,"",""]
[null,"2023-12-18",null,null,null,null,null,null,null,"","",null,null,null,null,"","",null,null,null,null,"","",null,null,null,null,"","",null,"","",null,"","",null,null,null,null,null,null,null,null,"",""]
[null,"2023-12-19",null,null,null,null,null,null,null,"","",null,null,null,null,"","",null,null,null,null,"","",null,null,null,null,"","",null,"","",null,"","",null,null,null,null,null,null,null,null,"",""]
[null,"2023-12-20",null,null,null,null,null,null,null,"","",null,null,null,null,"","",null,null,null,null,"","",null,null,null,null,"","",null,"","",null,"","",null,null,null,null,null,null,null,null,"",""]
[null,"2023-12-21",null,null,null,null,null,null,null,"","",null,null,null,null,"","",null,null,null,null,"","",null,null,null,null,"","",null,"","",null,"","",null,null,null,null,null,null,null,null,"",""]
[null,"2023-12-22",null,null,null,null,null,null,null,"","",null,null,null,null,"","",null,null,null,null,"","",null,null,null,null,"","",null,"","",null,"","",null,null,null,null,null,null,null,null,"",""]
[null,"2023-12-23",null,null,null,null,null,null,null,"","",null,null,null,null,"","",null,null,null,null,"","",null,null,null,null,"","",null,"","",null,"","",null,null,null,null,null,null,null,null,"",""]
[null,"2023-12-24",null,null,null,null,null,null,null,"","",null,null,null,null,"","",null,null,null,null,"","",null,null,null,null,"","",null,"","",null,"","",null,null,null,null,null,null,null,null,"",""]
[null,"2023-12-25",null,null,null,null,null,null,null,"","",null,null,null,null,"","",null,null,null,null,"","",null,null,null,null,"","",null,"","",null,"","",null,null,null,null,null,null,null,null,"",""]
[null,"2023-12-26",null,null,null,null,null,null,null,"","",null,null,null,null,"","",null,null,null,null,"","",null,null,null,null,"","",null,"","",null,"","",null,null,null,null,null,null,null,null,"",""]
[null,"2023-12-27",null,null,null,null,null,null,null,"","",null,null,null,null,"","",null,null,null,null,"","",null,null,null,null,"","",null,"","",null,"","",null,null,null,null,null,null,null,null,"",""]
[null,"2023-12-28",null,null,null,null,null,null,null,"","",null,null,null,null,"","",null,null,null,null,"","",null,null,null,null,"","",null,"","",null,"","",null,null,null,null,null,null,null,null,"",""]
[null,"2023-12-29",null,null,null,null,null,null,null,"","",null,null,null,null,"","",null,null,null,null,"","",null,null,null,null,"","",null,"","",null,"","",null,null,null,null,null,null,null,null,"",""]
[null,"2023-12-30",null,null,null,null,null,null,null,"","",null,null,null,null,"","",null,null,null,null,"","",null,null,null,null,"","",null,"","",null,"","",null,null,null,null,null,null,null,null,"",""]
[null,"2023-12-31",null,null,null,null,null,null,null,"","",null,null,null,null,"","",null,null,null,null,"","",null,null,null,null,"","",null,"","",null,"","",null,null,null,null,null,null,null,null,"",""]
[null,"2024-01-01",null,null,null,null,null,null,null,"","",null,null,null,null,"","",null,null,null,null,"","",null,null,null,null,"","",null,"","",null,"","",null,null,null,null,null,null,null,null,"",""]
[null,"2024-01-02",null,null,null,null,null,null,null,"","",null,null,null,null,"","",null,null,null,null,"","",null,null,null,null,"","",null,"","",null,"","",null,null,null,null,null,null,null,null,"",""]
[null,"2024-01-03",null,null,null,null,null,null,null,"","",null,null,null,null,"","",null,null,null,null,"","",null,null,null,null,"","",null,"","",null,"","",null,null,null,null,null,null,null,null,"",""]
[null,"2024-01-04",null,null,null,null,null,null,null,"","",null,null,null,null,"","",null,null,null,null,"","",null,null,null,null,"","",null,"","",null,"","",null,null,null,null,null,null,null,null,"",""]
[null,"2024-01-05",null,null,null,null,null,null,null,"","",null,null,null,null,"","",null,null,null,null,"","",null,null,null,null,"","",null,"","",null,"","",null,null,null,null,null,null,null,null,"",""]
[null,"2024-01-06",null,null,null,null,null,null,null,"","",null,null,null,null,"","",null,null,null,null,"","",null,null,null,null,"","",null,"","",null,"","",null,null,null,null,null,null,null,null,"",""]
[null,"2024-01-07",null,null,null,null,null,null,null,"","",null,null,null,null,"","",null,null,null,null,"","",null,null,null,null,"","",null,"","",null,"","",null,null,null,null,null,null,null,null,"",""]
[null,"2024-01-08",null,null,null,null,null,null,null,"","",null,null,null,null,"","",null,null,null,null,"","",null,null,null,null,"","",null,"","",null,"","",null,null,null,null,null,null,null,null,"",""]
[null,"2024-01-09",null,null,null,null,null,null,null,"","",null,null,null,null,"","",null,null,null,null,"","",null,null,null,null,"","",null,"","",null,"","",null,null,null,null,null,null,null,null,"",""]
[null,"2024-01-10",null,null,null,null,null,null,null,"","",null,null,null,null,"","",null,null,null,null,"","",null,null,null,null,"","",null,"","",null,"","",null,null,null,null,null,null,null,null,"",""]
[null,"2024-01-11",null,null,null,null,null,null,null,"","",null,null,null,null,"","",null,null,null,null,"","",null,null,null,null,"","",null,"","",null,"","",null,null,null,null,null,null,null,null,"",""]
[null,"2024-01-12",null,null,null,null,null,null,null,"","",null,null,null,null,"","",null,null,null,null,"","",null,null,null,null,"","",null,"","",null,"","",null,null,null,null,null,null,null,null,"",""]
[null,"2024-01-13",null,null,null,null,null,null,null,"","",null,null,null,null,"","",null,null,null,null,"","",null,null,null,null,"","",null,"","",null,"","",null,null,null,null,null,null,null,null,"",""]
[null,"2024-01-14",null,null,null,null,null,null,null,"","",null,null,null,null,"","",null,null,null,null,"","",null,null,null,null,"","",null,"","",null,"","",null,null,null,null,null,null,null,null,"",""]
[null,"2024-01-15",null,null,null,null,null,null,null,"","",null,null,null,null,"","",null,null,null,null,"","",null,null,null,null,"","",null,"","",null,"","",null,null,null,null,null,null,null,null,"",""]
[null,"2024-01-16",null,null,null,null,null,null,null,"","",null,null,null,null,"","",null,null,null,null,"","",null,null,null,null,"","",null,"","",null,"","",null,null,null,null,null,null,null,null,"",""]
[null,"2024-01-17",null,null,null,null,null,null,null,"","",null,null,null,null,"","",null,null,null,null,"","",null,null,null,null,"","",null,"","",null,"","",null,null,null,null,null,null,null,null,"",""]
[null,"2024-01-18",null,null,null,null,null,null,null,"","",null,null,null,null,"","",null,null,null,null,"","",null,null,null,null,"","",null,"","",null,"","",null,null,null,null,null,null,null,null,"",""]
[null,"2024-01-19",null,null,null,null,null,null,null,"","",null,null,null,null,"","",null,null,null,null,"","",null,null,null,null,"","",null,"","",null,"","",null,null,null,null,null,null,null,null,"",""]
[null,"2024-01-20",null,null,null,null,null,null,null,"","",null,null,null,null,"","",null,null,null,null,"","",null,null,null,null,"","",null,"","",null,"","",null,null,null,null,null,null,null,null,"",""]
[null,"2024-01-21",null,null,null,null,null,null,null,"","",null,null,null,null,"","",null,null,null,null,"","",null,null,null,null,"","",null,"","",null,"","",null,null,null,null,null,null,null,null,"",""]
[null,"2024-01-22",null,null,null,null,null,null,null,"","",null,null,null,null,"","",null,null,null,null,"","",null,null,null,null,"","",null,"","",null,"","",null,null,null,null,null,null,null,null,"",""]
[null,"2024-01-23",null,null,null,null,null,null,null,"","",null,null,null,null,"","",null,null,null,null,"","",null,null,null,null,"","",null,"","",null,"","",null,null,null,null,null,null,null,null,"",""]
[null,"2024-01-24",null,null,null,null,null,null,null,"","",null,null,null,null,"","",null,null,null,null,"","",null,null,null,null,"","",null,"","",null,"","",null,null,null,null,null,null,null,null,"",""]
[null,"2024-01-25",null,null,null,null,null,null,null,"","",null,null,null,null,"","",null,null,null,null,"","",null,null,null,null,"","",null,"","",null,"","",null,null,null,null,null,null,null,null,"",""]
[null,"2024-01-26",null,null,null,null,null,null,null,"","",null,null,null,null,"","",null,null,null,null,"","",null,null,null,null,"","",null,"","",null,"","",null,null,null,null,null,null,null,null,"",""]
[null,"2024-01-27",null,null,null,null,null,null,null,"","",null,null,null,null,"","",null,null,null,null,"","",null,null,null,null,"","",null,"","",null,"","",null,null,null,null,null,null,null,null,"",""]
[null,"2024-01-28",null,null,null,null,null,null,null,"","",null,null,null,null,"","",null,null,null,null,"","",null,null,null,null,"","",null,"","",null,"","",null,null,null,null,null,null,null,null,"",""]
[null,"2024-01-29",null,null,null,null,null,null,null,"","",null,null,null,null,"","",null,null,null,null,"","",null,null,null,null,"","",null,"","",null,"","",null,null,null,null,null,null,null,null,"",""]
[null,"2024-01-30",null,null,null,null,null,null,null,"","",null,null,null,null,"","",null,null,null,null,"","",null,null,null,null,"","",null,"","",null,"","",null,null,null,null,null,null,null,null,"",""]
[null,"2024-01-31",null,null,null,null,null,null,null,"","",null,null,null,null,"","",null,null,null,null,"","",null,null,null,null,"","",null,"","",null,"","",null,null,null,null,null,null,null,null,"",""]
[null,"2024-02-01",null,null,null,null,null,null,null,"","",null,null,null,null,"","",null,null,null,null,"","",null,null,null,null,"","",null,"","",null,"","",null,null,null,null,null,null,null,null,"",""]
[null,"2024-02-02",null,null,null,null,null,null,null,"","",null,null,null,null,"","",null,null,null,null,"","",null,null,null,null,"","",null,"","",null,"","",null,null,null,null,null,null,null,null,"",""]
[null,"2024-02-03",null,null,null,null,null,null,null,"","",null,null,null,null,"","",null,null,null,null,"","",null,null,null,null,"","",null,"","",null,"","",null,null,null,null,null,null,null,null,"",""]
[null,"2024-02-04",null,null,null,null,null,null,null,"","",null,null,null,null,"","",null,null,null,null,"","",null,null,null,null,"","",null,"","",null,"","",null,null,null,null,null,null,null,null,"",""]
[null,"2024-02-05",null,null,null,null,null,null,null,"","",null,null,null,null,"","",null,null,null,null,"","",null,null,null,null,"","",null,"","",null,"","",null,null,null,null,null,null,null,null,"",""]
[null,"2024-02-06",null,null,null,null,null,null,null,"","",null,null,null,null,"","",null,null,null,null,"","",null,null,null,null,"","",null,"","",null,"","",null,null,null,null,null,null,null,null,"",{"$f":"IF(AND(H141<>\"\",K141<>\"\"),(0.8-H141)*E141*8.34,\"\")","v":""}]
[null,"2024-02-07",null,null,null,null,null,null,null,{"$f":"IF(AND(E142>0,H142>0),IF(G142=\"<\",\"<\",\"\"),\"\")","v":""},{"$f":"IF(AND(E142>0,H142>0),E142*H142*8.34,\"\")","v":""},null,null,null,null,{"$f":"IF(AND(E142>0,N142>0),IF(M142=\"<\",\"<\",\"\"),\"\")","v":""},{"$f":"IF(AND(E142>0,N142>0),E142*N142*8.34,\"\")","v":""},null,null,null,null,{"$f":"IF(AND($E142>0,T142>0),IF($S142=\"<\",\"<\",\"\"),\"\")","v":""},{"$f":"IF(AND($E142>0,T142>0),E142*T142*8.34,\"\")","v":""},null,null,null,null,{"$f":"IF(AND($E142>0,Z142>0),IF($Y142=\"<\",\"<\",\"\"),\"\")","v":""},{"$f":"IF(AND($E142>0,Z142>0),E142*Z142*8.34,\"\")","v":""},null,{"$f":"IF(OR(S142=\"<\",Y142=\"<\"),\"<\",\"\")","v":""},{"$f":"IF(AND(T142>0,Z142>0),IF(AND(N142>0,N142<>\"\",N142>T142),N142,T142)+Z142,\"\")","v":""},null,{"$f":"IF(AE142=\"<\",\"<\",\"\")","v":""},{"$f":"IF(AND(AF142>0,E142>0,T142>0,Z142>0),IF(AND(Q142>0,Q142<>\"\",Q142>W142),Q142,W142)+AC142,\"\")","v":""},null,null,null,null,null,null,null,null,{"$f":"IF(AND(AF142<>\"\",AI142<>\"\"),(6-AF142)*E142*8.34,\"\")","v":""},""]
[null,{"$f":"IF(B142<>\"\",B142+1,\"\")","v":"2024-02-08"},null,null,null,null,null,null,null,"","",null,null,null,null,"","",null,null,null,null,"","",null,null,null,null,"","",null,"","",null,"","",null,null,null,null,null,null,null,null,"",""]
[null,"2024-02-09",null,null,null,null,null,null,null,"","",null,null,null,null,"","",null,null,null,null,"","",null,null,null,null,"","",null,"","",null,"","",null,null,null,null,null,null,null,null,"",""]
[null,"2024-02-10",null,null,null,null,null,null,null,"","",null,null,null,null,"","",null,null,null,null,"","",null,null,null,null,"","",null,"","",null,"","",null,null,null,null,null,null,null,null,"",""]
[null,"2024-02-11",null,null,null,null,null,null,null,"","",null,null,null,null,"","",null,null,null,null,"","",null,null,null,null,"","",null,"","",null,"","",null,null,null,null,null,null,null,null,"",""]
[null,"2024-02-12",null,null,null,null,null,null,null,"","",null,null,null,null,"","",null,null,null,null,"","",null,null,null,null,"","",null,"","",null,"","",null,null,null,null,null,null,null,null,"",""]
[null,"2024-02-13",null,null,null,null,null,null,null,"","",null,null,null,null,"","",null,null,null,null,"","",null,null,null,null,"","",null,"","",null,"","",null,null,null,null,null,null,null,null,"",""]
[null,"2024-02-14",null,null,null,null,null,null,null,"","",null,null,null,null,"","",null,null,null,null,"","",null,null,null,null,"","",null,"","",null,"","",null,null,null,null,null,null,null,null,"",""]
[null,"2024-02-15",null,null,null,null,null,null,null,"","",null,null,null,null,"","",null,null,null,null,"","",null,null,null,null,"","",null,"","",null,"","",null,null,null,null,null,null,null,null,"",""]
[null,"2024-02-16",null,null,null,null,null,null,null,"","",null,null,null,null,"","",null,null,null,null,"","",null,null,null,null,"","",null,"","",null,"","",null,null,null,null,null,null,null,null,"",""]
[null,"2024-02-17",null,null,null,null,null,null,null,"","",null,null,null,null,"","",null,null,null,null,"","",null,null,null,null,"","",null,"","",null,"","",null,null,null,null,null,null,null,null,"",""]
[null,"2024-02-18",null,null,null,null,null,null,null,"","",null,null,null,null,"","",null,null,null,null,"","",null,null,null,null,"","",null,"","",null,"","",null,null,null,null,null,null,null,null,"",""]
[null,"2024-02-19",null,null,null,null,null,null,null,"","",null,null,null,null,"","",null,null,null,null,"","",null,null,null,null,"","",null,"","",null,"","",null,null,null,null,null,null,null,null,"",""]
[null,"2024-02-20",null,null,null,null,null,null,null,"","",null,null,null,null,"","",null,null,null,null,"","",null,null,null,null,"","",null,"","",null,"","",null,null,null,null,null,null,null,null,"",""]
[null,"2024-02-21",null,null,null,null,null,null,null,"","",null,null,null,null,"","",null,null,null,null,"","",null,null,null,null,"","",null,"","",null,"","",null,null,null,null,null,null,null,null,"",""]
[null,"2024-02-22",null,null,null,null,null,null,null,"","",null,null,null,null,"","",null,null,null,null,"","",null,null,null,null,"","",null,"","",null,"","",null,null,null,null,null,null,null,null,"",""]
[null,"2024-02-23",null,null,null,null,null,null,null,"","",null,null,null,null,"","",null,null,null,null,"","",null,null,null,null,"","",null,"","",null,"","",null,null,null,null,null,null,null,null,"",""]
[null,"2024-02-24",null,null,null,null,null,null,null,"","",null,null,null,null,"","",null,null,null,null,"","",null,null,null,null,"","",null,"","",null,"","",null,null,null,null,null,null,null,null,"",""]
[null,"2024-02-25",null,null,null,null,null,null,null,"","",null,null,null,null,"","",null,null,null,null,"","",null,null,null,null,"","",null,"","",null,"","",null,null,null,null,null,null,null,null,"",""]
[null,"2024-02-26",null,null,null,null,null,null,null,"","",null,null,null,null,"","",null,null,null,null,"","",null,null,null,null,"","",null,"","",null,"","",null,null,null,null,null,null,null,null,"",""]
[null,"2024-02-27",null,null,null,null,null,null,null,"","",null,null,null,null,"","",null,null,null,null,"","",null,null,null,null,"","",null,"","",null,"","",null,null,null,null,null,null,null,null,"",""]
[null,"2024-02-28",null,null,null,null,null,null,null,"","",null,null,null,null,"","",null,null,null,null,"","",null,null,null,null,"","",null,"","",null,"","",null,null,null,null,null,null,null,null,"",""]
[null,"2024-02-29",null,null,null,null,null,null,null,"","",null,null,null,null,"","",null,null,null,null,"","",null,null,null,null,"","",null,"","",null,"","",null,null,null,null,null,null,null,null,"",""]
[null,"2024-03-01",null,null,null,null,null,null,null,"","",null,null,null,null,"","",null,null,null,null,"","",null,null,null,null,"","",null,"","",null,"","",null,null,null,null,null,null,null,null,"",""]
[null,"2024-03-02",null,null,null,null,null,null,null,"","",null,null,null,null,"","",null,null,null,null,"","",null,null,null,null,"","",null,"","",null,"","",null,null,null,null,null,null,null,null,"",""]
[null,"2024-03-03",null,null,null,null,null,null,null,"","",null,null,null,null,"","",null,null,null,null,"","",null,null,null,null,"","",null,"","",null,"","",null,null,null,null,null,null,null,null,"",""]
[null,"2024-03-04",null,null,null,null,null,null,null,"","",null,null,null,null,"","",null,null,null,null,"","",null,null,null,null,"","",null,"","",null,"","",null,null,null,null,null,null,null,null,"",""]
[null,"2024-03-05",null,null,null,null,null,null,null,"","",null,null,null,null,"","",null,null,null,null,"","",null,null,null,null,"","",null,"","",null,"","",null,null,null,null,null,null,null,null,"",""]
[null,"2024-03-06",null,null,null,null,null,null,null,"","",null,null,null,null,"","",null,null,null,null,"","",null,null,null,null,"","",null,"","",null,"","",null,null,null,null,null,null,null,null,"",""]
[null,"2024-03-07",null,null,null,null,null,null,null,"","",null,null,null,null,"","",null,null,null,null,"","",null,null,null,null,"","",null,"","",null,"","",null,null,null,null,null,null,null,null,"",""]
[null,"2024-03-08",null,null,null,null,null,null,null,"","",null,null,null,null,"","",null,null,null,null,"","",null,null,null,null,"","",null,"","",null,"","",null,null,null,null,null,null,null,null,"",""]
[null,"2024-03-09",null,null,null,null,null,null,null,"","",null,null,null,null,"","",null,null,null,null,"","",null,null,null,null,"","",null,"","",null,"","",null,null,null,null,null,null,null,null,"",""]
[null,"2024-03-10",null,null,null,null,null,null,null,"","",null,null,null,null,"","",null,null,null,null,"","",null,null,null,null,"","",null,"","",null,"","",null,null,null,null,null,null,null,null,"",""]
[null,"2024-03-11",null,null,null,null,null,null,null,"","",null,null,null,null,"","",null,null,null,null,"","",null,null,null,null,"","",null,"","",null,"","",null,null,null,null,null,null,null,null,"",""]
[null,"2024-03-12",null,null,null,null,null,null,null,"","",null,null,null,null,"","",null,null,null,null,"","",null,null,null,null,"","",null,"","",null,"","",null,null,null,null,null,null,null,null,"",""]
[null,"2024-03-13",null,null,null,null,null,null,null,"","",null,null,null,null,"","",null,null,null,null,"","",null,null,null,null,"","",null,"","",null,"","",null,null,null,null,null,null,null,null,"",""]
[null,"2024-03-14",null,null,null,null,null,null,null,"","",null,null,null,null,"","",null,null,null,null,"","",null,null,null,null,"","",null,"","",null,"","",null,null,null,null,null,null,null,null,"",""]
[null,"2024-03-15",null,null,null,null,null,null,null,"","",null,null,null,null,"","",null,null,null,null,"","",null,null,null,null,"","",null,"","",null,"","",null,null,null,null,null,null,null,null,"",""]
[null,"2024-03-16",null,null,null,null,null,null,null,"","",null,null,null,null,"","",null,null,null,null,"","",null,null,null,null,"","",null,"","",null,"","",null,null,null,null,null,null,null,null,"",""]
[null,"2024-03-17",null,null,null,null,null,null,null,"","",null,null,null,null,"","",null,null,null,null,"","",null,null,null,null,"","",null,"","",null,"","",null,null,null,null,null,null,null,null,"",""]
[null,"2024-03-18",null,null,null,null,null,null,null,"","",null,null,null,null,"","",null,null,null,null,"","",null,null,null,null,"","",null,"","",null,"","",null,null,null,null,null,null,null,null,"",""]
[null,"2024-03-19",null,null,null,null,null,null,null,"","",null,null,null,null,"","",null,null,null,null,"","",null,null,null,null,"","",null,"","",null,"","",null,null,null,null,null,null,null,null,"",""]
[null,"2024-03-20",null,null,null,null,null,null,null,"","",null,null,null,null,"","",null,null,null,null,"","",null,null,null,null,"","",null,"","",null,"","",null,null,null,null,null,null,null,null,"",""]
[null,"2024-03-21",null,null,null,null,null,null,null,"","",null,null,null,null,"","",null,null,null,null,"","",null,null,null,null,"","",null,"","",null,"","",null,null,null,null,null,null,null,null,"",""]
[null,"2024-03-22",null,null,null,null,null,null,null,"","",null,null,null,null,"","",null,null,null,null,"","",null,null,null,null,"","",null,"","",null,"","",null,null,null,null,null,null,null,null,"",""]
[null,"2024-03-23",null,null,null,null,null,null,null,"","",null,null,null,null,"","",null,null,null,null,"","",null,null,null,null,"","",null,"","",null,"","",null,null,null,null,null,null,null,null,"",""]
[null,"2024-03-24",null,null,null,null,null,null,null,"","",null,null,null,null,"","",null,null,null,null,"","",null,null,null,null,"","",null,"","",null,"","",null,null,null,null,null,null,null,null,"",""]
[null,"2024-03-25",null,null,null,null,null,null,null,"","",null,null,null,null,"","",null,null,null,null,"","",null,null,null,null,"","",null,"","",null,"","",null,null,null,null,null,null,null,null,"",""]
[null,"2024-03-26",null,null,null,null,null,null,null,"","",null,null,null,null,"","",null,null,null,null,"","",null,null,null,null,"","",null,"","",null,"","",null,null,null,null,null,null,null,null,"",""]
[null,"2024-03-27",null,null,null,null,null,null,null,"","",null,null,null,null,"","",null,null,null,null,"","",null,null,null,null,"","",null,"","",null,"","",null,null,null,null,null,null,null,null,"",""]
[null,"2024-03-28",null,null,null,null,null,null,null,"","",null,null,null,null,"","",null,null,null,null,"","",null,null,null,null,"","",null,"","",null,"","",null,null,null,null,null,null,null,null,"",""]
[null,"2024-03-29",null,null,null,null,null,null,null,"","",null,null,null,null,"","",null,null,null,null,"","",null,null,null,null,"","",null,"","",null,"","",null,null,null,null,null,null,null,null,"",""]
[null,"2024-03-30",null,null,null,null,null,null,null,"","",null,null,null,null,"","",null,null,null,null,"","",null,null,null,null,"","",null,"","",null,"","",null,null,null,null,null,null,null,null,"",""]
[null,"2024-03-31",null,null,null,null,null,null,null,"","",null,null,null,null,"","",null,null,null,null,"","",null,null,null,null,"","",null,"","",null,"","",null,null,null,null,null,null,null,null,"",""]
[null,"2024-04-01",null,null,null,null,null,null,null,"","",null,null,null,null,"","",null,null,null,null,"","",null,null,null,null,"","",null,"","",null,"","",null,null,null,null,null,null,null,null,"",""]
[null,"2024-04-02",null,null,null,null,null,null,null,"","",null,null,null,null,"","",null,null,null,null,"","",null,null,null,null,"","",null,"","",null,"","",null,null,null,null,null,null,null,null,"",""]
[null,"2024-04-03",null,null,null,null,null,null,null,"","",null,null,null,null,"","",null,null,null,null,"","",null,null,null,null,"","",null,"","",null,"","",null,null,null,null,null,null,null,null,"",""]
[null,"2024-04-04",null,null,null,null,null,null,null,"","",null,null,null,null,"","",null,null,null,null,"","",null,null,null,null,"","",null,"","",null,"","",null,null,null,null,null,null,null,null,"",""]
[null,"2024-04-05",null,null,null,null,null,null,null,"","",null,null,null,null,"","",null,null,null,null,"","",null,null,null,null,"","",null,"","",null,"","",null,null,null,null,null,null,null,null,"",""]
[null,"2024-04-06",null,null,null,null,null,null,null,"","",null,null,null,null,"","",null,null,null,null,"","",null,null,null,null,"","",null,"","",null,"","",null,null,null,null,null,null,null,null,"",""]
[null,"2024-04-07",null,null,null,null,null,null,null,"","",null,null,null,null,"","",null,null,null,null,"","",null,null,null,null,"","",null,"","",null,"","",null,null,null,null,null,null,null,null,"",""]
[null,"2024-04-08",null,null,null,null,null,null,null,"","",null,null,null,null,"","",null,null,null,null,"","",null,null,null,null,"","",null,"","",null,"","",null,null,null,null,null,null,null,null,"",""]
[null,"2024-04-09",null,null,null,null,null,null,null,"","",null,null,null,null,"","",null,null,null,null,"","",null,null,null,null,"","",null,"","",null,"","",null,null,null,null,null,null,null,null,"",""]
[null,"2024-04-10",null,null,null,null,null,null,null,"","",null,null,null,null,"","",null,null,null,null,"","",null,null,null,null,"","",null,"","",null,"","",null,null,null,null,null,null,null,null,"",{"$f":"IF(AND(H205<>\"\",K205<>\"\"),(0.8-H205)*E205*8.34,\"\")","v":""}]
[null,"2024-04-11",null,null,null,null,null,null,null,{"$f":"IF(AND(E206>0,H206>0),IF(G206=\"<\",\"<\",\"\"),\"\")","v":""},{"$f":"IF(AND(E206>0,H206>0),E206*H206*8.34,\"\")","v":""},null,null,null,null,{"$f":"IF(AND(E206>0,N206>0),IF(M206=\"<\",\"<\",\"\"),\"\")","v":""},{"$f":"IF(AND(E206>0,N206>0),E206*N206*8.34,\"\")","v":""},null,null,null,null,{"$f":"IF(AND($E206>0,T206>0),IF($S206=\"<\",\"<\",\"\"),\"\")","v":""},{"$f":"IF(AND($E206>0,T206>0),E206*T206*8.34,\"\")","v":""},null,null,null,null,{"$f":"IF(AND($E206>0,Z206>0),IF($Y206=\"<\",\"<\",\"\"),\"\")","v":""},{"$f":"IF(AND($E206>0,Z206>0),E206*Z206*8.34,\"\")","v":""},null,{"$f":"IF(OR(S206=\"<\",Y206=\"<\"),\"<\",\"\")","v":""},{"$f":"IF(AND(T206>0,Z206>0),IF(AND(N206>0,N206<>\"\",N206>T206),N206,T206)+Z206,\"\")","v":""},null,{"$f":"IF(AE206=\"<\",\"<\",\"\")","v":""},{"$f":"IF(AND(AF206>0,E206>0,T206>0,Z206>0),IF(AND(Q206>0,Q206<>\"\",Q206>W206),Q206,W206)+AC206,\"\")","v":""},null,null,null,null,null,null,null,null,{"$f":"IF(AND(AF206<>\"\",AI206<>\"\"),(6-AF206)*E206*8.34,\"\")","v":""},""]
[null,{"$f":"IF(B206<>\"\",B206+1,\"\")","v":"2024-04-12"},null,null,null,null,null,null,null,"","",null,null,null,null,"","",null,null,null,null,"","",null,null,null,null,"","",null,"","",null,"","",null,null,null,null,null,null,null,null,"",""]
[null,"2024-04-13",null,null,null,null,null,null,null,"","",null,null,null,null,"","",null,null,null,null,"","",null,null,null,null,"","",null,"","",null,"","",null,null,null,null,null,null,null,null,"",""]
[null,"2024-04-14",null,null,null,null,null,null,null,"","",null,null,null,null,"","",null,null,null,null,"","",null,null,null,null,"","",null,"","",null,"","",null,null,null,null,null,null,null,null,"",""]
[null,"2024-04-15",null,null,null,null,null,null,null,"","",null,null,null,null,"","",null,null,null,null,"","",null,null,null,null,"","",null,"","",null,"","",null,null,null,null,null,null,null,null,"",""]
[null,"2024-04-16",null,null,null,null,null,null,null,"","",null,null,null,null,"","",null,null,null,null,"","",null,null,null,null,"","",null,"","",null,"","",null,null,null,null,null,null,null,null,"",""]
[null,"2024-04-17",null,null,null,null,null,null,null,"","",null,null,null,null,"","",null,null,null,null,"","",null,null,null,null,"","",null,"","",null,"","",null,null,null,null,null,null,null,null,"",""]
[null,"2024-04-18",null,null,null,null,null,null,null,"","",null,null,null,null,"","",null,null,null,null,"","",null,null,null,null,"","",null,"","",null,"","",null,null,null,null,null,null,null,null,"",""]
[null,"2024-04-19",null,null,null,null,null,null,null,"","",null,null,null,null,"","",null,null,null,null,"","",null,null,null,null,"","",null,"","",null,"","",null,null,null,null,null,null,null,null,"",""]
[null,"2024-04-20",null,null,null,null,null,null,null,"","",null,null,null,null,"","",null,null,null,null,"","",null,null,null,null,"","",null,"","",null,"","",null,null,null,null,null,null,null,null,"",""]
[null,"2024-04-21",null,null,null,null,null,null,null,"","",null,null,null,null,"","",null,null,null,null,"","",null,null,null,null,"","",null,"","",null,"","",null,null,null,null,null,null,null,null,"",""]
[null,"2024-04-22",null,null,null,null,null,null,null,"","",null,null,null,null,"","",null,null,null,null,"","",null,null,null,null,"","",null,"","",null,"","",null,null,null,null,null,null,null,null,"",""]
[null,"2024-04-23",null,null,null,null,null,null,null,"","",null,null,null,null,"","",null,null,null,null,"","",null,null,null,null,"","",null,"","",null,"","",null,null,null,null,null,null,null,null,"",""]
[null,"2024-04-24",null,null,null,null,null,null,null,"","",null,null,null,null,"","",null,null,null,null,"","",null,null,null,null,"","",null,"","",null,"","",null,null,null,null,null,null,null,null,"",""]
[null,"2024-04-25",null,null,null,null,null,null,null,"","",null,null,null,null,"","",null,null,null,null,"","",null,null,null,null,"","",null,"","",null,"","",null,null,null,null,null,null,null,null,"",""]
[null,"2024-04-26",null,null,null,null,null,null,null,"","",null,null,null,null,"","",null,null,null,null,"","",null,null,null,null,"","",null,"","",null,"","",null,null,null,null,null,null,null,null,"",""]
[null,"2024-04-27",null,null,null,null,null,null,null,"","",null,null,null,null,"","",null,null,null,null,"","",null,null,null,null,"","",null,"","",null,"","",null,null,null,null,null,null,null,null,"",""]
[null,"2024-04-28",null,null,null,null,null,null,null,"","",null,null,null,null,"","",null,null,null,null,"","",null,null,null,null,"","",null,"","",null,"","",null,null,null,null,null,null,null,null,"",""]
[null,"2024-04-29",null,null,null,null,null,null,null,"","",null,null,null,null,"","",null,null,null,null,"","",null,null,null,null,"","",null,"","",null,"","",null,null,null,null,null,null,null,null,"",""]
[null,"2024-04-30",null,null,null,null,null,null,null,"","",null,null,null,null,"","",null,null,null,null,"","",null,null,null,null,"","",null,"","",null,"","",null,null,null,null,null,null,null,null,"",""]
[null,"2024-05-01",null,null,null,null,null,null,null,"","",null,null,null,null,"","",null,null,null,null,"","",null,null,null,null,"","",null,"","",null,"","",null,null,null,null,null,null,null,null,"",""]
[null,"2024-05-02",null,null,null,null,null,null,null,"","",null,null,null,null,"","",null,null,null,null,"","",null,null,null,null,"","",null,"","",null,"","",null,null,null,null,null,null,null,null,"",""]
[null,"2024-05-03",null,null,null,null,null,null,null,"","",null,null,null,null,"","",null,null,null,null,"","",null,null,null,null,"","",null,"","",null,"","",null,null,null,null,null,null,null,null,"",""]
[null,"2024-05-04",null,null,null,null,null,null,null,"","",null,null,null,null,"","",null,null,null,null,"","",null,null,null,null,"","",null,"","",null,"","",null,null,null,null,null,null,null,null,"",""]
[null,"2024-05-05",null,null,null,null,null,null,null,"","",null,null,null,null,"","",null,null,null,null,"","",null,null,null,null,"","",null,"","",null,"","",null,null,null,null,null,null,null,null,"",""]
[null,"2024-05-06",null,null,null,null,null,null,null,"","",null,null,null,null,"","",null,null,null,null,"","",null,null,null,null,"","",null,"","",null,"","",null,null,null,null,null,null,null,null,"",""]
[null,"2024-05-07",null,null,null,null,null,null,null,"","",null,null,null,null,"","",null,null,null,null,"","",null,null,null,null,"","",null,"","",null,"","",null,null,null,null,null,null,null,null,"",""]
[null,"2024-05-08",null,null,null,null,null,null,null,"","",null,null,null,null,"","",null,null,null,null,"","",null,null,null,null,"","",null,"","",null,"","",null,null,null,null,null,null,null,null,"",""]
[null,"2024-05-09",null,null,null,null,null,null,null,"","",null,null,null,null,"","",null,null,null,null,"","",null,null,null,null,"","",null,"","",null,"","",null,null,null,null,null,null,null,null,"",""]
[null,"2024-05-10",null,null,null,null,null,null,null,"","",null,null,null,null,"","",null,null,null,null,"","",null,null,null,null,"","",null,"","",null,"","",null,null,null,null,null,null,null,null,"",""]
[null,"2024-05-11",null,null,null,null,null,null,null,"","",null,null,null,null,"","",null,null,null,null,"","",null,null,null,null,"","",null,"","",null,"","",null,null,null,null,null,null,null,null,"",""]
[null,"2024-05-12",null,null,null,null,null,null,null,"","",null,null,null,null,"","",null,null,null,null,"","",null,null,null,null,"","",null,"","",null,"","",null,null,null,null,null,null,null,null,"",""]
[null,"2024-05-13",null,null,null,null,null,null,null,"","",null,null,null,null,"","",null,null,null,null,"","",null,null,null,null,"","",null,"","",null,"","",null,null,null,null,null,null,null,null,"",""]
[null,"2024-05-14",null,null,null,null,null,null,null,"","",null,null,null,null,"","",null,null,null,null,"","",null,null,null,null,"","",null,"","",null,"","",null,null,null,null,null,null,null,null,"",""]
[null,"2024-05-15",null,null,null,null,null,null,null,"","",null,null,null,null,"","",null,null,null,null,"","",null,null,null,null,"","",null,"","",null,"","",null,null,null,null,null,null,null,null,"",""]
[null,"2024-05-16",null,null,null,null,null,null,null,"","",null,null,null,null,"","",null,null,null,null,"","",null,null,null,null,"","",null,"","",null,"","",null,null,null,null,null,null,null,null,"",""]
[null,"2024-05-17",null,null,null,null,null,null,null,"","",null,null,null,null,"","",null,null,null,null,"","",null,null,null,null,"","",null,"","",null,"","",null,null,null,null,null,null,null,null,"",""]
[null,"2024-05-18",null,null,null,null,null,null,null,"","",null,null,null,null,"","",null,null,null,null,"","",null,null,null,null,"","",null,"","",null,"","",null,null,null,null,null,null,null,null,"",""]
[null,"2024-05-19",null,null,null,null,null,null,null,"","",null,null,null,null,"","",null,null,null,null,"","",null,null,null,null,"","",null,"","",null,"","",null,null,null,null,null,null,null,null,"",""]
[null,"2024-05-20",null,null,null,null,null,null,null,"","",null,null,null,null,"","",null,null,null,null,"","",null,null,null,null,"","",null,"","",null,"","",null,null,null,null,null,null,null,null,"",""]
[null,"2024-05-21",null,null,null,null,null,null,null,"","",null,null,null,null,"","",null,null,null,null,"","",null,null,null,null,"","",null,"","",null,"","",null,null,null,null,null,null,null,null,"",""]
[null,"2024-05-22",null,null,null,null,null,null,null,"","",null,null,null,null,"","",null,null,null,null,"","",null,null,null,null,"","",null,"","",null,"","",null,null,null,null,null,null,null,null,"",""]
[null,"2024-05-23",null,null,null,null,null,null,null,"","",null,null,null,null,"","",null,null,null,null,"","",null,null,null,null,"","",null,"","",null,"","",null,null,null,null,null,null,null,null,"",""]
[null,"2024-05-24",null,null,null,null,null,null,null,"","",null,null,null,null,"","",null,null,null,null,"","",null,null,null,null,"","",null,"","",null,"","",null,null,null,null,null,null,null,null,"",""]
[null,"2024-05-25",null,null,null,null,null,null,null,"","",null,null,null,null,"","",null,null,null,null,"","",null,null,null,null,"","",null,"","",null,"","",null,null,null,null,null,null,null,null,"",""]
[null,"2024-05-26",null,null,null,null,null,null,null,"","",null,null,null,null,"","",null,null,null,null,"","",null,null,null,null,"","",null,"","",null,"","",null,null,null,null,null,null,null,null,"",""]
[null,"2024-05-27",null,null,null,null,null,null,null,"","",null,null,null,null,"","",null,null,null,null,"","",null,null,null,null,"","",null,"","",null,"","",null,null,null,null,null,null,null,null,"",""]
[null,"2024-05-28",null,null,null,null,null,null,null,"","",null,null,null,null,"","",null,null,null,null,"","",null,null,null,null,"","",null,"","",null,"","",null,null,null,null,null,null,null,null,"",""]
[null,"2024-05-29",null,null,null,null,null,null,null,"","",null,null,null,null,"","",null,null,null,null,"","",null,null,null,null,"","",null,"","",null,"","",null,null,null,null,null,null,null,null,"",""]
[null,"2024-05-30",null,null,null,null,null,null,null,"","",null,null,null,null,"","",null,null,null,null,"","",null,null,null,null,"","",null,"","",null,"","",null,null,null,null,null,null,null,null,"",""]
[null,"2024-05-31",null,null,null,null,null,null,null,"","",null,null,null,null,"","",null,null,null,null,"","",null,null,null,null,"","",null,"","",null,"","",null,null,null,null,null,null,null,null,"",""]
[null,"2024-06-01",null,null,null,null,null,null,null,"","",null,null,null,null,"","",null,null,null,null,"","",null,null,null,null,"","",null,"","",null,"","",null,null,null,null,null,null,null,null,"",""]
[null,"2024-06-02",null,null,null,null,null,null,null,"","",null,null,null,null,"","",null,null,null,null,"","",null,null,null,null,"","",null,"","",null,"","",null,null,null,null,null,null,null,null,"",""]
[null,"2024-06-03",null,null,null,null,null,null,null,"","",null,null,null,null,"","",null,null,null,null,"","",null,null,null,null,"","",null,"","",null,"","",null,null,null,null,null,null,null,null,"",""]
[null,"2024-06-04",null,null,null,null,null,null,null,"","",null,null,null,null,"","",null,null,null,null,"","",null,null,null,null,"","",null,"","",null,"","",null,null,null,null,null,null,null,null,"",""]
[null,"2024-06-05",null,null,null,null,null,null,null,"","",null,null,null,null,"","",null,null,null,null,"","",null,null,null,null,"","",null,"","",null,"","",null,null,null,null,null,null,null,null,"",""]
[null,"2024-06-06",null,null,null,null,null,null,null,"","",null,null,null,null,"","",null,null,null,null,"","",null,null,null,null,"","",null,"","",null,"","",null,null,null,null,null,null,null,null,"",""]
[null,"2024-06-07",null,null,null,null,null,null,null,"","",null,null,null,null,"","",null,null,null,null,"","",null,null,null,null,"","",null,"","",null,"","",null,null,null,null,null,null,null,null,"",""]
[null,"2024-06-08",null,null,null,null,null,null,null,"","",null,null,null,null,"","",null,null,null,null,"","",null,null,null,null,"","",null,"","",null,"","",null,null,null,null,null,null,null,null,"",""]
[null,"2024-06-09",null,null,null,null,null,null,null,"","",null,null,null,null,"","",null,null,null,null,"","",null,null,null,null,"","",null,"","",null,"","",null,null,null,null,null,null,null,null,"",""]
[null,"2024-06-10",null,null,null,null,null,null,null,"","",null,null,null,null,"","",null,null,null,null,"","",null,null,null,null,"","",null,"","",null,"","",null,null,null,null,null,null,null,null,"",""]
[null,"2024-06-11",null,null,null,null,null,null,null,"","",null,null,null,null,"","",null,null,null,null,"","",null,null,null,null,"","",null,"","",null,"","",null,null,null,null,null,null,null,null,"",""]
[null,"2024-06-12",null,null,null,null,null,null,null,"","",null,null,null,null,"","",null,null,null,null,"","",null,null,null,null,"","",null,"","",null,"","",null,null,null,null,null,null,null,null,"",""]
[null,"2024-06-13",null,null,null,null,null,null,null,"","",null,null,null,null,"","",null,null,null,null,"","",null,null,null,null,"","",null,"","",null,"","",null,null,null,null,null,null,null,null,"",{"$f":"IF(AND(H269<>\"\",K269<>\"\"),(0.8-H269)*E269*8.34,\"\")","v":""}]
[null,"2024-06-14",null,null,null,null,null,null,null,{"$f":"IF(AND(E270>0,H270>0),IF(G270=\"<\",\"<\",\"\"),\"\")","v":""},{"$f":"IF(AND(E270>0,H270>0),E270*H270*8.34,\"\")","v":""},null,null,null,null,{"$f":"IF(AND(E270>0,N270>0),IF(M270=\"<\",\"<\",\"\"),\"\")","v":""},{"$f":"IF(AND(E270>0,N270>0),E270*N270*8.34,\"\")","v":""},null,null,null,null,{"$f":"IF(AND($E270>0,T270>0),IF($S270=\"<\",\"<\",\"\"),\"\")","v":""},{"$f":"IF(AND($E270>0,T270>0),E270*T270*8.34,\"\")","v":""},null,null,null,null,{"$f":"IF(AND($E270>0,Z270>0),IF($Y270=\"<\",\"<\",\"\"),\"\")","v":""},{"$f":"IF(AND($E270>0,Z270>0),E270*Z270*8.34,\"\")","v":""},null,{"$f":"IF(OR(S270=\"<\",Y270=\"<\"),\"<\",\"\")","v":""},{"$f":"IF(AND(T270>0,Z270>0),IF(AND(N270>0,N270<>\"\",N270>T270),N270,T270)+Z270,\"\")","v":""},null,{"$f":"IF(AE270=\"<\",\"<\",\"\")","v":""},{"$f":"IF(AND(AF270>0,E270>0,T270>0,Z270>0),IF(AND(Q270>0,Q270<>\"\",Q270>W270),Q270,W270)+AC270,\"\")","v":""},null,null,null,null,null,null,null,null,{"$f":"IF(AND(AF270<>\"\",AI270<>\"\"),(6-AF270)*E270*8.34,\"\")","v":""},""]
[null,{"$f":"IF(B270<>\"\",B270+1,\"\")","v":"2024-06-15"},null,null,null,null,null,null,null,"","",null,null,null,null,"","",null,null,null,null,"","",null,null,null,null,"","",null,"","",null,"","",null,null,null,null,null,null,null,null,"",""]
[null,"2024-06-16",null,null,null,null,null,null,null,"","",null,null,null,null,"","",null,null,null,null,"","",null,null,null,null,"","",null,"","",null,"","",null,null,null,null,null,null,null,null,"",""]
[null,"2024-06-17",null,null,null,null,null,null,null,"","",null,null,null,null,"","",null,null,null,null,"","",null,null,null,null,"","",null,"","",null,"","",null,null,null,null,null,null,null,null,"",""]
[null,"2024-06-18",null,null,null,null,null,null,null,"","",null,null,null,null,"","",null,null,null,null,"","",null,null,null,null,"","",null,"","",null,"","",null,null,null,null,null,null,null,null,"",""]
[null,"2024-06-19",null,null,null,null,null,null,null,"","",null,null,null,null,"","",null,null,null,null,"","",null,null,null,null,"","",null,"","",null,"","",null,null,null,null,null,null,null,null,"",""]
[null,"2024-06-20",null,null,null,null,null,null,null,"","",null,null,null,null,"","",null,null,null,null,"","",null,null,null,null,"","",null,"","",null,"","",null,null,null,null,null,null,null,null,"",""]
[null,"2024-06-21",null,null,null,null,null,null,null,"","",null,null,null,null,"","",null,null,null,null,"","",null,null,null,null,"","",null,"","",null,"","",null,null,null,null,null,null,null,null,"",""]
[null,"2024-06-22",null,null,null,null,null,null,null,"","",null,null,null,null,"","",null,null,null,null,"","",null,null,null,null,"","",null,"","",null,"","",null,null,null,null,null,null,null,null,"",""]
[null,"2024-06-23",null,null,null,null,null,null,null,"","",null,null,null,null,"","",null,null,null,null,"","",null,null,null,null,"","",null,"","",null,"","",null,null,null,null,null,null,null,null,"",""]
[null,"2024-06-24",null,null,null,null,null,null,null,"","",null,null,null,null,"","",null,null,null,null,"","",null,null,null,null,"","",null,"","",null,"","",null,null,null,null,null,null,null,null,"",""]
[null,"2024-06-25",null,null,null,null,null,null,null,"","",null,null,null,null,"","",null,null,null,null,"","",null,null,null,null,"","",null,"","",null,"","",null,null,null,null,null,null,null,null,"",""]
[null,"2024-06-26",null,null,null,null,null,null,null,"","",null,null,null,null,"","",null,null,null,null,"","",null,null,null,null,"","",null,"","",null,"","",null,null,null,null,null,null,null,null,"",""]
[null,"2024-06-27",null,null,null,null,null,null,null,"","",null,null,null,null,"","",null,null,null,null,"","",null,null,null,null,"","",null,"","",null,"","",null,null,null,null,null,null,null,null,"",""]
[null,"2024-06-28",null,null,null,null,null,null,null,"","",null,null,null,null,"","",null,null,null,null,"","",null,null,null,null,"","",null,"","",null,"","",null,null,null,null,null,null,null,null,"",""]
[null,"2024-06-29",null,null,null,null,null,null,null,"","",null,null,null,null,"","",null,null,null,null,"","",null,null,null,null,"","",null,"","",null,"","",null,null,null,null,null,null,null,null,"",""]
[null,"2024-06-30",null,null,null,null,null,null,null,"","",null,null,null,null,"","",null,null,null,null,"","",null,null,null,null,"","",null,"","",null,"","",null,null,null,null,null,null,null,null,"",""]
[null,"2024-07-01",null,null,null,null,null,null,null,"","",null,null,null,null,"","",null,null,null,null,"","",null,null,null,null,"","",null,"","",null,"","",null,null,null,null,null,null,null,null,"",""]
[null,"2024-07-02",null,null,null,null,null,null,null,"","",null,null,null,null,"","",null,null,null,null,"","",null,null,null,null,"","",null,"","",null,"","",null,null,null,null,null,null,null,null,"",""]
[null,"2024-07-03",null,null,null,null,null,null,null,"","",null,null,null,null,"","",null,null,null,null,"","",null,null,null,null,"","",null,"","",null,"","",null,null,null,null,null,null,null,null,"",""]
[null,"2024-07-04",null,null,null,null,null,null,null,"","",null,null,null,null,"","",null,null,null,null,"","",null,null,null,null,"","",null,"","",null,"","",null,null,null,null,null,null,null,null,"",""]
[null,"2024-07-05",null,null,null,null,null,null,null,"","",null,null,null,null,"","",null,null,null,null,"","",null,null,null,null,"","",null,"","",null,"","",null,null,null,null,null,null,null,null,"",""]
[null,"2024-07-06",null,null,null,null,null,null,null,"","",null,null,null,null,"","",null,null,null,null,"","",null,null,null,null,"","",null,"","",null,"","",null,null,null,null,null,null,null,null,"",""]
[null,"2024-07-07",null,null,null,null,null,null,null,"","",null,null,null,null,"","",null,null,null,null,"","",null,null,null,null,"","",null,"","",null,"","",null,null,null,null,null,null,null,null,"",""]
[null,"2024-07-08",null,null,null,null,null,null,null,"","",null,null,null,null,"","",null,null,null,null,"","",null,null,null,null,"","",null,"","",null,"","",null,null,null,null,null,null,null,null,"",""]
[null,"2024-07-09",null,null,null,null,null,null,null,"","",null,null,null,null,"","",null,null,null,null,"","",null,null,null,null,"","",null,"","",null,"","",null,null,null,null,null,null,null,null,"",""]
[null,"2024-07-10",null,null,null,null,null,null,null,"","",null,null,null,null,"","",null,null,null,null,"","",null,null,null,null,"","",null,"","",null,"","",null,null,null,null,null,null,null,null,"",""]
[null,"2024-07-11",null,null,null,null,null,null,null,"","",null,null,null,null,"","",null,null,null,null,"","",null,null,null,null,"","",null,"","",null,"","",null,null,null,null,null,null,null,null,"",""]
[null,"2024-07-12",null,null,null,null,null,null,null,"","",null,null,null,null,"","",null,null,null,null,"","",null,null,null,null,"","",null,"","",null,"","",null,null,null,null,null,null,null,null,"",""]
[null,"2024-07-13",null,null,null,null,null,null,null,"","",null,null,null,null,"","",null,null,null,null,"","",null,null,null,null,"","",null,"","",null,"","",null,null,null,null,null,null,null,null,"",""]
[null,"2024-07-14",null,null,null,null,null,null,null,"","",null,null,null,null,"","",null,null,null,null,"","",null,null,null,null,"","",null,"","",null,"","",null,null,null,null,null,null,null,null,"",""]
[null,"2024-07-15",null,null,null,null,null,null,null,"","",null,null,null,null,"","",null,null,null,null,"","",null,null,null,null,"","",null,"","",null,"","",null,null,null,null,null,null,null,null,"",""]
[null,"2024-07-16",null,null,null,null,null,null,null,"","",null,null,null,null,"","",null,null,null,null,"","",null,null,null,null,"","",null,"","",null,"","",null,null,null,null,null,null,null,null,"",""]
[null,"2024-07-17",null,null,null,null,null,null,null,"","",null,null,null,null,"","",null,null,null,null,"","",null,null,null,null,"","",null,"","",null,"","",null,null,null,null,null,null,null,null,"",""]
[null,"2024-07-18",null,null,null,null,null,null,null,"","",null,null,null,null,"","",null,null,null,null,"","",null,null,null,null,"","",null,"","",null,"","",null,null,null,null,null,null,null,null,"",""]
[null,"2024-07-19",null,null,null,null,null,null,null,"","",null,null,null,null,"","",null,null,null,null,"","",null,null,null,null,"","",null,"","",null,"","",null,null,null,null,null,null,null,null,"",""]
[null,"2024-07-20",null,null,null,null,null,null,null,"","",null,null,null,null,"","",null,null,null,null,"","",null,null,null,null,"","",null,"","",null,"","",null,null,null,null,null,null,null,null,"",""]
[null,"2024-07-21",null,null,null,null,null,null,null,"","",null,null,null,null,"","",null,null,null,null,"","",null,null,null,null,"","",null,"","",null,"","",null,null,null,null,null,null,null,null,"",""]
[null,"2024-07-22",null,null,null,null,null,null,null,"","",null,null,null,null,"","",null,null,null,null,"","",null,null,null,null,"","",null,"","",null,"","",null,null,null,null,null,null,null,null,"",""]
[null,"2024-07-23",null,null,null,null,null,null,null,"","",null,null,null,null,"","",null,null,null,null,"","",null,null,null,null,"","",null,"","",null,"","",null,null,null,null,null,null,null,null,"",""]
[null,"2024-07-24",null,null,null,null,null,null,null,"","",null,null,null,null,"","",null,null,null,null,"","",null,null,null,null,"","",null,"","",null,"","",null,null,null,null,null,null,null,null,"",""]
[null,"2024-07-25",null,null,null,null,null,null,null,"","",null,null,null,null,"","",null,null,null,null,"","",null,null,null,null,"","",null,"","",null,"","",null,null,null,null,null,null,null,null,"",""]
[null,"2024-07-26",null,null,null,null,null,null,null,"","",null,null,null,null,"","",null,null,null,null,"","",null,null,null,null,"","",null,"","",null,"","",null,null,null,null,null,null,null,null,"",""]
[null,"2024-07-27",null,null,null,null,null,null,null,"","",null,null,null,null,"","",null,null,null,null,"","",null,null,null,null,"","",null,"","",null,"","",null,null,null,null,null,null,null,null,"",""]
[null,"2024-07-28",null,null,null,null,null,null,null,"","",null,null,null,null,"","",null,null,null,null,"","",null,null,null,null,"","",null,"","",null,"","",null,null,null,null,null,null,null,null,"",""]
[null,"2024-07-29",null,null,null,null,null,null,null,"","",null,null,null,null,"","",null,null,null,null,"","",null,null,null,null,"","",null,"","",null,"","",null,null,null,null,null,null,null,null,"",""]
[null,"2024-07-30",null,null,null,null,null,null,null,"","",null,null,null,null,"","",null,null,null,null,"","",null,null,null,null,"","",null,"","",null,"","",null,null,null,null,null,null,null,null,"",""]
[null,"2024-07-31",null,null,null,null,null,null,null,"","",null,null,null,null,"","",null,null,null,null,"","",null,null,null,null,"","",null,"","",null,"","",null,null,null,null,null,null,null,null,"",""]
[null,"2024-08-01",null,null,null,null,null,null,null,"","",null,null,null,null,"","",null,null,null,null,"","",null,null,null,null,"","",null,"","",null,"","",null,null,null,null,null,null,null,null,"",""]
[null,"2024-08-02",null,null,null,null,null,null,null,"","",null,null,null,null,"","",null,null,null,null,"","",null,null,null,null,"","",null,"","",null,"","",null,null,null,null,null,null,null,null,"",""]
[null,"2024-08-03",null,null,null,null,null,null,null,"","",null,null,null,null,"","",null,null,null,null,"","",null,null,null,null,"","",null,"","",null,"","",null,null,null,null,null,null,null,null,"",""]
[null,"2024-08-04",null,null,null,null,null,null,null,"","",null,null,null,null,"","",null,null,null,null,"","",null,null,null,null,"","",null,"","",null,"","",null,null,null,null,null,null,null,null,"",""]
[null,"2024-08-05",null,null,null,null,null,null,null,"","",null,null,null,null,"","",null,null,null,null,"","",null,null,null,null,"","",null,"","",null,"","",null,null,null,null,null,null,null,null,"",""]
[null,"2024-08-06",null,null,null,null,null,null,null,"","",null,null,null,null,"","",null,null,null,null,"","",null,null,null,null,"","",null,"","",null,"","",null,null,null,null,null,null,null,null,"",""]
[null,"2024-08-07",null,null,null,null,null,null,null,"","",null,null,null,null,"","",null,null,null,null,"","",null,null,null,null,"","",null,"","",null,"","",null,null,null,null,null,null,null,null,"",""]
[null,"2024-08-08",null,null,null,null,null,null,null,"","",null,null,null,null,"","",null,null,null,null,"","",null,null,null,null,"","",null,"","",null,"","",null,null,null,null,null,null,null,null,"",""]
[null,"2024-08-09",null,null,null,null,null,null,null,"","",null,null,null,null,"","",null,null,null,null,"","",null,null,null,null,"","",null,"","",null,"","",null,null,null,null,null,null,null,null,"",""]
[null,"2024-08-10",null,null,null,null,null,null,null,"","",null,null,null,null,"","",null,null,null,null,"","",null,null,null,null,"","",null,"","",null,"","",null,null,null,null,null,null,null,null,"",""]
[null,"2024-08-11",null,null,null,null,null,null,null,"","",null,null,null,null,"","",null,null,null,null,"","",null,null,null,null,"","",null,"","",null,"","",null,null,null,null,null,null,null,null,"",""]
[null,"2024-08-12",null,null,null,null,null,null,null,"","",null,null,null,null,"","",null,null,null,null,"","",null,null,null,null,"","",null,"","",null,"","",null,null,null,null,null,null,null,null,"",""]
[null,"2024-08-13",null,null,null,null,null,null,null,"","",null,null,null,null,"","",null,null,null,null,"","",null,null,null,null,"","",null,"","",null,"","",null,null,null,null,null,null,null,null,"",""]
[null,"2024-08-14",null,null,null,null,null,null,null,"","",null,null,null,null,"","",null,null,null,null,"","",null,null,null,null,"","",null,"","",null,"","",null,null,null,null,null,null,null,null,"",""]
[null,"2024-08-15",null,null,null,null,null,null,null,"","",null,null,null,null,"","",null,null,null,null,"","",null,null,null,null,"","",null,"","",null,"","",null,null,null,null,null,null,null,null,"",""]
[null,"2024-08-16",null,null,null,null,null,null,null,"","",null,null,null,null,"","",null,null,null,null,"","",null,null,null,null,"","",null,"","",null,"","",null,null,null,null,null,null,null,null,"",{"$f":"IF(AND(H333<>\"\",K333<>\"\"),(0.8-H333)*E333*8.34,\"\")","v":""}]
[null,"2024-08-17",null,null,null,null,null,null,null,{"$f":"IF(AND(E334>0,H334>0),IF(G334=\"<\",\"<\",\"\"),\"\")","v":""},{"$f":"IF(AND(E334>0,H334>0),E334*H334*8.34,\"\")","v":""},null,null,null,null,{"$f":"IF(AND(E334>0,N334>0),IF(M334=\"<\",\"<\",\"\"),\"\")","v":""},{"$f":"IF(AND(E334>0,N334>0),E334*N334*8.34,\"\")","v":""},null,null,null,null,{"$f":"IF(AND($E334>0,T334>0),IF($S334=\"<\",\"<\",\"\"),\"\")","v":""},{"$f":"IF(AND($E334>0,T334>0),E334*T334*8.34,\"\")","v":""},null,null,null,null,{"$f":"IF(AND($E334>0,Z334>0),IF($Y334=\"<\",\"<\",\"\"),\"\")","v":""},{"$f":"IF(AND($E334>0,Z334>0),E334*Z334*8.34,\"\")","v":""},null,{"$f":"IF(OR(S334=\"<\",Y334=\"<\"),\"<\",\"\")","v":""},{"$f":"IF(AND(T334>0,Z334>0),IF(AND(N334>0,N334<>\"\",N334>T334),N334,T334)+Z334,\"\")","v":""},null,{"$f":"IF(AE334=\"<\",\"<\",\"\")","v":""},{"$f":"IF(AND(AF334>0,E334>0,T334>0,Z334>0),IF(AND(Q334>0,Q334<>\"\",Q334>W334),Q334,W334)+AC334,\"\")","v":""},null,null,null,null,null,null,null,null,{"$f":"IF(AND(AF334<>\"\",AI334<>\"\"),(6-AF334)*E334*8.34,\"\")","v":""},""]
[null,{"$f":"IF(B334<>\"\",B334+1,\"\")","v":"2024-08-18"},null,null,null,null,null,null,null,"","",null,null,null,null,"","",null,null,null,null,"","",null,null,null,null,"","",null,"","",null,"","",null,null,null,null,null,null,null,null,"",""]
[null,"2024-08-19",null,null,null,null,null,null,null,"","",null,null,null,null,"","",null,null,null,null,"","",null,null,null,null,"","",null,"","",null,"","",null,null,null,null,null,null,null,null,"",""]
[null,"2024-08-20",null,null,null,null,null,null,null,"","",null,null,null,null,"","",null,null,null,null,"","",null,null,null,null,"","",null,"","",null,"","",null,null,null,null,null,null,null,null,"",""]
[null,"2024-08-21",null,null,null,null,null,null,null,"","",null,null,null,null,"","",null,null,null,null,"","",null,null,null,null,"","",null,"","",null,"","",null,null,null,null,null,null,null,null,"",""]
[null,"2024-08-22",null,null,null,null,null,null,null,"","",null,null,null,null,"","",null,null,null,null,"","",null,null,null,null,"","",null,"","",null,"","",null,null,null,null,null,null,null,null,"",""]
[null,"2024-08-23",null,null,null,null,null,null,null,"","",null,null,null,null,"","",null,null,null,null,"","",null,null,null,null,"","",null,"","",null,"","",null,null,null,null,null,null,null,null,"",""]
[null,"2024-08-24",null,null,null,null,null,null,null,"","",null,null,null,null,"","",null,null,null,null,"","",null,null,null,null,"","",null,"","",null,"","",null,null,null,null,null,null,null,null,"",""]
[null,"2024-08-25",null,null,null,null,null,null,null,"","",null,null,null,null,"","",null,null,null,null,"","",null,null,null,null,"","",null,"","",null,"","",null,null,null,null,null,null,null,null,"",""]
[null,"2024-08-26",null,null,null,null,null,null,null,"","",null,null,null,null,"","",null,null,null,null,"","",null,null,null,null,"","",null,"","",null,"","",null,null,null,null,null,null,null,null,"",""]
[null,"2024-08-27",null,null,null,null,null,null,null,"","",null,null,null,null,"","",null,null,null,null,"","",null,null,null,null,"","",null,"","",null,"","",null,null,null,null,null,null,null,null,"",""]
[null,"2024-08-28",null,null,null,null,null,null,null,"","",null,null,null,null,"","",null,null,null,null,"","",null,null,null,null,"","",null,"","",null,"","",null,null,null,null,null,null,null,null,"",""]
[null,"2024-08-29",null,null,null,null,null,null,null,"","",null,null,null,null,"","",null,null,null,null,"","",null,null,null,null,"","",null,"","",null,"","",null,null,null," ",null,null,null,null,"",""]
[null,"2024-08-30",null,null,null,null,null,null,null,"","",null,null,null,null,"","",null,null,null,null,"","",null,null,null,null,"","",null,"","",null,"","",null,null,null,null,null,null,null,null,"",""]
[null,"2024-08-31",null,null,null,null,null,null,null,"","",null,null,null,null,"","",null,null,null,null,"","",null,null,null,null,"","",null,"","",null,"","",null,null,null,null,null,null,null,null,"",""]
[null,"2024-09-01",null,null,null,null,null,null,null,"","",null,null,null,null,"","",null,null,null,null,"","",null,null,null,null,"","",null,"","",null,"","",null,null,null,null,null,null,null,null,"",""]
[null,"2024-09-02",null,null,null,null,null,null,null,"","",null,null,null,null,"","",null,null,null,null,"","",null,null,null,null,"","",null,"","",null,"","",null,null,null,null,null,null,null,null,"",""]
[null,"2024-09-03",null,null,null,null,null,null,null,"","",null,null,null,null,"","",null,null,null,null,"","",null,null,null,null,"","",null,"","",null,"","",null,null,null,null,null,null,null,null,"",""]
[null,"2024-09-04",null,null,null,null,null,null,null,"","",null,null,null,null,"","",null,null,null,null,"","",null,null,null,null,"","",null,"","",null,"","",null,null,null,null,null,null,null,null,"",""]
[null,"2024-09-05",null,null,null,null,null,null,null,"","",null,null,null,null,"","",null,null,null,null,"","",null,null,null,null,"","",null,"","",null,"","",null,null,null,null,null,null,null,null,"",""]
[null,"2024-09-06",null,null,null,null,null,null,null,"","",null,null,null,null,"","",null,null,null,null,"","",null,null,null,null,"","",null,"","",null,"","",null,null,null,null,null,null,null,null,"",""]
[null,"2024-09-07",null,null,null,null,null,null,null,"","",null,null,null,null,"","",null,null,null,null,"","",null,null,null,null,"","",null,"","",null,"","",null,null,null,null,null,null,null,null,"",""]
[null,"2024-09-08",null,null,null,null,null,null,null,"","",null,null,null,null,"","",null,null,null,null,"","",null,null,null,null,"","",null,"","",null,"","",null,null,null,null,null,null,null,null,"",""]
[null,"2024-09-09",null,null,null,null,null,null,null,"","",null,null,null,null,"","",null,null,null,null,"","",null,null,null,null,"","",null,"","",null,"","",null,null,null,null,null,null,null,null,"",""]
[null,"2024-09-10",null,null,null,null,null,null,null,"","",null,null,null,null,"","",null,null,null,null,"","",null,null,null,null,"","",null,"","",null,"","",null,null,null,null,null,null,null,null,"",""]
[null,"2024-09-11",null,null,null,null,null,null,null,"","",null,null,null,null,"","",null,null,null,null,"","",null,null,null,null,"","",null,"","",null,"","",null,null,null,null,null,null,null,null,"",""]
[null,"2024-09-12",null,null,null,null,null,null,null,"","",null,null,null,null,"","",null,null,null,null,"","",null,null,null,null,"","",null,"","",null,"","",null,null,null," ",null,null,null,null,"",""]
[null,"2024-09-13",null,null,null,null,null,null,null,"","",null,null,null,null,"","",null,null,null,null,"","",null,null,null,null,"","",null,"","",null,"","",null,null,null,null,null,null,null,null,"",""]
[null,"2024-09-14",null,null,null,null,null,null,null,"","",null,null,null,null,"","",null,null,null,null,"","",null,null,null,null,"","",null,"","",null,"","",null,null,null,null,null,null,null,null,"",""]
[null,"2024-09-15",null,null,null,null,null,null,null,"","",null,null,null,null,"","",null,null,null,null,"","",null,null,null,null,"","",null,"","",null,"","",null,null,null,null,null,null,null,null,"",""]
[null,"2024-09-16",null,null,null,null,null,null,null,"","",null,null,null,null,"","",null,null,null,null,"","",null,null,null,null,"","",null,"","",null,"","",null,null,null,null,null,null,null,null,"",""]
[null,"2024-09-17",null,null,null,null,null,null,null,"","",null,null,null,null,"","",null,null,null,null,"","",null,null,null,null,"","",null,"","",null,"","",null,null,null,null,null,null,null,null,"",""]
[null,"2024-09-18",null,null,null,null,null,null,null,"","",null,null,null,null,"","",null,null,null,null,"","",null,null,null,null,"","",null,"","",null,"","",null,null," ",null,null,null,null,null,"",""]
[null,"2024-09-19",null,null,null,null,null,null,null,"","",null,null,null,null,"","",null,null,null,null,"","",null,null,null,null,"","",null,"","",null,"","",null,null," ",null,null,null,null,null,"",""]
[null,"2024-09-20",null,null,null,null,null,null,null,"","",null,null,null,null,"","",null,null,null,null,"","",null,null,null,null,"","",null,"","",null,"","",null,null,null,null,null,null,null,null,"",""]
[null,"2024-09-21",null,null,null,null,null,null,null,"","",null,null,null,null,"","",null,null,null,null,"","",null,null,null,null,"","",null,"","",null,"","",null,null,null,null,null,null,null,null,"",""]
[null,"2024-09-22",null,null,null,null,null,null,null,"","",null,null,null,null,"","",null,null,null,null,"","",null,null,null,null,"","",null,"","",null,"","",null,null,null,null,null,null,null,null,"",""]
[null,"2024-09-23",null,null,null,null,null,null,null,"","",null,null,null,null,"","",null,null,null,null,"","",null,null,null,null,"","",null,"","",null,"","",null,null,null,null,null,null,null,null,"",""]
[null,"2024-09-24",null,null,null,null,null,null,null,"","",null,null,null,null,"","",null,null,null,null,"","",null,null,null,null,"","",null,"","",null,"","",null,null,null,null,null,null,null,null,"",""]
[null,"2024-09-25",null,null,null,null,null,null,null,"","",null,null,null,null,"","",null,null,null,null,"","",null,null,null,null,"","",null,"","",null,"","",null,null,null,null,null,null,null,null,"",{"$f":"IF(AND(H373<>\"\",K373<>\"\"),(0.8-H373)*E373*8.34,\"\")","v":""}]
[null,"2024-09-26",null,null,null,null,null,null,null,"","",null,null,null,null,"","",null,null,null,null,"","",null,null,null,null,"","",null,"","",null,"","",null,null,null,null,null,null,null,null,"",{"$f":"IF(AND(H374<>\"\",K374<>\"\"),(0.8-H374)*E374*8.34,\"\")","v":""}]
[null,"2024-09-27",null,null,null,null,null,null,null,"","",null,null,null,null,"","",null,null,null,null,"","",null,null,null,null,"","",null,"","",null,"","",null,null,null,null,null,null,null,null,"",""]
[null,"2024-09-28",null,null,null,null,null,null,null,"","",null,null,null,null,"","",null,null,null,null,"","",null,null,null,null,"","",null,"","",null,"","",null,null,null,null,null,null,null,null,"",""]
[null,"2024-09-29",null,null,null,null,null,null,null,"","",null,null,null,null,{"$f":"IF(AND(E377>0,N377>0),IF(M377=\"<\",\"<\",\"\"),\"\")","v":""},"",null,null,null,null,{"$f":"IF(AND($E377>0,T377>0),IF($S377=\"<\",\"<\",\"\"),\"\")","v":""},"",null,null,null,null,{"$f":"IF(AND($E377>0,Z377>0),IF($Y377=\"<\",\"<\",\"\"),\"\")","v":""},"",null,{"$f":"IF(OR(S377=\"<\",Y377=\"<\"),\"<\",\"\")","v":""},"",null,{"$f":"IF(AE377=\"<\",\"<\",\"\")","v":""},"",null,null,null,null,null,null,null,null,"",""]
[null,{"$f":"IF(OR($AB$5=2020,$AB$5=2024,$AB$5=2028,$AB$5=2032),IF(B377<>\"\",B377+1,\"\"),\"\")","v":"2024-09-30"},null,null,null,null,null,null,null,"","",null,null,null,null,"","",null,null,null,null,"","",null,null,null,null,"","",null,"","",null,{"$f":"IF(AE378=\"<\",\"<\",\"\")","v":""},"",null,null,null,null,null,null,null,null,"",""]
[null,"Avg",null,null,{"$f":"IF(SUM(E13:E378)>0,ROUND(AVERAGE(E13:E378),E1168),\"\")","v":""},null,{"$f":"IF(G797=\"Y\",\"<\",\"\")","v":""},{"$f":"IF(SUM(H13:H378)>0,ROUND(AVERAGE(H13:H378),H1168),\"\")","v":""},null,{"$f":"IF(G797=\"Y\",\"<\",\"\")","v":""},{"$f":"IF(SUM(K13:K378)>0,IF(AVERAGE(K13:K378)<1,ROUND(AVERAGE(K13:K378),1-(1+INT(LOG10(ABS(AVERAGE(K13:K378)))))),ROUND(AVERAGE(K13:K378),1)),\"\")","v":""},null,{"$f":"IF(M797=\"Y\",\"<\",\"\")","v":""},{"$f":"IF(SUM(N13:N378)>0,ROUND(AVERAGE(N13:N378),N1168),\"\")","v":""},null,{"$f":"IF(M797=\"Y\",\"<\",\"\")","v":""},{"$f":"IF(SUM(Q13:Q378)>0,IF(AVERAGE(Q13:Q378)<1,ROUND(AVERAGE(Q13:Q378),1-(1+INT(LOG10(ABS(AVERAGE(Q13:Q378)))))),ROUND(AVERAGE(Q13:Q378),1)),\"\")","v":""},null,{"$f":"IF(S797=\"Y\",\"<\",\"\")","v":""},{"$f":"IF(SUM(T13:T378)>0,ROUND(AVERAGE(T13:T378),T1168),\"\")","v":""},null,{"$f":"IF(S797=\"Y\",\"<\",\"\")","v":""},{"$f":"IF(SUM(W13:W378)>0,IF(AVERAGE(W13:W378)<1,ROUND(AVERAGE(W13:W378),1-(1+INT(LOG10(ABS(AVERAGE(W13:W378)))))),ROUND(AVERAGE(W13:W378),1)),\"\")","v":""},null,{"$f":"IF(Y797=\"Y\",\"<\",\"\")","v":""},{"$f":"IF(SUM(Z13:Z378)>0,ROUND(AVERAGE(Z13:Z378),Z1168),\"\")","v":""},null,{"$f":"IF(Y797=\"Y\",\"<\",\"\")","v":""},{"$f":"IF(SUM(AC13:AC378)>0,IF(AVERAGE(AC13:AC378)<1,ROUND(AVERAGE(AC13:AC378),1-(1+INT(LOG10(ABS(AVERAGE(AC13:AC378)))))),ROUND(AVERAGE(AC13:AC378),1)),\"\")","v":""},null,{"$f":"IF(AE797=\"Y\",\"<\",\"\")","v":""},{"$f":"IF(SUM(AF13:AF378)>0,ROUND(AVERAGE(AF13:AF378),V1170),\"\")","v":""},null,{"$f":"IF(AE797=\"Y\",\"<\",\"\")","v":""},{"$f":"IF(SUM(AI13:AI378)>0,IF(AVERAGE(AI13:AI378)<1,ROUND(AVERAGE(AI13:AI378),1-(1+INT(LOG10(ABS(AVERAGE(AI13:AI378)))))),ROUND(AVERAGE(AI13:AI378),1)),\"\")","v":""}]
[null,"Annual Total Mass Loads (lbs): ",null,null,null,null,null,null,null,{"$f":"IF(J379=\"<\",\"<\",\"\")","v":""},{"$f":"IF(SUM(K13:K378)>0,IF(K426<1,VALUE(ROUND(K426,1-(1+INT(LOG10(ABS(K426)))))),VALUE(ROUND(K426,0))),\"\")","v":""},null,null,null,null,{"$f":"IF(P379=\"<\",\"<\",\"\")","v":""},{"$f":"IF(SUM(Q13:Q378)>0,IF(Q426<1,ROUND(Q426,1-(1+INT(LOG10(ABS(Q426))))),ROUND(Q426,0)),\"\")","v":""},null,null,null,null,{"$f":"IF(V379=\"<\",\"<\",\"\")","v":""},{"$f":"IF(SUM(W13:W378)>0,IF(W426<1,ROUND(W426,1-(1+INT(LOG10(ABS(W426))))),ROUND(W426,0)),\"\")","v":""},null,null,null,null,{"$f":"IF(AB379=\"<\",\"<\",\"\")","v":""},{"$f":"IF(SUM(AC13:AC378)>0,IF(AC426<1,ROUND(AC426,1-(1+INT(LOG10(ABS(AC426))))),ROUND(AC426,0)),\"\")","v":""},null,null,null,null,{"$f":"IF(AH379=\"<\",\"<\",\"\")","v":""},{"$f":"IF(SUM(AI13:AI378)>0,IF(AI426<1,ROUND(AI426,1-(1+INT(LOG10(ABS(AI426))))),ROUND(AI426,0)),\"\")","v":""},null,null,null,null,null,null,null,"Sum:",{"$f":"SUM(AR13:AR378)","v":0},{"$f":"SUM(AS13:AS378)","v":0}]
[]
[null,{"$f":"IF(AM2=1,IF(P_Actual_Load<>\"\",IF(AND(P_Credits<>\"\",P_Cap_Load<>\"\"),IF(AND(P_Sum_Below_Baseline>0,P_Actual_Load<=P_Cap_Load),\"P Credits Generated:\",\"No P Credits Generated\"),\"\"),\"\"),\"\")","v":""},null,null,null,null,null,null,null,null,{"$f":"IF(AM2=1,IF(Final_P_Adjusted_Credits<>\"\",IF(AND(P_Sum_Below_Baseline>0,P_Actual_Load<=P_Cap_Load),ROUND(Final_P_Adjusted_Credits,0),\"\"),\"\"),\"\")","v":""},null,null,null,null,null,null,null,null,null,null,null,null,null,null,null,null,{"$f":"IF(AM2=1,IF(N_Actual_Load<>\"\",IF(AND(N_Credits<>\"\",N_Cap_Load<>\"\"),IF(AND(N_Sum_Below_Baseline>0,N_Actual_Load<=N_Cap_Load),\"N Credits Generated:\",\"No N Credits Generated\"),\"\"),\"\"),\"\")","v":""},null,null,null,null,null,null,{"$f":"IF(AM2=1,IF(Final_N_Adjusted_Credits<>\"\",IF(AND(N_Sum_Below_Baseline>0,N_Actual_Load<=N_Cap_Load),ROUND(Final_N_Adjusted_Credits,0),\"\"),\"\"),\"\")","v":""},null,null,null,null,null,null,"Preliminary Credits:",null,{"$f":"IF(AM2=1,IF(SUM(AR13:AR378)>0,IF(AI426<N_Cap_Load,(N_Sum_Below_Baseline/(COUNTIF(AR13:AR378,\">0\")+COUNTIF(AR13:AR378,\"<0\")+COUNTIF(AR13:AR378,0)))*IF(AM1=TRUE,IF(OR($AB$5=2020,$AB$5=2024,$AB$5=2028,$AB$5=2032),366,365),E426)*0.9*IF(F9<>\"\",F9,1),\"Not Eligible\"),\"Not Eligible\"),\"Not Eligible\")","v":"Not Eligible"},{"$f":"IF(AM2=1,IF(SUM(AS13:AS378)>0,IF(K426<P_Cap_Load,(P_Sum_Below_Baseline/(COUNTIF(AS13:AS378,\">0\")+COUNTIF(AS13:AS378,\"<0\")+COUNTIF(AS13:AS378,0)))*IF(AM1=TRUE,IF(OR($AB$5=2020,$AB$5=2024,$AB$5=2028,$AB$5=2032),366,365),E426)*0.9*IF(AB9<>\"\",AB9,1),\"Not Eligible\"),\"Not Eligible\"),\"Not Eligible\")","v":"Not Eligible"}]
[]
[null,"I certify under penalty of law that this document was prepared under my direction or supervision in accordance with a system designed to assure that qualified personnel gather and evaluate the information submitted. Based on my inquiry of the person or persons who manage the system or those persons directly responsible for gathering the information, the information submitted is, to the best of my knowledge and belief, true, accurate and complete.  I am aware that there are significant penalties for submitting false information, including the possibility of fine and imprisonment for knowing violations.  See 18 Pa. C.S. § 4904 (relating to unsworn falsification). ",null,null,null,null,null,null,null,null,null,null,null,null,null,null,null,null,null,null,null,null,null,null,null,null,null,null,null,null,null,null,null,null,null,null,null,null,null,null,null,"Final Credits:",null,{"$f":"IF(N_Credits<>\"Not Eligible\",IF(N_Credits>(N_Cap_Load-N_Actual_Load),ROUNDDOWN((N_Cap_Load-N_Actual_Load)*0.9*IF(F9<>\"\",F9,1),0),N_Credits),\"\")","v":""},{"$f":"IF(P_Credits<>\"Not Eligible\",IF(P_Credits>(P_Cap_Load-P_Actual_Load),ROUNDDOWN((P_Cap_Load-P_Actual_Load)*0.9*IF(AB9<>\"\",AB9,1),0),P_Credits),\"\")","v":""}]
[null,null,null,null,null,null,null,null,null,null,null,null,null,null,null,null,null,null,null,null,null,null,null,null,null,null,null,null,null,null,null,null,null,null,null,null,null,null,null,null,null,"Adjusted Final Credits:",null,{"$f":"IF(Final_N_Credits<>\"\",IF((Final_N_Credits/IF(F9<>\"\",F9,1)+N_Actual_Load)>N_Cap_Load,(N_Cap_Load-N_Actual_Load)*0.9*IF(F9<>\"\",F9,1),Final_N_Credits),\"\")","v":""},{"$f":"IF(Final_P_Credits<>\"\",IF((Final_P_Credits/IF(AB9<>\"\",AB9,1)+P_Actual_Load)>P_Cap_Load,(P_Cap_Load-P_Actual_Load)*0.9*IF(AB9<>\"\",AB9,1),Final_P_Credits),\"\")","v":""}]
[null,null,null,null,null,null,null,null,null,null,null,null,null,null,null,null,null,null,null,null,null,null,null,null,null,null,null,null,null,null,null,null,null,null,null,null,null,null,null,null,null,"10% Reserved Credits:",null,{"$f":"IF(Final_N_Adjusted_Credits<>\"\",ROUND((AR385/0.9)-AR385,0),\"\")","v":""},{"$f":"IF(Final_P_Adjusted_Credits<>\"\",ROUND((AS385/0.9)-AS385,0),\"\")","v":""}]
[]
[]
[null,null,null,null,null,null,"Prepared By:",null,null,null,null,null,null,null,null,null,null,null,null,null,null,"License No.:"]
[null,null,null,null,null,null,"Title:",null,null,null,null,null,null,null,null,null,null,null,null,null,null,"Date:"]
[]
[]
[null,"Monthly Statistics",null,null,null,null,null,null,null,null,null,null,null,null,null,null,null,null,null,null,null,null,null,null,null,null,null,null,null,null,null,null,null,null,null,null,null,null,null,"Total Monthly Loads"]
[null,"Monthly Total Mass Loads (lbs)",null,null,null,null,null,null,null,null,null,null,null,null,null,null,null,null,null,null,null,null,null,null,null,null,null,null,null,null,null,null,null,null,null,null,null,null,null,"TP","No. Flow Days",null,null,null,null,"NH3-N",null,null,null,null,null,"TKN",null,null,null,null,null,"NO2+NO3",null,null,null,null,null,"TN"]
[null,null,null,null,null,null,null,null,null,null,null,null,null,null,null,null,null,null,null,null,null,null,null,null,null,null,null,null,null,null,null,null,null,null,null,null,null,null,"Oct",{"$f":"IF(SUM(K13:K43)>0,SUM(K13:K43)/COUNTIF(K13:K43,\">0\")*IF(AM1=TRUE,31,AO395),\"\")","v":""},{"$f":"COUNTIF(E13:E43,\">0\")","v":0},null,null,null,null,{"$f":"IF(SUM(Q13:Q43)>0,SUM(Q13:Q43)/COUNTIF(Q13:Q43,\">0\")*IF(AM1=TRUE,31,AO395),\"\")","v":""},null,null,null,null,null,{"$f":"IF(SUM(W13:W43)>0,SUM(W13:W43)/COUNTIF(W13:W43,\">0\")*IF(AM1=TRUE,31,AO395),\"\")","v":""},null,null,null,null,null,{"$f":"IF(SUM(AC13:AC43)>0,SUM(AC13:AC43)/COUNTIF(AC13:AC43,\">0\")*IF(AM1=TRUE,31,AO395),\"\")","v":""},null,null,null,null,null,{"$f":"IF(SUM(AI13:AI43)>0,SUM(AI13:AI43)/COUNTIF(AI13:AI43,\">0\")*IF(AM1=TRUE,31,AO395),\"\")","v":""}]
[null,"Month",null,null,"Total Phosphorus (TP)",null,null,null,null,"NH3-N",null,null,null,null,"TKN",null,null,null,null,"NO2+NO3 as N",null,null,null,null,"Total Nitrogen (TN)",null,null,null,null,null,null,null,null,null,null,null,null,null,"Nov",{"$f":"IF(SUM(K44:K73)>0,SUM(K44:K73)/COUNTIF(K44:K73,\">0\")*IF(AM1=TRUE,30,AO396),\"\")","v":""},{"$f":"COUNTIF(E44:E73,\">0\")","v":0},null,null,null,null,{"$f":"IF(SUM(Q44:Q73)>0,SUM(Q44:Q73)/COUNTIF(Q44:Q73,\">0\")*IF(AM1=TRUE,30,AO396),\"\")","v":""},null,null,null,null,null,{"$f":"IF(SUM(W44:W73)>0,SUM(W44:W73)/COUNTIF(W44:W73,\">0\")*IF(AM1=TRUE,30,AO396),\"\")","v":""},null,null,null,null,null,{"$f":"IF(SUM(AC44:AC73)>0,SUM(AC44:AC73)/COUNTIF(AC44:AC73,\">0\")*IF(AM1=TRUE,30,AO396),\"\")","v":""},null,null,null,null,null,{"$f":"IF(SUM(AI44:AI73)>0,SUM(AI44:AI73)/COUNTIF(AI44:AI73,\">0\")*IF(AM1=TRUE,30,AO396),\"\")","v":""}]
[null,"October",null,null,{"$f":"IF(AN395<>\"\",IF(COUNTIF($G$431:$G$461,1)>0,CONCATENATE(\"< \",IF(AN395<1,VALUE(ROUND(AN395,1-(1+INT(LOG10(ABS(AN395)))))),VALUE(ROUND(AN395,1)))),ROUND(AN395,1)),\"\")","v":""},null,null,null,null,{"$f":"IF(AT395<>\"\",IF(COUNTIF(M431:M461,1)>0,CONCATENATE(\"< \",IF(AT395<1,VALUE(ROUND(AT395,1-(1+INT(LOG10(ABS(AT395)))))),VALUE(ROUND(AT395,1)))),ROUND(AT395,1)),\"\")","v":""},null,null,null,null,{"$f":"IF(AZ395<>\"\",IF(COUNTIF(S431:S461,1)>0,CONCATENATE(\"< \",IF(AZ395<1,VALUE(ROUND(AZ395,1-(1+INT(LOG10(ABS(AZ395)))))),VALUE(ROUND(AZ395,1)))),ROUND(AZ395,1)),\"\")","v":""},null,null,null,null,{"$f":"IF(BF395<>\"\",IF(COUNTIF(Y431:Y461,1)>0,CONCATENATE(\"< \",IF(BF395<1,VALUE(ROUND(BF395,1-(1+INT(LOG10(ABS(BF395)))))),VALUE(ROUND(BF395,1)))),ROUND(BF395,1)),\"\")","v":""},null,null,null,null,{"$f":"IF(BL395<>\"\",IF(COUNTIF(AE431:AE461,1)>0,CONCATENATE(\"< \",IF(BL395<1,VALUE(ROUND(BL395,1-(1+INT(LOG10(ABS(BL395)))))),VALUE(ROUND(BL395,1)))),ROUND(BL395,1)),\"\")","v":""},null,null,null,null,null,null,null,null,null,null,null,null,null,"Dec",{"$f":"IF(SUM(K74:K104)>0,SUM(K74:K104)/COUNTIF(K74:K104,\">0\")*IF(AM1=TRUE,31,AO397),\"\")","v":""},{"$f":"COUNTIF(E74:E104,\">0\")","v":0},null,null,null,null,{"$f":"IF(SUM(Q74:Q104)>0,SUM(Q74:Q104)/COUNTIF(Q74:Q104,\">0\")*IF(AM1=TRUE,31,AO397),\"\")","v":""},null,null,null,null,null,{"$f":"IF(SUM(W74:W104)>0,SUM(W74:W104)/COUNTIF(W74:W104,\">0\")*IF(AM1=TRUE,31,AO397),\"\")","v":""},null,null,null,null,null,{"$f":"IF(SUM(AC74:AC104)>0,SUM(AC74:AC104)/COUNTIF(AC74:AC104,\">0\")*IF(AM1=TRUE,31,AO397),\"\")","v":""},null,null,null,null,null,{"$f":"IF(SUM(AI74:AI104)>0,SUM(AI74:AI104)/COUNTIF(AI74:AI104,\">0\")*IF(AM1=TRUE,31,AO397),\"\")","v":""}]
[null,"November",null,null,{"$f":"IF(AN396<>\"\",IF(COUNTIF(G$462:G$491,1)>0,CONCATENATE(\"< \",IF(AN396<1,VALUE(ROUND(AN396,1-(1+INT(LOG10(ABS(AN396)))))),VALUE(ROUND(AN396,1)))),ROUND(AN396,1)),\"\")","v":""},null,null,null,null,{"$f":"IF(AT396<>\"\",IF(COUNTIF(M462:M491,1)>0,CONCATENATE(\"< \",IF(AT396<1,VALUE(ROUND(AT396,1-(1+INT(LOG10(ABS(AT396)))))),VALUE(ROUND(AT396,1)))),ROUND(AT396,1)),\"\")","v":""},null,null,null,null,{"$f":"IF(AZ396<>\"\",IF(COUNTIF(S462:S491,1)>0,CONCATENATE(\"< \",IF(AZ396<1,VALUE(ROUND(AZ396,1-(1+INT(LOG10(ABS(AZ396)))))),VALUE(ROUND(AZ396,1)))),ROUND(AZ396,1)),\"\")","v":""},null,null,null,null,{"$f":"IF(BF396<>\"\",IF(COUNTIF(Y462:Y491,1)>0,CONCATENATE(\"< \",IF(BF396<1,VALUE(ROUND(BF396,1-(1+INT(LOG10(ABS(BF396)))))),VALUE(ROUND(BF396,1)))),ROUND(BF396,1)),\"\")","v":""},null,null,null,null,{"$f":"IF(BL396<>\"\",IF(COUNTIF(AE462:AE491,1)>0,CONCATENATE(\"< \",IF(BL396<1,VALUE(ROUND(BL396,1-(1+INT(LOG10(ABS(BL396)))))),VALUE(ROUND(BL396,1)))),ROUND(BL396,1)),\"\")","v":""},null,null,null,null,null,null,null,null,null,null,null,null,null,"Jan",{"$f":"IF(SUM(K105:K135)>0,SUM(K105:K135)/COUNTIF(K105:K135,\">0\")*IF(AM1=TRUE,31,AO398),\"\")","v":""},{"$f":"COUNTIF(E105:E135,\">0\")","v":0},null,null,null,null,{"$f":"IF(SUM(Q105:Q135)>0,SUM(Q105:Q135)/COUNTIF(Q105:Q135,\">0\")*IF(AM1=TRUE,31,AO398),\"\")","v":""},null,null,null,null,null,{"$f":"IF(SUM(W105:W135)>0,SUM(W105:W135)/COUNTIF(W105:W135,\">0\")*IF(AM1=TRUE,31,AO398),\"\")","v":""},null,null,null,null,null,{"$f":"IF(SUM(AC105:AC135)>0,SUM(AC105:AC135)/COUNTIF(AC105:AC135,\">0\")*IF(AM1=TRUE,31,AO398),\"\")","v":""},null,null,null,null,null,{"$f":"IF(SUM(AI105:AI135)>0,SUM(AI105:AI135)/COUNTIF(AI105:AI135,\">0\")*IF(AM1=TRUE,31,AO398),\"\")","v":""}]
[null,"December",null,null,{"$f":"IF(AN397<>\"\",IF(COUNTIF(G$492:G$522,1)>0,CONCATENATE(\"< \",IF(AN397<1,VALUE(ROUND(AN397,1-(1+INT(LOG10(ABS(AN397)))))),VALUE(ROUND(AN397,1)))),ROUND(AN397,1)),\"\")","v":""},null,null,null,null,{"$f":"IF(AT397<>\"\",IF(COUNTIF(M492:M522,1)>0,CONCATENATE(\"< \",IF(AT397<1,VALUE(ROUND(AT397,1-(1+INT(LOG10(ABS(AT397)))))),VALUE(ROUND(AT397,1)))),ROUND(AT397,1)),\"\")","v":""},null,null,null,null,{"$f":"IF(AZ397<>\"\",IF(COUNTIF(S492:S522,1)>0,CONCATENATE(\"< \",IF(AZ397<1,VALUE(ROUND(AZ397,1-(1+INT(LOG10(ABS(AZ397)))))),VALUE(ROUND(AZ397,1)))),ROUND(AZ397,1)),\"\")","v":""},null,null,null,null,{"$f":"IF(BF397<>\"\",IF(COUNTIF(Y492:Y522,1)>0,CONCATENATE(\"< \",IF(BF397<1,VALUE(ROUND(BF397,1-(1+INT(LOG10(ABS(BF397)))))),VALUE(ROUND(BF397,1)))),ROUND(BF397,1)),\"\")","v":""},null,null,null,null,{"$f":"IF(BL397<>\"\",IF(COUNTIF(AE492:AE522,1)>0,CONCATENATE(\"< \",IF(BL397<1,VALUE(ROUND(BL397,1-(1+INT(LOG10(ABS(BL397)))))),VALUE(ROUND(BL397,1)))),ROUND(BL397,1)),\"\")","v":""},null,null,null,null,null,null,null,null,null,null,null,null,null,"Feb",{"$f":"IF(AND(OR($AB$5=2020,$AB$5=2024,$AB$5=2028,$AB$5=2032),SUM(K136:K164)>0),(SUM(K136:K164)/COUNTIF(K136:K164,\">0\")*IF(AM1=TRUE,29,AO399)),IF(AND($AB$5<>2020,$AB$5<>2024,$AB$5<>2028,$AB$5<>2032,$AB$5<>\"\",SUM(K136:K163)>0),(SUM(K136:K163)/COUNTIF(K136:K163,\">0\")*IF(AM1=TRUE,28,AO399)),\"\"))","v":""},{"$f":"IF(OR($AB$5=2020,$AB$5=2024,$AB$5=2028,$AB$5=2032),COUNTIF(E136:E164,\">0\"),COUNTIF(E136:E163,\">0\"))","v":0},null,null,null,null,{"$f":"IF(AND(OR($AB$5=2020,$AB$5=2024,$AB$5=2028,$AB$5=2032),SUM(Q136:Q164)>0),(SUM(Q136:Q164)/COUNTIF(Q136:Q164,\">0\")*IF(AM1=TRUE,29,AO399)),IF(AND($AB$5<>2020,$AB$5<>2024,$AB$5<>2028,$AB$5<>2032,$AB$5<>\"\",SUM(Q136:Q163)>0),(SUM(Q136:Q163)/COUNTIF(Q136:Q163,\">0\")*IF(AM1=TRUE,28,AO399)),\"\"))","v":""},null,null,null,null,null,{"$f":"IF(AND(OR($AB$5=2020,$AB$5=2024,$AB$5=2028,$AB$5=2032),SUM(W136:W164)>0),(SUM(W136:W164)/COUNTIF(W136:W164,\">0\")*IF(AM1=TRUE,29,AO399)),IF(AND($AB$5<>2020,$AB$5<>2024,$AB$5<>2028,$AB$5<>2032,$AB$5<>\"\",SUM(W136:W163)>0),(SUM(W136:W163)/COUNTIF(W136:W163,\">0\")*IF(AM1=TRUE,28,AO399)),\"\"))","v":""},null,null,null,null,null,{"$f":"IF(AND(OR($AB$5=2020,$AB$5=2024,$AB$5=2028,$AB$5=2032),SUM(AC136:AC164)>0),(SUM(AC136:AC164)/COUNTIF(AC136:AC164,\">0\")*IF(AM1=TRUE,29,AO399)),IF(AND($AB$5<>2020,$AB$5<>2024,$AB$5<>2028,$AB$5<>2032,$AB$5<>\"\",SUM(AC136:AC163)>0),(SUM(AC136:AC163)/COUNTIF(AC136:AC163,\">0\")*IF(AM1=TRUE,28,AO399)),\"\"))","v":""},null,null,null,null,null,{"$f":"IF(AND(OR($AB$5=2020,$AB$5=2024,$AB$5=2028,$AB$5=2032),SUM(AI136:AI164)>0),(SUM(AI136:AI164)/COUNTIF(AI136:AI164,\">0\")*IF(AM1=TRUE,29,AO399)),IF(AND($AB$5<>2020,$AB$5<>2024,$AB$5<>2028,$AB$5<>2032,$AB$5<>\"\",SUM(AI136:AI163)>0),(SUM(AI136:AI163)/COUNTIF(AI136:AI163,\">0\")*IF(AM1=TRUE,28,AO399)),\"\"))","v":""}]
[null,"January",null,null,{"$f":"IF(AN398<>\"\",IF(COUNTIF(G$523:G$553,1)>0,CONCATENATE(\"< \",IF(AN398<1,VALUE(ROUND(AN398,1-(1+INT(LOG10(ABS(AN398)))))),VALUE(ROUND(AN398,1)))),ROUND(AN398,1)),\"\")","v":""},null,null,null,null,{"$f":"IF(AT398<>\"\",IF(COUNTIF(M523:M553,1)>0,CONCATENATE(\"< \",IF(AT398<1,VALUE(ROUND(AT398,1-(1+INT(LOG10(ABS(AT398)))))),VALUE(ROUND(AT398,1)))),ROUND(AT398,1)),\"\")","v":""},null,null,null,null,{"$f":"IF(AZ398<>\"\",IF(COUNTIF(S523:S553,1)>0,CONCATENATE(\"< \",IF(AZ398<1,VALUE(ROUND(AZ398,1-(1+INT(LOG10(ABS(AZ398)))))),VALUE(ROUND(AZ398,1)))),ROUND(AZ398,1)),\"\")","v":""},null,null,null,null,{"$f":"IF(BF398<>\"\",IF(COUNTIF(Y523:Y553,1)>0,CONCATENATE(\"< \",IF(BF398<1,VALUE(ROUND(BF398,1-(1+INT(LOG10(ABS(BF398)))))),VALUE(ROUND(BF398,1)))),ROUND(BF398,1)),\"\")","v":""},null,null,null,null,{"$f":"IF(BL398<>\"\",IF(COUNTIF(AE523:AE553,1)>0,CONCATENATE(\"< \",IF(BL398<1,VALUE(ROUND(BL398,1-(1+INT(LOG10(ABS(BL398)))))),VALUE(ROUND(BL398,1)))),ROUND(BL398,1)),\"\")","v":""},null,null,null,null,null,null,null,null,null,null,null,null,null,"Mar",{"$f":"IF(AND(OR($AB$5=2020,$AB$5=2024,$AB$5=2028,$AB$5=2032),SUM(K165:K195)>0),(SUM(K165:K195)/COUNTIF(K165:K195,\">0\")*IF(AM1=TRUE,31,AO400)),IF(AND($AB$5<>2020,$AB$5<>2024,$AB$5<>2028,$AB$5<>2032,$AB$5<>\"\",SUM(K164:K194)>0),(SUM(K164:K194)/COUNTIF(K164:K194,\">0\")*IF(AM1=TRUE,31,AO400)),\"\"))","v":""},{"$f":"IF(OR($AB$5=2020,$AB$5=2024,$AB$5=2028,$AB$5=2032),COUNTIF(E165:E195,\">0\"),COUNTIF(E164:E194,\">0\"))","v":0},null,null,null,null,{"$f":"IF(AND(OR($AB$5=2020,$AB$5=2024,$AB$5=2028,$AB$5=2032),SUM(Q165:Q195)>0),(SUM(Q165:Q195)/COUNTIF(Q165:Q195,\">0\")*IF(AM1=TRUE,31,AO400)),IF(AND($AB$5<>2020,$AB$5<>2024,$AB$5<>2028,$AB$5<>2032,$AB$5<>\"\",SUM(Q164:Q194)>0),(SUM(Q164:Q194)/COUNTIF(Q164:Q194,\">0\")*IF(AM1=TRUE,31,AO400)),\"\"))","v":""},null,null,null,null,null,{"$f":"IF(AND(OR($AB$5=2020,$AB$5=2024,$AB$5=2028,$AB$5=2032),SUM(W165:W195)>0),(SUM(W165:W195)/COUNTIF(W165:W195,\">0\")*IF(AM1=TRUE,31,AO400)),IF(AND($AB$5<>2020,$AB$5<>2024,$AB$5<>2028,$AB$5<>2032,$AB$5<>\"\",SUM(W164:W194)>0),(SUM(W164:W194)/COUNTIF(W164:W194,\">0\")*IF(AM1=TRUE,31,AO400)),\"\"))","v":""},null,null,null,null,null,{"$f":"IF(AND(OR($AB$5=2020,$AB$5=2024,$AB$5=2028,$AB$5=2032),SUM(AC165:AC195)>0),(SUM(AC165:AC195)/COUNTIF(AC165:AC195,\">0\")*IF(AM1=TRUE,31,AO400)),IF(AND($AB$5<>2020,$AB$5<>2024,$AB$5<>2028,$AB$5<>2032,$AB$5<>\"\",SUM(AC164:AC194)>0),(SUM(AC164:AC194)/COUNTIF(AC164:AC194,\">0\")*IF(AM1=TRUE,31,AO400)),\"\"))","v":""},null,null,null,null,null,{"$f":"IF(AND(OR($AB$5=2020,$AB$5=2024,$AB$5=2028,$AB$5=2032),SUM(AI165:AI195)>0),(SUM(AI165:AI195)/COUNTIF(AI165:AI195,\">0\")*IF(AM1=TRUE,31,AO400)),IF(AND($AB$5<>2020,$AB$5<>2024,$AB$5<>2028,$AB$5<>2032,$AB$5<>\"\",SUM(AI164:AI194)>0),(SUM(AI164:AI194)/COUNTIF(AI164:AI194,\">0\")*IF(AM1=TRUE,31,AO400)),\"\"))","v":""}]
[null,"February",null,null,{"$f":"IF(AN399<>\"\",IF(OR(AND(OR($AB$5=2020,$AB$5=2024,$AB$5=2028,$AB$5=2032),COUNTIF(G$554:G$582,1)>0),AND($AB$5<>2020,$AB$5<>2024,$AB$5<>2028,$AB$5<>2032,$AB$5<>\"\",COUNTIF(G$554:G$581,1)>0)),CONCATENATE(\"< \",IF(AN399<1,VALUE(ROUND(AN399,1-(1+INT(LOG10(ABS(AN399)))))),VALUE(ROUND(AN399,1)))),ROUND(AN399,1)),\"\")","v":""},null,null,null,null,{"$f":"IF(AT399<>\"\",IF(OR(AND(OR($AB$5=2020,$AB$5=2024,$AB$5=2028,$AB$5=2032),COUNTIF(M554:M582,1)>0),AND($AB$5<>2020,$AB$5<>2024,$AB$5<>2028,$AB$5<>2032,$AB$5<>\"\",COUNTIF(M554:M581,1)>0)),CONCATENATE(\"< \",IF(AT399<1,VALUE(ROUND(AT399,1-(1+INT(LOG10(ABS(AT399)))))),VALUE(ROUND(AT399,1)))),ROUND(AT399,1)),\"\")","v":""},null,null,null,null,{"$f":"IF(AZ399<>\"\",IF(OR(AND(OR($AB$5=2020,$AB$5=2024,$AB$5=2028,$AB$5=2032),COUNTIF(S554:S582,1)>0),AND($AB$5<>2020,$AB$5<>2024,$AB$5<>2028,$AB$5<>2032,$AB$5<>\"\",COUNTIF(S554:S581,1)>0)),CONCATENATE(\"< \",IF(AZ399<1,VALUE(ROUND(AZ399,1-(1+INT(LOG10(ABS(AZ399)))))),VALUE(ROUND(AZ399,1)))),ROUND(AZ399,1)),\"\")","v":""},null,null,null,null,{"$f":"IF(BF399<>\"\",IF(OR(AND(OR($AB$5=2020,$AB$5=2024,$AB$5=2028,$AB$5=2032),COUNTIF(Y554:Y582,1)>0),AND($AB$5<>2020,$AB$5<>2024,$AB$5<>2028,$AB$5<>2032,$AB$5<>\"\",COUNTIF(Y554:Y581,1)>0)),CONCATENATE(\"< \",IF(BF399<1,VALUE(ROUND(BF399,1-(1+INT(LOG10(ABS(BF399)))))),VALUE(ROUND(BF399,1)))),ROUND(BF399,1)),\"\")","v":""},null,null,null,null,{"$f":"IF(BL399<>\"\",IF(OR(AND(OR($AB$5=2020,$AB$5=2024,$AB$5=2028,$AB$5=2032),COUNTIF(AE554:AE582,1)>0),AND($AB$5<>2020,$AB$5<>2024,$AB$5<>2028,$AB$5<>2032,$AB$5<>\"\",COUNTIF(AE554:AE581,1)>0)),CONCATENATE(\"< \",IF(BL399<1,VALUE(ROUND(BL399,1-(1+INT(LOG10(ABS(BL399)))))),VALUE(ROUND(BL399,1)))),ROUND(BL399,1)),\"\")","v":""},null,null,null,null,null,null,null,null,null,null,null,null,null,"Apr",{"$f":"IF(AND(OR($AB$5=2020,$AB$5=2024,$AB$5=2028,$AB$5=2032),SUM(K196:K225)>0),(SUM(K196:K225)/COUNTIF(K196:K225,\">0\")*IF(AM1=TRUE,30,AO401)),IF(AND($AB$5<>2020,$AB$5<>2024,$AB$5<>2028,$AB$5<>2032,$AB$5<>\"\",SUM(K195:K224)>0),(SUM(K195:K224)/COUNTIF(K195:K224,\">0\")*IF(AM1=TRUE,30,AO401)),\"\"))","v":""},{"$f":"IF(OR($AB$5=2020,$AB$5=2024,$AB$5=2028,$AB$5=2032),COUNTIF(E196:E225,\">0\"),COUNTIF(E195:E224,\">0\"))","v":0},null,null,null,null,{"$f":"IF(AND(OR($AB$5=2020,$AB$5=2024,$AB$5=2028,$AB$5=2032),SUM(Q196:Q225)>0),(SUM(Q196:Q225)/COUNTIF(Q196:Q225,\">0\")*IF(AM1=TRUE,30,AO401)),IF(AND($AB$5<>2020,$AB$5<>2024,$AB$5<>2028,$AB$5<>2032,$AB$5<>\"\",SUM(Q195:Q224)>0),(SUM(Q195:Q224)/COUNTIF(Q195:Q224,\">0\")*IF(AM1=TRUE,30,AO401)),\"\"))","v":""},null,null,null,null,null,{"$f":"IF(AND(OR($AB$5=2020,$AB$5=2024,$AB$5=2028,$AB$5=2032),SUM(W196:W225)>0),(SUM(W196:W225)/COUNTIF(W196:W225,\">0\")*IF(AM1=TRUE,30,AO401)),IF(AND($AB$5<>2020,$AB$5<>2024,$AB$5<>2028,$AB$5<>2032,$AB$5<>\"\",SUM(W195:W224)>0),(SUM(W195:W224)/COUNTIF(W195:W224,\">0\")*IF(AM1=TRUE,30,AO401)),\"\"))","v":""},null,null,null,null,null,{"$f":"IF(AND(OR($AB$5=2020,$AB$5=2024,$AB$5=2028,$AB$5=2032),SUM(AC196:AC225)>0),(SUM(AC196:AC225)/COUNTIF(AC196:AC225,\">0\")*IF(AM1=TRUE,30,AO401)),IF(AND($AB$5<>2020,$AB$5<>2024,$AB$5<>2028,$AB$5<>2032,$AB$5<>\"\",SUM(AC195:AC224)>0),(SUM(AC195:AC224)/COUNTIF(AC195:AC224,\">0\")*IF(AM1=TRUE,30,AO401)),\"\"))","v":""},null,null,null,null,null,{"$f":"IF(AND(OR($AB$5=2020,$AB$5=2024,$AB$5=2028,$AB$5=2032),SUM(AI196:AI225)>0),(SUM(AI196:AI225)/COUNTIF(AI196:AI225,\">0\")*IF(AM1=TRUE,30,AO401)),IF(AND($AB$5<>2020,$AB$5<>2024,$AB$5<>2028,$AB$5<>2032,$AB$5<>\"\",SUM(AI195:AI224)>0),(SUM(AI195:AI224)/COUNTIF(AI195:AI224,\">0\")*IF(AM1=TRUE,30,AO401)),\"\"))","v":""}]
[null,"March",null,null,{"$f":"IF(AN400<>\"\",IF(OR(AND(OR($AB$5=2020,$AB$5=2024,$AB$5=2028,$AB$5=2032),COUNTIF(G$583:G$613,1)>0),AND($AB$5<>2020,$AB$5<>2024,$AB$5<>2028,$AB$5<>2032,$AB$5<>\"\",COUNTIF(G$582:G$612,1)>0)),CONCATENATE(\"< \",IF(AN400<1,VALUE(ROUND(AN400,1-(1+INT(LOG10(ABS(AN400)))))),VALUE(ROUND(AN400,1)))),ROUND(AN400,1)),\"\")","v":""},null,null,null,null,{"$f":"IF(AT400<>\"\",IF(OR(AND(OR($AB$5=2020,$AB$5=2024,$AB$5=2028,$AB$5=2032),COUNTIF(M583:M613,1)>0),AND($AB$5<>2020,$AB$5<>2024,$AB$5<>2028,$AB$5<>2032,$AB$5<>\"\",COUNTIF(M582:M612,1)>0)),CONCATENATE(\"< \",IF(AT400<1,VALUE(ROUND(AT400,1-(1+INT(LOG10(ABS(AT400)))))),VALUE(ROUND(AT400,1)))),ROUND(AT400,1)),\"\")","v":""},null,null,null,null,{"$f":"IF(AZ400<>\"\",IF(OR(AND(OR($AB$5=2020,$AB$5=2024,$AB$5=2028,$AB$5=2032),COUNTIF(S583:S613,1)>0),AND($AB$5<>2020,$AB$5<>2024,$AB$5<>2028,$AB$5<>2032,$AB$5<>\"\",COUNTIF(S582:S612,1)>0)),CONCATENATE(\"< \",IF(AZ400<1,VALUE(ROUND(AZ400,1-(1+INT(LOG10(ABS(AZ400)))))),VALUE(ROUND(AZ400,1)))),ROUND(AZ400,1)),\"\")","v":""},null,null,null,null,{"$f":"IF(BF400<>\"\",IF(OR(AND(OR($AB$5=2020,$AB$5=2024,$AB$5=2028,$AB$5=2032),COUNTIF(Y583:Y613,1)>0),AND($AB$5<>2020,$AB$5<>2024,$AB$5<>2028,$AB$5<>2032,$AB$5<>\"\",COUNTIF(Y582:Y612,1)>0)),CONCATENATE(\"< \",IF(BF400<1,VALUE(ROUND(BF400,1-(1+INT(LOG10(ABS(BF400)))))),VALUE(ROUND(BF400,1)))),ROUND(BF400,1)),\"\")","v":""},null,null,null,null,{"$f":"IF(BL400<>\"\",IF(OR(AND(OR($AB$5=2020,$AB$5=2024,$AB$5=2028,$AB$5=2032),COUNTIF(AE583:AE613,1)>0),AND($AB$5<>2020,$AB$5<>2024,$AB$5<>2028,$AB$5<>2032,$AB$5<>\"\",COUNTIF(AE582:AE612,1)>0)),CONCATENATE(\"< \",IF(BL400<1,VALUE(ROUND(BL400,1-(1+INT(LOG10(ABS(BL400)))))),VALUE(ROUND(BL400,1)))),ROUND(BL400,1)),\"\")","v":""},null,null,null,null,null,null,null,null,null,null,null,null,null,"May",{"$f":"IF(AND(OR($AB$5=2020,$AB$5=2024,$AB$5=2028,$AB$5=2032),SUM(K226:K256)>0),(SUM(K226:K256)/COUNTIF(K226:K256,\">0\")*IF(AM1=TRUE,31,AO402)),IF(AND($AB$5<>2020,$AB$5<>2024,$AB$5<>2028,$AB$5<>2032,$AB$5<>\"\",SUM(K225:K255)>0),(SUM(K225:K255)/COUNTIF(K225:K255,\">0\")*IF(AM1=TRUE,31,AO402)),\"\"))","v":""},{"$f":"IF(OR($AB$5=2020,$AB$5=2024,$AB$5=2028,$AB$5=2032),COUNTIF(E226:E256,\">0\"),COUNTIF(E225:E255,\">0\"))","v":0},null,null,null,null,{"$f":"IF(AND(OR($AB$5=2020,$AB$5=2024,$AB$5=2028,$AB$5=2032),SUM(Q226:Q256)>0),(SUM(Q226:Q256)/COUNTIF(Q226:Q256,\">0\")*IF(AM1=TRUE,31,AO402)),IF(AND($AB$5<>2020,$AB$5<>2024,$AB$5<>2028,$AB$5<>2032,$AB$5<>\"\",SUM(Q225:Q255)>0),(SUM(Q225:Q255)/COUNTIF(Q225:Q255,\">0\")*IF(AM1=TRUE,31,AO402)),\"\"))","v":""},null,null,null,null,null,{"$f":"IF(AND(OR($AB$5=2020,$AB$5=2024,$AB$5=2028,$AB$5=2032),SUM(W226:W256)>0),(SUM(W226:W256)/COUNTIF(W226:W256,\">0\")*IF(AM1=TRUE,31,AO402)),IF(AND($AB$5<>2020,$AB$5<>2024,$AB$5<>2028,$AB$5<>2032,$AB$5<>\"\",SUM(W225:W255)>0),(SUM(W225:W255)/COUNTIF(W225:W255,\">0\")*IF(AM1=TRUE,31,AO402)),\"\"))","v":""},null,null,null,null,null,{"$f":"IF(AND(OR($AB$5=2020,$AB$5=2024,$AB$5=2028,$AB$5=2032),SUM(AC226:AC256)>0),(SUM(AC226:AC256)/COUNTIF(AC226:AC256,\">0\")*IF(AM1=TRUE,31,AO402)),IF(AND($AB$5<>2020,$AB$5<>2024,$AB$5<>2028,$AB$5<>2032,$AB$5<>\"\",SUM(AC225:AC255)>0),(SUM(AC225:AC255)/COUNTIF(AC225:AC255,\">0\")*IF(AM1=TRUE,31,AO402)),\"\"))","v":""},null,null,null,null,null,{"$f":"IF(AND(OR($AB$5=2020,$AB$5=2024,$AB$5=2028,$AB$5=2032),SUM(AI226:AI256)>0),(SUM(AI226:AI256)/COUNTIF(AI226:AI256,\">0\")*IF(AM1=TRUE,31,AO402)),IF(AND($AB$5<>2020,$AB$5<>2024,$AB$5<>2028,$AB$5<>2032,$AB$5<>\"\",SUM(AI225:AI255)>0),(SUM(AI225:AI255)/COUNTIF(AI225:AI255,\">0\")*IF(AM1=TRUE,31,AO402)),\"\"))","v":""}]
[null,"April",null,null,{"$f":"IF(AN401<>\"\",IF(OR(AND(OR($AB$5=2020,$AB$5=2024,$AB$5=2028,$AB$5=2032),COUNTIF(G$614:G$643,1)>0),AND($AB$5<>2020,$AB$5<>2024,$AB$5<>2028,$AB$5<>2032,$AB$5<>\"\",COUNTIF(G$613:G$642,1)>0)),CONCATENATE(\"< \",IF(AN401<1,VALUE(ROUND(AN401,1-(1+INT(LOG10(ABS(AN401)))))),VALUE(ROUND(AN401,1)))),ROUND(AN401,1)),\"\")","v":""},null,null,null,null,{"$f":"IF(AT401<>\"\",IF(OR(AND(OR($AB$5=2020,$AB$5=2024,$AB$5=2028,$AB$5=2032),COUNTIF(M614:M643,1)>0),AND($AB$5<>2020,$AB$5<>2024,$AB$5<>2028,$AB$5<>2032,$AB$5<>\"\",COUNTIF(M613:M642,1)>0)),CONCATENATE(\"< \",IF(AT401<1,VALUE(ROUND(AT401,1-(1+INT(LOG10(ABS(AT401)))))),VALUE(ROUND(AT401,1)))),ROUND(AT401,1)),\"\")","v":""},null,null,null,null,{"$f":"IF(AZ401<>\"\",IF(OR(AND(OR($AB$5=2020,$AB$5=2024,$AB$5=2028,$AB$5=2032),COUNTIF(S614:S643,1)>0),AND($AB$5<>2020,$AB$5<>2024,$AB$5<>2028,$AB$5<>2032,$AB$5<>\"\",COUNTIF(S613:S642,1)>0)),CONCATENATE(\"< \",IF(AZ401<1,VALUE(ROUND(AZ401,1-(1+INT(LOG10(ABS(AZ401)))))),VALUE(ROUND(AZ401,1)))),ROUND(AZ401,1)),\"\")","v":""},null,null,null,null,{"$f":"IF(BF401<>\"\",IF(OR(AND(OR($AB$5=2020,$AB$5=2024,$AB$5=2028,$AB$5=2032),COUNTIF(Y614:Y643,1)>0),AND($AB$5<>2020,$AB$5<>2024,$AB$5<>2028,$AB$5<>2032,$AB$5<>\"\",COUNTIF(Y613:Y642,1)>0)),CONCATENATE(\"< \",IF(BF401<1,VALUE(ROUND(BF401,1-(1+INT(LOG10(ABS(BF401)))))),VALUE(ROUND(BF401,1)))),ROUND(BF401,1)),\"\")","v":""},null,null,null,null,{"$f":"IF(BL401<>\"\",IF(OR(AND(OR($AB$5=2020,$AB$5=2024,$AB$5=2028,$AB$5=2032),COUNTIF(AE614:AE643,1)>0),AND($AB$5<>2020,$AB$5<>2024,$AB$5<>2028,$AB$5<>2032,$AB$5<>\"\",COUNTIF(AE613:AE642,1)>0)),CONCATENATE(\"< \",IF(BL401<1,VALUE(ROUND(BL401,1-(1+INT(LOG10(ABS(BL401)))))),VALUE(ROUND(BL401,1)))),ROUND(BL401,1)),\"\")","v":""},null,null,null,null,null,null,null,null,null,null,null,null,null,"Jun",{"$f":"IF(AND(OR($AB$5=2020,$AB$5=2024,$AB$5=2028,$AB$5=2032),SUM(K257:K286)>0),(SUM(K257:K286)/COUNTIF(K257:K286,\">0\")*IF(AM1=TRUE,30,AO403)),IF(AND($AB$5<>2020,$AB$5<>2024,$AB$5<>2028,$AB$5<>2032,$AB$5<>\"\",SUM(K256:K285)>0),(SUM(K256:K285)/COUNTIF(K256:K285,\">0\")*IF(AM1=TRUE,30,AO403)),\"\"))","v":""},{"$f":"IF(OR($AB$5=2020,$AB$5=2024,$AB$5=2028,$AB$5=2032),COUNTIF(E257:E286,\">0\"),COUNTIF(E256:E285,\">0\"))","v":0},null,null,null,null,{"$f":"IF(AND(OR($AB$5=2020,$AB$5=2024,$AB$5=2028,$AB$5=2032),SUM(Q257:Q286)>0),(SUM(Q257:Q286)/COUNTIF(Q257:Q286,\">0\")*IF(AM1=TRUE,30,AO403)),IF(AND($AB$5<>2020,$AB$5<>2024,$AB$5<>2028,$AB$5<>2032,$AB$5<>\"\",SUM(Q256:Q285)>0),(SUM(Q256:Q285)/COUNTIF(Q256:Q285,\">0\")*IF(AM1=TRUE,30,AO403)),\"\"))","v":""},null,null,null,null,null,{"$f":"IF(AND(OR($AB$5=2020,$AB$5=2024,$AB$5=2028,$AB$5=2032),SUM(W257:W286)>0),(SUM(W257:W286)/COUNTIF(W257:W286,\">0\")*IF(AM1=TRUE,30,AO403)),IF(AND($AB$5<>2020,$AB$5<>2024,$AB$5<>2028,$AB$5<>2032,$AB$5<>\"\",SUM(W256:W285)>0),(SUM(W256:W285)/COUNTIF(W256:W285,\">0\")*IF(AM1=TRUE,30,AO403)),\"\"))","v":""},null,null,null,null,null,{"$f":"IF(AND(OR($AB$5=2020,$AB$5=2024,$AB$5=2028,$AB$5=2032),SUM(AC257:AC286)>0),(SUM(AC257:AC286)/COUNTIF(AC257:AC286,\">0\")*IF(AM1=TRUE,30,AO403)),IF(AND($AB$5<>2020,$AB$5<>2024,$AB$5<>2028,$AB$5<>2032,$AB$5<>\"\",SUM(AC256:AC285)>0),(SUM(AC256:AC285)/COUNTIF(AC256:AC285,\">0\")*IF(AM1=TRUE,30,AO403)),\"\"))","v":""},null,null,null,null,null,{"$f":"IF(AND(OR($AB$5=2020,$AB$5=2024,$AB$5=2028,$AB$5=2032),SUM(AI257:AI286)>0),(SUM(AI257:AI286)/COUNTIF(AI257:AI286,\">0\")*IF(AM1=TRUE,30,AO403)),IF(AND($AB$5<>2020,$AB$5<>2024,$AB$5<>2028,$AB$5<>2032,$AB$5<>\"\",SUM(AI256:AI285)>0),(SUM(AI256:AI285)/COUNTIF(AI256:AI285,\">0\")*IF(AM1=TRUE,30,AO403)),\"\"))","v":""}]
[null,"May",null,null,{"$f":"IF(AN402<>\"\",IF(OR(AND(OR($AB$5=2020,$AB$5=2024,$AB$5=2028,$AB$5=2032),COUNTIF(G$644:G$674,1)>0),AND($AB$5<>2020,$AB$5<>2024,$AB$5<>2028,$AB$5<>2032,$AB$5<>\"\",COUNTIF(G$643:G$673,1)>0)),CONCATENATE(\"< \",IF(AN402<1,VALUE(ROUND(AN402,1-(1+INT(LOG10(ABS(AN402)))))),VALUE(ROUND(AN402,1)))),ROUND(AN402,1)),\"\")","v":""},null,null,null,null,{"$f":"IF(AT402<>\"\",IF(OR(AND(OR($AB$5=2020,$AB$5=2024,$AB$5=2028,$AB$5=2032),COUNTIF(M644:M674,1)>0),AND($AB$5<>2020,$AB$5<>2024,$AB$5<>2028,$AB$5<>2032,$AB$5<>\"\",COUNTIF(M643:M673,1)>0)),CONCATENATE(\"< \",IF(AT402<1,VALUE(ROUND(AT402,1-(1+INT(LOG10(ABS(AT402)))))),VALUE(ROUND(AT402,1)))),ROUND(AT402,1)),\"\")","v":""},null,null,null,null,{"$f":"IF(AZ402<>\"\",IF(OR(AND(OR($AB$5=2020,$AB$5=2024,$AB$5=2028,$AB$5=2032),COUNTIF(S644:S674,1)>0),AND($AB$5<>2020,$AB$5<>2024,$AB$5<>2028,$AB$5<>2032,$AB$5<>\"\",COUNTIF(S643:S673,1)>0)),CONCATENATE(\"< \",IF(AZ402<1,VALUE(ROUND(AZ402,1-(1+INT(LOG10(ABS(AZ402)))))),VALUE(ROUND(AZ402,1)))),ROUND(AZ402,1)),\"\")","v":""},null,null,null,null,{"$f":"IF(BF402<>\"\",IF(OR(AND(OR($AB$5=2020,$AB$5=2024,$AB$5=2028,$AB$5=2032),COUNTIF(Y644:Y674,1)>0),AND($AB$5<>2020,$AB$5<>2024,$AB$5<>2028,$AB$5<>2032,$AB$5<>\"\",COUNTIF(Y643:Y673,1)>0)),CONCATENATE(\"< \",IF(BF402<1,VALUE(ROUND(BF402,1-(1+INT(LOG10(ABS(BF402)))))),VALUE(ROUND(BF402,1)))),ROUND(BF402,1)),\"\")","v":""},null,null,null,null,{"$f":"IF(BL402<>\"\",IF(OR(AND(OR($AB$5=2020,$AB$5=2024,$AB$5=2028,$AB$5=2032),COUNTIF(AE644:AE674,1)>0),AND($AB$5<>2020,$AB$5<>2024,$AB$5<>2028,$AB$5<>2032,$AB$5<>\"\",COUNTIF(AE643:AE673,1)>0)),CONCATENATE(\"< \",IF(BL402<1,VALUE(ROUND(BL402,1-(1+INT(LOG10(ABS(BL402)))))),VALUE(ROUND(BL402,1)))),ROUND(BL402,1)),\"\")","v":""},null,null,null,null,null,null,null,null,null,null,null,null,null,"Jul",{"$f":"IF(AND(OR($AB$5=2020,$AB$5=2024,$AB$5=2028,$AB$5=2032),SUM(K287:K317)>0),(SUM(K287:K317)/COUNTIF(K287:K317,\">0\")*IF(AM1=TRUE,31,AO404)),IF(AND($AB$5<>2020,$AB$5<>2024,$AB$5<>2028,$AB$5<>2032,$AB$5<>\"\",SUM(K286:K316)>0),(SUM(K286:K316)/COUNTIF(K286:K316,\">0\")*IF(AM1=TRUE,31,AO404)),\"\"))","v":""},{"$f":"IF(OR($AB$5=2020,$AB$5=2024,$AB$5=2028,$AB$5=2032),COUNTIF(E287:E317,\">0\"),COUNTIF(E286:E316,\">0\"))","v":0},null,null,null,null,{"$f":"IF(AND(OR($AB$5=2020,$AB$5=2024,$AB$5=2028,$AB$5=2032),SUM(Q287:Q317)>0),(SUM(Q287:Q317)/COUNTIF(Q287:Q317,\">0\")*IF(AM1=TRUE,31,AO404)),IF(AND($AB$5<>2020,$AB$5<>2024,$AB$5<>2028,$AB$5<>2032,$AB$5<>\"\",SUM(Q286:Q316)>0),(SUM(Q286:Q316)/COUNTIF(Q286:Q316,\">0\")*IF(AM1=TRUE,31,AO404)),\"\"))","v":""},null,null,null,null,null,{"$f":"IF(AND(OR($AB$5=2020,$AB$5=2024,$AB$5=2028,$AB$5=2032),SUM(W287:W317)>0),(SUM(W287:W317)/COUNTIF(W287:W317,\">0\")*IF(AM1=TRUE,31,AO404)),IF(AND($AB$5<>2020,$AB$5<>2024,$AB$5<>2028,$AB$5<>2032,$AB$5<>\"\",SUM(W286:W316)>0),(SUM(W286:W316)/COUNTIF(W286:W316,\">0\")*IF(AM1=TRUE,31,AO404)),\"\"))","v":""},null,null,null,null,null,{"$f":"IF(AND(OR($AB$5=2020,$AB$5=2024,$AB$5=2028,$AB$5=2032),SUM(AC287:AC317)>0),(SUM(AC287:AC317)/COUNTIF(AC287:AC317,\">0\")*IF(AM1=TRUE,31,AO404)),IF(AND($AB$5<>2020,$AB$5<>2024,$AB$5<>2028,$AB$5<>2032,$AB$5<>\"\",SUM(AC286:AC316)>0),(SUM(AC286:AC316)/COUNTIF(AC286:AC316,\">0\")*IF(AM1=TRUE,31,AO404)),\"\"))","v":""},null,null,null,null,null,{"$f":"IF(AND(OR($AB$5=2020,$AB$5=2024,$AB$5=2028,$AB$5=2032),SUM(AI287:AI317)>0),(SUM(AI287:AI317)/COUNTIF(AI287:AI317,\">0\")*IF(AM1=TRUE,31,AO404)),IF(AND($AB$5<>2020,$AB$5<>2024,$AB$5<>2028,$AB$5<>2032,$AB$5<>\"\",SUM(AI286:AI316)>0),(SUM(AI286:AI316)/COUNTIF(AI286:AI316,\">0\")*IF(AM1=TRUE,31,AO404)),\"\"))","v":""}]
[null,"June",null,null,{"$f":"IF(AN403<>\"\",IF(OR(AND(OR($AB$5=2020,$AB$5=2024,$AB$5=2028,$AB$5=2032),COUNTIF(G$675:G$704,1)>0),AND($AB$5<>2020,$AB$5<>2024,$AB$5<>2028,$AB$5<>2032,$AB$5<>\"\",COUNTIF(G$674:G$703,1)>0)),CONCATENATE(\"< \",IF(AN403<1,VALUE(ROUND(AN403,1-(1+INT(LOG10(ABS(AN403)))))),VALUE(ROUND(AN403,1)))),ROUND(AN403,1)),\"\")","v":""},null,null,null,null,{"$f":"IF(AT403<>\"\",IF(OR(AND(OR($AB$5=2020,$AB$5=2024,$AB$5=2028,$AB$5=2032),COUNTIF(M675:M704,1)>0),AND($AB$5<>2020,$AB$5<>2024,$AB$5<>2028,$AB$5<>2032,$AB$5<>\"\",COUNTIF(M674:M703,1)>0)),CONCATENATE(\"< \",IF(AT403<1,VALUE(ROUND(AT403,1-(1+INT(LOG10(ABS(AT403)))))),VALUE(ROUND(AT403,1)))),ROUND(AT403,1)),\"\")","v":""},null,null,null,null,{"$f":"IF(AZ403<>\"\",IF(OR(AND(OR($AB$5=2020,$AB$5=2024,$AB$5=2028,$AB$5=2032),COUNTIF(S675:S704,1)>0),AND($AB$5<>2020,$AB$5<>2024,$AB$5<>2028,$AB$5<>2032,$AB$5<>\"\",COUNTIF(S674:S703,1)>0)),CONCATENATE(\"< \",IF(AZ403<1,VALUE(ROUND(AZ403,1-(1+INT(LOG10(ABS(AZ403)))))),VALUE(ROUND(AZ403,1)))),ROUND(AZ403,1)),\"\")","v":""},null,null,null,null,{"$f":"IF(BF403<>\"\",IF(OR(AND(OR($AB$5=2020,$AB$5=2024,$AB$5=2028,$AB$5=2032),COUNTIF(Y675:Y704,1)>0),AND($AB$5<>2020,$AB$5<>2024,$AB$5<>2028,$AB$5<>2032,$AB$5<>\"\",COUNTIF(Y674:Y703,1)>0)),CONCATENATE(\"< \",IF(BF403<1,VALUE(ROUND(BF403,1-(1+INT(LOG10(ABS(BF403)))))),VALUE(ROUND(BF403,1)))),ROUND(BF403,1)),\"\")","v":""},null,null,null,null,{"$f":"IF(BL403<>\"\",IF(OR(AND(OR($AB$5=2020,$AB$5=2024,$AB$5=2028,$AB$5=2032),COUNTIF(AE675:AE704,1)>0),AND($AB$5<>2020,$AB$5<>2024,$AB$5<>2028,$AB$5<>2032,$AB$5<>\"\",COUNTIF(AE674:AE703,1)>0)),CONCATENATE(\"< \",IF(BL403<1,VALUE(ROUND(BL403,1-(1+INT(LOG10(ABS(BL403)))))),VALUE(ROUND(BL403,1)))),ROUND(BL403,1)),\"\")","v":""},null,null,null,null,null,null,null,null,null,null,null,null,null,"Aug",{"$f":"IF(AND(OR($AB$5=2020,$AB$5=2024,$AB$5=2028,$AB$5=2032),SUM(K318:K348)>0),(SUM(K318:K348)/COUNTIF(K318:K348,\">0\")*IF(AM1=TRUE,31,AO405)),IF(AND($AB$5<>2020,$AB$5<>2024,$AB$5<>2028,$AB$5<>2032,$AB$5<>\"\",SUM(K317:K347)>0),(SUM(K317:K347)/COUNTIF(K317:K347,\">0\")*IF(AM1=TRUE,31,AO405)),\"\"))","v":""},{"$f":"IF(OR($AB$5=2020,$AB$5=2024,$AB$5=2028,$AB$5=2032),COUNTIF(E318:E348,\">0\"),COUNTIF(E317:E347,\">0\"))","v":0},null,null,null,null,{"$f":"IF(AND(OR($AB$5=2020,$AB$5=2024,$AB$5=2028,$AB$5=2032),SUM(Q318:Q348)>0),(SUM(Q318:Q348)/COUNTIF(Q318:Q348,\">0\")*IF(AM1=TRUE,31,AO405)),IF(AND($AB$5<>2020,$AB$5<>2024,$AB$5<>2028,$AB$5<>2032,$AB$5<>\"\",SUM(Q317:Q347)>0),(SUM(Q317:Q347)/COUNTIF(Q317:Q347,\">0\")*IF(AM1=TRUE,31,AO405)),\"\"))","v":""},null,null,null,null,null,{"$f":"IF(AND(OR($AB$5=2020,$AB$5=2024,$AB$5=2028,$AB$5=2032),SUM(W318:W348)>0),(SUM(W318:W348)/COUNTIF(W318:W348,\">0\")*IF(AM1=TRUE,31,AO405)),IF(AND($AB$5<>2020,$AB$5<>2024,$AB$5<>2028,$AB$5<>2032,$AB$5<>\"\",SUM(W317:W347)>0),(SUM(W317:W347)/COUNTIF(W317:W347,\">0\")*IF(AM1=TRUE,31,AO405)),\"\"))","v":""},null,null,null,null,null,{"$f":"IF(AND(OR($AB$5=2020,$AB$5=2024,$AB$5=2028,$AB$5=2032),SUM(AC318:AC348)>0),(SUM(AC318:AC348)/COUNTIF(AC318:AC348,\">0\")*IF(AM1=TRUE,31,AO405)),IF(AND($AB$5<>2020,$AB$5<>2024,$AB$5<>2028,$AB$5<>2032,$AB$5<>\"\",SUM(AC317:AC347)>0),(SUM(AC317:AC347)/COUNTIF(AC317:AC347,\">0\")*IF(AM1=TRUE,31,AO405)),\"\"))","v":""},null,null,null,null,null,{"$f":"IF(AND(OR($AB$5=2020,$AB$5=2024,$AB$5=2028,$AB$5=2032),SUM(AI318:AI348)>0),(SUM(AI318:AI348)/COUNTIF(AI318:AI348,\">0\")*IF(AM1=TRUE,31,AO405)),IF(AND($AB$5<>2020,$AB$5<>2024,$AB$5<>2028,$AB$5<>2032,$AB$5<>\"\",SUM(AI317:AI347)>0),(SUM(AI317:AI347)/COUNTIF(AI317:AI347,\">0\")*IF(AM1=TRUE,31,AO405)),\"\"))","v":""}]
[null,"July",null,null,{"$f":"IF(AN404<>\"\",IF(OR(AND(OR($AB$5=2020,$AB$5=2024,$AB$5=2028,$AB$5=2032),COUNTIF(G$705:G$735,1)>0),AND($AB$5<>2020,$AB$5<>2024,$AB$5<>2028,$AB$5<>2032,$AB$5<>\"\",COUNTIF(G$704:G$734,1)>0)),CONCATENATE(\"< \",IF(AN404<1,VALUE(ROUND(AN404,1-(1+INT(LOG10(ABS(AN404)))))),VALUE(ROUND(AN404,1)))),ROUND(AN404,1)),\"\")","v":""},null,null,null,null,{"$f":"IF(AT404<>\"\",IF(OR(AND(OR($AB$5=2020,$AB$5=2024,$AB$5=2028,$AB$5=2032),COUNTIF(M705:M735,1)>0),AND($AB$5<>2020,$AB$5<>2024,$AB$5<>2028,$AB$5<>2032,$AB$5<>\"\",COUNTIF(M704:M734,1)>0)),CONCATENATE(\"< \",IF(AT404<1,VALUE(ROUND(AT404,1-(1+INT(LOG10(ABS(AT404)))))),VALUE(ROUND(AT404,1)))),ROUND(AT404,1)),\"\")","v":""},null,null,null,null,{"$f":"IF(AZ404<>\"\",IF(OR(AND(OR($AB$5=2020,$AB$5=2024,$AB$5=2028,$AB$5=2032),COUNTIF(S705:S735,1)>0),AND($AB$5<>2020,$AB$5<>2024,$AB$5<>2028,$AB$5<>2032,$AB$5<>\"\",COUNTIF(S704:S734,1)>0)),CONCATENATE(\"< \",IF(AZ404<1,VALUE(ROUND(AZ404,1-(1+INT(LOG10(ABS(AZ404)))))),VALUE(ROUND(AZ404,1)))),ROUND(AZ404,1)),\"\")","v":""},null,null,null,null,{"$f":"IF(BF404<>\"\",IF(OR(AND(OR($AB$5=2020,$AB$5=2024,$AB$5=2028,$AB$5=2032),COUNTIF(Y705:Y735,1)>0),AND($AB$5<>2020,$AB$5<>2024,$AB$5<>2028,$AB$5<>2032,$AB$5<>\"\",COUNTIF(Y704:Y734,1)>0)),CONCATENATE(\"< \",IF(BF404<1,VALUE(ROUND(BF404,1-(1+INT(LOG10(ABS(BF404)))))),VALUE(ROUND(BF404,1)))),ROUND(BF404,1)),\"\")","v":""},null,null,null,null,{"$f":"IF(BL404<>\"\",IF(OR(AND(OR($AB$5=2020,$AB$5=2024,$AB$5=2028,$AB$5=2032),COUNTIF(AE705:AE735,1)>0),AND($AB$5<>2020,$AB$5<>2024,$AB$5<>2028,$AB$5<>2032,$AB$5<>\"\",COUNTIF(AE704:AE734,1)>0)),CONCATENATE(\"< \",IF(BL404<1,VALUE(ROUND(BL404,1-(1+INT(LOG10(ABS(BL404)))))),VALUE(ROUND(BL404,1)))),ROUND(BL404,1)),\"\")","v":""},null,null,null,null,null,null,null,null,null,null,null,null,null,"Sep",{"$f":"IF(AND(OR($AB$5=2020,$AB$5=2024,$AB$5=2028,$AB$5=2032),SUM(K349:K378)>0),(SUM(K349:K378)/COUNTIF(K349:K378,\">0\")*IF(AM1=TRUE,30,AO406)),IF(AND($AB$5<>2020,$AB$5<>2024,$AB$5<>2028,$AB$5<>2032,$AB$5<>\"\",SUM(K348:K377)>0),(SUM(K348:K377)/COUNTIF(K348:K377,\">0\")*IF(AM1=TRUE,30,AO406)),\"\"))","v":""},{"$f":"IF(OR($AB$5=2020,$AB$5=2024,$AB$5=2028,$AB$5=2032),COUNTIF(E349:E378,\">0\"),COUNTIF(E348:E377,\">0\"))","v":0},null,null,null,null,{"$f":"IF(AND(OR($AB$5=2020,$AB$5=2024,$AB$5=2028,$AB$5=2032),SUM(Q349:Q378)>0),(SUM(Q349:Q378)/COUNTIF(Q349:Q378,\">0\")*IF(AM1=TRUE,30,AO406)),IF(AND($AB$5<>2020,$AB$5<>2024,$AB$5<>2028,$AB$5<>2032,$AB$5<>\"\",SUM(Q348:Q377)>0),(SUM(Q348:Q377)/COUNTIF(Q348:Q377,\">0\")*IF(AM1=TRUE,30,AO406)),\"\"))","v":""},null,null,null,null,null,{"$f":"IF(AND(OR($AB$5=2020,$AB$5=2024,$AB$5=2028,$AB$5=2032),SUM(W349:W378)>0),(SUM(W349:W378)/COUNTIF(W349:W378,\">0\")*IF(AM1=TRUE,30,AO406)),IF(AND($AB$5<>2020,$AB$5<>2024,$AB$5<>2028,$AB$5<>2032,$AB$5<>\"\",SUM(W348:W377)>0),(SUM(W348:W377)/COUNTIF(W348:W377,\">0\")*IF(AM1=TRUE,30,AO406)),\"\"))","v":""},null,null,null,null,null,{"$f":"IF(AND(OR($AB$5=2020,$AB$5=2024,$AB$5=2028,$AB$5=2032),SUM(AC349:AC378)>0),(SUM(AC349:AC378)/COUNTIF(AC349:AC378,\">0\")*IF(AM1=TRUE,30,AO406)),IF(AND($AB$5<>2020,$AB$5<>2024,$AB$5<>2028,$AB$5<>2032,$AB$5<>\"\",SUM(AC348:AC377)>0),(SUM(AC348:AC377)/COUNTIF(AC348:AC377,\">0\")*IF(AM1=TRUE,30,AO406)),\"\"))","v":""},null,null,null,null,null,{"$f":"IF(AND(OR($AB$5=2020,$AB$5=2024,$AB$5=2028,$AB$5=2032),SUM(AI349:AI378)>0),(SUM(AI349:AI378)/COUNTIF(AI349:AI378,\">0\")*IF(AM1=TRUE,30,AO406)),IF(AND($AB$5<>2020,$AB$5<>2024,$AB$5<>2028,$AB$5<>2032,$AB$5<>\"\",SUM(AI348:AI377)>0),(SUM(AI348:AI377)/COUNTIF(AI348:AI377,\">0\")*IF(AM1=TRUE,30,AO406)),\"\"))","v":""}]
[null,"August",null,null,{"$f":"IF(AN405<>\"\",IF(OR(AND(OR($AB$5=2020,$AB$5=2024,$AB$5=2028,$AB$5=2032),COUNTIF(G$736:G$766,1)>0),AND($AB$5<>2020,$AB$5<>2024,$AB$5<>2028,$AB$5<>2032,$AB$5<>\"\",COUNTIF(G$735:G$765,1)>0)),CONCATENATE(\"< \",IF(AN405<1,VALUE(ROUND(AN405,1-(1+INT(LOG10(ABS(AN405)))))),VALUE(ROUND(AN405,1)))),ROUND(AN405,1)),\"\")","v":""},null,null,null,null,{"$f":"IF(AT405<>\"\",IF(OR(AND(OR($AB$5=2020,$AB$5=2024,$AB$5=2028,$AB$5=2032),COUNTIF(M736:M766,1)>0),AND($AB$5<>2020,$AB$5<>2024,$AB$5<>2028,$AB$5<>2032,$AB$5<>\"\",COUNTIF(M735:M765,1)>0)),CONCATENATE(\"< \",IF(AT405<1,VALUE(ROUND(AT405,1-(1+INT(LOG10(ABS(AT405)))))),VALUE(ROUND(AT405,1)))),ROUND(AT405,1)),\"\")","v":""},null,null,null,null,{"$f":"IF(AZ405<>\"\",IF(OR(AND(OR($AB$5=2020,$AB$5=2024,$AB$5=2028,$AB$5=2032),COUNTIF(S736:S766,1)>0),AND($AB$5<>2020,$AB$5<>2024,$AB$5<>2028,$AB$5<>2032,$AB$5<>\"\",COUNTIF(S735:S765,1)>0)),CONCATENATE(\"< \",IF(AZ405<1,VALUE(ROUND(AZ405,1-(1+INT(LOG10(ABS(AZ405)))))),VALUE(ROUND(AZ405,1)))),ROUND(AZ405,1)),\"\")","v":""},null,null,null,null,{"$f":"IF(BF405<>\"\",IF(OR(AND(OR($AB$5=2020,$AB$5=2024,$AB$5=2028,$AB$5=2032),COUNTIF(Y736:Y766,1)>0),AND($AB$5<>2020,$AB$5<>2024,$AB$5<>2028,$AB$5<>2032,$AB$5<>\"\",COUNTIF(Y735:Y765,1)>0)),CONCATENATE(\"< \",IF(BF405<1,VALUE(ROUND(BF405,1-(1+INT(LOG10(ABS(BF405)))))),VALUE(ROUND(BF405,1)))),ROUND(BF405,1)),\"\")","v":""},null,null,null,null,{"$f":"IF(BL405<>\"\",IF(OR(AND(OR($AB$5=2020,$AB$5=2024,$AB$5=2028,$AB$5=2032),COUNTIF(AE736:AE766,1)>0),AND($AB$5<>2020,$AB$5<>2024,$AB$5<>2028,$AB$5<>2032,$AB$5<>\"\",COUNTIF(AE735:AE765,1)>0)),CONCATENATE(\"< \",IF(BL405<1,VALUE(ROUND(BL405,1-(1+INT(LOG10(ABS(BL405)))))),VALUE(ROUND(BL405,1)))),ROUND(BL405,1)),\"\")","v":""}]
[null,"September",null,null,{"$f":"IF(AN406<>\"\",IF(OR(AND(OR($AB$5=2020,$AB$5=2024,$AB$5=2028,$AB$5=2032),COUNTIF(G$767:G$796,1)>0),AND($AB$5<>2020,$AB$5<>2024,$AB$5<>2028,$AB$5<>2032,$AB$5<>\"\",COUNTIF(G$766:G$795,1)>0)),CONCATENATE(\"< \",IF(AN406<1,VALUE(ROUND(AN406,1-(1+INT(LOG10(ABS(AN406)))))),VALUE(ROUND(AN406,1)))),ROUND(AN406,1)),\"\")","v":""},null,null,null,null,{"$f":"IF(AT406<>\"\",IF(OR(AND(OR($AB$5=2020,$AB$5=2024,$AB$5=2028,$AB$5=2032),COUNTIF(M767:M796,1)>0),AND($AB$5<>2020,$AB$5<>2024,$AB$5<>2028,$AB$5<>2032,$AB$5<>\"\",COUNTIF(M766:M795,1)>0)),CONCATENATE(\"< \",IF(AT406<1,VALUE(ROUND(AT406,1-(1+INT(LOG10(ABS(AT406)))))),VALUE(ROUND(AT406,1)))),ROUND(AT406,1)),\"\")","v":""},null,null,null,null,{"$f":"IF(AZ406<>\"\",IF(OR(AND(OR($AB$5=2020,$AB$5=2024,$AB$5=2028,$AB$5=2032),COUNTIF(S767:S796,1)>0),AND($AB$5<>2020,$AB$5<>2024,$AB$5<>2028,$AB$5<>2032,$AB$5<>\"\",COUNTIF(S766:S795,1)>0)),CONCATENATE(\"< \",IF(AZ406<1,VALUE(ROUND(AZ406,1-(1+INT(LOG10(ABS(AZ406)))))),VALUE(ROUND(AZ406,1)))),ROUND(AZ406,1)),\"\")","v":""},null,null,null,null,{"$f":"IF(BF406<>\"\",IF(OR(AND(OR($AB$5=2020,$AB$5=2024,$AB$5=2028,$AB$5=2032),COUNTIF(Y767:Y796,1)>0),AND($AB$5<>2020,$AB$5<>2024,$AB$5<>2028,$AB$5<>2032,$AB$5<>\"\",COUNTIF(Y766:Y795,1)>0)),CONCATENATE(\"< \",IF(BF406<1,VALUE(ROUND(BF406,1-(1+INT(LOG10(ABS(BF406)))))),VALUE(ROUND(BF406,1)))),ROUND(BF406,1)),\"\")","v":""},null,null,null,null,{"$f":"IF(BL406<>\"\",IF(OR(AND(OR($AB$5=2020,$AB$5=2024,$AB$5=2028,$AB$5=2032),COUNTIF(AE767:AE796,1)>0),AND($AB$5<>2020,$AB$5<>2024,$AB$5<>2028,$AB$5<>2032,$AB$5<>\"\",COUNTIF(AE766:AE795,1)>0)),CONCATENATE(\"< \",IF(BL406<1,VALUE(ROUND(BL406,1-(1+INT(LOG10(ABS(BL406)))))),VALUE(ROUND(BL406,1)))),ROUND(BL406,1)),\"\")","v":""}]
[null,null,null,null,null,null,null,null,null,null,null,null,null,null,null,null,null,null,null,null,null,null,null,null,null,null,null,null,null,null,null,null,null,null,null,null,null,null,null,"Average Monthly Concentrations"]
[null,"Average Monthly Concentrations (mg/L)",null,null,null,null,null,null,null,null,null,null,null,null,null,null,null,null,null,null,null,null,null,null,null,null,null,null,null,null,null,null,null,null,null,null,null,null,null,"TP",null,null,null,null,null,"NH3-N",null,null,null,null,null,"TKN",null,null,null,null,null,"NO2+NO3",null,null,null,null,null,"TN"]
[null,null,null,null,null,null,null,null,null,null,null,null,null,null,null,null,null,null,null,null,null,null,null,null,null,null,null,null,null,null,null,null,null,null,null,null,null,null,"Oct",{"$f":"IF(SUM(H13:H43)>0,AVERAGE(H13:H43),\"\")","v":""},null,null,null,null,null,{"$f":"IF(SUM(N13:N43)>0,AVERAGE(N13:N43),\"\")","v":""},null,null,null,null,null,{"$f":"IF(SUM(T13:T43)>0,AVERAGE(T13:T43),\"\")","v":""},null,null,null,null,null,{"$f":"IF(SUM(Z13:Z43)>0,AVERAGE(Z13:Z43),\"\")","v":""},null,null,null,null,null,{"$f":"IF(SUM(AF13:AF43)>0,AVERAGE(AF13:AF43),\"\")","v":""}]
[null,"Month",null,null,"Total Phosphorus (TP)",null,null,null,null,"NH3-N",null,null,null,null,"TKN",null,null,null,null,"NO2+NO3 as N",null,null,null,null,"Total Nitrogen (TN)",null,null,null,null,null,null,null,null,null,null,null,null,null,"Nov",{"$f":"IF(SUM(H44:H73)>0,AVERAGE(H44:H73),\"\")","v":""},null,null,null,null,null,{"$f":"IF(SUM(N44:N73)>0,AVERAGE(N44:N73),\"\")","v":""},null,null,null,null,null,{"$f":"IF(SUM(T44:T73)>0,AVERAGE(T44:T73),\"\")","v":""},null,null,null,null,null,{"$f":"IF(SUM(Z44:Z73)>0,AVERAGE(Z44:Z73),\"\")","v":""},null,null,null,null,null,{"$f":"IF(SUM(AF44:AF73)>0,AVERAGE(AF44:AF73),\"\")","v":""}]
[null,"October",null,null,{"$f":"IF(AN411<>\"\",IF(COUNTIF($G$431:$G$461,1)>0,CONCATENATE(\"< \",ROUND(AN411,$H$1168)),ROUND(AN411,$H$1168)),\"\")","v":""},null,null,null,null,{"$f":"IF(AT411<>\"\",IF(COUNTIF($M$431:$M$461,1)>0,CONCATENATE(\"< \",ROUND(AT411,$N$1168)),ROUND(AT411,$N$1168)),\"\")","v":""},null,null,null,null,{"$f":"IF(AZ411<>\"\",IF(COUNTIF($S$431:$S$461,1)>0,CONCATENATE(\"< \",ROUND(AZ411,$T$1168)),ROUND(AZ411,$T$1168)),\"\")","v":""},null,null,null,null,{"$f":"IF(BF411<>\"\",IF(COUNTIF($Y$431:$Y$461,1)>0,CONCATENATE(\"< \",ROUND(BF411,$Z$1168)),ROUND(BF411,$Z$1168)),\"\")","v":""},null,null,null,null,{"$f":"IF(BL411<>\"\",IF(COUNTIF($AE$431:$AE$461,1)>0,CONCATENATE(\"< \",ROUND(BL411,$V$1170)),ROUND(BL411,$V$1170)),\"\")","v":""},null,null,null,null,null,null,null,null,null,null,null,null,null,"Dec",{"$f":"IF(SUM(H74:H104)>0,AVERAGE(H74:H104),\"\")","v":""},null,null,null,null,null,{"$f":"IF(SUM(N74:N104)>0,AVERAGE(N74:N104),\"\")","v":""},null,null,null,null,null,{"$f":"IF(SUM(T74:T104)>0,AVERAGE(T74:T104),\"\")","v":""},null,null,null,null,null,{"$f":"IF(SUM(Z74:Z104)>0,AVERAGE(Z74:Z104),\"\")","v":""},null,null,null,null,null,{"$f":"IF(SUM(AF74:AF104)>0,AVERAGE(AF74:AF104),\"\")","v":""}]
[null,"November",null,null,{"$f":"IF(AN412<>\"\",IF(COUNTIF(G$462:G$491,1)>0,CONCATENATE(\"< \",ROUND(AN412,$H$1168)),ROUND(AN412,$H$1168)),\"\")","v":""},null,null,null,null,{"$f":"IF(AT412<>\"\",IF(COUNTIF(M$462:M$491,1)>0,CONCATENATE(\"< \",ROUND(AT412,$N$1168)),ROUND(AT412,$N$1168)),\"\")","v":""},null,null,null,null,{"$f":"IF(AZ412<>\"\",IF(COUNTIF(S$462:S$491,1)>0,CONCATENATE(\"< \",ROUND(AZ412,$T$1168)),ROUND(AZ412,$T$1168)),\"\")","v":""},null,null,null,null,{"$f":"IF(BF412<>\"\",IF(COUNTIF(Y$462:Y$491,1)>0,CONCATENATE(\"< \",ROUND(BF412,$Z$1168)),ROUND(BF412,$Z$1168)),\"\")","v":""},null,null,null,null,{"$f":"IF(BL412<>\"\",IF(COUNTIF(AE$462:AE$491,1)>0,CONCATENATE(\"< \",ROUND(BL412,$V$1170)),ROUND(BL412,$V$1170)),\"\")","v":""},null,null,null,null,null,null,null,null,null,null,null,null,null,"Jan",{"$f":"IF(SUM(H105:H135)>0,AVERAGE(H105:H135),\"\")","v":""},null,null,null,null,null,{"$f":"IF(SUM(N105:N135)>0,AVERAGE(N105:N135),\"\")","v":""},null,null,null,null,null,{"$f":"IF(SUM(T105:T135)>0,AVERAGE(T105:T135),\"\")","v":""},null,null,null,null,null,{"$f":"IF(SUM(Z105:Z135)>0,AVERAGE(Z105:Z135),\"\")","v":""},null,null,null,null,null,{"$f":"IF(SUM(AF105:AF135)>0,AVERAGE(AF105:AF135),\"\")","v":""}]
[null,"December",null,null,{"$f":"IF(AN413<>\"\",IF(COUNTIF(G$492:G$522,1)>0,CONCATENATE(\"< \",ROUND(AN413,$H$1168)),ROUND(AN413,$H$1168)),\"\")","v":""},null,null,null,null,{"$f":"IF(AT413<>\"\",IF(COUNTIF(M$492:M$522,1)>0,CONCATENATE(\"< \",ROUND(AT413,$N$1168)),ROUND(AT413,$N$1168)),\"\")","v":""},null,null,null,null,{"$f":"IF(AZ413<>\"\",IF(COUNTIF(S$492:S$522,1)>0,CONCATENATE(\"< \",ROUND(AZ413,$T$1168)),ROUND(AZ413,$T$1168)),\"\")","v":""},null,null,null,null,{"$f":"IF(BF413<>\"\",IF(COUNTIF(Y$492:Y$522,1)>0,CONCATENATE(\"< \",ROUND(BF413,$Z$1168)),ROUND(BF413,$Z$1168)),\"\")","v":""},null,null,null,null,{"$f":"IF(BL413<>\"\",IF(COUNTIF(AE$492:AE$522,1)>0,CONCATENATE(\"< \",ROUND(BL413,$V$1170)),ROUND(BL413,$V$1170)),\"\")","v":""},null,null,null,null,null,null,null,null,null,null,null,null,null,"Feb",{"$f":"IF(AND(OR($AB$5=2020,$AB$5=2024,$AB$5=2028,$AB$5=2032),SUM(H136:H164)>0),AVERAGE(H136:H164),IF(AND($AB$5<>2020,$AB$5<>2024,$AB$5<>2028,$AB$5<>2032,$AB$5<>\"\",SUM(H136:H163)>0),AVERAGE(H136:H163),\"\"))","v":""},null,null,null,null,null,{"$f":"IF(AND(OR($AB$5=2020,$AB$5=2024,$AB$5=2028,$AB$5=2032),SUM(N136:N164)>0),AVERAGE(N136:N164),IF(AND($AB$5<>2020,$AB$5<>2024,$AB$5<>2028,$AB$5<>2032,$AB$5<>\"\",SUM(N136:N163)>0),AVERAGE(N136:N163),\"\"))","v":""},null,null,null,null,null,{"$f":"IF(AND(OR($AB$5=2020,$AB$5=2024,$AB$5=2028,$AB$5=2032),SUM(T136:T164)>0),AVERAGE(T136:T164),IF(AND($AB$5<>2020,$AB$5<>2024,$AB$5<>2028,$AB$5<>2032,$AB$5<>\"\",SUM(T136:T163)>0),AVERAGE(T136:T163),\"\"))","v":""},null,null,null,null,null,{"$f":"IF(AND(OR($AB$5=2020,$AB$5=2024,$AB$5=2028,$AB$5=2032),SUM(Z136:Z164)>0),AVERAGE(Z136:Z164),IF(AND($AB$5<>2020,$AB$5<>2024,$AB$5<>2028,$AB$5<>2032,$AB$5<>\"\",SUM(Z136:Z163)>0),AVERAGE(Z136:Z163),\"\"))","v":""},null,null,null,null,null,{"$f":"IF(AND(OR($AB$5=2020,$AB$5=2024,$AB$5=2028,$AB$5=2032),SUM(AF136:AF164)>0),AVERAGE(AF136:AF164),IF(AND($AB$5<>2020,$AB$5<>2024,$AB$5<>2028,$AB$5<>2032,$AB$5<>\"\",SUM(AF136:AF163)>0),AVERAGE(AF136:AF163),\"\"))","v":""}]
[null,"January",null,null,{"$f":"IF(AN414<>\"\",IF(COUNTIF(G$523:G$553,1)>0,CONCATENATE(\"< \",ROUND(AN414,$H$1168)),ROUND(AN414,$H$1168)),\"\")","v":""},null,null,null,null,{"$f":"IF(AT414<>\"\",IF(COUNTIF(M$523:M$553,1)>0,CONCATENATE(\"< \",ROUND(AT414,$N$1168)),ROUND(AT414,$N$1168)),\"\")","v":""},null,null,null,null,{"$f":"IF(AZ414<>\"\",IF(COUNTIF(S$523:S$553,1)>0,CONCATENATE(\"< \",ROUND(AZ414,$T$1168)),ROUND(AZ414,$T$1168)),\"\")","v":""},null,null,null,null,{"$f":"IF(BF414<>\"\",IF(COUNTIF(Y$523:Y$553,1)>0,CONCATENATE(\"< \",ROUND(BF414,$Z$1168)),ROUND(BF414,$Z$1168)),\"\")","v":""},null,null,null,null,{"$f":"IF(BL414<>\"\",IF(COUNTIF(AE$523:AE$553,1)>0,CONCATENATE(\"< \",ROUND(BL414,$V$1170)),ROUND(BL414,$V$1170)),\"\")","v":""},null,null,null,null,null,null,null,null,null,null,null,null,null,"Mar",{"$f":"IF(AND(OR($AB$5=2020,$AB$5=2024,$AB$5=2028,$AB$5=2032),SUM(H165:H195)>0),AVERAGE(H165:H195),IF(AND($AB$5<>2020,$AB$5<>2024,$AB$5<>2028,$AB$5<>2032,$AB$5<>\"\",SUM(H164:H194)>0),AVERAGE(H164:H194),\"\"))","v":""},null,null,null,null,null,{"$f":"IF(AND(OR($AB$5=2020,$AB$5=2024,$AB$5=2028,$AB$5=2032),SUM(N165:N195)>0),AVERAGE(N165:N195),IF(AND($AB$5<>2020,$AB$5<>2024,$AB$5<>2028,$AB$5<>2032,$AB$5<>\"\",SUM(N164:N194)>0),AVERAGE(N164:N194),\"\"))","v":""},null,null,null,null,null,{"$f":"IF(AND(OR($AB$5=2020,$AB$5=2024,$AB$5=2028,$AB$5=2032),SUM(T165:T195)>0),AVERAGE(T165:T195),IF(AND($AB$5<>2020,$AB$5<>2024,$AB$5<>2028,$AB$5<>2032,$AB$5<>\"\",SUM(T164:T194)>0),AVERAGE(T164:T194),\"\"))","v":""},null,null,null,null,null,{"$f":"IF(AND(OR($AB$5=2020,$AB$5=2024,$AB$5=2028,$AB$5=2032),SUM(Z165:Z195)>0),AVERAGE(Z165:Z195),IF(AND($AB$5<>2020,$AB$5<>2024,$AB$5<>2028,$AB$5<>2032,$AB$5<>\"\",SUM(Z164:Z194)>0),AVERAGE(Z164:Z194),\"\"))","v":""},null,null,null,null,null,{"$f":"IF(AND(OR($AB$5=2020,$AB$5=2024,$AB$5=2028,$AB$5=2032),SUM(AF165:AF195)>0),AVERAGE(AF165:AF195),IF(AND($AB$5<>2020,$AB$5<>2024,$AB$5<>2028,$AB$5<>2032,$AB$5<>\"\",SUM(AF164:AF194)>0),AVERAGE(AF164:AF194),\"\"))","v":""}]
[null,"February",null,null,{"$f":"IF(AN415<>\"\",IF(OR(AND(OR($AB$5=2020,$AB$5=2024,$AB$5=2028,$AB$5=2032),COUNTIF(G$554:G$582,1)>0),AND($AB$5<>2020,$AB$5<>2024,$AB$5<>2028,$AB$5<>2032,$AB$5<>\"\",COUNTIF(G$554:G$581,1)>0)),CONCATENATE(\"< \",ROUND(AN415,$H$1168)),ROUND(AN415,$H$1168)),\"\")","v":""},null,null,null,null,{"$f":"IF(AT415<>\"\",IF(OR(AND(OR($AB$5=2020,$AB$5=2024,$AB$5=2028,$AB$5=2032),COUNTIF(M$554:M$582,1)>0),AND($AB$5<>2020,$AB$5<>2024,$AB$5<>2028,$AB$5<>2032,$AB$5<>\"\",COUNTIF(M$554:M$581,1)>0)),CONCATENATE(\"< \",ROUND(AT415,$N$1168)),ROUND(AT415,$N$1168)),\"\")","v":""},null,null,null,null,{"$f":"IF(AZ415<>\"\",IF(OR(AND(OR($AB$5=2020,$AB$5=2024,$AB$5=2028,$AB$5=2032),COUNTIF(S$554:S$582,1)>0),AND($AB$5<>2020,$AB$5<>2024,$AB$5<>2028,$AB$5<>2032,$AB$5<>\"\",COUNTIF(S$554:S$581,1)>0)),CONCATENATE(\"< \",ROUND(AZ415,$T$1168)),ROUND(AZ415,$T$1168)),\"\")","v":""},null,null,null,null,{"$f":"IF(BF415<>\"\",IF(OR(AND(OR($AB$5=2020,$AB$5=2024,$AB$5=2028,$AB$5=2032),COUNTIF(Y$554:Y$582,1)>0),AND($AB$5<>2020,$AB$5<>2024,$AB$5<>2028,$AB$5<>2032,$AB$5<>\"\",COUNTIF(Y$554:Y$581,1)>0)),CONCATENATE(\"< \",ROUND(BF415,$Z$1168)),ROUND(BF415,$Z$1168)),\"\")","v":""},null,null,null,null,{"$f":"IF(BL415<>\"\",IF(OR(AND(OR($AB$5=2020,$AB$5=2024,$AB$5=2028,$AB$5=2032),COUNTIF(AE$554:AE$582,1)>0),AND($AB$5<>2020,$AB$5<>2024,$AB$5<>2028,$AB$5<>2032,$AB$5<>\"\",COUNTIF(AE$554:AE$581,1)>0)),CONCATENATE(\"< \",ROUND(BL415,$V$1170)),ROUND(BL415,$V$1170)),\"\")","v":""},null,null,null,null,null,null,null,null,null,null,null,null,null,"Apr",{"$f":"IF(AND(OR($AB$5=2020,$AB$5=2024,$AB$5=2028,$AB$5=2032),SUM(H196:H225)>0),AVERAGE(H196:H225),IF(AND($AB$5<>2020,$AB$5<>2024,$AB$5<>2028,$AB$5<>2032,$AB$5<>\"\",SUM(H195:H224)>0),AVERAGE(H195:H224),\"\"))","v":""},null,null,null,null,null,{"$f":"IF(AND(OR($AB$5=2020,$AB$5=2024,$AB$5=2028,$AB$5=2032),SUM(N196:N225)>0),AVERAGE(N196:N225),IF(AND($AB$5<>2020,$AB$5<>2024,$AB$5<>2028,$AB$5<>2032,$AB$5<>\"\",SUM(N195:N224)>0),AVERAGE(N195:N224),\"\"))","v":""},null,null,null,null,null,{"$f":"IF(AND(OR($AB$5=2020,$AB$5=2024,$AB$5=2028,$AB$5=2032),SUM(T196:T225)>0),AVERAGE(T196:T225),IF(AND($AB$5<>2020,$AB$5<>2024,$AB$5<>2028,$AB$5<>2032,$AB$5<>\"\",SUM(T195:T224)>0),AVERAGE(T195:T224),\"\"))","v":""},null,null,null,null,null,{"$f":"IF(AND(OR($AB$5=2020,$AB$5=2024,$AB$5=2028,$AB$5=2032),SUM(Z196:Z225)>0),AVERAGE(Z196:Z225),IF(AND($AB$5<>2020,$AB$5<>2024,$AB$5<>2028,$AB$5<>2032,$AB$5<>\"\",SUM(Z195:Z224)>0),AVERAGE(Z195:Z224),\"\"))","v":""},null,null,null,null,null,{"$f":"IF(AND(OR($AB$5=2020,$AB$5=2024,$AB$5=2028,$AB$5=2032),SUM(AF196:AF225)>0),AVERAGE(AF196:AF225),IF(AND($AB$5<>2020,$AB$5<>2024,$AB$5<>2028,$AB$5<>2032,$AB$5<>\"\",SUM(AF195:AF224)>0),AVERAGE(AF195:AF224),\"\"))","v":""}]
[null,"March",null,null,{"$f":"IF(AN416<>\"\",IF(OR(AND(OR($AB$5=2020,$AB$5=2024,$AB$5=2028,$AB$5=2032),COUNTIF(G$583:G$613,1)>0),AND($AB$5<>2020,$AB$5<>2024,$AB$5<>2028,$AB$5<>2032,$AB$5<>\"\",COUNTIF(G$582:G$612,1)>0)),CONCATENATE(\"< \",ROUND(AN416,$H$1168)),ROUND(AN416,$H$1168)),\"\")","v":""},null,null,null,null,{"$f":"IF(AT416<>\"\",IF(OR(AND(OR($AB$5=2020,$AB$5=2024,$AB$5=2028,$AB$5=2032),COUNTIF(M$583:M$613,1)>0),AND($AB$5<>2020,$AB$5<>2024,$AB$5<>2028,$AB$5<>2032,$AB$5<>\"\",COUNTIF(M$582:M$612,1)>0)),CONCATENATE(\"< \",ROUND(AT416,$N$1168)),ROUND(AT416,$N$1168)),\"\")","v":""},null,null,null,null,{"$f":"IF(AZ416<>\"\",IF(OR(AND(OR($AB$5=2020,$AB$5=2024,$AB$5=2028,$AB$5=2032),COUNTIF(S$583:S$613,1)>0),AND($AB$5<>2020,$AB$5<>2024,$AB$5<>2028,$AB$5<>2032,$AB$5<>\"\",COUNTIF(S$582:S$612,1)>0)),CONCATENATE(\"< \",ROUND(AZ416,$T$1168)),ROUND(AZ416,$T$1168)),\"\")","v":""},null,null,null,null,{"$f":"IF(BF416<>\"\",IF(OR(AND(OR($AB$5=2020,$AB$5=2024,$AB$5=2028,$AB$5=2032),COUNTIF(Y$583:Y$613,1)>0),AND($AB$5<>2020,$AB$5<>2024,$AB$5<>2028,$AB$5<>2032,$AB$5<>\"\",COUNTIF(Y$582:Y$612,1)>0)),CONCATENATE(\"< \",ROUND(BF416,$Z$1168)),ROUND(BF416,$Z$1168)),\"\")","v":""},null,null,null,null,{"$f":"IF(BL416<>\"\",IF(OR(AND(OR($AB$5=2020,$AB$5=2024,$AB$5=2028,$AB$5=2032),COUNTIF(AE$583:AE$613,1)>0),AND($AB$5<>2020,$AB$5<>2024,$AB$5<>2028,$AB$5<>2032,$AB$5<>\"\",COUNTIF(AE$582:AE$612,1)>0)),CONCATENATE(\"< \",ROUND(BL416,$V$1170)),ROUND(BL416,$V$1170)),\"\")","v":""},null,null,null,null,null,null,null,null,null,null,null,null,null,"May",{"$f":"IF(AND(OR($AB$5=2020,$AB$5=2024,$AB$5=2028,$AB$5=2032),SUM(H226:H256)>0),AVERAGE(H226:H256),IF(AND($AB$5<>2020,$AB$5<>2024,$AB$5<>2028,$AB$5<>2032,$AB$5<>\"\",SUM(H225:H255)>0),AVERAGE(H225:H255),\"\"))","v":""},null,null,null,null,null,{"$f":"IF(AND(OR($AB$5=2020,$AB$5=2024,$AB$5=2028,$AB$5=2032),SUM(N226:N256)>0),AVERAGE(N226:N256),IF(AND($AB$5<>2020,$AB$5<>2024,$AB$5<>2028,$AB$5<>2032,$AB$5<>\"\",SUM(N225:N255)>0),AVERAGE(N225:N255),\"\"))","v":""},null,null,null,null,null,{"$f":"IF(AND(OR($AB$5=2020,$AB$5=2024,$AB$5=2028,$AB$5=2032),SUM(T226:T256)>0),AVERAGE(T226:T256),IF(AND($AB$5<>2020,$AB$5<>2024,$AB$5<>2028,$AB$5<>2032,$AB$5<>\"\",SUM(T225:T255)>0),AVERAGE(T225:T255),\"\"))","v":""},null,null,null,null,null,{"$f":"IF(AND(OR($AB$5=2020,$AB$5=2024,$AB$5=2028,$AB$5=2032),SUM(Z226:Z256)>0),AVERAGE(Z226:Z256),IF(AND($AB$5<>2020,$AB$5<>2024,$AB$5<>2028,$AB$5<>2032,$AB$5<>\"\",SUM(Z225:Z255)>0),AVERAGE(Z225:Z255),\"\"))","v":""},null,null,null,null,null,{"$f":"IF(AND(OR($AB$5=2020,$AB$5=2024,$AB$5=2028,$AB$5=2032),SUM(AF226:AF256)>0),AVERAGE(AF226:AF256),IF(AND($AB$5<>2020,$AB$5<>2024,$AB$5<>2028,$AB$5<>2032,$AB$5<>\"\",SUM(AF225:AF255)>0),AVERAGE(AF225:AF255),\"\"))","v":""}]
[null,"April",null,null,{"$f":"IF(AN417<>\"\",IF(OR(AND(OR($AB$5=2020,$AB$5=2024,$AB$5=2028,$AB$5=2032),COUNTIF(G$614:G$643,1)>0),AND($AB$5<>2020,$AB$5<>2024,$AB$5<>2028,$AB$5<>2032,$AB$5<>\"\",COUNTIF(G$613:G$642,1)>0)),CONCATENATE(\"< \",ROUND(AN417,$H$1168)),ROUND(AN417,$H$1168)),\"\")","v":""},null,null,null,null,{"$f":"IF(AT417<>\"\",IF(OR(AND(OR($AB$5=2020,$AB$5=2024,$AB$5=2028,$AB$5=2032),COUNTIF(M$614:M$643,1)>0),AND($AB$5<>2020,$AB$5<>2024,$AB$5<>2028,$AB$5<>2032,$AB$5<>\"\",COUNTIF(M$613:M$642,1)>0)),CONCATENATE(\"< \",ROUND(AT417,$N$1168)),ROUND(AT417,$N$1168)),\"\")","v":""},null,null,null,null,{"$f":"IF(AZ417<>\"\",IF(OR(AND(OR($AB$5=2020,$AB$5=2024,$AB$5=2028,$AB$5=2032),COUNTIF(S$614:S$643,1)>0),AND($AB$5<>2020,$AB$5<>2024,$AB$5<>2028,$AB$5<>2032,$AB$5<>\"\",COUNTIF(S$613:S$642,1)>0)),CONCATENATE(\"< \",ROUND(AZ417,$T$1168)),ROUND(AZ417,$T$1168)),\"\")","v":""},null,null,null,null,{"$f":"IF(BF417<>\"\",IF(OR(AND(OR($AB$5=2020,$AB$5=2024,$AB$5=2028,$AB$5=2032),COUNTIF(Y$614:Y$643,1)>0),AND($AB$5<>2020,$AB$5<>2024,$AB$5<>2028,$AB$5<>2032,$AB$5<>\"\",COUNTIF(Y$613:Y$642,1)>0)),CONCATENATE(\"< \",ROUND(BF417,$Z$1168)),ROUND(BF417,$Z$1168)),\"\")","v":""},null,null,null,null,{"$f":"IF(BL417<>\"\",IF(OR(AND(OR($AB$5=2020,$AB$5=2024,$AB$5=2028,$AB$5=2032),COUNTIF(AE$614:AE$643,1)>0),AND($AB$5<>2020,$AB$5<>2024,$AB$5<>2028,$AB$5<>2032,$AB$5<>\"\",COUNTIF(AE$613:AE$642,1)>0)),CONCATENATE(\"< \",ROUND(BL417,$V$1170)),ROUND(BL417,$V$1170)),\"\")","v":""},null,null,null,null,null,null,null,null,null,null,null,null,null,"Jun",{"$f":"IF(AND(OR($AB$5=2020,$AB$5=2024,$AB$5=2028,$AB$5=2032),SUM(H257:H286)>0),AVERAGE(H257:H286),IF(AND($AB$5<>2020,$AB$5<>2024,$AB$5<>2028,$AB$5<>2032,$AB$5<>\"\",SUM(H256:H285)>0),AVERAGE(H256:H285),\"\"))","v":""},null,null,null,null,null,{"$f":"IF(AND(OR($AB$5=2020,$AB$5=2024,$AB$5=2028,$AB$5=2032),SUM(N257:N286)>0),AVERAGE(N257:N286),IF(AND($AB$5<>2020,$AB$5<>2024,$AB$5<>2028,$AB$5<>2032,$AB$5<>\"\",SUM(N256:N285)>0),AVERAGE(N256:N285),\"\"))","v":""},null,null,null,null,null,{"$f":"IF(AND(OR($AB$5=2020,$AB$5=2024,$AB$5=2028,$AB$5=2032),SUM(T257:T286)>0),AVERAGE(T257:T286),IF(AND($AB$5<>2020,$AB$5<>2024,$AB$5<>2028,$AB$5<>2032,$AB$5<>\"\",SUM(T256:T285)>0),AVERAGE(T256:T285),\"\"))","v":""},null,null,null,null,null,{"$f":"IF(AND(OR($AB$5=2020,$AB$5=2024,$AB$5=2028,$AB$5=2032),SUM(Z257:Z286)>0),AVERAGE(Z257:Z286),IF(AND($AB$5<>2020,$AB$5<>2024,$AB$5<>2028,$AB$5<>2032,$AB$5<>\"\",SUM(Z256:Z285)>0),AVERAGE(Z256:Z285),\"\"))","v":""},null,null,null,null,null,{"$f":"IF(AND(OR($AB$5=2020,$AB$5=2024,$AB$5=2028,$AB$5=2032),SUM(AF257:AF286)>0),AVERAGE(AF257:AF286),IF(AND($AB$5<>2020,$AB$5<>2024,$AB$5<>2028,$AB$5<>2032,$AB$5<>\"\",SUM(AF256:AF285)>0),AVERAGE(AF256:AF285),\"\"))","v":""}]
[null,"May",null,null,{"$f":"IF(AN418<>\"\",IF(OR(AND(OR($AB$5=2020,$AB$5=2024,$AB$5=2028,$AB$5=2032),COUNTIF(G$644:G$674,1)>0),AND($AB$5<>2020,$AB$5<>2024,$AB$5<>2028,$AB$5<>2032,$AB$5<>\"\",COUNTIF(G$643:G$673,1)>0)),CONCATENATE(\"< \",ROUND(AN418,$H$1168)),ROUND(AN418,$H$1168)),\"\")","v":""},null,null,null,null,{"$f":"IF(AT418<>\"\",IF(OR(AND(OR($AB$5=2020,$AB$5=2024,$AB$5=2028,$AB$5=2032),COUNTIF(M$644:M$674,1)>0),AND($AB$5<>2020,$AB$5<>2024,$AB$5<>2028,$AB$5<>2032,$AB$5<>\"\",COUNTIF(M$643:M$673,1)>0)),CONCATENATE(\"< \",ROUND(AT418,$N$1168)),ROUND(AT418,$N$1168)),\"\")","v":""},null,null,null,null,{"$f":"IF(AZ418<>\"\",IF(OR(AND(OR($AB$5=2020,$AB$5=2024,$AB$5=2028,$AB$5=2032),COUNTIF(S$644:S$674,1)>0),AND($AB$5<>2020,$AB$5<>2024,$AB$5<>2028,$AB$5<>2032,$AB$5<>\"\",COUNTIF(S$643:S$673,1)>0)),CONCATENATE(\"< \",ROUND(AZ418,$T$1168)),ROUND(AZ418,$T$1168)),\"\")","v":""},null,null,null,null,{"$f":"IF(BF418<>\"\",IF(OR(AND(OR($AB$5=2020,$AB$5=2024,$AB$5=2028,$AB$5=2032),COUNTIF(Y$644:Y$674,1)>0),AND($AB$5<>2020,$AB$5<>2024,$AB$5<>2028,$AB$5<>2032,$AB$5<>\"\",COUNTIF(Y$643:Y$673,1)>0)),CONCATENATE(\"< \",ROUND(BF418,$Z$1168)),ROUND(BF418,$Z$1168)),\"\")","v":""},null,null,null,null,{"$f":"IF(BL418<>\"\",IF(OR(AND(OR($AB$5=2020,$AB$5=2024,$AB$5=2028,$AB$5=2032),COUNTIF(AE$644:AE$674,1)>0),AND($AB$5<>2020,$AB$5<>2024,$AB$5<>2028,$AB$5<>2032,$AB$5<>\"\",COUNTIF(AE$643:AE$673,1)>0)),CONCATENATE(\"< \",ROUND(BL418,$V$1170)),ROUND(BL418,$V$1170)),\"\")","v":""},null,null,null,null,null,null,null,null,null,null,null,null,null,"Jul",{"$f":"IF(AND(OR($AB$5=2020,$AB$5=2024,$AB$5=2028,$AB$5=2032),SUM(H287:H317)>0),AVERAGE(H287:H317),IF(AND($AB$5<>2020,$AB$5<>2024,$AB$5<>2028,$AB$5<>2032,$AB$5<>\"\",SUM(H286:H316)>0),AVERAGE(H286:H316),\"\"))","v":""},null,null,null,null,null,{"$f":"IF(AND(OR($AB$5=2020,$AB$5=2024,$AB$5=2028,$AB$5=2032),SUM(N287:N317)>0),AVERAGE(N287:N317),IF(AND($AB$5<>2020,$AB$5<>2024,$AB$5<>2028,$AB$5<>2032,$AB$5<>\"\",SUM(N286:N316)>0),AVERAGE(N286:N316),\"\"))","v":""},null,null,null,null,null,{"$f":"IF(AND(OR($AB$5=2020,$AB$5=2024,$AB$5=2028,$AB$5=2032),SUM(T287:T317)>0),AVERAGE(T287:T317),IF(AND($AB$5<>2020,$AB$5<>2024,$AB$5<>2028,$AB$5<>2032,$AB$5<>\"\",SUM(T286:T316)>0),AVERAGE(T286:T316),\"\"))","v":""},null,null,null,null,null,{"$f":"IF(AND(OR($AB$5=2020,$AB$5=2024,$AB$5=2028,$AB$5=2032),SUM(Z287:Z317)>0),AVERAGE(Z287:Z317),IF(AND($AB$5<>2020,$AB$5<>2024,$AB$5<>2028,$AB$5<>2032,$AB$5<>\"\",SUM(Z286:Z316)>0),AVERAGE(Z286:Z316),\"\"))","v":""},null,null,null,null,null,{"$f":"IF(AND(OR($AB$5=2020,$AB$5=2024,$AB$5=2028,$AB$5=2032),SUM(AF287:AF317)>0),AVERAGE(AF287:AF317),IF(AND($AB$5<>2020,$AB$5<>2024,$AB$5<>2028,$AB$5<>2032,$AB$5<>\"\",SUM(AF286:AF316)>0),AVERAGE(AF286:AF316),\"\"))","v":""}]
[null,"June",null,null,{"$f":"IF(AN419<>\"\",IF(OR(AND(OR($AB$5=2020,$AB$5=2024,$AB$5=2028,$AB$5=2032),COUNTIF(G$675:G$704,1)>0),AND($AB$5<>2020,$AB$5<>2024,$AB$5<>2028,$AB$5<>2032,$AB$5<>\"\",COUNTIF(G$674:G$703,1)>0)),CONCATENATE(\"< \",ROUND(AN419,$H$1168)),ROUND(AN419,$H$1168)),\"\")","v":""},null,null,null,null,{"$f":"IF(AT419<>\"\",IF(OR(AND(OR($AB$5=2020,$AB$5=2024,$AB$5=2028,$AB$5=2032),COUNTIF(M$675:M$704,1)>0),AND($AB$5<>2020,$AB$5<>2024,$AB$5<>2028,$AB$5<>2032,$AB$5<>\"\",COUNTIF(M$674:M$703,1)>0)),CONCATENATE(\"< \",ROUND(AT419,$N$1168)),ROUND(AT419,$N$1168)),\"\")","v":""},null,null,null,null,{"$f":"IF(AZ419<>\"\",IF(OR(AND(OR($AB$5=2020,$AB$5=2024,$AB$5=2028,$AB$5=2032),COUNTIF(S$675:S$704,1)>0),AND($AB$5<>2020,$AB$5<>2024,$AB$5<>2028,$AB$5<>2032,$AB$5<>\"\",COUNTIF(S$674:S$703,1)>0)),CONCATENATE(\"< \",ROUND(AZ419,$T$1168)),ROUND(AZ419,$T$1168)),\"\")","v":""},null,null,null,null,{"$f":"IF(BF419<>\"\",IF(OR(AND(OR($AB$5=2020,$AB$5=2024,$AB$5=2028,$AB$5=2032),COUNTIF(Y$675:Y$704,1)>0),AND($AB$5<>2020,$AB$5<>2024,$AB$5<>2028,$AB$5<>2032,$AB$5<>\"\",COUNTIF(Y$674:Y$703,1)>0)),CONCATENATE(\"< \",ROUND(BF419,$Z$1168)),ROUND(BF419,$Z$1168)),\"\")","v":""},null,null,null,null,{"$f":"IF(BL419<>\"\",IF(OR(AND(OR($AB$5=2020,$AB$5=2024,$AB$5=2028,$AB$5=2032),COUNTIF(AE$675:AE$704,1)>0),AND($AB$5<>2020,$AB$5<>2024,$AB$5<>2028,$AB$5<>2032,$AB$5<>\"\",COUNTIF(AE$674:AE$703,1)>0)),CONCATENATE(\"< \",ROUND(BL419,$V$1170)),ROUND(BL419,$V$1170)),\"\")","v":""},null,null,null,null,null,null,null,null,null,null,null,null,null,"Aug",{"$f":"IF(AND(OR($AB$5=2020,$AB$5=2024,$AB$5=2028,$AB$5=2032),SUM(H318:H348)>0),AVERAGE(H318:H348),IF(AND($AB$5<>2020,$AB$5<>2024,$AB$5<>2028,$AB$5<>2032,$AB$5<>\"\",SUM(H317:H347)>0),AVERAGE(H317:H347),\"\"))","v":""},null,null,null,null,null,{"$f":"IF(AND(OR($AB$5=2020,$AB$5=2024,$AB$5=2028,$AB$5=2032),SUM(N318:N348)>0),AVERAGE(N318:N348),IF(AND($AB$5<>2020,$AB$5<>2024,$AB$5<>2028,$AB$5<>2032,$AB$5<>\"\",SUM(N317:N347)>0),AVERAGE(N317:N347),\"\"))","v":""},null,null,null,null,null,{"$f":"IF(AND(OR($AB$5=2020,$AB$5=2024,$AB$5=2028,$AB$5=2032),SUM(T318:T348)>0),AVERAGE(T318:T348),IF(AND($AB$5<>2020,$AB$5<>2024,$AB$5<>2028,$AB$5<>2032,$AB$5<>\"\",SUM(T317:T347)>0),AVERAGE(T317:T347),\"\"))","v":""},null,null,null,null,null,{"$f":"IF(AND(OR($AB$5=2020,$AB$5=2024,$AB$5=2028,$AB$5=2032),SUM(Z318:Z348)>0),AVERAGE(Z318:Z348),IF(AND($AB$5<>2020,$AB$5<>2024,$AB$5<>2028,$AB$5<>2032,$AB$5<>\"\",SUM(Z317:Z347)>0),AVERAGE(Z317:Z347),\"\"))","v":""},null,null,null,null,null,{"$f":"IF(AND(OR($AB$5=2020,$AB$5=2024,$AB$5=2028,$AB$5=2032),SUM(AF318:AF348)>0),AVERAGE(AF318:AF348),IF(AND($AB$5<>2020,$AB$5<>2024,$AB$5<>2028,$AB$5<>2032,$AB$5<>\"\",SUM(AF317:AF347)>0),AVERAGE(AF317:AF347),\"\"))","v":""}]
[null,"July",null,null,{"$f":"IF(AN420<>\"\",IF(OR(AND(OR($AB$5=2020,$AB$5=2024,$AB$5=2028,$AB$5=2032),COUNTIF(G$705:G$735,1)>0),AND($AB$5<>2020,$AB$5<>2024,$AB$5<>2028,$AB$5<>2032,$AB$5<>\"\",COUNTIF(G$704:G$734,1)>0)),CONCATENATE(\"< \",ROUND(AN420,$H$1168)),ROUND(AN420,$H$1168)),\"\")","v":""},null,null,null,null,{"$f":"IF(AT420<>\"\",IF(OR(AND(OR($AB$5=2020,$AB$5=2024,$AB$5=2028,$AB$5=2032),COUNTIF(M$705:M$735,1)>0),AND($AB$5<>2020,$AB$5<>2024,$AB$5<>2028,$AB$5<>2032,$AB$5<>\"\",COUNTIF(M$704:M$734,1)>0)),CONCATENATE(\"< \",ROUND(AT420,$N$1168)),ROUND(AT420,$N$1168)),\"\")","v":""},null,null,null,null,{"$f":"IF(AZ420<>\"\",IF(OR(AND(OR($AB$5=2020,$AB$5=2024,$AB$5=2028,$AB$5=2032),COUNTIF(S$705:S$735,1)>0),AND($AB$5<>2020,$AB$5<>2024,$AB$5<>2028,$AB$5<>2032,$AB$5<>\"\",COUNTIF(S$704:S$734,1)>0)),CONCATENATE(\"< \",ROUND(AZ420,$T$1168)),ROUND(AZ420,$T$1168)),\"\")","v":""},null,null,null,null,{"$f":"IF(BF420<>\"\",IF(OR(AND(OR($AB$5=2020,$AB$5=2024,$AB$5=2028,$AB$5=2032),COUNTIF(Y$705:Y$735,1)>0),AND($AB$5<>2020,$AB$5<>2024,$AB$5<>2028,$AB$5<>2032,$AB$5<>\"\",COUNTIF(Y$704:Y$734,1)>0)),CONCATENATE(\"< \",ROUND(BF420,$Z$1168)),ROUND(BF420,$Z$1168)),\"\")","v":""},null,null,null,null,{"$f":"IF(BL420<>\"\",IF(OR(AND(OR($AB$5=2020,$AB$5=2024,$AB$5=2028,$AB$5=2032),COUNTIF(AE$705:AE$735,1)>0),AND($AB$5<>2020,$AB$5<>2024,$AB$5<>2028,$AB$5<>2032,$AB$5<>\"\",COUNTIF(AE$704:AE$734,1)>0)),CONCATENATE(\"< \",ROUND(BL420,$V$1170)),ROUND(BL420,$V$1170)),\"\")","v":""},null,null,null,null,null,null,null,null,null,null,null,null,null,"Sep",{"$f":"IF(AND(OR($AB$5=2020,$AB$5=2024,$AB$5=2028,$AB$5=2032),SUM(H349:H378)>0),AVERAGE(H349:H378),IF(AND($AB$5<>2020,$AB$5<>2024,$AB$5<>2028,$AB$5<>2032,$AB$5<>\"\",SUM(H348:H377)>0),AVERAGE(H348:H377),\"\"))","v":""},null,null,null,null,null,{"$f":"IF(AND(OR($AB$5=2020,$AB$5=2024,$AB$5=2028,$AB$5=2032),SUM(N349:N378)>0),AVERAGE(N349:N378),IF(AND($AB$5<>2020,$AB$5<>2024,$AB$5<>2028,$AB$5<>2032,$AB$5<>\"\",SUM(N348:N377)>0),AVERAGE(N348:N377),\"\"))","v":""},null,null,null,null,null,{"$f":"IF(AND(OR($AB$5=2020,$AB$5=2024,$AB$5=2028,$AB$5=2032),SUM(T349:T378)>0),AVERAGE(T349:T378),IF(AND($AB$5<>2020,$AB$5<>2024,$AB$5<>2028,$AB$5<>2032,$AB$5<>\"\",SUM(T348:T377)>0),AVERAGE(T348:T377),\"\"))","v":""},null,null,null,null,null,{"$f":"IF(AND(OR($AB$5=2020,$AB$5=2024,$AB$5=2028,$AB$5=2032),SUM(Z349:Z378)>0),AVERAGE(Z349:Z378),IF(AND($AB$5<>2020,$AB$5<>2024,$AB$5<>2028,$AB$5<>2032,$AB$5<>\"\",SUM(Z348:Z377)>0),AVERAGE(Z348:Z377),\"\"))","v":""},null,null,null,null,null,{"$f":"IF(AND(OR($AB$5=2020,$AB$5=2024,$AB$5=2028,$AB$5=2032),SUM(AF349:AF378)>0),AVERAGE(AF349:AF378),IF(AND($AB$5<>2020,$AB$5<>2024,$AB$5<>2028,$AB$5<>2032,$AB$5<>\"\",SUM(AF348:AF377)>0),AVERAGE(AF348:AF377),\"\"))","v":""}]
[null,"August",null,null,{"$f":"IF(AN421<>\"\",IF(OR(AND(OR($AB$5=2020,$AB$5=2024,$AB$5=2028,$AB$5=2032),COUNTIF(G$736:G$766,1)>0),AND($AB$5<>2020,$AB$5<>2024,$AB$5<>2028,$AB$5<>2032,$AB$5<>\"\",COUNTIF(G$735:G$765,1)>0)),CONCATENATE(\"< \",ROUND(AN421,$H$1168)),ROUND(AN421,$H$1168)),\"\")","v":""},null,null,null,null,{"$f":"IF(AT421<>\"\",IF(OR(AND(OR($AB$5=2020,$AB$5=2024,$AB$5=2028,$AB$5=2032),COUNTIF(M$736:M$766,1)>0),AND($AB$5<>2020,$AB$5<>2024,$AB$5<>2028,$AB$5<>2032,$AB$5<>\"\",COUNTIF(M$735:M$765,1)>0)),CONCATENATE(\"< \",ROUND(AT421,$N$1168)),ROUND(AT421,$N$1168)),\"\")","v":""},null,null,null,null,{"$f":"IF(AZ421<>\"\",IF(OR(AND(OR($AB$5=2020,$AB$5=2024,$AB$5=2028,$AB$5=2032),COUNTIF(S$736:S$766,1)>0),AND($AB$5<>2020,$AB$5<>2024,$AB$5<>2028,$AB$5<>2032,$AB$5<>\"\",COUNTIF(S$735:S$765,1)>0)),CONCATENATE(\"< \",ROUND(AZ421,$T$1168)),ROUND(AZ421,$T$1168)),\"\")","v":""},null,null,null,null,{"$f":"IF(BF421<>\"\",IF(OR(AND(OR($AB$5=2020,$AB$5=2024,$AB$5=2028,$AB$5=2032),COUNTIF(Y$736:Y$766,1)>0),AND($AB$5<>2020,$AB$5<>2024,$AB$5<>2028,$AB$5<>2032,$AB$5<>\"\",COUNTIF(Y$735:Y$765,1)>0)),CONCATENATE(\"< \",ROUND(BF421,$Z$1168)),ROUND(BF421,$Z$1168)),\"\")","v":""},null,null,null,null,{"$f":"IF(BL421<>\"\",IF(OR(AND(OR($AB$5=2020,$AB$5=2024,$AB$5=2028,$AB$5=2032),COUNTIF(AE$736:AE$766,1)>0),AND($AB$5<>2020,$AB$5<>2024,$AB$5<>2028,$AB$5<>2032,$AB$5<>\"\",COUNTIF(AE$735:AE$765,1)>0)),CONCATENATE(\"< \",ROUND(BL421,$V$1170)),ROUND(BL421,$V$1170)),\"\")","v":""}]
[null,"September",null,null,{"$f":"IF(AN422<>\"\",IF(OR(AND(OR($AB$5=2020,$AB$5=2024,$AB$5=2028,$AB$5=2032),COUNTIF(G$767:G$796,1)>0),AND($AB$5<>2020,$AB$5<>2024,$AB$5<>2028,$AB$5<>2032,$AB$5<>\"\",COUNTIF(G$766:G$795,1)>0)),CONCATENATE(\"< \",ROUND(AN422,$H$1168)),ROUND(AN422,$H$1168)),\"\")","v":""},null,null,null,null,{"$f":"IF(AT422<>\"\",IF(OR(AND(OR($AB$5=2020,$AB$5=2024,$AB$5=2028,$AB$5=2032),COUNTIF(M$767:M$796,1)>0),AND($AB$5<>2020,$AB$5<>2024,$AB$5<>2028,$AB$5<>2032,$AB$5<>\"\",COUNTIF(M$766:M$795,1)>0)),CONCATENATE(\"< \",ROUND(AT422,$N$1168)),ROUND(AT422,$N$1168)),\"\")","v":""},null,null,null,null,{"$f":"IF(AZ422<>\"\",IF(OR(AND(OR($AB$5=2020,$AB$5=2024,$AB$5=2028,$AB$5=2032),COUNTIF(S$767:S$796,1)>0),AND($AB$5<>2020,$AB$5<>2024,$AB$5<>2028,$AB$5<>2032,$AB$5<>\"\",COUNTIF(S$766:S$795,1)>0)),CONCATENATE(\"< \",ROUND(AZ422,$T$1168)),ROUND(AZ422,$T$1168)),\"\")","v":""},null,null,null,null,{"$f":"IF(BF422<>\"\",IF(OR(AND(OR($AB$5=2020,$AB$5=2024,$AB$5=2028,$AB$5=2032),COUNTIF(Y$767:Y$796,1)>0),AND($AB$5<>2020,$AB$5<>2024,$AB$5<>2028,$AB$5<>2032,$AB$5<>\"\",COUNTIF(Y$766:Y$795,1)>0)),CONCATENATE(\"< \",ROUND(BF422,$Z$1168)),ROUND(BF422,$Z$1168)),\"\")","v":""},null,null,null,null,{"$f":"IF(BL422<>\"\",IF(OR(AND(OR($AB$5=2020,$AB$5=2024,$AB$5=2028,$AB$5=2032),COUNTIF(AE$767:AE$796,1)>0),AND($AB$5<>2020,$AB$5<>2024,$AB$5<>2028,$AB$5<>2032,$AB$5<>\"\",COUNTIF(AE$766:AE$795,1)>0)),CONCATENATE(\"< \",ROUND(BL422,$V$1170)),ROUND(BL422,$V$1170)),\"\")","v":""}]
[]
[null,null,null,null,{"$f":"COUNTIF(E13:E378,\">0\")","v":0},null,null,null,null,null,{"$f":"IF(SUM(K13:K378)>0,SUM(K13:K378)/COUNTIF(K13:K378,\">0\")*IF(AM1=TRUE,IF(OR($AB$5=2024,$AB$5=2028),366,365),E426),\"\")","v":""},null,null,null,null,null,{"$f":"IF(SUM(Q13:Q378)>0,SUM(Q13:Q378)/COUNTIF(Q13:Q378,\">0\")*IF(AM1=TRUE,IF(OR($AB$5=2024,$AB$5=2028),366,365),E426),\"\")","v":""},null,null,null,null,null,{"$f":"IF(SUM(W13:W378)>0,SUM(W13:W378)/COUNTIF(W13:W378,\">0\")*IF(AM1=TRUE,IF(OR($AB$5=2024,$AB$5=2028),366,365),E426),\"\")","v":""},null,null,null,null,null,{"$f":"IF(SUM(AC13:AC378)>0,SUM(AC13:AC378)/COUNTIF(AC13:AC378,\">0\")*IF(AM1=TRUE,IF(OR($AB$5=2024,$AB$5=2028),366,365),E426),\"\")","v":""},null,null,null,null,null,{"$f":"IF(SUM(AI13:AI378)>0,SUM(AI13:AI378)/COUNTIF(AI13:AI378,\">0\")*IF(AM1=TRUE,IF(OR($AB$5=2024,$AB$5=2028),366,365),E426),\"\")","v":""}]
[null,null,null,"Zero Flows:",null,null,{"$f":"COUNTIF(E13:E378,0)","v":0}]
[null,null,null,"Null Flows",null,null,{"$f":"COUNTIF(E13:E378,\"\")","v":366}]
[null,null,null,null,null,null,"NON-DETECTS"]
[null,null,null,null,null,null,"P",null,null,null,null,null,"NH3",null,null,null,null,null,"TKN",null,null,null,null,null,"NO3",null,null,null,null,null,"N"]
[null,null,null,null,null,null,{"$f":"IF(H13<>\"\",IF(G13=\"<\",1,0.99),\"\")","v":""},null,null,null,null,null,{"$f":"IF(N13<>\"\",IF(M13=\"<\",1,0.99),\"\")","v":""},null,null,null,null,null,{"$f":"IF(T13<>\"\",IF(S13=\"<\",1,0.99),\"\")","v":""},null,null,null,null,null,{"$f":"IF(Z13<>\"\",IF(Y13=\"<\",1,0.99),\"\")","v":""},null,null,null,null,null,{"$f":"IF(AF13<>\"\",IF(AE13=\"<\",1,0.99),\"\")","v":""}]
[null,null,null,null,null,null,"",null,null,null,null,null,"",null,null,null,null,null,"",null,null,null,null,null,"",null,null,null,null,null,""]
[null,null,null,null,null,null,"",null,null,null,null,null,"",null,null,null,null,null,"",null,null,null,null,null,"",null,null,null,null,null,""]
[null,null,null,null,null,null,"",null,null,null,null,null,"",null,null,null,null,null,"",null,null,null,null,null,"",null,null,null,null,null,""]
[null,null,null,null,null,null,"",null,null,null,null,null,"",null,null,null,null,null,"",null,null,null,null,null,"",null,null,null,null,null,""]
[null,null,null,null,null,null,"",null,null,null,null,null,"",null,null,null,null,null,"",null,null,null,null,null,"",null,null,null,null,null,""]
[null,null,null,null,null,null,"",null,null,null,null,null,"",null,null,null,null,null,"",null,null,null,null,null,"",null,null,null,null,null,""]
[null,null,null,null,null,null,"",null,null,null,null,null,"",null,null,null,null,null,"",null,null,null,null,null,"",null,null,null,null,null,""]
[null,null,null,null,null,null,"",null,null,null,null,null,"",null,null,null,null,null,"",null,null,null,null,null,"",null,null,null,null,null,""]
[null,null,null,null,null,null,"",null,null,null,null,null,"",null,null,null,null,null,"",null,null,null,null,null,"",null,null,null,null,null,""]
[null,null,null,null,null,null,"",null,null,null,null,null,"",null,null,null,null,null,"",null,null,null,null,null,"",null,null,null,null,null,""]
[null,null,null,null,null,null,"",null,null,null,null,null,"",null,null,null,null,null,"",null,null,null,null,null,"",null,null,null,null,null,""]
[null,null,null,null,null,null,"",null,null,null,null,null,"",null,null,null,null,null,"",null,null,null,null,null,"",null,null,null,null,null,""]
[null,null,null,null,null,null,"",null,null,null,null,null,"",null,null,null,null,null,"",null,null,null,null,null,"",null,null,null,null,null,""]
[null,null,null,null,null,null,"",null,null,null,null,null,"",null,null,null,null,null,"",null,null,null,null,null,"",null,null,null,null,null,""]
[null,null,null,null,null,null,"",null,null,null,null,null,"",null,null,null,null,null,"",null,null,null,null,null,"",null,null,null,null,null,""]
[null,null,null,null,null,null,"",null,null,null,null,null,"",null,null,null,null,null,"",null,null,null,null,null,"",null,null,null,null,null,""]
[null,null,null,null,null,null,"",null,null,null,null,null,"",null,null,null,null,null,"",null,null,null,null,null,"",null,null,null,null,null,""]
[null,null,null,null,null,null,"",null,null,null,null,null,"",null,null,null,null,null,"",null,null,null,null,null,"",null,null,null,null,null,""]
[null,null,null,null,null,null,"",null,null,null,null,null,"",null,null,null,null,null,"",null,null,null,null,null,"",null,null,null,null,null,""]
[null,null,null,null,null,null,"",null,null,null,null,null,"",null,null,null,null,null,"",null,null,null,null,null,"",null,null,null,null,null,""]
[null,null,null,null,null,null,"",null,null,null,null,null,"",null,null,null,null,null,"",null,null,null,null,null,"",null,null,null,null,null,""]
[null,null,null,null,null,null,"",null,null,null,null,null,"",null,null,null,null,null,"",null,null,null,null,null,"",null,null,null,null,null,""]
[null,null,null,null,null,null,"",null,null,null,null,null,"",null,null,null,null,null,"",null,null,null,null,null,"",null,null,null,null,null,""]
[null,null,null,null,null,null,"",null,null,null,null,null,"",null,null,null,null,null,"",null,null,null,null,null,"",null,null,null,null,null,""]
[null,null,null,null,null,null,"",null,null,null,null,null,"",null,null,null,null,null,"",null,null,null,null,null,"",null,null,null,null,null,""]
[null,null,null,null,null,null,"",null,null,null,null,null,"",null,null,null,null,null,"",null,null,null,null,null,"",null,null,null,null,null,""]
[null,null,null,null,null,null,"",null,null,null,null,null,"",null,null,null,null,null,"",null,null,null,null,null,"",null,null,null,null,null,""]
[null,null,null,null,null,null,"",null,null,null,null,null,"",null,null,null,null,null,"",null,null,null,null,null,"",null,null,null,null,null,""]
[null,null,null,null,null,null,"",null,null,null,null,null,"",null,null,null,null,null,"",null,null,null,null,null,"",null,null,null,null,null,""]
[null,null,null,null,null,null,"",null,null,null,null,null,"",null,null,null,null,null,"",null,null,null,null,null,"",null,null,null,null,null,""]
[null,null,null,null,null,null,"",null,null,null,null,null,"",null,null,null,null,null,"",null,null,null,null,null,"",null,null,null,null,null,""]
[null,null,null,null,null,null,"",null,null,null,null,null,"",null,null,null,null,null,"",null,null,null,null,null,"",null,null,null,null,null,""]
[null,null,null,null,null,null,"",null,null,null,null,null,"",null,null,null,null,null,"",null,null,null,null,null,"",null,null,null,null,null,""]
[null,null,null,null,null,null,"",null,null,null,null,null,"",null,null,null,null,null,"",null,null,null,null,null,"",null,null,null,null,null,""]
[null,null,null,null,null,null,"",null,null,null,null,null,"",null,null,null,null,null,"",null,null,null,null,null,"",null,null,null,null,null,""]
[null,null,null,null,null,null,"",null,null,null,null,null,"",null,null,null,null,null,"",null,null,null,null,null,"",null,null,null,null,null,""]
[null,null,null,null,null,null,"",null,null,null,null,null,"",null,null,null,null,null,"",null,null,null,null,null,"",null,null,null,null,null,""]
[null,null,null,null,null,null,"",null,null,null,null,null,"",null,null,null,null,null,"",null,null,null,null,null,"",null,null,null,null,null,""]
[null,null,null,null,null,null,"",null,null,null,null,null,"",null,null,null,null,null,"",null,null,null,null,null,"",null,null,null,null,null,""]
[null,null,null,null,null,null,"",null,null,null,null,null,"",null,null,null,null,null,"",null,null,null,null,null,"",null,null,null,null,null,""]
[null,null,null,null,null,null,"",null,null,null,null,null,"",null,null,null,null,null,"",null,null,null,null,null,"",null,null,null,null,null,""]
[null,null,null,null,null,null,"",null,null,null,null,null,"",null,null,null,null,null,"",null,null,null,null,null,"",null,null,null,null,null,""]
[null,null,null,null,null,null,"",null,null,null,null,null,"",null,null,null,null,null,"",null,null,null,null,null,"",null,null,null,null,null,""]
[null,null,null,null,null,null,"",null,null,null,null,null,"",null,null,null,null,null,"",null,null,null,null,null,"",null,null,null,null,null,""]
[null,null,null,null,null,null,"",null,null,null,null,null,"",null,null,null,null,null,"",null,null,null,null,null,"",null,null,null,null,null,""]
[null,null,null,null,null,null,"",null,null,null,null,null,"",null,null,null,null,null,"",null,null,null,null,null,"",null,null,null,null,null,""]
[null,null,null,null,null,null,"",null,null,null,null,null,"",null,null,null,null,null,"",null,null,null,null,null,"",null,null,null,null,null,""]
[null,null,null,null,null,null,"",null,null,null,null,null,"",null,null,null,null,null,"",null,null,null,null,null,"",null,null,null,null,null,""]
[null,null,null,null,null,null,"",null,null,null,null,null,"",null,null,null,null,null,"",null,null,null,null,null,"",null,null,null,null,null,""]
[null,null,null,null,null,null,"",null,null,null,null,null,"",null,null,null,null,null,"",null,null,null,null,null,"",null,null,null,null,null,""]
[null,null,null,null,null,null,"",null,null,null,null,null,"",null,null,null,null,null,"",null,null,null,null,null,"",null,null,null,null,null,""]
[null,null,null,null,null,null,"",null,null,null,null,null,"",null,null,null,null,null,"",null,null,null,null,null,"",null,null,null,null,null,""]
[null,null,null,null,null,null,"",null,null,null,null,null,"",null,null,null,null,null,"",null,null,null,null,null,"",null,null,null,null,null,""]
[null,null,null,null,null,null,"",null,null,null,null,null,"",null,null,null,null,null,"",null,null,null,null,null,"",null,null,null,null,null,""]
[null,null,null,null,null,null,"",null,null,null,null,null,"",null,null,null,null,null,"",null,null,null,null,null,"",null,null,null,null,null,""]
[null,null,null,null,null,null,"",null,null,null,null,null,"",null,null,null,null,null,"",null,null,null,null,null,"",null,null,null,null,null,""]
[null,null,null,null,null,null,"",null,null,null,null,null,"",null,null,null,null,null,"",null,null,null,null,null,"",null,null,null,null,null,""]
[null,null,null,null,null,null,"",null,null,null,null,null,"",null,null,null,null,null,"",null,null,null,null,null,"",null,null,null,null,null,""]
[null,null,null,null,null,null,"",null,null,null,null,null,"",null,null,null,null,null,"",null,null,null,null,null,"",null,null,null,null,null,""]
[null,null,null,null,null,null,"",null,null,null,null,null,"",null,null,null,null,null,"",null,null,null,null,null,"",null,null,null,null,null,""]
[null,null,null,null,null,null,"",null,null,null,null,null,"",null,null,null,null,null,"",null,null,null,null,null,"",null,null,null,null,null,""]
[null,null,null,null,null,null,"",null,null,null,null,null,"",null,null,null,null,null,"",null,null,null,null,null,"",null,null,null,null,null,""]
[null,null,null,null,null,null,"",null,null,null,null,null,"",null,null,null,null,null,"",null,null,null,null,null,"",null,null,null,null,null,""]
[null,null,null,null,null,null,{"$f":"IF(H77<>\"\",IF(G77=\"<\",1,0.99),\"\")","v":""},null,null,null,null,null,{"$f":"IF(N77<>\"\",IF(M77=\"<\",1,0.99),\"\")","v":""},null,null,null,null,null,{"$f":"IF(T77<>\"\",IF(S77=\"<\",1,0.99),\"\")","v":""},null,null,null,null,null,{"$f":"IF(Z77<>\"\",IF(Y77=\"<\",1,0.99),\"\")","v":""},null,null,null,null,null,{"$f":"IF(AF77<>\"\",IF(AE77=\"<\",1,0.99),\"\")","v":""}]
[null,null,null,null,null,null,"",null,null,null,null,null,"",null,null,null,null,null,"",null,null,null,null,null,"",null,null,null,null,null,""]
[null,null,null,null,null,null,"",null,null,null,null,null,"",null,null,null,null,null,"",null,null,null,null,null,"",null,null,null,null,null,""]
[null,null,null,null,null,null,"",null,null,null,null,null,"",null,null,null,null,null,"",null,null,null,null,null,"",null,null,null,null,null,""]
[null,null,null,null,null,null,"",null,null,null,null,null,"",null,null,null,null,null,"",null,null,null,null,null,"",null,null,null,null,null,""]
[null,null,null,null,null,null,"",null,null,null,null,null,"",null,null,null,null,null,"",null,null,null,null,null,"",null,null,null,null,null,""]
[null,null,null,null,null,null,"",null,null,null,null,null,"",null,null,null,null,null,"",null,null,null,null,null,"",null,null,null,null,null,""]
[null,null,null,null,null,null,"",null,null,null,null,null,"",null,null,null,null,null,"",null,null,null,null,null,"",null,null,null,null,null,""]
[null,null,null,null,null,null,"",null,null,null,null,null,"",null,null,null,null,null,"",null,null,null,null,null,"",null,null,null,null,null,""]
[null,null,null,null,null,null,"",null,null,null,null,null,"",null,null,null,null,null,"",null,null,null,null,null,"",null,null,null,null,null,""]
[null,null,null,null,null,null,"",null,null,null,null,null,"",null,null,null,null,null,"",null,null,null,null,null,"",null,null,null,null,null,""]
[null,null,null,null,null,null,"",null,null,null,null,null,"",null,null,null,null,null,"",null,null,null,null,null,"",null,null,null,null,null,""]
[null,null,null,null,null,null,"",null,null,null,null,null,"",null,null,null,null,null,"",null,null,null,null,null,"",null,null,null,null,null,""]
[null,null,null,null,null,null,"",null,null,null,null,null,"",null,null,null,null,null,"",null,null,null,null,null,"",null,null,null,null,null,""]
[null,null,null,null,null,null,"",null,null,null,null,null,"",null,null,null,null,null,"",null,null,null,null,null,"",null,null,null,null,null,""]
[null,null,null,null,null,null,"",null,null,null,null,null,"",null,null,null,null,null,"",null,null,null,null,null,"",null,null,null,null,null,""]
[null,null,null,null,null,null,"",null,null,null,null,null,"",null,null,null,null,null,"",null,null,null,null,null,"",null,null,null,null,null,""]
[null,null,null,null,null,null,"",null,null,null,null,null,"",null,null,null,null,null,"",null,null,null,null,null,"",null,null,null,null,null,""]
[null,null,null,null,null,null,"",null,null,null,null,null,"",null,null,null,null,null,"",null,null,null,null,null,"",null,null,null,null,null,""]
[null,null,null,null,null,null,"",null,null,null,null,null,"",null,null,null,null,null,"",null,null,null,null,null,"",null,null,null,null,null,""]
[null,null,null,null,null,null,"",null,null,null,null,null,"",null,null,null,null,null,"",null,null,null,null,null,"",null,null,null,null,null,""]
[null,null,null,null,null,null,"",null,null,null,null,null,"",null,null,null,null,null,"",null,null,null,null,null,"",null,null,null,null,null,""]
[null,null,null,null,null,null,"",null,null,null,null,null,"",null,null,null,null,null,"",null,null,null,null,null,"",null,null,null,null,null,""]
[null,null,null,null,null,null,"",null,null,null,null,null,"",null,null,null,null,null,"",null,null,null,null,null,"",null,null,null,null,null,""]
[null,null,null,null,null,null,"",null,null,null,null,null,"",null,null,null,null,null,"",null,null,null,null,null,"",null,null,null,null,null,""]
[null,null,null,null,null,null,"",null,null,null,null,null,"",null,null,null,null,null,"",null,null,null,null,null,"",null,null,null,null,null,""]
[null,null,null,null,null,null,"",null,null,null,null,null,"",null,null,null,null,null,"",null,null,null,null,null,"",null,null,null,null,null,""]
[null,null,null,null,null,null,"",null,null,null,null,null,"",null,null,null,null,null,"",null,null,null,null,null,"",null,null,null,null,null,""]
[null,null,null,null,null,null,"",null,null,null,null,null,"",null,null,null,null,null,"",null,null,null,null,null,"",null,null,null,null,null,""]
[null,null,null,null,null,null,"",null,null,null,null,null,"",null,null,null,null,null,"",null,null,null,null,null,"",null,null,null,null,null,""]
[null,null,null,null,null,null,"",null,null,null,null,null,"",null,null,null,null,null,"",null,null,null,null,null,"",null,null,null,null,null,""]
[null,null,null,null,null,null,"",null,null,null,null,null,"",null,null,null,null,null,"",null,null,null,null,null,"",null,null,null,null,null,""]
[null,null,null,null,null,null,"",null,null,null,null,null,"",null,null,null,null,null,"",null,null,null,null,null,"",null,null,null,null,null,""]
[null,null,null,null,null,null,"",null,null,null,null,null,"",null,null,null,null,null,"",null,null,null,null,null,"",null,null,null,null,null,""]
[null,null,null,null,null,null,"",null,null,null,null,null,"",null,null,null,null,null,"",null,null,null,null,null,"",null,null,null,null,null,""]
[null,null,null,null,null,null,"",null,null,null,null,null,"",null,null,null,null,null,"",null,null,null,null,null,"",null,null,null,null,null,""]
[null,null,null,null,null,null,"",null,null,null,null,null,"",null,null,null,null,null,"",null,null,null,null,null,"",null,null,null,null,null,""]
[null,null,null,null,null,null,"",null,null,null,null,null,"",null,null,null,null,null,"",null,null,null,null,null,"",null,null,null,null,null,""]
[null,null,null,null,null,null,"",null,null,null,null,null,"",null,null,null,null,null,"",null,null,null,null,null,"",null,null,null,null,null,""]
[null,null,null,null,null,null,"",null,null,null,null,null,"",null,null,null,null,null,"",null,null,null,null,null,"",null,null,null,null,null,""]
[null,null,null,null,null,null,"",null,null,null,null,null,"",null,null,null,null,null,"",null,null,null,null,null,"",null,null,null,null,null,""]
[null,null,null,null,null,null,"",null,null,null,null,null,"",null,null,null,null,null,"",null,null,null,null,null,"",null,null,null,null,null,""]
[null,null,null,null,null,null,"",null,null,null,null,null,"",null,null,null,null,null,"",null,null,null,null,null,"",null,null,null,null,null,""]
[null,null,null,null,null,null,"",null,null,null,null,null,"",null,null,null,null,null,"",null,null,null,null,null,"",null,null,null,null,null,""]
[null,null,null,null,null,null,"",null,null,null,null,null,"",null,null,null,null,null,"",null,null,null,null,null,"",null,null,null,null,null,""]
[null,null,null,null,null,null,"",null,null,null,null,null,"",null,null,null,null,null,"",null,null,null,null,null,"",null,null,null,null,null,""]
[null,null,null,null,null,null,"",null,null,null,null,null,"",null,null,null,null,null,"",null,null,null,null,null,"",null,null,null,null,null,""]
[null,null,null,null,null,null,"",null,null,null,null,null,"",null,null,null,null,null,"",null,null,null,null,null,"",null,null,null,null,null,""]
[null,null,null,null,null,null,"",null,null,null,null,null,"",null,null,null,null,null,"",null,null,null,null,null,"",null,null,null,null,null,""]
[null,null,null,null,null,null,"",null,null,null,null,null,"",null,null,null,null,null,"",null,null,null,null,null,"",null,null,null,null,null,""]
[null,null,null,null,null,null,"",null,null,null,null,null,"",null,null,null,null,null,"",null,null,null,null,null,"",null,null,null,null,null,""]
[null,null,null,null,null,null,"",null,null,null,null,null,"",null,null,null,null,null,"",null,null,null,null,null,"",null,null,null,null,null,""]
[null,null,null,null,null,null,"",null,null,null,null,null,"",null,null,null,null,null,"",null,null,null,null,null,"",null,null,null,null,null,""]
[null,null,null,null,null,null,"",null,null,null,null,null,"",null,null,null,null,null,"",null,null,null,null,null,"",null,null,null,null,null,""]
[null,null,null,null,null,null,"",null,null,null,null,null,"",null,null,null,null,null,"",null,null,null,null,null,"",null,null,null,null,null,""]
[null,null,null,null,null,null,"",null,null,null,null,null,"",null,null,null,null,null,"",null,null,null,null,null,"",null,null,null,null,null,""]
[null,null,null,null,null,null,"",null,null,null,null,null,"",null,null,null,null,null,"",null,null,null,null,null,"",null,null,null,null,null,""]
[null,null,null,null,null,null,"",null,null,null,null,null,"",null,null,null,null,null,"",null,null,null,null,null,"",null,null,null,null,null,""]
[null,null,null,null,null,null,"",null,null,null,null,null,"",null,null,null,null,null,"",null,null,null,null,null,"",null,null,null,null,null,""]
[null,null,null,null,null,null,"",null,null,null,null,null,"",null,null,null,null,null,"",null,null,null,null,null,"",null,null,null,null,null,""]
[null,null,null,null,null,null,"",null,null,null,null,null,"",null,null,null,null,null,"",null,null,null,null,null,"",null,null,null,null,null,""]
[null,null,null,null,null,null,"",null,null,null,null,null,"",null,null,null,null,null,"",null,null,null,null,null,"",null,null,null,null,null,""]
[null,null,null,null,null,null,"",null,null,null,null,null,"",null,null,null,null,null,"",null,null,null,null,null,"",null,null,null,null,null,""]
[null,null,null,null,null,null,"",null,null,null,null,null,"",null,null,null,null,null,"",null,null,null,null,null,"",null,null,null,null,null,""]
[null,null,null,null,null,null,{"$f":"IF(H141<>\"\",IF(G141=\"<\",1,0.99),\"\")","v":""},null,null,null,null,null,{"$f":"IF(N141<>\"\",IF(M141=\"<\",1,0.99),\"\")","v":""},null,null,null,null,null,{"$f":"IF(T141<>\"\",IF(S141=\"<\",1,0.99),\"\")","v":""},null,null,null,null,null,{"$f":"IF(Z141<>\"\",IF(Y141=\"<\",1,0.99),\"\")","v":""},null,null,null,null,null,{"$f":"IF(AF141<>\"\",IF(AE141=\"<\",1,0.99),\"\")","v":""}]
[null,null,null,null,null,null,"",null,null,null,null,null,"",null,null,null,null,null,"",null,null,null,null,null,"",null,null,null,null,null,""]
[null,null,null,null,null,null,"",null,null,null,null,null,"",null,null,null,null,null,"",null,null,null,null,null,"",null,null,null,null,null,""]
[null,null,null,null,null,null,"",null,null,null,null,null,"",null,null,null,null,null,"",null,null,null,null,null,"",null,null,null,null,null,""]
[null,null,null,null,null,null,"",null,null,null,null,null,"",null,null,null,null,null,"",null,null,null,null,null,"",null,null,null,null,null,""]
[null,null,null,null,null,null,"",null,null,null,null,null,"",null,null,null,null,null,"",null,null,null,null,null,"",null,null,null,null,null,""]
[null,null,null,null,null,null,"",null,null,null,null,null,"",null,null,null,null,null,"",null,null,null,null,null,"",null,null,null,null,null,""]
[null,null,null,null,null,null,"",null,null,null,null,null,"",null,null,null,null,null,"",null,null,null,null,null,"",null,null,null,null,null,""]
[null,null,null,null,null,null,"",null,null,null,null,null,"",null,null,null,null,null,"",null,null,null,null,null,"",null,null,null,null,null,""]
[null,null,null,null,null,null,"",null,null,null,null,null,"",null,null,null,null,null,"",null,null,null,null,null,"",null,null,null,null,null,""]
[null,null,null,null,null,null,"",null,null,null,null,null,"",null,null,null,null,null,"",null,null,null,null,null,"",null,null,null,null,null,""]
[null,null,null,null,null,null,"",null,null,null,null,null,"",null,null,null,null,null,"",null,null,null,null,null,"",null,null,null,null,null,""]
[null,null,null,null,null,null,"",null,null,null,null,null,"",null,null,null,null,null,"",null,null,null,null,null,"",null,null,null,null,null,""]
[null,null,null,null,null,null,"",null,null,null,null,null,"",null,null,null,null,null,"",null,null,null,null,null,"",null,null,null,null,null,""]
[null,null,null,null,null,null,"",null,null,null,null,null,"",null,null,null,null,null,"",null,null,null,null,null,"",null,null,null,null,null,""]
[null,null,null,null,null,null,"",null,null,null,null,null,"",null,null,null,null,null,"",null,null,null,null,null,"",null,null,null,null,null,""]
[null,null,null,null,null,null,"",null,null,null,null,null,"",null,null,null,null,null,"",null,null,null,null,null,"",null,null,null,null,null,""]
[null,null,null,null,null,null,"",null,null,null,null,null,"",null,null,null,null,null,"",null,null,null,null,null,"",null,null,null,null,null,""]
[null,null,null,null,null,null,"",null,null,null,null,null,"",null,null,null,null,null,"",null,null,null,null,null,"",null,null,null,null,null,""]
[null,null,null,null,null,null,"",null,null,null,null,null,"",null,null,null,null,null,"",null,null,null,null,null,"",null,null,null,null,null,""]
[null,null,null,null,null,null,"",null,null,null,null,null,"",null,null,null,null,null,"",null,null,null,null,null,"",null,null,null,null,null,""]
[null,null,null,null,null,null,"",null,null,null,null,null,"",null,null,null,null,null,"",null,null,null,null,null,"",null,null,null,null,null,""]
[null,null,null,null,null,null,"",null,null,null,null,null,"",null,null,null,null,null,"",null,null,null,null,null,"",null,null,null,null,null,""]
[null,null,null,null,null,null,"",null,null,null,null,null,"",null,null,null,null,null,"",null,null,null,null,null,"",null,null,null,null,null,""]
[null,null,null,null,null,null,"",null,null,null,null,null,"",null,null,null,null,null,"",null,null,null,null,null,"",null,null,null,null,null,""]
[null,null,null,null,null,null,"",null,null,null,null,null,"",null,null,null,null,null,"",null,null,null,null,null,"",null,null,null,null,null,""]
[null,null,null,null,null,null,"",null,null,null,null,null,"",null,null,null,null,null,"",null,null,null,null,null,"",null,null,null,null,null,""]
[null,null,null,null,null,null,"",null,null,null,null,null,"",null,null,null,null,null,"",null,null,null,null,null,"",null,null,null,null,null,""]
[null,null,null,null,null,null,"",null,null,null,null,null,"",null,null,null,null,null,"",null,null,null,null,null,"",null,null,null,null,null,""]
[null,null,null,null,null,null,"",null,null,null,null,null,"",null,null,null,null,null,"",null,null,null,null,null,"",null,null,null,null,null,""]
[null,null,null,null,null,null,"",null,null,null,null,null,"",null,null,null,null,null,"",null,null,null,null,null,"",null,null,null,null,null,""]
[null,null,null,null,null,null,"",null,null,null,null,null,"",null,null,null,null,null,"",null,null,null,null,null,"",null,null,null,null,null,""]
[null,null,null,null,null,null,"",null,null,null,null,null,"",null,null,null,null,null,"",null,null,null,null,null,"",null,null,null,null,null,""]
[null,null,null,null,null,null,"",null,null,null,null,null,"",null,null,null,null,null,"",null,null,null,null,null,"",null,null,null,null,null,""]
[null,null,null,null,null,null,"",null,null,null,null,null,"",null,null,null,null,null,"",null,null,null,null,null,"",null,null,null,null,null,""]
[null,null,null,null,null,null,"",null,null,null,null,null,"",null,null,null,null,null,"",null,null,null,null,null,"",null,null,null,null,null,""]
[null,null,null,null,null,null,"",null,null,null,null,null,"",null,null,null,null,null,"",null,null,null,null,null,"",null,null,null,null,null,""]
[null,null,null,null,null,null,"",null,null,null,null,null,"",null,null,null,null,null,"",null,null,null,null,null,"",null,null,null,null,null,""]
[null,null,null,null,null,null,"",null,null,null,null,null,"",null,null,null,null,null,"",null,null,null,null,null,"",null,null,null,null,null,""]
[null,null,null,null,null,null,"",null,null,null,null,null,"",null,null,null,null,null,"",null,null,null,null,null,"",null,null,null,null,null,""]
[null,null,null,null,null,null,"",null,null,null,null,null,"",null,null,null,null,null,"",null,null,null,null,null,"",null,null,null,null,null,""]
[null,null,null,null,null,null,"",null,null,null,null,null,"",null,null,null,null,null,"",null,null,null,null,null,"",null,null,null,null,null,""]
[null,null,null,null,null,null,"",null,null,null,null,null,"",null,null,null,null,null,"",null,null,null,null,null,"",null,null,null,null,null,""]
[null,null,null,null,null,null,"",null,null,null,null,null,"",null,null,null,null,null,"",null,null,null,null,null,"",null,null,null,null,null,""]
[null,null,null,null,null,null,"",null,null,null,null,null,"",null,null,null,null,null,"",null,null,null,null,null,"",null,null,null,null,null,""]
[null,null,null,null,null,null,"",null,null,null,null,null,"",null,null,null,null,null,"",null,null,null,null,null,"",null,null,null,null,null,""]
[null,null,null,null,null,null,"",null,null,null,null,null,"",null,null,null,null,null,"",null,null,null,null,null,"",null,null,null,null,null,""]
[null,null,null,null,null,null,"",null,null,null,null,null,"",null,null,null,null,null,"",null,null,null,null,null,"",null,null,null,null,null,""]
[null,null,null,null,null,null,"",null,null,null,null,null,"",null,null,null,null,null,"",null,null,null,null,null,"",null,null,null,null,null,""]
[null,null,null,null,null,null,"",null,null,null,null,null,"",null,null,null,null,null,"",null,null,null,null,null,"",null,null,null,null,null,""]
[null,null,null,null,null,null,"",null,null,null,null,null,"",null,null,null,null,null,"",null,null,null,null,null,"",null,null,null,null,null,""]
[null,null,null,null,null,null,"",null,null,null,null,null,"",null,null,null,null,null,"",null,null,null,null,null,"",null,null,null,null,null,""]
[null,null,null,null,null,null,"",null,null,null,null,null,"",null,null,null,null,null,"",null,null,null,null,null,"",null,null,null,null,null,""]
[null,null,null,null,null,null,"",null,null,null,null,null,"",null,null,null,null,null,"",null,null,null,null,null,"",null,null,null,null,null,""]
[null,null,null,null,null,null,"",null,null,null,null,null,"",null,null,null,null,null,"",null,null,null,null,null,"",null,null,null,null,null,""]
[null,null,null,null,null,null,"",null,null,null,null,null,"",null,null,null,null,null,"",null,null,null,null,null,"",null,null,null,null,null,""]
[null,null,null,null,null,null,"",null,null,null,null,null,"",null,null,null,null,null,"",null,null,null,null,null,"",null,null,null,null,null,""]
[null,null,null,null,null,null,"",null,null,null,null,null,"",null,null,null,null,null,"",null,null,null,null,null,"",null,null,null,null,null,""]
[null,null,null,null,null,null,"",null,null,null,null,null,"",null,null,null,null,null,"",null,null,null,null,null,"",null,null,null,null,null,""]
[null,null,null,null,null,null,"",null,null,null,null,null,"",null,null,null,null,null,"",null,null,null,null,null,"",null,null,null,null,null,""]
[null,null,null,null,null,null,"",null,null,null,null,null,"",null,null,null,null,null,"",null,null,null,null,null,"",null,null,null,null,null,""]
[null,null,null,null,null,null,"",null,null,null,null,null,"",null,null,null,null,null,"",null,null,null,null,null,"",null,null,null,null,null,""]
[null,null,null,null,null,null,"",null,null,null,null,null,"",null,null,null,null,null,"",null,null,null,null,null,"",null,null,null,null,null,""]
[null,null,null,null,null,null,"",null,null,null,null,null,"",null,null,null,null,null,"",null,null,null,null,null,"",null,null,null,null,null,""]
[null,null,null,null,null,null,{"$f":"IF(H205<>\"\",IF(G205=\"<\",1,0.99),\"\")","v":""},null,null,null,null,null,{"$f":"IF(N205<>\"\",IF(M205=\"<\",1,0.99),\"\")","v":""},null,null,null,null,null,{"$f":"IF(T205<>\"\",IF(S205=\"<\",1,0.99),\"\")","v":""},null,null,null,null,null,{"$f":"IF(Z205<>\"\",IF(Y205=\"<\",1,0.99),\"\")","v":""},null,null,null,null,null,{"$f":"IF(AF205<>\"\",IF(AE205=\"<\",1,0.99),\"\")","v":""}]
[null,null,null,null,null,null,"",null,null,null,null,null,"",null,null,null,null,null,"",null,null,null,null,null,"",null,null,null,null,null,""]
[null,null,null,null,null,null,"",null,null,null,null,null,"",null,null,null,null,null,"",null,null,null,null,null,"",null,null,null,null,null,""]
[null,null,null,null,null,null,"",null,null,null,null,null,"",null,null,null,null,null,"",null,null,null,null,null,"",null,null,null,null,null,""]
[null,null,null,null,null,null,"",null,null,null,null,null,"",null,null,null,null,null,"",null,null,null,null,null,"",null,null,null,null,null,""]
[null,null,null,null,null,null,"",null,null,null,null,null,"",null,null,null,null,null,"",null,null,null,null,null,"",null,null,null,null,null,""]
[null,null,null,null,null,null,"",null,null,null,null,null,"",null,null,null,null,null,"",null,null,null,null,null,"",null,null,null,null,null,""]
[null,null,null,null,null,null,"",null,null,null,null,null,"",null,null,null,null,null,"",null,null,null,null,null,"",null,null,null,null,null,""]
[null,null,null,null,null,null,"",null,null,null,null,null,"",null,null,null,null,null,"",null,null,null,null,null,"",null,null,null,null,null,""]
[null,null,null,null,null,null,"",null,null,null,null,null,"",null,null,null,null,null,"",null,null,null,null,null,"",null,null,null,null,null,""]
[null,null,null,null,null,null,"",null,null,null,null,null,"",null,null,null,null,null,"",null,null,null,null,null,"",null,null,null,null,null,""]
[null,null,null,null,null,null,"",null,null,null,null,null,"",null,null,null,null,null,"",null,null,null,null,null,"",null,null,null,null,null,""]
[null,null,null,null,null,null,"",null,null,null,null,null,"",null,null,null,null,null,"",null,null,null,null,null,"",null,null,null,null,null,""]
[null,null,null,null,null,null,"",null,null,null,null,null,"",null,null,null,null,null,"",null,null,null,null,null,"",null,null,null,null,null,""]
[null,null,null,null,null,null,"",null,null,null,null,null,"",null,null,null,null,null,"",null,null,null,null,null,"",null,null,null,null,null,""]
[null,null,null,null,null,null,"",null,null,null,null,null,"",null,null,null,null,null,"",null,null,null,null,null,"",null,null,null,null,null,""]
[null,null,null,null,null,null,"",null,null,null,null,null,"",null,null,null,null,null,"",null,null,null,null,null,"",null,null,null,null,null,""]
[null,null,null,null,null,null,"",null,null,null,null,null,"",null,null,null,null,null,"",null,null,null,null,null,"",null,null,null,null,null,""]
[null,null,null,null,null,null,"",null,null,null,null,null,"",null,null,null,null,null,"",null,null,null,null,null,"",null,null,null,null,null,""]
[null,null,null,null,null,null,"",null,null,null,null,null,"",null,null,null,null,null,"",null,null,null,null,null,"",null,null,null,null,null,""]
[null,null,null,null,null,null,"",null,null,null,null,null,"",null,null,null,null,null,"",null,null,null,null,null,"",null,null,null,null,null,""]
[null,null,null,null,null,null,"",null,null,null,null,null,"",null,null,null,null,null,"",null,null,null,null,null,"",null,null,null,null,null,""]
[null,null,null,null,null,null,"",null,null,null,null,null,"",null,null,null,null,null,"",null,null,null,null,null,"",null,null,null,null,null,""]
[null,null,null,null,null,null,"",null,null,null,null,null,"",null,null,null,null,null,"",null,null,null,null,null,"",null,null,null,null,null,""]
[null,null,null,null,null,null,"",null,null,null,null,null,"",null,null,null,null,null,"",null,null,null,null,null,"",null,null,null,null,null,""]
[null,null,null,null,null,null,"",null,null,null,null,null,"",null,null,null,null,null,"",null,null,null,null,null,"",null,null,null,null,null,""]
[null,null,null,null,null,null,"",null,null,null,null,null,"",null,null,null,null,null,"",null,null,null,null,null,"",null,null,null,null,null,""]
[null,null,null,null,null,null,"",null,null,null,null,null,"",null,null,null,null,null,"",null,null,null,null,null,"",null,null,null,null,null,""]
[null,null,null,null,null,null,"",null,null,null,null,null,"",null,null,null,null,null,"",null,null,null,null,null,"",null,null,null,null,null,""]
[null,null,null,null,null,null,"",null,null,null,null,null,"",null,null,null,null,null,"",null,null,null,null,null,"",null,null,null,null,null,""]
[null,null,null,null,null,null,"",null,null,null,null,null,"",null,null,null,null,null,"",null,null,null,null,null,"",null,null,null,null,null,""]
[null,null,null,null,null,null,"",null,null,null,null,null,"",null,null,null,null,null,"",null,null,null,null,null,"",null,null,null,null,null,""]
[null,null,null,null,null,null,"",null,null,null,null,null,"",null,null,null,null,null,"",null,null,null,null,null,"",null,null,null,null,null,""]
[null,null,null,null,null,null,"",null,null,null,null,null,"",null,null,null,null,null,"",null,null,null,null,null,"",null,null,null,null,null,""]
[null,null,null,null,null,null,"",null,null,null,null,null,"",null,null,null,null,null,"",null,null,null,null,null,"",null,null,null,null,null,""]
[null,null,null,null,null,null,"",null,null,null,null,null,"",null,null,null,null,null,"",null,null,null,null,null,"",null,null,null,null,null,""]
[null,null,null,null,null,null,"",null,null,null,null,null,"",null,null,null,null,null,"",null,null,null,null,null,"",null,null,null,null,null,""]
[null,null,null,null,null,null,"",null,null,null,null,null,"",null,null,null,null,null,"",null,null,null,null,null,"",null,null,null,null,null,""]
[null,null,null,null,null,null,"",null,null,null,null,null,"",null,null,null,null,null,"",null,null,null,null,null,"",null,null,null,null,null,""]
[null,null,null,null,null,null,"",null,null,null,null,null,"",null,null,null,null,null,"",null,null,null,null,null,"",null,null,null,null,null,""]
[null,null,null,null,null,null,"",null,null,null,null,null,"",null,null,null,null,null,"",null,null,null,null,null,"",null,null,null,null,null,""]
[null,null,null,null,null,null,"",null,null,null,null,null,"",null,null,null,null,null,"",null,null,null,null,null,"",null,null,null,null,null,""]
[null,null,null,null,null,null,"",null,null,null,null,null,"",null,null,null,null,null,"",null,null,null,null,null,"",null,null,null,null,null,""]
[null,null,null,null,null,null,"",null,null,null,null,null,"",null,null,null,null,null,"",null,null,null,null,null,"",null,null,null,null,null,""]
[null,null,null,null,null,null,"",null,null,null,null,null,"",null,null,null,null,null,"",null,null,null,null,null,"",null,null,null,null,null,""]
[null,null,null,null,null,null,"",null,null,null,null,null,"",null,null,null,null,null,"",null,null,null,null,null,"",null,null,null,null,null,""]
[null,null,null,null,null,null,"",null,null,null,null,null,"",null,null,null,null,null,"",null,null,null,null,null,"",null,null,null,null,null,""]
[null,null,null,null,null,null,"",null,null,null,null,null,"",null,null,null,null,null,"",null,null,null,null,null,"",null,null,null,null,null,""]
[null,null,null,null,null,null,"",null,null,null,null,null,"",null,null,null,null,null,"",null,null,null,null,null,"",null,null,null,null,null,""]
[null,null,null,null,null,null,"",null,null,null,null,null,"",null,null,null,null,null,"",null,null,null,null,null,"",null,null,null,null,null,""]
[null,null,null,null,null,null,"",null,null,null,null,null,"",null,null,null,null,null,"",null,null,null,null,null,"",null,null,null,null,null,""]
[null,null,null,null,null,null,"",null,null,null,null,null,"",null,null,null,null,null,"",null,null,null,null,null,"",null,null,null,null,null,""]
[null,null,null,null,null,null,"",null,null,null,null,null,"",null,null,null,null,null,"",null,null,null,null,null,"",null,null,null,null,null,""]
[null,null,null,null,null,null,"",null,null,null,null,null,"",null,null,null,null,null,"",null,null,null,null,null,"",null,null,null,null,null,""]
[null,null,null,null,null,null,"",null,null,null,null,null,"",null,null,null,null,null,"",null,null,null,null,null,"",null,null,null,null,null,""]
[null,null,null,null,null,null,"",null,null,null,null,null,"",null,null,null,null,null,"",null,null,null,null,null,"",null,null,null,null,null,""]
[null,null,null,null,null,null,"",null,null,null,null,null,"",null,null,null,null,null,"",null,null,null,null,null,"",null,null,null,null,null,""]
[null,null,null,null,null,null,"",null,null,null,null,null,"",null,null,null,null,null,"",null,null,null,null,null,"",null,null,null,null,null,""]
[null,null,null,null,null,null,"",null,null,null,null,null,"",null,null,null,null,null,"",null,null,null,null,null,"",null,null,null,null,null,""]
[null,null,null,null,null,null,"",null,null,null,null,null,"",null,null,null,null,null,"",null,null,null,null,null,"",null,null,null,null,null,""]
[null,null,null,null,null,null,"",null,null,null,null,null,"",null,null,null,null,null,"",null,null,null,null,null,"",null,null,null,null,null,""]
[null,null,null,null,null,null,"",null,null,null,null,null,"",null,null,null,null,null,"",null,null,null,null,null,"",null,null,null,null,null,""]
[null,null,null,null,null,null,"",null,null,null,null,null,"",null,null,null,null,null,"",null,null,null,null,null,"",null,null,null,null,null,""]
[null,null,null,null,null,null,"",null,null,null,null,null,"",null,null,null,null,null,"",null,null,null,null,null,"",null,null,null,null,null,""]
[null,null,null,null,null,null,{"$f":"IF(H269<>\"\",IF(G269=\"<\",1,0.99),\"\")","v":""},null,null,null,null,null,{"$f":"IF(N269<>\"\",IF(M269=\"<\",1,0.99),\"\")","v":""},null,null,null,null,null,{"$f":"IF(T269<>\"\",IF(S269=\"<\",1,0.99),\"\")","v":""},null,null,null,null,null,{"$f":"IF(Z269<>\"\",IF(Y269=\"<\",1,0.99),\"\")","v":""},null,null,null,null,null,{"$f":"IF(AF269<>\"\",IF(AE269=\"<\",1,0.99),\"\")","v":""}]
[null,null,null,null,null,null,"",null,null,null,null,null,"",null,null,null,null,null,"",null,null,null,null,null,"",null,null,null,null,null,""]
[null,null,null,null,null,null,"",null,null,null,null,null,"",null,null,null,null,null,"",null,null,null,null,null,"",null,null,null,null,null,""]
[null,null,null,null,null,null,"",null,null,null,null,null,"",null,null,null,null,null,"",null,null,null,null,null,"",null,null,null,null,null,""]
[null,null,null,null,null,null,"",null,null,null,null,null,"",null,null,null,null,null,"",null,null,null,null,null,"",null,null,null,null,null,""]
[null,null,null,null,null,null,"",null,null,null,null,null,"",null,null,null,null,null,"",null,null,null,null,null,"",null,null,null,null,null,""]
[null,null,null,null,null,null,"",null,null,null,null,null,"",null,null,null,null,null,"",null,null,null,null,null,"",null,null,null,null,null,""]
[null,null,null,null,null,null,"",null,null,null,null,null,"",null,null,null,null,null,"",null,null,null,null,null,"",null,null,null,null,null,""]
[null,null,null,null,null,null,"",null,null,null,null,null,"",null,null,null,null,null,"",null,null,null,null,null,"",null,null,null,null,null,""]
[null,null,null,null,null,null,"",null,null,null,null,null,"",null,null,null,null,null,"",null,null,null,null,null,"",null,null,null,null,null,""]
[null,null,null,null,null,null,"",null,null,null,null,null,"",null,null,null,null,null,"",null,null,null,null,null,"",null,null,null,null,null,""]
[null,null,null,null,null,null,"",null,null,null,null,null,"",null,null,null,null,null,"",null,null,null,null,null,"",null,null,null,null,null,""]
[null,null,null,null,null,null,"",null,null,null,null,null,"",null,null,null,null,null,"",null,null,null,null,null,"",null,null,null,null,null,""]
[null,null,null,null,null,null,"",null,null,null,null,null,"",null,null,null,null,null,"",null,null,null,null,null,"",null,null,null,null,null,""]
[null,null,null,null,null,null,"",null,null,null,null,null,"",null,null,null,null,null,"",null,null,null,null,null,"",null,null,null,null,null,""]
[null,null,null,null,null,null,"",null,null,null,null,null,"",null,null,null,null,null,"",null,null,null,null,null,"",null,null,null,null,null,""]
[null,null,null,null,null,null,"",null,null,null,null,null,"",null,null,null,null,null,"",null,null,null,null,null,"",null,null,null,null,null,""]
[null,null,null,null,null,null,"",null,null,null,null,null,"",null,null,null,null,null,"",null,null,null,null,null,"",null,null,null,null,null,""]
[null,null,null,null,null,null,"",null,null,null,null,null,"",null,null,null,null,null,"",null,null,null,null,null,"",null,null,null,null,null,""]
[null,null,null,null,null,null,"",null,null,null,null,null,"",null,null,null,null,null,"",null,null,null,null,null,"",null,null,null,null,null,""]
[null,null,null,null,null,null,"",null,null,null,null,null,"",null,null,null,null,null,"",null,null,null,null,null,"",null,null,null,null,null,""]
[null,null,null,null,null,null,"",null,null,null,null,null,"",null,null,null,null,null,"",null,null,null,null,null,"",null,null,null,null,null,""]
[null,null,null,null,null,null,"",null,null,null,null,null,"",null,null,null,null,null,"",null,null,null,null,null,"",null,null,null,null,null,""]
[null,null,null,null,null,null,"",null,null,null,null,null,"",null,null,null,null,null,"",null,null,null,null,null,"",null,null,null,null,null,""]
[null,null,null,null,null,null,"",null,null,null,null,null,"",null,null,null,null,null,"",null,null,null,null,null,"",null,null,null,null,null,""]
[null,null,null,null,null,null,"",null,null,null,null,null,"",null,null,null,null,null,"",null,null,null,null,null,"",null,null,null,null,null,""]
[null,null,null,null,null,null,"",null,null,null,null,null,"",null,null,null,null,null,"",null,null,null,null,null,"",null,null,null,null,null,""]
[null,null,null,null,null,null,"",null,null,null,null,null,"",null,null,null,null,null,"",null,null,null,null,null,"",null,null,null,null,null,""]
[null,null,null,null,null,null,"",null,null,null,null,null,"",null,null,null,null,null,"",null,null,null,null,null,"",null,null,null,null,null,""]
[null,null,null,null,null,null,"",null,null,null,null,null,"",null,null,null,null,null,"",null,null,null,null,null,"",null,null,null,null,null,""]
[null,null,null,null,null,null,"",null,null,null,null,null,"",null,null,null,null,null,"",null,null,null,null,null,"",null,null,null,null,null,""]
[null,null,null,null,null,null,"",null,null,null,null,null,"",null,null,null,null,null,"",null,null,null,null,null,"",null,null,null,null,null,""]
[null,null,null,null,null,null,"",null,null,null,null,null,"",null,null,null,null,null,"",null,null,null,null,null,"",null,null,null,null,null,""]
[null,null,null,null,null,null,"",null,null,null,null,null,"",null,null,null,null,null,"",null,null,null,null,null,"",null,null,null,null,null,""]
[null,null,null,null,null,null,"",null,null,null,null,null,"",null,null,null,null,null,"",null,null,null,null,null,"",null,null,null,null,null,""]
[null,null,null,null,null,null,"",null,null,null,null,null,"",null,null,null,null,null,"",null,null,null,null,null,"",null,null,null,null,null,""]
[null,null,null,null,null,null,"",null,null,null,null,null,"",null,null,null,null,null,"",null,null,null,null,null,"",null,null,null,null,null,""]
[null,null,null,null,null,null,"",null,null,null,null,null,"",null,null,null,null,null,"",null,null,null,null,null,"",null,null,null,null,null,""]
[null,null,null,null,null,null,"",null,null,null,null,null,"",null,null,null,null,null,"",null,null,null,null,null,"",null,null,null,null,null,""]
[null,null,null,null,null,null,"",null,null,null,null,null,"",null,null,null,null,null,"",null,null,null,null,null,"",null,null,null,null,null,""]
[null,null,null,null,null,null,"",null,null,null,null,null,"",null,null,null,null,null,"",null,null,null,null,null,"",null,null,null,null,null,""]
[null,null,null,null,null,null,"",null,null,null,null,null,"",null,null,null,null,null,"",null,null,null,null,null,"",null,null,null,null,null,""]
[null,null,null,null,null,null,"",null,null,null,null,null,"",null,null,null,null,null,"",null,null,null,null,null,"",null,null,null,null,null,""]
[null,null,null,null,null,null,"",null,null,null,null,null,"",null,null,null,null,null,"",null,null,null,null,null,"",null,null,null,null,null,""]
[null,null,null,null,null,null,"",null,null,null,null,null,"",null,null,null,null,null,"",null,null,null,null,null,"",null,null,null,null,null,""]
[null,null,null,null,null,null,"",null,null,null,null,null,"",null,null,null,null,null,"",null,null,null,null,null,"",null,null,null,null,null,""]
[null,null,null,null,null,null,"",null,null,null,null,null,"",null,null,null,null,null,"",null,null,null,null,null,"",null,null,null,null,null,""]
[null,null,null,null,null,null,"",null,null,null,null,null,"",null,null,null,null,null,"",null,null,null,null,null,"",null,null,null,null,null,""]
[null,null,null,null,null,null,"",null,null,null,null,null,"",null,null,null,null,null,"",null,null,null,null,null,"",null,null,null,null,null,""]
[null,null,null,null,null,null,"",null,null,null,null,null,"",null,null,null,null,null,"",null,null,null,null,null,"",null,null,null,null,null,""]
[null,null,null,null,null,null,"",null,null,null,null,null,"",null,null,null,null,null,"",null,null,null,null,null,"",null,null,null,null,null,""]
[null,null,null,null,null,null,"",null,null,null,null,null,"",null,null,null,null,null,"",null,null,null,null,null,"",null,null,null,null,null,""]
[null,null,null,null,null,null,"",null,null,null,null,null,"",null,null,null,null,null,"",null,null,null,null,null,"",null,null,null,null,null,""]
[null,null,null,null,null,null,"",null,null,null,null,null,"",null,null,null,null,null,"",null,null,null,null,null,"",null,null,null,null,null,""]
[null,null,null,null,null,null,"",null,null,null,null,null,"",null,null,null,null,null,"",null,null,null,null,null,"",null,null,null,null,null,""]
[null,null,null,null,null,null,"",null,null,null,null,null,"",null,null,null,null,null,"",null,null,null,null,null,"",null,null,null,null,null,""]
[null,null,null,null,null,null,"",null,null,null,null,null,"",null,null,null,null,null,"",null,null,null,null,null,"",null,null,null,null,null,""]
[null,null,null,null,null,null,"",null,null,null,null,null,"",null,null,null,null,null,"",null,null,null,null,null,"",null,null,null,null,null,""]
[null,null,null,null,null,null,"",null,null,null,null,null,"",null,null,null,null,null,"",null,null,null,null,null,"",null,null,null,null,null,""]
[null,null,null,null,null,null,"",null,null,null,null,null,"",null,null,null,null,null,"",null,null,null,null,null,"",null,null,null,null,null,""]
[null,null,null,null,null,null,"",null,null,null,null,null,"",null,null,null,null,null,"",null,null,null,null,null,"",null,null,null,null,null,""]
[null,null,null,null,null,null,"",null,null,null,null,null,"",null,null,null,null,null,"",null,null,null,null,null,"",null,null,null,null,null,""]
[null,null,null,null,null,null,"",null,null,null,null,null,"",null,null,null,null,null,"",null,null,null,null,null,"",null,null,null,null,null,""]
[null,null,null,null,null,null,"",null,null,null,null,null,"",null,null,null,null,null,"",null,null,null,null,null,"",null,null,null,null,null,""]
[null,null,null,null,null,null,{"$f":"IF(H333<>\"\",IF(G333=\"<\",1,0.99),\"\")","v":""},null,null,null,null,null,{"$f":"IF(N333<>\"\",IF(M333=\"<\",1,0.99),\"\")","v":""},null,null,null,null,null,{"$f":"IF(T333<>\"\",IF(S333=\"<\",1,0.99),\"\")","v":""},null,null,null,null,null,{"$f":"IF(Z333<>\"\",IF(Y333=\"<\",1,0.99),\"\")","v":""},null,null,null,null,null,{"$f":"IF(AF333<>\"\",IF(AE333=\"<\",1,0.99),\"\")","v":""}]
[null,null,null,null,null,null,"",null,null,null,null,null,"",null,null,null,null,null,"",null,null,null,null,null,"",null,null,null,null,null,""]
[null,null,null,null,null,null,"",null,null,null,null,null,"",null,null,null,null,null,"",null,null,null,null,null,"",null,null,null,null,null,""]
[null,null,null,null,null,null,"",null,null,null,null,null,"",null,null,null,null,null,"",null,null,null,null,null,"",null,null,null,null,null,""]
[null,null,null,null,null,null,"",null,null,null,null,null,"",null,null,null,null,null,"",null,null,null,null,null,"",null,null,null,null,null,""]
[null,null,null,null,null,null,"",null,null,null,null,null,"",null,null,null,null,null,"",null,null,null,null,null,"",null,null,null,null,null,""]
[null,null,null,null,null,null,"",null,null,null,null,null,"",null,null,null,null,null,"",null,null,null,null,null,"",null,null,null,null,null,""]
[null,null,null,null,null,null,"",null,null,null,null,null,"",null,null,null,null,null,"",null,null,null,null,null,"",null,null,null,null,null,""]
[null,null,null,null,null,null,"",null,null,null,null,null,"",null,null,null,null,null,"",null,null,null,null,null,"",null,null,null,null,null,""]
[null,null,null,null,null,null,"",null,null,null,null,null,"",null,null,null,null,null,"",null,null,null,null,null,"",null,null,null,null,null,""]
[null,null,null,null,null,null,"",null,null,null,null,null,"",null,null,null,null,null,"",null,null,null,null,null,"",null,null,null,null,null,""]
[null,null,null,null,null,null,"",null,null,null,null,null,"",null,null,null,null,null,"",null,null,null,null,null,"",null,null,null,null,null,""]
[null,null,null,null,null,null,"",null,null,null,null,null,"",null,null,null,null,null,"",null,null,null,null,null,"",null,null,null,null,null,""]
[null,null,null,null,null,null,"",null,null,null,null,null,"",null,null,null,null,null,"",null,null,null,null,null,"",null,null,null,null,null,""]
[null,null,null,null,null,null,"",null,null,null,null,null,"",null,null,null,null,null,"",null,null,null,null,null,"",null,null,null,null,null,""]
[null,null,null,null,null,null,"",null,null,null,null,null,"",null,null,null,null,null,"",null,null,null,null,null,"",null,null,null,null,null,""]
[null,null,null,null,null,null,"",null,null,null,null,null,"",null,null,null,null,null,"",null,null,null,null,null,"",null,null,null,null,null,""]
[null,null,null,null,null,null,"",null,null,null,null,null,"",null,null,null,null,null,"",null,null,null,null,null,"",null,null,null,null,null,""]
[null,null,null,null,null,null,"",null,null,null,null,null,"",null,null,null,null,null,"",null,null,null,null,null,"",null,null,null,null,null,""]
[null,null,null,null,null,null,"",null,null,null,null,null,"",null,null,null,null,null,"",null,null,null,null,null,"",null,null,null,null,null,""]
[null,null,null,null,null,null,"",null,null,null,null,null,"",null,null,null,null,null,"",null,null,null,null,null,"",null,null,null,null,null,""]
[null,null,null,null,null,null,"",null,null,null,null,null,"",null,null,null,null,null,"",null,null,null,null,null,"",null,null,null,null,null,""]
[null,null,null,null,null,null,"",null,null,null,null,null,"",null,null,null,null,null,"",null,null,null,null,null,"",null,null,null,null,null,""]
[null,null,null,null,null,null,"",null,null,null,null,null,"",null,null,null,null,null,"",null,null,null,null,null,"",null,null,null,null,null,""]
[null,null,null,null,null,null,"",null,null,null,null,null,"",null,null,null,null,null,"",null,null,null,null,null,"",null,null,null,null,null,""]
[null,null,null,null,null,null,"",null,null,null,null,null,"",null,null,null,null,null,"",null,null,null,null,null,"",null,null,null,null,null,""]
[null,null,null,null,null,null,"",null,null,null,null,null,"",null,null,null,null,null,"",null,null,null,null,null,"",null,null,null,null,null,""]
[null,null,null,null,null,null,"",null,null,null,null,null,"",null,null,null,null,null,"",null,null,null,null,null,"",null,null,null,null,null,""]
[null,null,null,null,null,null,"",null,null,null,null,null,"",null,null,null,null,null,"",null,null,null,null,null,"",null,null,null,null,null,""]
[null,null,null,null,null,null,"",null,null,null,null,null,"",null,null,null,null,null,"",null,null,null,null,null,"",null,null,null,null,null,""]
[null,null,null,null,null,null,"",null,null,null,null,null,"",null,null,null,null,null,"",null,null,null,null,null,"",null,null,null,null,null,""]
[null,null,null,null,null,null,"",null,null,null,null,null,"",null,null,null,null,null,"",null,null,null,null,null,"",null,null,null,null,null,""]
[null,null,null,null,null,null,"",null,null,null,null,null,"",null,null,null,null,null,"",null,null,null,null,null,"",null,null,null,null,null,""]
[null,null,null,null,null,null,"",null,null,null,null,null,"",null,null,null,null,null,"",null,null,null,null,null,"",null,null,null,null,null,""]
[null,null,null,null,null,null,"",null,null,null,null,null,"",null,null,null,null,null,"",null,null,null,null,null,"",null,null,null,null,null,""]
[null,null,null,null,null,null,"",null,null,null,null,null,"",null,null,null,null,null,"",null,null,null,null,null,"",null,null,null,null,null,""]
[null,null,null,null,null,null,"",null,null,null,null,null,"",null,null,null,null,null,"",null,null,null,null,null,"",null,null,null,null,null,""]
[null,null,null,null,null,null,"",null,null,null,null,null,"",null,null,null,null,null,"",null,null,null,null,null,"",null,null,null,null,null,""]
[null,null,null,null,null,null,"",null,null,null,null,null,"",null,null,null,null,null,"",null,null,null,null,null,"",null,null,null,null,null,""]
[null,null,null,null,null,null,"",null,null,null,null,null,"",null,null,null,null,null,"",null,null,null,null,null,"",null,null,null,null,null,""]
[null,null,null,null,null,null,"",null,null,null,null,null,"",null,null,null,null,null,"",null,null,null,null,null,"",null,null,null,null,null,""]
[null,null,null,null,null,null,"",null,null,null,null,null,"",null,null,null,null,null,"",null,null,null,null,null,"",null,null,null,null,null,""]
[null,null,null,null,null,null,"",null,null,null,null,null,"",null,null,null,null,null,"",null,null,null,null,null,"",null,null,null,null,null,""]
[null,null,null,null,null,null,"",null,null,null,null,null,"",null,null,null,null,null,"",null,null,null,null,null,"",null,null,null,null,null,""]
[null,null,null,null,null,null,{"$f":"IF(H377<>\"\",IF(G377=\"<\",1,0.99),\"\")","v":""},null,null,null,null,null,{"$f":"IF(N377<>\"\",IF(M377=\"<\",1,0.99),\"\")","v":""},null,null,null,null,null,{"$f":"IF(T377<>\"\",IF(S377=\"<\",1,0.99),\"\")","v":""},null,null,null,null,null,{"$f":"IF(Z377<>\"\",IF(Y377=\"<\",1,0.99),\"\")","v":""},null,null,null,null,null,{"$f":"IF(AF377<>\"\",IF(AE377=\"<\",1,0.99),\"\")","v":""}]
[null,null,null,null,null,null,"",null,null,null,null,null,"",null,null,null,null,null,"",null,null,null,null,null,"",null,null,null,null,null,""]
[null,null,null,null,"At least 1 ND?",null,{"$f":"IF(COUNTIF(G431:G796,1)>0,\"Y\",\"N\")","v":"N"},null,null,null,null,null,{"$f":"IF(COUNTIF(M431:M796,1)>0,\"Y\",\"N\")","v":"N"},null,null,null,null,null,{"$f":"IF(COUNTIF(S431:S796,1)>0,\"Y\",\"N\")","v":"N"},null,null,null,null,null,{"$f":"IF(COUNTIF(Y431:Y796,1)>0,\"Y\",\"N\")","v":"N"},null,null,null,null,null,{"$f":"IF(COUNTIF(AE431:AE796,1)>0,\"Y\",\"N\")","v":"N"}]
[]
[null,null,null,null,"Decimal Places"]
[]
[null,null,null,null,"Flow",null,null,"P",null,null,null,null,null,"NH3",null,null,null,null,null,"TKN",null,null,null,null,null,"NO3"]
[null,null,null,null,{"$f":"IF(ISERR(FIND(\".\",E13)),0,LEN(MID(E13,FIND(\".\",E13)+1,15)))","v":0},null,null,{"$f":"IF(ISERR(FIND(\".\",H13)),0,LEN(MID(H13,FIND(\".\",H13)+1,15)))","v":0},null,null,null,null,null,{"$f":"IF(ISERR(FIND(\".\",N13)),0,LEN(MID(N13,FIND(\".\",N13)+1,15)))","v":0},null,null,null,null,null,{"$f":"IF(ISERR(FIND(\".\",T13)),0,LEN(MID(T13,FIND(\".\",T13)+1,15)))","v":0},null,null,null,null,null,{"$f":"IF(ISERR(FIND(\".\",Z13)),0,LEN(MID(Z13,FIND(\".\",Z13)+1,15)))","v":0}]
[null,null,null,null,0,null,null,0,null,null,null,null,null,0,null,null,null,null,null,0,null,null,null,null,null,0]
[null,null,null,null,0,null,null,0,null,null,null,null,null,0,null,null,null,null,null,0,null,null,null,null,null,0]
[null,null,null,null,0,null,null,0,null,null,null,null,null,0,null,null,null,null,null,0,null,null,null,null,null,0]
[null,null,null,null,0,null,null,0,null,null,null,null,null,0,null,null,null,null,null,0,null,null,null,null,null,0]
[null,null,null,null,0,null,null,0,null,null,null,null,null,0,null,null,null,null,null,0,null,null,null,null,null,0]
[null,null,null,null,0,null,null,0,null,null,null,null,null,0,null,null,null,null,null,0,null,null,null,null,null,0]
[null,null,null,null,0,null,null,0,null,null,null,null,null,0,null,null,null,null,null,0,null,null,null,null,null,0]
[null,null,null,null,0,null,null,0,null,null,null,null,null,0,null,null,null,null,null,0,null,null,null,null,null,0]
[null,null,null,null,0,null,null,0,null,null,null,null,null,0,null,null,null,null,null,0,null,null,null,null,null,0]
[null,null,null,null,0,null,null,0,null,null,null,null,null,0,null,null,null,null,null,0,null,null,null,null,null,0]
[null,null,null,null,0,null,null,0,null,null,null,null,null,0,null,null,null,null,null,0,null,null,null,null,null,0]
[null,null,null,null,0,null,null,0,null,null,null,null,null,0,null,null,null,null,null,0,null,null,null,null,null,0]
[null,null,null,null,0,null,null,0,null,null,null,null,null,0,null,null,null,null,null,0,null,null,null,null,null,0]
[null,null,null,null,0,null,null,0,null,null,null,null,null,0,null,null,null,null,null,0,null,null,null,null,null,0]
[null,null,null,null,0,null,null,0,null,null,null,null,null,0,null,null,null,null,null,0,null,null,null,null,null,0]
[null,null,null,null,0,null,null,0,null,null,null,null,null,0,null,null,null,null,null,0,null,null,null,null,null,0]
[null,null,null,null,0,null,null,0,null,null,null,null,null,0,null,null,null,null,null,0,null,null,null,null,null,0]
[null,null,null,null,0,null,null,0,null,null,null,null,null,0,null,null,null,null,null,0,null,null,null,null,null,0]
[null,null,null,null,0,null,null,0,null,null,null,null,null,0,null,null,null,null,null,0,null,null,null,null,null,0]
[null,null,null,null,0,null,null,0,null,null,null,null,null,0,null,null,null,null,null,0,null,null,null,null,null,0]
[null,null,null,null,0,null,null,0,null,null,null,null,null,0,null,null,null,null,null,0,null,null,null,null,null,0]
[null,null,null,null,0,null,null,0,null,null,null,null,null,0,null,null,null,null,null,0,null,null,null,null,null,0]
[null,null,null,null,0,null,null,0,null,null,null,null,null,0,null,null,null,null,null,0,null,null,null,null,null,0]
[null,null,null,null,0,null,null,0,null,null,null,null,null,0,null,null,null,null,null,0,null,null,null,null,null,0]
[null,null,null,null,0,null,null,0,null,null,null,null,null,0,null,null,null,null,null,0,null,null,null,null,null,0]
[null,null,null,null,0,null,null,0,null,null,null,null,null,0,null,null,null,null,null,0,null,null,null,null,null,0]
[null,null,null,null,0,null,null,0,null,null,null,null,null,0,null,null,null,null,null,0,null,null,null,null,null,0]
[null,null,null,null,0,null,null,0,null,null,null,null,null,0,null,null,null,null,null,0,null,null,null,null,null,0]
[null,null,null,null,0,null,null,0,null,null,null,null,null,0,null,null,null,null,null,0,null,null,null,null,null,0]
[null,null,null,null,0,null,null,0,null,null,null,null,null,0,null,null,null,null,null,0,null,null,null,null,null,0]
[null,null,null,null,0,null,null,0,null,null,null,null,null,0,null,null,null,null,null,0,null,null,null,null,null,0]
[null,null,null,null,0,null,null,0,null,null,null,null,null,0,null,null,null,null,null,0,null,null,null,null,null,0]
[null,null,null,null,0,null,null,0,null,null,null,null,null,0,null,null,null,null,null,0,null,null,null,null,null,0]
[null,null,null,null,0,null,null,0,null,null,null,null,null,0,null,null,null,null,null,0,null,null,null,null,null,0]
[null,null,null,null,0,null,null,0,null,null,null,null,null,0,null,null,null,null,null,0,null,null,null,null,null,0]
[null,null,null,null,0,null,null,0,null,null,null,null,null,0,null,null,null,null,null,0,null,null,null,null,null,0]
[null,null,null,null,0,null,null,0,null,null,null,null,null,0,null,null,null,null,null,0,null,null,null,null,null,0]
[null,null,null,null,0,null,null,0,null,null,null,null,null,0,null,null,null,null,null,0,null,null,null,null,null,0]
[null,null,null,null,0,null,null,0,null,null,null,null,null,0,null,null,null,null,null,0,null,null,null,null,null,0]
[null,null,null,null,0,null,null,0,null,null,null,null,null,0,null,null,null,null,null,0,null,null,null,null,null,0]
[null,null,null,null,0,null,null,0,null,null,null,null,null,0,null,null,null,null,null,0,null,null,null,null,null,0]
[null,null,null,null,0,null,null,0,null,null,null,null,null,0,null,null,null,null,null,0,null,null,null,null,null,0]
[null,null,null,null,0,null,null,0,null,null,null,null,null,0,null,null,null,null,null,0,null,null,null,null,null,0]
[null,null,null,null,0,null,null,0,null,null,null,null,null,0,null,null,null,null,null,0,null,null,null,null,null,0]
[null,null,null,null,0,null,null,0,null,null,null,null,null,0,null,null,null,null,null,0,null,null,null,null,null,0]
[null,null,null,null,0,null,null,0,null,null,null,null,null,0,null,null,null,null,null,0,null,null,null,null,null,0]
[null,null,null,null,0,null,null,0,null,null,null,null,null,0,null,null,null,null,null,0,null,null,null,null,null,0]
[null,null,null,null,0,null,null,0,null,null,null,null,null,0,null,null,null,null,null,0,null,null,null,null,null,0]
[null,null,null,null,0,null,null,0,null,null,null,null,null,0,null,null,null,null,null,0,null,null,null,null,null,0]
[null,null,null,null,0,null,null,0,null,null,null,null,null,0,null,null,null,null,null,0,null,null,null,null,null,0]
[null,null,null,null,0,null,null,0,null,null,null,null,null,0,null,null,null,null,null,0,null,null,null,null,null,0]
[null,null,null,null,0,null,null,0,null,null,null,null,null,0,null,null,null,null,null,0,null,null,null,null,null,0]
[null,null,null,null,0,null,null,0,null,null,null,null,null,0,null,null,null,null,null,0,null,null,null,null,null,0]
[null,null,null,null,0,null,null,0,null,null,null,null,null,0,null,null,null,null,null,0,null,null,null,null,null,0]
[null,null,null,null,0,null,null,0,null,null,null,null,null,0,null,null,null,null,null,0,null,null,null,null,null,0]
[null,null,null,null,0,null,null,0,null,null,null,null,null,0,null,null,null,null,null,0,null,null,null,null,null,0]
[null,null,null,null,0,null,null,0,null,null,null,null,null,0,null,null,null,null,null,0,null,null,null,null,null,0]
[null,null,null,null,0,null,null,0,null,null,null,null,null,0,null,null,null,null,null,0,null,null,null,null,null,0]
[null,null,null,null,0,null,null,0,null,null,null,null,null,0,null,null,null,null,null,0,null,null,null,null,null,0]
[null,null,null,null,0,null,null,0,null,null,null,null,null,0,null,null,null,null,null,0,null,null,null,null,null,0]
[null,null,null,null,0,null,null,0,null,null,null,null,null,0,null,null,null,null,null,0,null,null,null,null,null,0]
[null,null,null,null,0,null,null,0,null,null,null,null,null,0,null,null,null,null,null,0,null,null,null,null,null,0]
[null,null,null,null,0,null,null,0,null,null,null,null,null,0,null,null,null,null,null,0,null,null,null,null,null,0]
[null,null,null,null,{"$f":"IF(ISERR(FIND(\".\",E77)),0,LEN(MID(E77,FIND(\".\",E77)+1,15)))","v":0},null,null,{"$f":"IF(ISERR(FIND(\".\",H77)),0,LEN(MID(H77,FIND(\".\",H77)+1,15)))","v":0},null,null,null,null,null,{"$f":"IF(ISERR(FIND(\".\",N77)),0,LEN(MID(N77,FIND(\".\",N77)+1,15)))","v":0},null,null,null,null,null,{"$f":"IF(ISERR(FIND(\".\",T77)),0,LEN(MID(T77,FIND(\".\",T77)+1,15)))","v":0},null,null,null,null,null,{"$f":"IF(ISERR(FIND(\".\",Z77)),0,LEN(MID(Z77,FIND(\".\",Z77)+1,15)))","v":0}]
[null,null,null,null,0,null,null,0,null,null,null,null,null,0,null,null,null,null,null,0,null,null,null,null,null,0]
[null,null,null,null,0,null,null,0,null,null,null,null,null,0,null,null,null,null,null,0,null,null,null,null,null,0]
[null,null,null,null,0,null,null,0,null,null,null,null,null,0,null,null,null,null,null,0,null,null,null,null,null,0]
[null,null,null,null,0,null,null,0,null,null,null,null,null,0,null,null,null,null,null,0,null,null,null,null,null,0]
[null,null,null,null,0,null,null,0,null,null,null,null,null,0,null,null,null,null,null,0,null,null,null,null,null,0]
[null,null,null,null,0,null,null,0,null,null,null,null,null,0,null,null,null,null,null,0,null,null,null,null,null,0]
[null,null,null,null,0,null,null,0,null,null,null,null,null,0,null,null,null,null,null,0,null,null,null,null,null,0]
[null,null,null,null,0,null,null,0,null,null,null,null,null,0,null,null,null,null,null,0,null,null,null,null,null,0]
[null,null,null,null,0,null,null,0,null,null,null,null,null,0,null,null,null,null,null,0,null,null,null,null,null,0]
[null,null,null,null,0,null,null,0,null,null,null,null,null,0,null,null,null,null,null,0,null,null,null,null,null,0]
[null,null,null,null,0,null,null,0,null,null,null,null,null,0,null,null,null,null,null,0,null,null,null,null,null,0]
[null,null,null,null,0,null,null,0,null,null,null,null,null,0,null,null,null,null,null,0,null,null,null,null,null,0]
[null,null,null,null,0,null,null,0,null,null,null,null,null,0,null,null,null,null,null,0,null,null,null,null,null,0]
[null,null,null,null,0,null,null,0,null,null,null,null,null,0,null,null,null,null,null,0,null,null,null,null,null,0]
[null,null,null,null,0,null,null,0,null,null,null,null,null,0,null,null,null,null,null,0,null,null,null,null,null,0]
[null,null,null,null,0,null,null,0,null,null,null,null,null,0,null,null,null,null,null,0,null,null,null,null,null,0]
[null,null,null,null,0,null,null,0,null,null,null,null,null,0,null,null,null,null,null,0,null,null,null,null,null,0]
[null,null,null,null,0,null,null,0,null,null,null,null,null,0,null,null,null,null,null,0,null,null,null,null,null,0]
[null,null,null,null,0,null,null,0,null,null,null,null,null,0,null,null,null,null,null,0,null,null,null,null,null,0]
[null,null,null,null,0,null,null,0,null,null,null,null,null,0,null,null,null,null,null,0,null,null,null,null,null,0]
[null,null,null,null,0,null,null,0,null,null,null,null,null,0,null,null,null,null,null,0,null,null,null,null,null,0]
[null,null,null,null,0,null,null,0,null,null,null,null,null,0,null,null,null,null,null,0,null,null,null,null,null,0]
[null,null,null,null,0,null,null,0,null,null,null,null,null,0,null,null,null,null,null,0,null,null,null,null,null,0]
[null,null,null,null,0,null,null,0,null,null,null,null,null,0,null,null,null,null,null,0,null,null,null,null,null,0]
[null,null,null,null,0,null,null,0,null,null,null,null,null,0,null,null,null,null,null,0,null,null,null,null,null,0]
[null,null,null,null,0,null,null,0,null,null,null,null,null,0,null,null,null,null,null,0,null,null,null,null,null,0]
[null,null,null,null,0,null,null,0,null,null,null,null,null,0,null,null,null,null,null,0,null,null,null,null,null,0]
[null,null,null,null,0,null,null,0,null,null,null,null,null,0,null,null,null,null,null,0,null,null,null,null,null,0]
[null,null,null,null,0,null,null,0,null,null,null,null,null,0,null,null,null,null,null,0,null,null,null,null,null,0]
[null,null,null,null,0,null,null,0,null,null,null,null,null,0,null,null,null,null,null,0,null,null,null,null,null,0]
[null,null,null,null,0,null,null,0,null,null,null,null,null,0,null,null,null,null,null,0,null,null,null,null,null,0]
[null,null,null,null,0,null,null,0,null,null,null,null,null,0,null,null,null,null,null,0,null,null,null,null,null,0]
[null,null,null,null,0,null,null,0,null,null,null,null,null,0,null,null,null,null,null,0,null,null,null,null,null,0]
[null,null,null,null,0,null,null,0,null,null,null,null,null,0,null,null,null,null,null,0,null,null,null,null,null,0]
[null,null,null,null,0,null,null,0,null,null,null,null,null,0,null,null,null,null,null,0,null,null,null,null,null,0]
[null,null,null,null,0,null,null,0,null,null,null,null,null,0,null,null,null,null,null,0,null,null,null,null,null,0]
[null,null,null,null,0,null,null,0,null,null,null,null,null,0,null,null,null,null,null,0,null,null,null,null,null,0]
[null,null,null,null,0,null,null,0,null,null,null,null,null,0,null,null,null,null,null,0,null,null,null,null,null,0]
[null,null,null,null,0,null,null,0,null,null,null,null,null,0,null,null,null,null,null,0,null,null,null,null,null,0]
[null,null,null,null,0,null,null,0,null,null,null,null,null,0,null,null,null,null,null,0,null,null,null,null,null,0]
[null,null,null,null,0,null,null,0,null,null,null,null,null,0,null,null,null,null,null,0,null,null,null,null,null,0]
[null,null,null,null,0,null,null,0,null,null,null,null,null,0,null,null,null,null,null,0,null,null,null,null,null,0]
[null,null,null,null,0,null,null,0,null,null,null,null,null,0,null,null,null,null,null,0,null,null,null,null,null,0]
[null,null,null,null,0,null,null,0,null,null,null,null,null,0,null,null,null,null,null,0,null,null,null,null,null,0]
[null,null,null,null,0,null,null,0,null,null,null,null,null,0,null,null,null,null,null,0,null,null,null,null,null,0]
[null,null,null,null,0,null,null,0,null,null,null,null,null,0,null,null,null,null,null,0,null,null,null,null,null,0]
[null,null,null,null,0,null,null,0,null,null,null,null,null,0,null,null,null,null,null,0,null,null,null,null,null,0]
[null,null,null,null,0,null,null,0,null,null,null,null,null,0,null,null,null,null,null,0,null,null,null,null,null,0]
[null,null,null,null,0,null,null,0,null,null,null,null,null,0,null,null,null,null,null,0,null,null,null,null,null,0]
[null,null,null,null,0,null,null,0,null,null,null,null,null,0,null,null,null,null,null,0,null,null,null,null,null,0]
[null,null,null,null,0,null,null,0,null,null,null,null,null,0,null,null,null,null,null,0,null,null,null,null,null,0]
[null,null,null,null,0,null,null,0,null,null,null,null,null,0,null,null,null,null,null,0,null,null,null,null,null,0]
[null,null,null,null,0,null,null,0,null,null,null,null,null,0,null,null,null,null,null,0,null,null,null,null,null,0]
[null,null,null,null,0,null,null,0,null,null,null,null,null,0,null,null,null,null,null,0,null,null,null,null,null,0]
[null,null,null,null,0,null,null,0,null,null,null,null,null,0,null,null,null,null,null,0,null,null,null,null,null,0]
[null,null,null,null,0,null,null,0,null,null,null,null,null,0,null,null,null,null,null,0,null,null,null,null,null,0]
[null,null,null,null,0,null,null,0,null,null,null,null,null,0,null,null,null,null,null,0,null,null,null,null,null,0]
[null,null,null,null,0,null,null,0,null,null,null,null,null,0,null,null,null,null,null,0,null,null,null,null,null,0]
[null,null,null,null,0,null,null,0,null,null,null,null,null,0,null,null,null,null,null,0,null,null,null,null,null,0]
[null,null,null,null,0,null,null,0,null,null,null,null,null,0,null,null,null,null,null,0,null,null,null,null,null,0]
[null,null,null,null,0,null,null,0,null,null,null,null,null,0,null,null,null,null,null,0,null,null,null,null,null,0]
[null,null,null,null,0,null,null,0,null,null,null,null,null,0,null,null,null,null,null,0,null,null,null,null,null,0]
[null,null,null,null,0,null,null,0,null,null,null,null,null,0,null,null,null,null,null,0,null,null,null,null,null,0]
[null,null,null,null,{"$f":"IF(ISERR(FIND(\".\",E141)),0,LEN(MID(E141,FIND(\".\",E141)+1,15)))","v":0},null,null,{"$f":"IF(ISERR(FIND(\".\",H141)),0,LEN(MID(H141,FIND(\".\",H141)+1,15)))","v":0},null,null,null,null,null,{"$f":"IF(ISERR(FIND(\".\",N141)),0,LEN(MID(N141,FIND(\".\",N141)+1,15)))","v":0},null,null,null,null,null,{"$f":"IF(ISERR(FIND(\".\",T141)),0,LEN(MID(T141,FIND(\".\",T141)+1,15)))","v":0},null,null,null,null,null,{"$f":"IF(ISERR(FIND(\".\",Z141)),0,LEN(MID(Z141,FIND(\".\",Z141)+1,15)))","v":0}]
[null,null,null,null,0,null,null,0,null,null,null,null,null,0,null,null,null,null,null,0,null,null,null,null,null,0]
[null,null,null,null,0,null,null,0,null,null,null,null,null,0,null,null,null,null,null,0,null,null,null,null,null,0]
[null,null,null,null,0,null,null,0,null,null,null,null,null,0,null,null,null,null,null,0,null,null,null,null,null,0]
[null,null,null,null,0,null,null,0,null,null,null,null,null,0,null,null,null,null,null,0,null,null,null,null,null,0]
[null,null,null,null,0,null,null,0,null,null,null,null,null,0,null,null,null,null,null,0,null,null,null,null,null,0]
[null,null,null,null,0,null,null,0,null,null,null,null,null,0,null,null,null,null,null,0,null,null,null,null,null,0]
[null,null,null,null,0,null,null,0,null,null,null,null,null,0,null,null,null,null,null,0,null,null,null,null,null,0]
[null,null,null,null,0,null,null,0,null,null,null,null,null,0,null,null,null,null,null,0,null,null,null,null,null,0]
[null,null,null,null,0,null,null,0,null,null,null,null,null,0,null,null,null,null,null,0,null,null,null,null,null,0]
[null,null,null,null,0,null,null,0,null,null,null,null,null,0,null,null,null,null,null,0,null,null,null,null,null,0]
[null,null,null,null,0,null,null,0,null,null,null,null,null,0,null,null,null,null,null,0,null,null,null,null,null,0]
[null,null,null,null,0,null,null,0,null,null,null,null,null,0,null,null,null,null,null,0,null,null,null,null,null,0]
[null,null,null,null,0,null,null,0,null,null,null,null,null,0,null,null,null,null,null,0,null,null,null,null,null,0]
[null,null,null,null,0,null,null,0,null,null,null,null,null,0,null,null,null,null,null,0,null,null,null,null,null,0]
[null,null,null,null,0,null,null,0,null,null,null,null,null,0,null,null,null,null,null,0,null,null,null,null,null,0]
[null,null,null,null,0,null,null,0,null,null,null,null,null,0,null,null,null,null,null,0,null,null,null,null,null,0]
[null,null,null,null,0,null,null,0,null,null,null,null,null,0,null,null,null,null,null,0,null,null,null,null,null,0]
[null,null,null,null,0,null,null,0,null,null,null,null,null,0,null,null,null,null,null,0,null,null,null,null,null,0]
[null,null,null,null,0,null,null,0,null,null,null,null,null,0,null,null,null,null,null,0,null,null,null,null,null,0]
[null,null,null,null,0,null,null,0,null,null,null,null,null,0,null,null,null,null,null,0,null,null,null,null,null,0]
[null,null,null,null,0,null,null,0,null,null,null,null,null,0,null,null,null,null,null,0,null,null,null,null,null,0]
[null,null,null,null,0,null,null,0,null,null,null,null,null,0,null,null,null,null,null,0,null,null,null,null,null,0]
[null,null,null,null,0,null,null,0,null,null,null,null,null,0,null,null,null,null,null,0,null,null,null,null,null,0]
[null,null,null,null,0,null,null,0,null,null,null,null,null,0,null,null,null,null,null,0,null,null,null,null,null,0]
[null,null,null,null,0,null,null,0,null,null,null,null,null,0,null,null,null,null,null,0,null,null,null,null,null,0]
[null,null,null,null,0,null,null,0,null,null,null,null,null,0,null,null,null,null,null,0,null,null,null,null,null,0]
[null,null,null,null,0,null,null,0,null,null,null,null,null,0,null,null,null,null,null,0,null,null,null,null,null,0]
[null,null,null,null,0,null,null,0,null,null,null,null,null,0,null,null,null,null,null,0,null,null,null,null,null,0]
[null,null,null,null,0,null,null,0,null,null,null,null,null,0,null,null,null,null,null,0,null,null,null,null,null,0]
[null,null,null,null,0,null,null,0,null,null,null,null,null,0,null,null,null,null,null,0,null,null,null,null,null,0]
[null,null,null,null,0,null,null,0,null,null,null,null,null,0,null,null,null,null,null,0,null,null,null,null,null,0]
[null,null,null,null,0,null,null,0,null,null,null,null,null,0,null,null,null,null,null,0,null,null,null,null,null,0]
[null,null,null,null,0,null,null,0,null,null,null,null,null,0,null,null,null,null,null,0,null,null,null,null,null,0]
[null,null,null,null,0,null,null,0,null,null,null,null,null,0,null,null,null,null,null,0,null,null,null,null,null,0]
[null,null,null,null,0,null,null,0,null,null,null,null,null,0,null,null,null,null,null,0,null,null,null,null,null,0]
[null,null,null,null,0,null,null,0,null,null,null,null,null,0,null,null,null,null,null,0,null,null,null,null,null,0]
[null,null,null,null,0,null,null,0,null,null,null,null,null,0,null,null,null,null,null,0,null,null,null,null,null,0]
[null,null,null,null,0,null,null,0,null,null,null,null,null,0,null,null,null,null,null,0,null,null,null,null,null,0]
[null,null,null,null,0,null,null,0,null,null,null,null,null,0,null,null,null,null,null,0,null,null,null,null,null,0]
[null,null,null,null,0,null,null,0,null,null,null,null,null,0,null,null,null,null,null,0,null,null,null,null,null,0]
[null,null,null,null,0,null,null,0,null,null,null,null,null,0,null,null,null,null,null,0,null,null,null,null,null,0]
[null,null,null,null,0,null,null,0,null,null,null,null,null,0,null,null,null,null,null,0,null,null,null,null,null,0]
[null,null,null,null,0,null,null,0,null,null,null,null,null,0,null,null,null,null,null,0,null,null,null,null,null,0]
[null,null,null,null,0,null,null,0,null,null,null,null,null,0,null,null,null,null,null,0,null,null,null,null,null,0]
[null,null,null,null,0,null,null,0,null,null,null,null,null,0,null,null,null,null,null,0,null,null,null,null,null,0]
[null,null,null,null,0,null,null,0,null,null,null,null,null,0,null,null,null,null,null,0,null,null,null,null,null,0]
[null,null,null,null,0,null,null,0,null,null,null,null,null,0,null,null,null,null,null,0,null,null,null,null,null,0]
[null,null,null,null,0,null,null,0,null,null,null,null,null,0,null,null,null,null,null,0,null,null,null,null,null,0]
[null,null,null,null,0,null,null,0,null,null,null,null,null,0,null,null,null,null,null,0,null,null,null,null,null,0]
[null,null,null,null,0,null,null,0,null,null,null,null,null,0,null,null,null,null,null,0,null,null,null,null,null,0]
[null,null,null,null,0,null,null,0,null,null,null,null,null,0,null,null,null,null,null,0,null,null,null,null,null,0]
[null,null,null,null,0,null,null,0,null,null,null,null,null,0,null,null,null,null,null,0,null,null,null,null,null,0]
[null,null,null,null,0,null,null,0,null,null,null,null,null,0,null,null,null,null,null,0,null,null,null,null,null,0]
[null,null,null,null,0,null,null,0,null,null,null,null,null,0,null,null,null,null,null,0,null,null,null,null,null,0]
[null,null,null,null,0,null,null,0,null,null,null,null,null,0,null,null,null,null,null,0,null,null,null,null,null,0]
[null,null,null,null,0,null,null,0,null,null,null,null,null,0,null,null,null,null,null,0,null,null,null,null,null,0]
[null,null,null,null,0,null,null,0,null,null,null,null,null,0,null,null,null,null,null,0,null,null,null,null,null,0]
[null,null,null,null,0,null,null,0,null,null,null,null,null,0,null,null,null,null,null,0,null,null,null,null,null,0]
[null,null,null,null,0,null,null,0,null,null,null,null,null,0,null,null,null,null,null,0,null,null,null,null,null,0]
[null,null,null,null,0,null,null,0,null,null,null,null,null,0,null,null,null,null,null,0,null,null,null,null,null,0]
[null,null,null,null,0,null,null,0,null,null,null,null,null,0,null,null,null,null,null,0,null,null,null,null,null,0]
[null,null,null,null,0,null,null,0,null,null,null,null,null,0,null,null,null,null,null,0,null,null,null,null,null,0]
[null,null,null,null,0,null,null,0,null,null,null,null,null,0,null,null,null,null,null,0,null,null,null,null,null,0]
[null,null,null,null,{"$f":"IF(ISERR(FIND(\".\",E205)),0,LEN(MID(E205,FIND(\".\",E205)+1,15)))","v":0},null,null,{"$f":"IF(ISERR(FIND(\".\",H205)),0,LEN(MID(H205,FIND(\".\",H205)+1,15)))","v":0},null,null,null,null,null,{"$f":"IF(ISERR(FIND(\".\",N205)),0,LEN(MID(N205,FIND(\".\",N205)+1,15)))","v":0},null,null,null,null,null,{"$f":"IF(ISERR(FIND(\".\",T205)),0,LEN(MID(T205,FIND(\".\",T205)+1,15)))","v":0},null,null,null,null,null,{"$f":"IF(ISERR(FIND(\".\",Z205)),0,LEN(MID(Z205,FIND(\".\",Z205)+1,15)))","v":0}]
[null,null,null,null,0,null,null,0,null,null,null,null,null,0,null,null,null,null,null,0,null,null,null,null,null,0]
[null,null,null,null,0,null,null,0,null,null,null,null,null,0,null,null,null,null,null,0,null,null,null,null,null,0]
[null,null,null,null,0,null,null,0,null,null,null,null,null,0,null,null,null,null,null,0,null,null,null,null,null,0]
[null,null,null,null,0,null,null,0,null,null,null,null,null,0,null,null,null,null,null,0,null,null,null,null,null,0]
[null,null,null,null,0,null,null,0,null,null,null,null,null,0,null,null,null,null,null,0,null,null,null,null,null,0]
[null,null,null,null,0,null,null,0,null,null,null,null,null,0,null,null,null,null,null,0,null,null,null,null,null,0]
[null,null,null,null,0,null,null,0,null,null,null,null,null,0,null,null,null,null,null,0,null,null,null,null,null,0]
[null,null,null,null,0,null,null,0,null,null,null,null,null,0,null,null,null,null,null,0,null,null,null,null,null,0]
[null,null,null,null,0,null,null,0,null,null,null,null,null,0,null,null,null,null,null,0,null,null,null,null,null,0]
[null,null,null,null,0,null,null,0,null,null,null,null,null,0,null,null,null,null,null,0,null,null,null,null,null,0]
[null,null,null,null,0,null,null,0,null,null,null,null,null,0,null,null,null,null,null,0,null,null,null,null,null,0]
[null,null,null,null,0,null,null,0,null,null,null,null,null,0,null,null,null,null,null,0,null,null,null,null,null,0]
[null,null,null,null,0,null,null,0,null,null,null,null,null,0,null,null,null,null,null,0,null,null,null,null,null,0]
[null,null,null,null,0,null,null,0,null,null,null,null,null,0,null,null,null,null,null,0,null,null,null,null,null,0]
[null,null,null,null,0,null,null,0,null,null,null,null,null,0,null,null,null,null,null,0,null,null,null,null,null,0]
[null,null,null,null,0,null,null,0,null,null,null,null,null,0,null,null,null,null,null,0,null,null,null,null,null,0]
[null,null,null,null,0,null,null,0,null,null,null,null,null,0,null,null,null,null,null,0,null,null,null,null,null,0]
[null,null,null,null,0,null,null,0,null,null,null,null,null,0,null,null,null,null,null,0,null,null,null,null,null,0]
[null,null,null,null,0,null,null,0,null,null,null,null,null,0,null,null,null,null,null,0,null,null,null,null,null,0]
[null,null,null,null,0,null,null,0,null,null,null,null,null,0,null,null,null,null,null,0,null,null,null,null,null,0]
[null,null,null,null,0,null,null,0,null,null,null,null,null,0,null,null,null,null,null,0,null,null,null,null,null,0]
[null,null,null,null,0,null,null,0,null,null,null,null,null,0,null,null,null,null,null,0,null,null,null,null,null,0]
[null,null,null,null,0,null,null,0,null,null,null,null,null,0,null,null,null,null,null,0,null,null,null,null,null,0]
[null,null,null,null,0,null,null,0,null,null,null,null,null,0,null,null,null,null,null,0,null,null,null,null,null,0]
[null,null,null,null,0,null,null,0,null,null,null,null,null,0,null,null,null,null,null,0,null,null,null,null,null,0]
[null,null,null,null,0,null,null,0,null,null,null,null,null,0,null,null,null,null,null,0,null,null,null,null,null,0]
[null,null,null,null,0,null,null,0,null,null,null,null,null,0,null,null,null,null,null,0,null,null,null,null,null,0]
[null,null,null,null,0,null,null,0,null,null,null,null,null,0,null,null,null,null,null,0,null,null,null,null,null,0]
[null,null,null,null,0,null,null,0,null,null,null,null,null,0,null,null,null,null,null,0,null,null,null,null,null,0]
[null,null,null,null,0,null,null,0,null,null,null,null,null,0,null,null,null,null,null,0,null,null,null,null,null,0]
[null,null,null,null,0,null,null,0,null,null,null,null,null,0,null,null,null,null,null,0,null,null,null,null,null,0]
[null,null,null,null,0,null,null,0,null,null,null,null,null,0,null,null,null,null,null,0,null,null,null,null,null,0]
[null,null,null,null,0,null,null,0,null,null,null,null,null,0,null,null,null,null,null,0,null,null,null,null,null,0]
[null,null,null,null,0,null,null,0,null,null,null,null,null,0,null,null,null,null,null,0,null,null,null,null,null,0]
[null,null,null,null,0,null,null,0,null,null,null,null,null,0,null,null,null,null,null,0,null,null,null,null,null,0]
[null,null,null,null,0,null,null,0,null,null,null,null,null,0,null,null,null,null,null,0,null,null,null,null,null,0]
[null,null,null,null,0,null,null,0,null,null,null,null,null,0,null,null,null,null,null,0,null,null,null,null,null,0]
[null,null,null,null,0,null,null,0,null,null,null,null,null,0,null,null,null,null,null,0,null,null,null,null,null,0]
[null,null,null,null,0,null,null,0,null,null,null,null,null,0,null,null,null,null,null,0,null,null,null,null,null,0]
[null,null,null,null,0,null,null,0,null,null,null,null,null,0,null,null,null,null,null,0,null,null,null,null,null,0]
[null,null,null,null,0,null,null,0,null,null,null,null,null,0,null,null,null,null,null,0,null,null,null,null,null,0]
[null,null,null,null,0,null,null,0,null,null,null,null,null,0,null,null,null,null,null,0,null,null,null,null,null,0]
[null,null,null,null,0,null,null,0,null,null,null,null,null,0,null,null,null,null,null,0,null,null,null,null,null,0]
[null,null,null,null,0,null,null,0,null,null,null,null,null,0,null,null,null,null,null,0,null,null,null,null,null,0]
[null,null,null,null,0,null,null,0,null,null,null,null,null,0,null,null,null,null,null,0,null,null,null,null,null,0]
[null,null,null,null,0,null,null,0,null,null,null,null,null,0,null,null,null,null,null,0,null,null,null,null,null,0]
[null,null,null,null,0,null,null,0,null,null,null,null,null,0,null,null,null,null,null,0,null,null,null,null,null,0]
[null,null,null,null,0,null,null,0,null,null,null,null,null,0,null,null,null,null,null,0,null,null,null,null,null,0]
[null,null,null,null,0,null,null,0,null,null,null,null,null,0,null,null,null,null,null,0,null,null,null,null,null,0]
[null,null,null,null,0,null,null,0,null,null,null,null,null,0,null,null,null,null,null,0,null,null,null,null,null,0]
[null,null,null,null,0,null,null,0,null,null,null,null,null,0,null,null,null,null,null,0,null,null,null,null,null,0]
[null,null,null,null,0,null,null,0,null,null,null,null,null,0,null,null,null,null,null,0,null,null,null,null,null,0]
[null,null,null,null,0,null,null,0,null,null,null,null,null,0,null,null,null,null,null,0,null,null,null,null,null,0]
[null,null,null,null,0,null,null,0,null,null,null,null,null,0,null,null,null,null,null,0,null,null,null,null,null,0]
[null,null,null,null,0,null,null,0,null,null,null,null,null,0,null,null,null,null,null,0,null,null,null,null,null,0]
[null,null,null,null,0,null,null,0,null,null,null,null,null,0,null,null,null,null,null,0,null,null,null,null,null,0]
[null,null,null,null,0,null,null,0,null,null,null,null,null,0,null,null,null,null,null,0,null,null,null,null,null,0]
[null,null,null,null,0,null,null,0,null,null,null,null,null,0,null,null,null,null,null,0,null,null,null,null,null,0]
[null,null,null,null,0,null,null,0,null,null,null,null,null,0,null,null,null,null,null,0,null,null,null,null,null,0]
[null,null,null,null,0,null,null,0,null,null,null,null,null,0,null,null,null,null,null,0,null,null,null,null,null,0]
[null,null,null,null,0,null,null,0,null,null,null,null,null,0,null,null,null,null,null,0,null,null,null,null,null,0]
[null,null,null,null,0,null,null,0,null,null,null,null,null,0,null,null,null,null,null,0,null,null,null,null,null,0]
[null,null,null,null,0,null,null,0,null,null,null,null,null,0,null,null,null,null,null,0,null,null,null,null,null,0]
[null,null,null,null,{"$f":"IF(ISERR(FIND(\".\",E269)),0,LEN(MID(E269,FIND(\".\",E269)+1,15)))","v":0},null,null,{"$f":"IF(ISERR(FIND(\".\",H269)),0,LEN(MID(H269,FIND(\".\",H269)+1,15)))","v":0},null,null,null,null,null,{"$f":"IF(ISERR(FIND(\".\",N269)),0,LEN(MID(N269,FIND(\".\",N269)+1,15)))","v":0},null,null,null,null,null,{"$f":"IF(ISERR(FIND(\".\",T269)),0,LEN(MID(T269,FIND(\".\",T269)+1,15)))","v":0},null,null,null,null,null,{"$f":"IF(ISERR(FIND(\".\",Z269)),0,LEN(MID(Z269,FIND(\".\",Z269)+1,15)))","v":0}]
[null,null,null,null,0,null,null,0,null,null,null,null,null,0,null,null,null,null,null,0,null,null,null,null,null,0]
[null,null,null,null,0,null,null,0,null,null,null,null,null,0,null,null,null,null,null,0,null,null,null,null,null,0]
[null,null,null,null,0,null,null,0,null,null,null,null,null,0,null,null,null,null,null,0,null,null,null,null,null,0]
[null,null,null,null,0,null,null,0,null,null,null,null,null,0,null,null,null,null,null,0,null,null,null,null,null,0]
[null,null,null,null,0,null,null,0,null,null,null,null,null,0,null,null,null,null,null,0,null,null,null,null,null,0]
[null,null,null,null,0,null,null,0,null,null,null,null,null,0,null,null,null,null,null,0,null,null,null,null,null,0]
[null,null,null,null,0,null,null,0,null,null,null,null,null,0,null,null,null,null,null,0,null,null,null,null,null,0]
[null,null,null,null,0,null,null,0,null,null,null,null,null,0,null,null,null,null,null,0,null,null,null,null,null,0]
[null,null,null,null,0,null,null,0,null,null,null,null,null,0,null,null,null,null,null,0,null,null,null,null,null,0]
[null,null,null,null,0,null,null,0,null,null,null,null,null,0,null,null,null,null,null,0,null,null,null,null,null,0]
[null,null,null,null,0,null,null,0,null,null,null,null,null,0,null,null,null,null,null,0,null,null,null,null,null,0]
[null,null,null,null,0,null,null,0,null,null,null,null,null,0,null,null,null,null,null,0,null,null,null,null,null,0]
[null,null,null,null,0,null,null,0,null,null,null,null,null,0,null,null,null,null,null,0,null,null,null,null,null,0]
[null,null,null,null,0,null,null,0,null,null,null,null,null,0,null,null,null,null,null,0,null,null,null,null,null,0]
[null,null,null,null,0,null,null,0,null,null,null,null,null,0,null,null,null,null,null,0,null,null,null,null,null,0]
[null,null,null,null,0,null,null,0,null,null,null,null,null,0,null,null,null,null,null,0,null,null,null,null,null,0]
[null,null,null,null,0,null,null,0,null,null,null,null,null,0,null,null,null,null,null,0,null,null,null,null,null,0]
[null,null,null,null,0,null,null,0,null,null,null,null,null,0,null,null,null,null,null,0,null,null,null,null,null,0]
[null,null,null,null,0,null,null,0,null,null,null,null,null,0,null,null,null,null,null,0,null,null,null,null,null,0]
[null,null,null,null,0,null,null,0,null,null,null,null,null,0,null,null,null,null,null,0,null,null,null,null,null,0]
[null,null,null,null,0,null,null,0,null,null,null,null,null,0,null,null,null,null,null,0,null,null,null,null,null,0]
[null,null,null,null,0,null,null,0,null,null,null,null,null,0,null,null,null,null,null,0,null,null,null,null,null,0]
[null,null,null,null,0,null,null,0,null,null,null,null,null,0,null,null,null,null,null,0,null,null,null,null,null,0]
[null,null,null,null,0,null,null,0,null,null,null,null,null,0,null,null,null,null,null,0,null,null,null,null,null,0]
[null,null,null,null,0,null,null,0,null,null,null,null,null,0,null,null,null,null,null,0,null,null,null,null,null,0]
[null,null,null,null,0,null,null,0,null,null,null,null,null,0,null,null,null,null,null,0,null,null,null,null,null,0]
[null,null,null,null,0,null,null,0,null,null,null,null,null,0,null,null,null,null,null,0,null,null,null,null,null,0]
[null,null,null,null,0,null,null,0,null,null,null,null,null,0,null,null,null,null,null,0,null,null,null,null,null,0]
[null,null,null,null,0,null,null,0,null,null,null,null,null,0,null,null,null,null,null,0,null,null,null,null,null,0]
[null,null,null,null,0,null,null,0,null,null,null,null,null,0,null,null,null,null,null,0,null,null,null,null,null,0]
[null,null,null,null,0,null,null,0,null,null,null,null,null,0,null,null,null,null,null,0,null,null,null,null,null,0]
[null,null,null,null,0,null,null,0,null,null,null,null,null,0,null,null,null,null,null,0,null,null,null,null,null,0]
[null,null,null,null,0,null,null,0,null,null,null,null,null,0,null,null,null,null,null,0,null,null,null,null,null,0]
[null,null,null,null,0,null,null,0,null,null,null,null,null,0,null,null,null,null,null,0,null,null,null,null,null,0]
[null,null,null,null,0,null,null,0,null,null,null,null,null,0,null,null,null,null,null,0,null,null,null,null,null,0]
[null,null,null,null,0,null,null,0,null,null,null,null,null,0,null,null,null,null,null,0,null,null,null,null,null,0]
[null,null,null,null,0,null,null,0,null,null,null,null,null,0,null,null,null,null,null,0,null,null,null,null,null,0]
[null,null,null,null,0,null,null,0,null,null,null,null,null,0,null,null,null,null,null,0,null,null,null,null,null,0]
[null,null,null,null,0,null,null,0,null,null,null,null,null,0,null,null,null,null,null,0,null,null,null,null,null,0]
[null,null,null,null,0,null,null,0,null,null,null,null,null,0,null,null,null,null,null,0,null,null,null,null,null,0]
[null,null,null,null,0,null,null,0,null,null,null,null,null,0,null,null,null,null,null,0,null,null,null,null,null,0]
[null,null,null,null,0,null,null,0,null,null,null,null,null,0,null,null,null,null,null,0,null,null,null,null,null,0]
[null,null,null,null,0,null,null,0,null,null,null,null,null,0,null,null,null,null,null,0,null,null,null,null,null,0]
[null,null,null,null,0,null,null,0,null,null,null,null,null,0,null,null,null,null,null,0,null,null,null,null,null,0]
[null,null,null,null,0,null,null,0,null,null,null,null,null,0,null,null,null,null,null,0,null,null,null,null,null,0]
[null,null,null,null,0,null,null,0,null,null,null,null,null,0,null,null,null,null,null,0,null,null,null,null,null,0]
[null,null,null,null,0,null,null,0,null,null,null,null,null,0,null,null,null,null,null,0,null,null,null,null,null,0]
[null,null,null,null,0,null,null,0,null,null,null,null,null,0,null,null,null,null,null,0,null,null,null,null,null,0]
[null,null,null,null,0,null,null,0,null,null,null,null,null,0,null,null,null,null,null,0,null,null,null,null,null,0]
[null,null,null,null,0,null,null,0,null,null,null,null,null,0,null,null,null,null,null,0,null,null,null,null,null,0]
[null,null,null,null,0,null,null,0,null,null,null,null,null,0,null,null,null,null,null,0,null,null,null,null,null,0]
[null,null,null,null,0,null,null,0,null,null,null,null,null,0,null,null,null,null,null,0,null,null,null,null,null,0]
[null,null,null,null,0,null,null,0,null,null,null,null,null,0,null,null,null,null,null,0,null,null,null,null,null,0]
[null,null,null,null,0,null,null,0,null,null,null,null,null,0,null,null,null,null,null,0,null,null,null,null,null,0]
[null,null,null,null,0,null,null,0,null,null,null,null,null,0,null,null,null,null,null,0,null,null,null,null,null,0]
[null,null,null,null,0,null,null,0,null,null,null,null,null,0,null,null,null,null,null,0,null,null,null,null,null,0]
[null,null,null,null,0,null,null,0,null,null,null,null,null,0,null,null,null,null,null,0,null,null,null,null,null,0]
[null,null,null,null,0,null,null,0,null,null,null,null,null,0,null,null,null,null,null,0,null,null,null,null,null,0]
[null,null,null,null,0,null,null,0,null,null,null,null,null,0,null,null,null,null,null,0,null,null,null,null,null,0]
[null,null,null,null,0,null,null,0,null,null,null,null,null,0,null,null,null,null,null,0,null,null,null,null,null,0]
[null,null,null,null,0,null,null,0,null,null,null,null,null,0,null,null,null,null,null,0,null,null,null,null,null,0]
[null,null,null,null,0,null,null,0,null,null,null,null,null,0,null,null,null,null,null,0,null,null,null,null,null,0]
[null,null,null,null,0,null,null,0,null,null,null,null,null,0,null,null,null,null,null,0,null,null,null,null,null,0]
[null,null,null,null,{"$f":"IF(ISERR(FIND(\".\",E333)),0,LEN(MID(E333,FIND(\".\",E333)+1,15)))","v":0},null,null,{"$f":"IF(ISERR(FIND(\".\",H333)),0,LEN(MID(H333,FIND(\".\",H333)+1,15)))","v":0},null,null,null,null,null,{"$f":"IF(ISERR(FIND(\".\",N333)),0,LEN(MID(N333,FIND(\".\",N333)+1,15)))","v":0},null,null,null,null,null,{"$f":"IF(ISERR(FIND(\".\",T333)),0,LEN(MID(T333,FIND(\".\",T333)+1,15)))","v":0},null,null,null,null,null,{"$f":"IF(ISERR(FIND(\".\",Z333)),0,LEN(MID(Z333,FIND(\".\",Z333)+1,15)))","v":0}]
[null,null,null,null,0,null,null,0,null,null,null,null,null,0,null,null,null,null,null,0,null,null,null,null,null,0]
[null,null,null,null,0,null,null,0,null,null,null,null,null,0,null,null,null,null,null,0,null,null,null,null,null,0]
[null,null,null,null,0,null,null,0,null,null,null,null,null,0,null,null,null,null,null,0,null,null,null,null,null,0]
[null,null,null,null,0,null,null,0,null,null,null,null,null,0,null,null,null,null,null,0,null,null,null,null,null,0]
[null,null,null,null,0,null,null,0,null,null,null,null,null,0,null,null,null,null,null,0,null,null,null,null,null,0]
[null,null,null,null,0,null,null,0,null,null,null,null,null,0,null,null,null,null,null,0,null,null,null,null,null,0]
[null,null,null,null,0,null,null,0,null,null,null,null,null,0,null,null,null,null,null,0,null,null,null,null,null,0]
[null,null,null,null,0,null,null,0,null,null,null,null,null,0,null,null,null,null,null,0,null,null,null,null,null,0]
[null,null,null,null,0,null,null,0,null,null,null,null,null,0,null,null,null,null,null,0,null,null,null,null,null,0]
[null,null,null,null,0,null,null,0,null,null,null,null,null,0,null,null,null,null,null,0,null,null,null,null,null,0]
[null,null,null,null,0,null,null,0,null,null,null,null,null,0,null,null,null,null,null,0,null,null,null,null,null,0]
[null,null,null,null,0,null,null,0,null,null,null,null,null,0,null,null,null,null,null,0,null,null,null,null,null,0]
[null,null,null,null,0,null,null,0,null,null,null,null,null,0,null,null,null,null,null,0,null,null,null,null,null,0]
[null,null,null,null,0,null,null,0,null,null,null,null,null,0,null,null,null,null,null,0,null,null,null,null,null,0]
[null,null,null,null,0,null,null,0,null,null,null,null,null,0,null,null,null,null,null,0,null,null,null,null,null,0]
[null,null,null,null,0,null,null,0,null,null,null,null,null,0,null,null,null,null,null,0,null,null,null,null,null,0]
[null,null,null,null,0,null,null,0,null,null,null,null,null,0,null,null,null,null,null,0,null,null,null,null,null,0]
[null,null,null,null,0,null,null,0,null,null,null,null,null,0,null,null,null,null,null,0,null,null,null,null,null,0]
[null,null,null,null,0,null,null,0,null,null,null,null,null,0,null,null,null,null,null,0,null,null,null,null,null,0]
[null,null,null,null,0,null,null,0,null,null,null,null,null,0,null,null,null,null,null,0,null,null,null,null,null,0]
[null,null,null,null,0,null,null,0,null,null,null,null,null,0,null,null,null,null,null,0,null,null,null,null,null,0]
[null,null,null,null,0,null,null,0,null,null,null,null,null,0,null,null,null,null,null,0,null,null,null,null,null,0]
[null,null,null,null,0,null,null,0,null,null,null,null,null,0,null,null,null,null,null,0,null,null,null,null,null,0]
[null,null,null,null,0,null,null,0,null,null,null,null,null,0,null,null,null,null,null,0,null,null,null,null,null,0]
[null,null,null,null,0,null,null,0,null,null,null,null,null,0,null,null,null,null,null,0,null,null,null,null,null,0]
[null,null,null,null,0,null,null,0,null,null,null,null,null,0,null,null,null,null,null,0,null,null,null,null,null,0]
[null,null,null,null,0,null,null,0,null,null,null,null,null,0,null,null,null,null,null,0,null,null,null,null,null,0]
[null,null,null,null,0,null,null,0,null,null,null,null,null,0,null,null,null,null,null,0,null,null,null,null,null,0]
[null,null,null,null,0,null,null,0,null,null,null,null,null,0,null,null,null,null,null,0,null,null,null,null,null,0]
[null,null,null,null,0,null,null,0,null,null,null,null,null,0,null,null,null,null,null,0,null,null,null,null,null,0]
[null,null,null,null,0,null,null,0,null,null,null,null,null,0,null,null,null,null,null,0,null,null,null,null,null,0]
[null,null,null,null,0,null,null,0,null,null,null,null,null,0,null,null,null,null,null,0,null,null,null,null,null,0]
[null,null,null,null,0,null,null,0,null,null,null,null,null,0,null,null,null,null,null,0,null,null,null,null,null,0]
[null,null,null,null,0,null,null,0,null,null,null,null,null,0,null,null,null,null,null,0,null,null,null,null,null,0]
[null,null,null,null,0,null,null,0,null,null,null,null,null,0,null,null,null,null,null,0,null,null,null,null,null,0]
[null,null,null,null,0,null,null,0,null,null,null,null,null,0,null,null,null,null,null,0,null,null,null,null,null,0]
[null,null,null,null,0,null,null,0,null,null,null,null,null,0,null,null,null,null,null,0,null,null,null,null,null,0]
[null,null,null,null,0,null,null,0,null,null,null,null,null,0,null,null,null,null,null,0,null,null,null,null,null,0]
[null,null,null,null,0,null,null,0,null,null,null,null,null,0,null,null,null,null,null,0,null,null,null,null,null,0]
[null,null,null,null,0,null,null,0,null,null,null,null,null,0,null,null,null,null,null,0,null,null,null,null,null,0]
[null,null,null,null,0,null,null,0,null,null,null,null,null,0,null,null,null,null,null,0,null,null,null,null,null,0]
[null,null,null,null,0,null,null,0,null,null,null,null,null,0,null,null,null,null,null,0,null,null,null,null,null,0]
[null,null,null,null,0,null,null,0,null,null,null,null,null,0,null,null,null,null,null,0,null,null,null,null,null,0]
[null,null,null,null,{"$f":"IF(ISERR(FIND(\".\",E377)),0,LEN(MID(E377,FIND(\".\",E377)+1,15)))","v":0},null,null,{"$f":"IF(ISERR(FIND(\".\",H377)),0,LEN(MID(H377,FIND(\".\",H377)+1,15)))","v":0},null,null,null,null,null,{"$f":"IF(ISERR(FIND(\".\",N377)),0,LEN(MID(N377,FIND(\".\",N377)+1,15)))","v":0},null,null,null,null,null,{"$f":"IF(ISERR(FIND(\".\",T377)),0,LEN(MID(T377,FIND(\".\",T377)+1,15)))","v":0},null,null,null,null,null,{"$f":"IF(ISERR(FIND(\".\",Z377)),0,LEN(MID(Z377,FIND(\".\",Z377)+1,15)))","v":0}]
[null,null,null,null,0,null,null,0,null,null,null,null,null,0,null,null,null,null,null,0,null,null,null,null,null,0]
[null,"Max",null,null,{"$f":"MAX(E802:E1166)","v":0},null,null,{"$f":"MAX(H802:H1166)","v":0},null,null,null,null,null,{"$f":"MAX(N802:N1166)","v":0},null,null,null,null,null,{"$f":"MAX(T802:T1166)","v":0},null,null,null,null,null,{"$f":"MAX(Z802:Z1166)","v":0}]
[]
[null,null,null,null,null,null,null,null,null,null,null,null,null,null,null,null,null,null,null,"Max for N:",null,{"$f":"MAX(T1168:Z1168)","v":0}]

{"sheet":"Nutrient Budget","index":1,"n_rows":136,"n_cols":47,"rows_kept":136,"cut":false,"hidden":false,"merged":[[93,3,93,6],[93,7,93,12],[93,13,93,17],[93,18,93,22],[93,23,93,27],[93,28,93,32],[96,3,96,6],[96,7,96,12],[96,13,96,17],[96,18,96,22],[96,23,96,27],[96,28,96,32],[94,3,94,6],[94,7,94,12],[94,13,94,17],[94,18,94,22],[94,23,94,27],[94,28,94,32],[95,3,95,6],[95,7,95,12],[95,13,95,17],[95,18,95,22],[95,23,95,27],[95,28,95,32],[91,3,91,6],[91,7,91,12],[91,13,91,17],[91,18,91,22],[91,23,91,27],[91,28,91,32],[92,3,92,6],[92,7,92,12],[92,13,92,17],[92,18,92,22],[92,23,92,27],[92,28,92,32],[89,3,89,6],[89,7,89,12],[89,13,89,17],[89,18,89,22],[89,23,89,27],[89,28,89,32],[90,3,90,6],[90,7,90,12],[90,13,90,17],[90,18,90,22],[90,23,90,27],[90,28,90,32],[87,3,87,6],[87,7,87,12],[87,13,87,17],[87,18,87,22],[87,23,87,27],[87,28,87,32],[88,3,88,6],[88,7,88,12],[88,13,88,17],[88,18,88,22],[88,23,88,27],[88,28,88,32],[85,3,85,6],[85,7,85,12],[85,13,85,17],[85,18,85,22],[85,23,85,27],[85,28,85,32],[86,3,86,6],[86,7,86,12],[86,13,86,17],[86,18,86,22],[86,23,86,27],[86,28,86,32],[83,3,83,6],[83,7,83,12],[83,13,83,17],[83,18,83,22],[83,23,83,27],[83,28,83,32],[84,3,84,6],[84,7,84,12],[84,13,84,17],[84,18,84,22],[84,23,84,27],[84,28,84,32],[81,3,81,6],[81,7,81,12],[81,13,81,17],[81,18,81,22],[81,23,81,27],[81,28,81,32],[82,3,82,6],[82,7,82,12],[82,13,82,17],[82,18,82,22],[82,23,82,27],[82,28,82,32],[79,3,79,6],[79,7,79,12],[79,13,79,17],[79,18,79,22],[79,23,79,27],[79,28,79,32],[78,3,78,6],[80,3,80,6],[80,7,80,12],[80,13,80,17],[80,18,80,22],[80,23,80,27],[80,28,80,32],[77,3,77,6],[77,7,77,12],[77,13,77,17],[77,18,77,22],[77,23,77,27],[77,28,77,32],[76,3,76,6],[76,7,76,12],[78,7,78,12],[78,13,78,17],[78,18,78,22],[78,23,78,27],[78,28,78,32],[75,3,75,6],[75,7,75,12],[75,13,75,17],[75,18,75,22],[75,23,75,27],[75,28,75,32],[74,3,74,6],[74,7,74,12],[76,13,76,17],[76,18,76,22],[76,23,76,27],[76,28,76,32],[73,3,73,6],[73,7,73,12],[73,13,73,17],[73,18,73,22],[73,23,73,27],[73,28,73,32],[72,3,72,6],[72,7,72,12],[74,13,74,17],[74,18,74,22],[74,23,74,27],[74,28,74,32],[71,13,71,17],[71,18,71,22],[71,23,71,27],[71,28,71,32],[70,3,70,6],[70,7,70,12],[72,13,72,17],[72,18,72,22],[72,23,72,27],[72,28,72,32],[69,18,69,22],[69,23,69,27],[69,28,69,32],[68,3,68,6],[68,7,68,12],[70,13,70,17],[70,18,70,22],[70,23,70,27],[70,28,70,32],[52,3,52,6],[52,7,52,12],[52,13,52,17],[52,18,52,22],[52,23,52,27],[52,28,52,32],[67,3,67,6],[67,7,67,12],[67,13,67,17],[67,18,67,22],[67,23,67,27],[67,28,67,32],[66,18,66,22],[66,23,66,27],[66,28,66,32],[53,7,53,12],[53,13,53,17],[50,3,50,6],[50,7,50,12],[50,13,50,17],[50,18,50,22],[50,23,50,27],[50,28,50,32],[51,3,51,6],[51,7,51,12],[51,13,51,17],[51,18,51,22],[51,23,51,27],[51,28,51,32],[48,3,48,6],[48,7,48,12],[48,13,48,17],[48,18,48,22],[48,23,48,27],[48,28,48,32],[49,3,49,6],[49,7,49,12],[49,13,49,17],[49,18,49,22],[49,23,49,27],[49,28,49,32],[46,3,46,6],[46,7,46,12],[46,13,46,17],[46,18,46,22],[46,23,46,27],[46,28,46,32],[47,3,47,6],[47,7,47,12],[47,13,47,17],[47,18,47,22],[47,23,47,27],[47,28,47,32],[44,3,44,6],[44,7,44,12],[44,13,44,17],[44,18,44,22],[44,23,44,27],[44,28,44,32],[45,3,45,6],[45,7,45,12],[45,13,45,17],[45,18,45,22],[45,23,45,27],[45,28,45,32],[42,3,42,6],[42,7,42,12],[42,13,42,17],[42,18,42,22],[42,23,42,27],[42,28,42,32],[43,3,43,6],[43,7,43,12],[43,13,43,17],[43,18,43,22],[43,23,43,27],[43,28,43,32],[40,3,40,6],[40,7,40,12],[40,13,40,17],[40,18,40,22],[40,23,40,27],[40,28,40,32],[41,3,41,6],[41,7,41,12],[41,13,41,17],[41,18,41,22],[41,23,41,27],[41,28,41,32],[38,3,38,6],[38,7,38,12],[38,13,38,17],[38,18,38,22],[38,23,38,27],[38,28,38,32],[39,3,39,6],[39,7,39,12],[39,13,39,17],[39,18,39,22],[39,23,39,27],[39,28,39,32],[36,3,36,6],[36,7,36,12],[36,13,36,17],[36,18,36,22],[36,23,36,27],[36,28,36,32],[37,3,37,6],[37,7,37,12],[37,13,37,17],[37,18,37,22],[37,23,37,27],[37,28,37,32],[34,3,34,6],[34,7,34,12],[34,13,34,17],[34,18,34,22],[34,23,34,27],[34,28,34,32],[35,3,35,6],[35,7,35,12],[35,13,35,17],[35,18,35,22],[35,23,35,27],[35,28,35,32],[32,3,32,6],[32,7,32,12],[32,13,32,17],[32,18,32,22],[32,23,32,27],[32,28,32,32],[33,3,33,6],[33,7,33,12],[33,13,33,17],[33,18,33,22],[33,23,33,27],[33,28,33,32],[30,3,30,6],[30,7,30,12],[30,13,30,17],[30,18,30,22],[30,23,30,27],[30,28,30,32],[31,3,31,6],[31,7,31,12],[31,13,31,17],[31,18,31,22],[31,23,31,27],[31,28,31,32],[28,3,28,6],[28,7,28,12],[28,13,28,17],[28,18,28,22],[28,23,28,27],[28,28,28,32],[29,3,29,6],[29,7,29,12],[29,13,29,17],[29,18,29,22],[29,23,29,27],[29,28,29,32],[26,3,26,6],[26,7,26,12],[26,13,26,17],[26,18,26,22],[26,23,26,27],[26,28,26,32],[27,3,27,6],[27,7,27,12],[27,13,27,17],[27,18,27,22],[27,23,27,27],[27,28,27,32],[24,3,24,6],[24,7,24,12],[24,13,24,17],[24,18,24,22],[24,23,24,27],[24,28,24,32],[25,3,25,6],[25,7,25,12],[25,13,25,17],[25,18,25,22],[25,23,25,27],[25,28,25,32],[22,18,22,22],[22,23,22,27],[22,28,22,32],[23,3,23,6],[23,7,23,12],[23,13,23,17],[23,18,23,22],[23,23,23,27],[23,28,23,32],[116,1,116,34],[136,0,136,35],[1,35,135,35],[133,1,133,34],[134,1,134,4],[135,1,135,4],[135,5,135,7],[134,5,134,7],[4,5,4,19],[134,32,135,34],[134,17,134,19],[135,8,135,16],[134,23,134,31],[135,23,135,31],[5,15,5,19],[5,5,5,11],[135,17,135,19],[5,20,5,21],[3,1,3,34],[4,1,4,4],[5,1,5,4],[6,1,6,4],[5,22,5,26],[5,31,5,32],[4,33,4,34],[0,0,135,0],[0,1,0,34],[134,8,134,16],[6,5,6,7],[129,1,132,34],[1,1,1,34],[2,1,2,34],[6,28,6,32],[6,8,6,21],[10,1,10,34],[6,22,6,27],[8,1,8,12],[5,33,5,34],[5,27,5,29],[4,22,4,25],[4,27,4,29],[117,3,117,15],[111,3,111,6],[112,3,112,6],[113,3,113,6],[114,3,114,6],[111,7,111,17],[112,7,112,17],[15,28,15,32],[16,28,16,32],[14,3,14,6],[14,7,14,12],[14,18,14,22],[14,28,14,32],[106,3,106,6],[106,7,106,17],[106,18,106,22],[20,3,20,6],[21,3,21,6],[53,3,53,6],[17,3,17,6],[18,3,18,6],[19,3,19,6],[17,7,17,12],[15,3,15,6],[16,3,16,6],[15,7,15,12],[16,7,16,12],[19,7,19,12],[22,3,22,6],[22,7,22,12],[22,13,22,17],[115,3,115,6],[115,7,115,17],[107,3,107,6],[108,3,108,6],[109,3,109,6],[110,3,110,6],[107,7,107,17],[108,7,108,17],[109,7,109,17],[110,7,110,17],[114,7,114,17],[113,7,113,17],[98,13,98,17],[99,3,99,6],[60,7,60,12],[61,7,61,12],[62,7,62,12],[63,7,63,12],[64,7,64,12],[65,7,65,12],[66,7,66,12],[97,7,97,12],[98,7,98,12],[60,3,60,6],[61,3,61,6],[62,3,62,6],[63,3,63,6],[64,3,64,6],[65,3,65,6],[66,3,66,6],[97,3,97,6],[98,3,98,6],[69,3,69,6],[69,7,69,12],[71,3,71,6],[71,7,71,12],[7,22,7,25],[7,26,7,27],[8,26,8,27],[12,28,13,32],[12,23,13,27],[12,18,13,22],[12,13,13,17],[12,7,13,12],[12,3,13,6],[14,13,14,17],[15,13,15,17],[16,13,16,17],[17,13,17,17],[18,13,18,17],[19,13,19,17],[20,13,20,17],[21,13,21,17],[14,23,14,27],[15,23,15,27],[16,23,16,27],[17,23,17,27],[18,23,18,27],[19,23,19,27],[20,23,20,27],[21,23,21,27],[15,18,15,22],[16,18,16,22],[17,28,17,32],[18,28,18,32],[19,28,19,32],[20,28,20,32],[21,28,21,32],[53,28,53,32],[58,3,59,6],[58,7,59,12],[58,13,59,17],[58,18,59,22],[58,23,59,27],[58,28,59,32],[54,3,54,17],[17,18,17,22],[18,18,18,22],[19,18,19,22],[20,18,20,22],[21,18,21,22],[53,18,53,22],[53,23,53,27],[18,7,18,12],[54,18,54,20],[20,7,20,12],[21,7,21,12],[97,23,97,27],[97,28,97,32],[60,13,60,17],[61,13,61,17],[62,13,62,17],[63,13,63,17],[64,13,64,17],[65,13,65,17],[66,13,66,17],[97,13,97,17],[63,18,63,22],[63,23,63,27],[63,28,63,32],[64,18,64,22],[64,23,64,27],[64,28,64,32],[65,18,65,22],[65,23,65,27],[65,28,65,32],[68,13,68,17],[68,18,68,22],[68,23,68,27],[68,28,68,32],[69,13,69,17],[98,18,98,22],[98,23,98,27],[98,28,98,32],[99,18,99,22],[99,23,99,27],[99,28,99,32],[60,23,60,27],[60,28,60,32],[104,3,105,6],[104,7,105,17],[104,18,105,22],[104,23,105,27],[104,28,105,32],[100,3,100,17],[99,13,99,17],[99,7,99,12],[60,18,60,22],[61,18,61,22],[61,23,61,27],[61,28,61,32],[62,18,62,22],[62,23,62,27],[62,28,62,32],[97,18,97,22],[107,18,107,22],[108,18,108,22],[109,18,109,22],[110,18,110,22],[111,18,111,22],[112,18,112,22],[113,18,113,22],[114,18,114,22],[115,18,115,22],[115,23,115,27],[106,28,106,32],[107,28,107,32],[108,28,108,32],[109,28,109,32],[110,28,110,32],[111,28,111,32],[112,28,112,32],[113,28,113,32],[114,28,114,32],[115,28,115,32],[106,23,106,27],[107,23,107,27],[108,23,108,27],[109,23,109,27],[110,23,110,27],[111,23,111,27],[112,23,112,27],[113,23,113,27],[114,23,114,27],[122,10,122,12],[123,10,123,12],[124,10,124,12],[125,10,125,12],[120,13,120,15],[121,13,121,15],[122,13,122,15],[123,13,123,15],[124,13,124,15],[125,13,125,15],[100,18,100,20],[11,7,11,27],[57,7,57,27],[103,7,103,27],[103,3,103,6],[103,28,103,32],[121,17,121,34],[127,10,127,12],[127,13,127,15],[126,10,126,12],[126,13,126,15],[120,3,120,9],[121,3,121,9],[122,3,122,9],[123,3,123,9],[124,3,124,9],[125,3,125,9],[124,17,124,34],[126,17,128,34],[119,10,119,12],[119,13,119,15],[119,3,119,9],[120,10,120,12],[121,10,121,12]]}
[null,{"$f":"'Nutrient Monitoring'!B1","v":"Version 2.2, 10/15/2020"},null,null,null,null,null,null,null,null,null,null,null,null,null,null,null,null,null,null,null,null,null,null,null,null,null,null,null,null,null,null,null,null,null,null,null,null,"Nitrogen",2012,null,"Rows Scenario:",true,"Hauled-In Septage","DEP Permit",null,{"$f":"IF('Nutrient Monitoring'!$AB$5<>\"\",DATE('Nutrient Monitoring'!$AB$5-1,10,1),\"\")","v":"2023-10-01"}]
[null,"CHESAPEAKE BAY SUPPLEMENTAL REPORT",null,null,null,null,null,null,null,null,null,null,null,null,null,null,null,null,null,null,null,null,null,null,null,null,null,null,null,null,null,null,null,null,null,null,null,null,"Phosphorus",2013,null,{"$f":"IF(AND(O8=\"No\",O9=\"No\",O10=\"No\"),1,IF(AND(O8=\"No\",O9=\"Yes\",O10=\"No\"),2,IF(AND(O8=\"No\",O9=\"No\",O10=\"Yes\"),3,IF(AND(O8=\"No\",O9=\"Yes\",O10=\"Yes\"),4,IF(AND(O8=\"Yes\",O9=\"No\",O10=\"No\"),5,IF(AND(O8=\"Yes\",O9=\"Yes\",O10=\"No\"),6,IF(AND(O8=\"Yes\",O9=\"Yes\",O10=\"Yes\"),7,IF(AND(O8=\"Yes\",O9=\"No\",O10=\"Yes\"),8))))))))","v":1},true,"Transfer from Another Facility","DEP Letter",null,{"$f":"IF('Nutrient Monitoring'!$AB$5<>\"\",DATE('Nutrient Monitoring'!$AB$5,11,28),\"\")","v":"2024-11-28"}]
[null,"ANNUAL NUTRIENT BUDGET",null,null,null,null,null,null,null,null,null,null,null,null,null,null,null,null,null,null,null,null,null,null,null,null,null,null,null,null,null,null,null,null,null,null,null,null,null,2014,null,null,null,"Transfer to Another Facility"]
[null,null,null,null,null,null,null,null,null,null,null,null,null,null,null,null,null,null,null,null,null,null,null,null,null,null,null,null,null,null,null,null,null,null,null,null,null,null,null,2015,null,null,null,"Connection of On-Lot Systems"]
[null,"Facility Name:",null,null,null,{"$f":"IF('Nutrient Monitoring'!F5<>\"\",'Nutrient Monitoring'!F5,\"\")","v":""},null,null,null,null,null,null,null,null,null,null,null,null,null,null,null,null,"Compliance Year:",null,null,null,null,{"$f":"IF('Nutrient Monitoring'!AB5<>\"\",'Nutrient Monitoring'!AB5,\"\")","v":2024},null,null,null,"Outfall:",null,{"$f":"IF('Nutrient Monitoring'!AH5<>\"\",'Nutrient Monitoring'!AH5,\"\")","v":""},null,null,null,null,null,null,null,null,null,"Connection of Wildcat Sewers"]
[null,"Municipality:",null,null,null,{"$f":"IF('Nutrient Monitoring'!F6<>\"\",'Nutrient Monitoring'!F6,\"\")","v":""},null,null,null,null,null,null,null,"County:",null,{"$f":"IF('Nutrient Monitoring'!Q6<>\"\",'Nutrient Monitoring'!Q6,\"\")","v":""},null,null,null,null,null,null,"NPDES Permit No.:",null,null,null,null,{"$f":"IF('Nutrient Monitoring'!AB6<>\"\",'Nutrient Monitoring'!AB6,\"\")","v":""},null,null,null,null,null,null,null,null,null,null,null,null,null,null,null,"Other (Description Attached)"]
[null,"Watershed:",null,null,null,{"$f":"IF('Nutrient Monitoring'!F7<>\"\",'Nutrient Monitoring'!F7,\"\")","v":""},null,null,null,null,null,null,null,null,null,null,null,null,null,null,null,null,"This permit will expire on:",null,null,null,null,null,{"$f":"IF('Nutrient Monitoring'!AC7<>\"\",'Nutrient Monitoring'!AC7,\"\")","v":""}]
[null,"Were Credits Purchased During Compliance Year?",null,null,null,null,null,null,null,null,null,null,null,null,"No",null,null,null,null,null,null,null,"TN Delivery Ratio:",null,null,null,{"$f":"IF('Nutrient Monitoring'!F9<>\"\",'Nutrient Monitoring'!F9,\"\")","v":""}]
[null,"Were Credits Sold During Compliance Year?",null,null,null,null,null,null,null,null,null,null,null,null,"No",null,null,null,null,null,null,null,"TP Delivery Ratio:",null,null,null,{"$f":"IF('Nutrient Monitoring'!AB9<>\"\",'Nutrient Monitoring'!AB9,\"\")","v":""}]
[null,"Were Offsets Generated During Compliance Year?",null,null,null,null,null,null,null,null,null,null,null,null,"No"]
[]
[null,null,null,null,"Add Rows",null,null,"Credits Purchased"]
[null,null,null,"Credit Type",null,null,null,"Registration ID",null,null,null,null,null,"Contract Effective Date",null,null,null,null,"DEP Approval Date",null,null,null,null,"No. Credits Purchased",null,null,null,null,"Pounds (lbs)*"]
[null,null,null,null,null,null,null,null,null,null,null,null,null,null,null,null,null,null,null,null,null,null,null,null,null,null,null,null,null,null,null,null,null,null,null,null,null,null,"N Credits","P Credits"]
[null,null,null,null,null,null,null,null,null,null,null,null,null,null,null,null,null,null,null,null,null,null,null,null,null,null,null,null,{"$f":"IF(AND(D15<>\"\",H15<>\"\",N15<>\"\",S15<>\"\",X15<>\"\",$AA$8<>\"\",$AA$9<>\"\"),IF(D15=\"Nitrogen\",ROUND(X15/$AA$8,0),ROUND(X15/$AA$9,0)),\"\")","v":""},null,null,null,null,null,null,null,null,null,{"$f":"IF(D15=\"Nitrogen\",AC15,0)","v":0},{"$f":"IF(D15=\"Phosphorus\",AC15,0)","v":0}]
[null,null,null,null,null,null,null,null,null,null,null,null,null,null,null,null,null,null,null,null,null,null,null,null,null,null,null,null,{"$f":"IF(AND(D16<>\"\",H16<>\"\",N16<>\"\",S16<>\"\",X16<>\"\",$AA$8<>\"\",$AA$9<>\"\"),IF(D16=\"Nitrogen\",ROUNDUP(X16/$AA$8,0),ROUNDUP(X16/$AA$9,0)),\"\")","v":""},null,null,null,null,null,null,null,null,null,{"$f":"IF(D16=\"Nitrogen\",AC16,0)","v":0},{"$f":"IF(D16=\"Phosphorus\",AC16,0)","v":0}]
[null,null,null,null,null,null,null,null,null,null,null,null,null,null,null,null,null,null,null,null,null,null,null,null,null,null,null,null,"",null,null,null,null,null,null,null,null,null,0,0]
[null,null,null,null,null,null,null,null,null,null,null,null,null,null,null,null,null,null,null,null,null,null,null,null,null,null,null,null,"",null,null,null,null,null,null,null,null,null,0,0]
[null,null,null,null,null,null,null,null,null,null,null,null,null,null,null,null,null,null,null,null,null,null,null,null,null,null,null,null,"",null,null,null,null,null,null,null,null,null,0,0]
[null,null,null,null,null,null,null,null,null,null,null,null,null,null,null,null,null,null,null,null,null,null,null,null,null,null,null,null,"",null,null,null,null,null,null,null,null,null,0,0]
[null,null,null,null,null,null,null,null,null,null,null,null,null,null,null,null,null,null,null,null,null,null,null,null,null,null,null,null,"",null,null,null,null,null,null,null,null,null,0,0]
[null,null,null,null,null,null,null,null,null,null,null,null,null,null,null,null,null,null,null,null,null,null,null,null,null,null,null,null,"",null,null,null,null,null,null,null,null,null,0,0]
[null,null,null,null,null,null,null,null,null,null,null,null,null,null,null,null,null,null,null,null,null,null,null,null,null,null,null,null,{"$f":"IF(AND(D23<>\"\",H23<>\"\",N23<>\"\",S23<>\"\",X23<>\"\",$AA$8<>\"\",$AA$9<>\"\"),IF(D23=\"Nitrogen\",ROUNDUP(X23/$AA$8,0),ROUNDUP(X23/$AA$9,0)),\"\")","v":""},null,null,null,null,null,null,null,null,null,{"$f":"IF(D23=\"Nitrogen\",AC23,0)","v":0},{"$f":"IF(D23=\"Phosphorus\",AC23,0)","v":0}]
[null,null,null,null,null,null,null,null,null,null,null,null,null,null,null,null,null,null,null,null,null,null,null,null,null,null,null,null,"",null,null,null,null,null,null,null,null,null,0,0]
[null,null,null,null,null,null,null,null,null,null,null,null,null,null,null,null,null,null,null,null,null,null,null,null,null,null,null,null,"",null,null,null,null,null,null,null,null,null,0,0]
[null,null,null,null,null,null,null,null,null,null,null,null,null,null,null,null,null,null,null,null,null,null,null,null,null,null,null,null,"",null,null,null,null,null,null,null,null,null,0,0]
[null,null,null,null,null,null,null,null,null,null,null,null,null,null,null,null,null,null,null,null,null,null,null,null,null,null,null,null,"",null,null,null,null,null,null,null,null,null,0,0]
[null,null,null,null,null,null,null,null,null,null,null,null,null,null,null,null,null,null,null,null,null,null,null,null,null,null,null,null,"",null,null,null,null,null,null,null,null,null,0,0]
[null,null,null,null,null,null,null,null,null,null,null,null,null,null,null,null,null,null,null,null,null,null,null,null,null,null,null,null,"",null,null,null,null,null,null,null,null,null,0,0]
[null,null,null,null,null,null,null,null,null,null,null,null,null,null,null,null,null,null,null,null,null,null,null,null,null,null,null,null,"",null,null,null,null,null,null,null,null,null,0,0]
[null,null,null,null,null,null,null,null,null,null,null,null,null,null,null,null,null,null,null,null,null,null,null,null,null,null,null,null,"",null,null,null,null,null,null,null,null,null,0,0]
[null,null,null,null,null,null,null,null,null,null,null,null,null,null,null,null,null,null,null,null,null,null,null,null,null,null,null,null,"",null,null,null,null,null,null,null,null,null,0,0]
[null,null,null,null,null,null,null,null,null,null,null,null,null,null,null,null,null,null,null,null,null,null,null,null,null,null,null,null,"",null,null,null,null,null,null,null,null,null,0,0]
[null,null,null,null,null,null,null,null,null,null,null,null,null,null,null,null,null,null,null,null,null,null,null,null,null,null,null,null,"",null,null,null,null,null,null,null,null,null,0,0]
[null,null,null,null,null,null,null,null,null,null,null,null,null,null,null,null,null,null,null,null,null,null,null,null,null,null,null,null,"",null,null,null,null,null,null,null,null,null,0,0]
[null,null,null,null,null,null,null,null,null,null,null,null,null,null,null,null,null,null,null,null,null,null,null,null,null,null,null,null,"",null,null,null,null,null,null,null,null,null,0,0]
[null,null,null,null,null,null,null,null,null,null,null,null,null,null,null,null,null,null,null,null,null,null,null,null,null,null,null,null,"",null,null,null,null,null,null,null,null,null,0,0]
[null,null,null,null,null,null,null,null,null,null,null,null,null,null,null,null,null,null,null,null,null,null,null,null,null,null,null,null,"",null,null,null,null,null,null,null,null,null,0,0]
[null,null,null,null,null,null,null,null,null,null,null,null,null,null,null,null,null,null,null,null,null,null,null,null,null,null,null,null,"",null,null,null,null,null,null,null,null,null,0,0]
[null,null,null,null,null,null,null,null,null,null,null,null,null,null,null,null,null,null,null,null,null,null,null,null,null,null,null,null,"",null,null,null,null,null,null,null,null,null,0,0]
[null,null,null,null,null,null,null,null,null,null,null,null,null,null,null,null,null,null,null,null,null,null,null,null,null,null,null,null,"",null,null,null,null,null,null,null,null,null,0,0]
[null,null,null,null,null,null,null,null,null,null,null,null,null,null,null,null,null,null,null,null,null,null,null,null,null,null,null,null,"",null,null,null,null,null,null,null,null,null,0,0]
[null,null,null,null,null,null,null,null,null,null,null,null,null,null,null,null,null,null,null,null,null,null,null,null,null,null,null,null,"",null,null,null,null,null,null,null,null,null,0,0]
[null,null,null,null,null,null,null,null,null,null,null,null,null,null,null,null,null,null,null,null,null,null,null,null,null,null,null,null,"",null,null,null,null,null,null,null,null,null,0,0]
[null,null,null,null,null,null,null,null,null,null,null,null,null,null,null,null,null,null,null,null,null,null,null,null,null,null,null,null,"",null,null,null,null,null,null,null,null,null,0,0]
[null,null,null,null,null,null,null,null,null,null,null,null,null,null,null,null,null,null,null,null,null,null,null,null,null,null,null,null,"",null,null,null,null,null,null,null,null,null,0,0]
[null,null,null,null,null,null,null,null,null,null,null,null,null,null,null,null,null,null,null,null,null,null,null,null,null,null,null,null,"",null,null,null,null,null,null,null,null,null,0,0]
[null,null,null,null,null,null,null,null,null,null,null,null,null,null,null,null,null,null,null,null,null,null,null,null,null,null,null,null,"",null,null,null,null,null,null,null,null,null,0,0]
[null,null,null,null,null,null,null,null,null,null,null,null,null,null,null,null,null,null,null,null,null,null,null,null,null,null,null,null,"",null,null,null,null,null,null,null,null,null,0,0]
[null,null,null,null,null,null,null,null,null,null,null,null,null,null,null,null,null,null,null,null,null,null,null,null,null,null,null,null,"",null,null,null,null,null,null,null,null,null,0,0]
[null,null,null,null,null,null,null,null,null,null,null,null,null,null,null,null,null,null,null,null,null,null,null,null,null,null,null,null,"",null,null,null,null,null,null,null,null,null,0,0]
[null,null,null,null,null,null,null,null,null,null,null,null,null,null,null,null,null,null,null,null,null,null,null,null,null,null,null,null,"",null,null,null,null,null,null,null,null,null,0,0]
[null,null,null,null,null,null,null,null,null,null,null,null,null,null,null,null,null,null,null,null,null,null,null,null,null,null,null,null,"",null,null,null,null,null,null,null,null,null,0,0]
[null,null,null,null,null,null,null,null,null,null,null,null,null,null,null,null,null,null,null,null,null,null,null,null,null,null,null,null,"",null,null,null,null,null,null,null,null,null,0,0]
[null,null,null,"* Pounds (lbs) = No. Credits Purchased / Delivery Ratio",null,null,null,null,null,null,null,null,null,null,null,null,null,null,null,null,null,null,null,null,null,null,null,null,null,null,null,null,null,null,null,null,null,null,{"$f":"SUM(AM15:AM54)","v":0},{"$f":"SUM(AN15:AN54)","v":0}]
[]
[]
[null,null,null,null,"Add Rows",null,null,"Credits Sold"]
[null,null,null,"Credit Type",null,null,null,"Registration ID",null,null,null,null,null,"Contract Effective Date",null,null,null,null,"DEP Approval Date",null,null,null,null,"No. Credits Sold",null,null,null,null,"Pounds (lbs)*"]
[null,null,null,null,null,null,null,null,null,null,null,null,null,null,null,null,null,null,null,null,null,null,null,null,null,null,null,null,null,null,null,null,null,null,null,null,null,null,"N Credits","P Credits"]
[null,null,null,null,null,null,null,null,null,null,null,null,null,null,null,null,null,null,null,null,null,null,null,null,null,null,null,null,{"$f":"IF(AND(D61<>\"\",H61<>\"\",N61<>\"\",S61<>\"\",X61<>\"\",$AA$8<>\"\",$AA$9<>\"\"),IF(D61=\"Nitrogen\",X61/$AA$8,X61/$AA$9),\"\")","v":""},null,null,null,null,null,null,null,null,null,{"$f":"IF(D61=\"Nitrogen\",AC61,0)","v":0},{"$f":"IF(D61=\"Phosphorus\",AC61,0)","v":0}]
[null,null,null,null,null,null,null,null,null,null,null,null,null,null,null,null,null,null,null,null,null,null,null,null,null,null,null,null,{"$f":"IF(AND(D62<>\"\",H62<>\"\",N62<>\"\",S62<>\"\",X62<>\"\",$AA$8<>\"\",$AA$9<>\"\"),IF(D62=\"Nitrogen\",X62/$AA$8,X62/$AA$9),\"\")","v":""},null,null,null,null,null,null,null,null,null,{"$f":"IF(D62=\"Nitrogen\",AC62,0)","v":0},{"$f":"IF(D62=\"Phosphorus\",AC62,0)","v":0}]
[null,null,null,null,null,null,null,null,null,null,null,null,null,null,null,null,null,null,null,null,null,null,null,null,null,null,null,null,"",null,null,null,null,null,null,null,null,null,0,0]
[null,null,null,null,null,null,null,null,null,null,null,null,null,null,null,null,null,null,null,null,null,null,null,null,null,null,null,null,"",null,null,null,null,null,null,null,null,null,0,0]
[null,null,null,null,null,null,null,null,null,null,null,null,null,null,null,null,null,null,null,null,null,null,null,null,null,null,null,null,"",null,null,null,null,null,null,null,null,null,0,0]
[null,null,null,null,null,null,null,null,null,null,null,null,null,null,null,null,null,null,null,null,null,null,null,null,null,null,null,null,"",null,null,null,null,null,null,null,null,null,0,0]
[null,null,null,null,null,null,null,null,null,null,null,null,null,null,null,null,null,null,null,null,null,null,null,null,null,null,null,null,"",null,null,null,null,null,null,null,null,null,0,0]
[null,null,null,null,null,null,null,null,null,null,null,null,null,null,null,null,null,null,null,null,null,null,null,null,null,null,null,null,{"$f":"IF(AND(D68<>\"\",H68<>\"\",N68<>\"\",S68<>\"\",X68<>\"\",$AA$8<>\"\",$AA$9<>\"\"),IF(D68=\"Nitrogen\",X68/$AA$8,X68/$AA$9),\"\")","v":""},null,null,null,null,null,null,null,null,null,{"$f":"IF(D68=\"Nitrogen\",AC68,0)","v":0},{"$f":"IF(D68=\"Phosphorus\",AC68,0)","v":0}]
[null,null,null,null,null,null,null,null,null,null,null,null,null,null,null,null,null,null,null,null,null,null,null,null,null,null,null,null,"",null,null,null,null,null,null,null,null,null,0,0]
[null,null,null,null,null,null,null,null,null,null,null,null,null,null,null,null,null,null,null,null,null,null,null,null,null,null,null,null,"",null,null,null,null,null,null,null,null,null,0,0]
[null,null,null,null,null,null,null,null,null,null,null,null,null,null,null,null,null,null,null,null,null,null,null,null,null,null,null,null,"",null,null,null,null,null,null,null,null,null,0,0]
[null,null,null,null,null,null,null,null,null,null,null,null,null,null,null,null,null,null,null,null,null,null,null,null,null,null,null,null,"",null,null,null,null,null,null,null,null,null,0,0]
[null,null,null,null,null,null,null,null,null,null,null,null,null,null,null,null,null,null,null,null,null,null,null,null,null,null,null,null,"",null,null,null,null,null,null,null,null,null,0,0]
[null,null,null,null,null,null,null,null,null,null,null,null,null,null,null,null,null,null,null,null,null,null,null,null,null,null,null,null,"",null,null,null,null,null,null,null,null,null,0,0]
[null,null,null,null,null,null,null,null,null,null,null,null,null,null,null,null,null,null,null,null,null,null,null,null,null,null,null,null,"",null,null,null,null,null,null,null,null,null,0,0]
[null,null,null,null,null,null,null,null,null,null,null,null,null,null,null,null,null,null,null,null,null,null,null,null,null,null,null,null,"",null,null,null,null,null,null,null,null,null,0,0]
[null,null,null,null,null,null,null,null,null,null,null,null,null,null,null,null,null,null,null,null,null,null,null,null,null,null,null,null,"",null,null,null,null,null,null,null,null,null,0,0]
[null,null,null,null,null,null,null,null,null,null,null,null,null,null,null,null,null,null,null,null,null,null,null,null,null,null,null,null,"",null,null,null,null,null,null,null,null,null,0,0]
[null,null,null,null,null,null,null,null,null,null,null,null,null,null,null,null,null,null,null,null,null,null,null,null,null,null,null,null,"",null,null,null,null,null,null,null,null,null,0,0]
[null,null,null,null,null,null,null,null,null,null,null,null,null,null,null,null,null,null,null,null,null,null,null,null,null,null,null,null,"",null,null,null,null,null,null,null,null,null,0,0]
[null,null,null,null,null,null,null,null,null,null,null,null,null,null,null,null,null,null,null,null,null,null,null,null,null,null,null,null,"",null,null,null,null,null,null,null,null,null,0,0]
[null,null,null,null,null,null,null,null,null,null,null,null,null,null,null,null,null,null,null,null,null,null,null,null,null,null,null,null,"",null,null,null,null,null,null,null,null,null,0,0]
[null,null,null,null,null,null,null,null,null,null,null,null,null,null,null,null,null,null,null,null,null,null,null,null,null,null,null,null,"",null,null,null,null,null,null,null,null,null,0,0]
[null,null,null,null,null,null,null,null,null,null,null,null,null,null,null,null,null,null,null,null,null,null,null,null,null,null,null,null,"",null,null,null,null,null,null,null,null,null,0,0]
[null,null,null,null,null,null,null,null,null,null,null,null,null,null,null,null,null,null,null,null,null,null,null,null,null,null,null,null,"",null,null,null,null,null,null,null,null,null,0,0]
[null,null,null,null,null,null,null,null,null,null,null,null,null,null,null,null,null,null,null,null,null,null,null,null,null,null,null,null,"",null,null,null,null,null,null,null,null,null,0,0]
[null,null,null,null,null,null,null,null,null,null,null,null,null,null,null,null,null,null,null,null,null,null,null,null,null,null,null,null,"",null,null,null,null,null,null,null,null,null,0,0]
[null,null,null,null,null,null,null,null,null,null,null,null,null,null,null,null,null,null,null,null,null,null,null,null,null,null,null,null,"",null,null,null,null,null,null,null,null,null,0,0]
[null,null,null,null,null,null,null,null,null,null,null,null,null,null,null,null,null,null,null,null,null,null,null,null,null,null,null,null,"",null,null,null,null,null,null,null,null,null,0,0]
[null,null,null,null,null,null,null,null,null,null,null,null,null,null,null,null,null,null,null,null,null,null,null,null,null,null,null,null,"",null,null,null,null,null,null,null,null,null,0,0]
[null,null,null,null,null,null,null,null,null,null,null,null,null,null,null,null,null,null,null,null,null,null,null,null,null,null,null,null,"",null,null,null,null,null,null,null,null,null,0,0]
[null,null,null,null,null,null,null,null,null,null,null,null,null,null,null,null,null,null,null,null,null,null,null,null,null,null,null,null,"",null,null,null,null,null,null,null,null,null,0,0]
[null,null,null,null,null,null,null,null,null,null,null,null,null,null,null,null,null,null,null,null,null,null,null,null,null,null,null,null,"",null,null,null,null,null,null,null,null,null,0,0]
[null,null,null,null,null,null,null,null,null,null,null,null,null,null,null,null,null,null,null,null,null,null,null,null,null,null,null,null,"",null,null,null,null,null,null,null,null,null,0,0]
[null,null,null,null,null,null,null,null,null,null,null,null,null,null,null,null,null,null,null,null,null,null,null,null,null,null,null,null,"",null,null,null,null,null,null,null,null,null,0,0]
[null,null,null,null,null,null,null,null,null,null,null,null,null,null,null,null,null,null,null,null,null,null,null,null,null,null,null,null,"",null,null,null,null,null,null,null,null,null,0,0]
[null,null,null,null,null,null,null,null,null,null,null,null,null,null,null,null,null,null,null,null,null,null,null,null,null,null,null,null,"",null,null,null,null,null,null,null,null,null,0,0]
[null,null,null,null,null,null,null,null,null,null,null,null,null,null,null,null,null,null,null,null,null,null,null,null,null,null,null,null,"",null,null,null,null,null,null,null,null,null,0,0]
[null,null,null,null,null,null,null,null,null,null,null,null,null,null,null,null,null,null,null,null,null,null,null,null,null,null,null,null,"",null,null,null,null,null,null,null,null,null,0,0]
[null,null,null,null,null,null,null,null,null,null,null,null,null,null,null,null,null,null,null,null,null,null,null,null,null,null,null,null,"",null,null,null,null,null,null,null,null,null,0,0]
[null,null,null,"* Pounds (lbs) = No. Credits Sold / Delivery Ratio",null,null,null,null,null,null,null,null,null,null,null,null,null,null,null,null,null,null,null,null,null,null,null,null,null,null,null,null,null,null,null,null,null,null,{"$f":"SUM(AM61:AM100)","v":0},{"$f":"SUM(AN61:AN100)","v":0}]
[]
[]
[null,null,null,null,null,null,null,"Offsets Generated"]
[null,null,null,"Offset Type",null,null,null,"Source",null,null,null,null,null,null,null,null,null,null,"Amount (lbs)",null,null,null,null,"DEP Approval Date",null,null,null,null,"Approval Method"]
[null,null,null,null,null,null,null,null,null,null,null,null,null,null,null,null,null,null,null,null,null,null,null,null,null,null,null,null,null,null,null,null,null,null,null,null,null,null,"N Offsets","P Offsets"]
[null,null,null,null,null,null,null,null,null,null,null,null,null,null,null,null,null,null,null,null,null,null,null,null,null,null,null,null,null,null,null,null,null,null,null,null,null,null,{"$f":"IF(AND(H107=\"Transfer to Another Facility\",D107=\"Nitrogen\"),-S107,IF(D107=\"Nitrogen\",S107,0))","v":0},{"$f":"IF(AND(H107=\"Transfer to Another Facility\",D107=\"Phosphorus\"),-S107,IF(D107=\"Phosphorus\",S107,0))","v":0}]
[null,null,null,null,null,null,null,null,null,null,null,null,null,null,null,null,null,null,null,null,null,null,null,null,null,null,null,null,null,null,null,null,null,null,null,null,null,null,{"$f":"IF(AND(H108=\"Transfer to Another Facility\",D108=\"Nitrogen\"),-S108,IF(D108=\"Nitrogen\",S108,0))","v":0},{"$f":"IF(AND(H108=\"Transfer to Another Facility\",D108=\"Phosphorus\"),-S108,IF(D108=\"Phosphorus\",S108,0))","v":0}]
[null,null,null,null,null,null,null,null,null,null,null,null,null,null,null,null,null,null,null,null,null,null,null,null,null,null,null,null,null,null,null,null,null,null,null,null,null,null,0,0]
[null,null,null,null,null,null,null,null,null,null,null,null,null,null,null,null,null,null,null,null,null,null,null,null,null,null,null,null,null,null,null,null,null,null,null,null,null,null,0,0]
[null,null,null,null,null,null,null,null,null,null,null,null,null,null,null,null,null,null,null,null,null,null,null,null,null,null,null,null,null,null,null,null,null,null,null,null,null,null,0,0]
[null,null,null,null,null,null,null,null,null,null,null,null,null,null,null,null,null,null,null,null,null,null,null,null,null,null,null,null,null,null,null,null,null,null,null,null,null,null,0,0]
[null,null,null,null,null,null,null,null,null,null,null,null,null,null,null,null,null,null,null,null,null,null,null,null,null,null,null,null,null,null,null,null,null,null,null,null,null,null,0,0]
[null,null,null,null,null,null,null,null,null,null,null,null,null,null,null,null,null,null,null,null,null,null,null,null,null,null,null,null,null,null,null,null,null,null,null,null,null,null,0,0]
[null,null,null,null,null,null,null,null,null,null,null,null,null,null,null,null,null,null,null,null,null,null,null,null,null,null,null,null,null,null,null,null,null,null,null,null,null,null,0,0]
[null,null,null,null,null,null,null,null,null,null,null,null,null,null,null,null,null,null,null,null,null,null,null,null,null,null,null,null,null,null,null,null,null,null,null,null,null,null,0,0]
[null,null,null,null,null,null,null,null,null,null,null,null,null,null,null,null,null,null,null,null,null,null,null,null,null,null,null,null,null,null,null,null,null,null,null,null,null,null,{"$f":"SUM(AM107:AM116)","v":0},{"$f":"SUM(AN107:AN116)","v":0}]
[null,null,null,"SUMMARY"]
[]
[null,null,null,null,null,null,null,null,null,null,"TN",null,null,"TP"]
[null,null,null,"Annual Total Mass Load (lbs)",null,null,null,null,null,null,{"$f":"IF('Nutrient Monitoring'!$AI$380<>\"\",IF('Nutrient Monitoring'!AH380=\"\",'Nutrient Monitoring'!AI380,CONCATENATE(\"< \",'Nutrient Monitoring'!AI380)),\"\")","v":""},null,null,{"$f":"IF('Nutrient Monitoring'!$K$380<>\"\",IF('Nutrient Monitoring'!J380=\"\",'Nutrient Monitoring'!K380,CONCATENATE(\"< \",'Nutrient Monitoring'!K380)),\"\")","v":""}]
[null,null,null,"Lbs from Credits Purchased",null,null,null,null,null,null,{"$f":"IF(AM55>0,ROUND(AM55,0),0)","v":0},null,null,{"$f":"IF(AN55>0,ROUND(AN55,0),0)","v":0},null,null,null,null,null,null,null,null,null,null,null,null,null,null,null,null,null,null,null,null,null,null,null,null,"Eligible to Purchase Credits: (no longer used)"]
[null,null,null,"Lbs from Credits Sold",null,null,null,null,null,null,{"$f":"IF(AM101>0,ROUND(AM101,0),0)","v":0},null,null,{"$f":"IF(AN101>0,ROUND(AN101,0),0)","v":0},null,null,null,null,null,null,null,null,null,null,null,null,null,null,null,null,null,null,null,null,null,null,null,null,"N:",{"$f":"IF(AND('Nutrient Monitoring'!$P$8=\"Yes\",'Nutrient Monitoring'!$S$8<>\"\",'Nutrient Monitoring'!$AY$26=\"No\"),\"No\",\"\")","v":""}]
[null,null,null,"Lbs from Offsets Generated",null,null,null,null,null,null,{"$f":"IF(AM117<>0,ROUND(AM117,0),0)","v":0},null,null,{"$f":"IF(AN117<>0,ROUND(AN117,0),0)","v":0},null,null,null,null,null,null,null,null,null,null,null,null,null,null,null,null,null,null,null,null,null,null,null,null,"P:",{"$f":"IF(AND('Nutrient Monitoring'!$P$9=\"Yes\",'Nutrient Monitoring'!$S$9<>\"\",'Nutrient Monitoring'!$AW$26=\"No\"),\"No\",\"\")","v":""}]
[null,null,null,"Annual Net Mass Load (lbs)",null,null,null,null,null,null,{"$f":"IF(K121<>\"\",IF('Nutrient Monitoring'!AH380=\"\",ROUND(K121+K123-K122-K124,0),CONCATENATE(\"< \",ROUND('Nutrient Monitoring'!AI380+K123-K122-K124,0))),\"\")","v":""},null,null,{"$f":"IF(N121<>\"\",IF('Nutrient Monitoring'!J380=\"\",N121+N123-N122-N124,CONCATENATE(\"< \",ROUND('Nutrient Monitoring'!K380+N123-N122-N124,0))),\"\")","v":""},null,null,null,"(Annual Total Mass Load + Lbs from Credits Sold - Lbs from Credits Purchased - Offsets)"]
[null,null,null,"Cap Load (lbs)",null,null,null,null,null,null,{"$f":"IF('Nutrient Monitoring'!$F$8<>\"\",'Nutrient Monitoring'!$F$8,\"\")","v":""},null,null,{"$f":"IF('Nutrient Monitoring'!$AB$8<>\"\",'Nutrient Monitoring'!$AB$8,\"\")","v":""}]
[null,null,null,null,null,null,null,null,null,null,{"$f":"IF(AND(K125<>\"\",K126<>\"\"),IF(K126>=('Nutrient Monitoring'!AI380+K123-K122-K124),\"Compliance\",\"Violation\"),\"\")","v":""},null,null,{"$f":"IF(AND(N125<>\"\",N126<>\"\"),IF(N126>=('Nutrient Monitoring'!K380+N123-N122-N124),\"Compliance\",\"Violation\"),\"\")","v":""},null,null,null,{"$f":"IF(AND(K125<>\"\",K126<>\"\",N125<>\"\",N126<>\"\"),IF(AND(('Nutrient Monitoring'!AI380+K123-K122-K124)<=K126,('Nutrient Monitoring'!K380+N123-N122-N124)<=N126),\"\",IF(AND(('Nutrient Monitoring'!AI380+K123-K122-K124)>K126,('Nutrient Monitoring'!K380+N123-N122-N124)>N126),CONCATENATE(ROUNDUP('Nutrient Monitoring'!AI380+K123-K122-K124-K126,0),\" lbs TN from Credits/Offsets and \",ROUNDUP('Nutrient Monitoring'!K380+N123-N122-N124-N126,0),\" lbs TP from Credits/Offsets are needed to achieve compliance.  If credits are purchased, \",ROUNDUP(('Nutrient Monitoring'!AI380+K123-K122-K124-K126)*AA8,0),\" TN Credits and \",ROUNDUP(('Nutrient Monitoring'!K380+N123-N122-N124-N126)*AA9,0),\" TP Credits would be needed.\"),IF(AND(('Nutrient Monitoring'!AI380+K123-K122-K124)>K126,('Nutrient Monitoring'!K380+N123-N122-N124)<=N126),CONCATENATE(ROUNDUP('Nutrient Monitoring'!AI380+K123-K122-K124-K126,0),\" lbs TN from Credits/Offsets are needed to achieve compliance.  If credits are purchased, \",ROUNDUP(('Nutrient Monitoring'!AI380+K123-K122-K124-K126)*AA8,0),\" TN Credits would be needed.\"),IF(AND(('Nutrient Monitoring'!AI380+K123-K122-K124)<=K126,('Nutrient Monitoring'!K380+N123-N122-N124)>N126),CONCATENATE(ROUNDUP('Nutrient Monitoring'!K380+N123-N122-N124-N126,0),\" lbs TP from Credits/Offsets are needed to achieve compliance.  If credits are purchased, \",ROUNDUP(('Nutrient Monitoring'!K380+N123-N122-N124-N126)*AA9,0),\" TP Credits would be needed.\"))))),\"\")","v":""}]
[]
[]
[null,"I certify under penalty of law that this document was prepared under my direction or supervision in accordance with a system designed to assure that qualified personnel gather and evaluate the information submitted. Based on my inquiry of the person or persons who manage the system or those persons directly responsible for gathering the information, the information submitted is, to the best of my knowledge and belief, true, accurate and complete.  I am aware that there are significant penalties for submitting false information, including the possibility of fine and imprisonment for knowing violations.  See 18 Pa. C.S. § 4904 (relating to unsworn falsification). "]
[]
[]
[]
[]
[null,null,null,null,null,"Prepared By:",null,null,{"$f":"IF('Nutrient Monitoring'!J389<>\"\",'Nutrient Monitoring'!J389,\"\")","v":""},null,null,null,null,null,null,null,null,null,null,null,"License No.:",null,null,{"$f":"IF('Nutrient Monitoring'!Y389<>\"\",'Nutrient Monitoring'!Y389,\"\")","v":""}]
[null,null,null,null,null,"Title:",null,null,{"$f":"IF('Nutrient Monitoring'!J390<>\"\",'Nutrient Monitoring'!J390,\"\")","v":""},null,null,null,null,null,null,null,null,null,null,null,"Date:",null,null,{"$f":"IF('Nutrient Monitoring'!Y390<>\"\",'Nutrient Monitoring'!Y390,\"\")","v":""}]

{"sheet":"Instructions","index":2,"n_rows":72,"n_cols":3,"rows_kept":72,"cut":false,"hidden":false,"merged":[[38,2,42,35],[74,0,74,37],[47,2,48,35],[69,2,69,35],[0,0,73,0],[29,1,29,35],[11,1,11,35],[9,1,9,35],[43,1,43,35],[0,1,0,35],[55,1,55,35],[49,1,49,35],[70,1,70,35],[73,1,73,35],[71,2,72,35],[51,1,51,35],[56,2,61,35],[62,1,62,35],[63,2,67,35],[19,2,23,35],[0,36,65,36],[1,1,1,35],[2,1,2,35],[30,2,31,35],[44,2,45,35],[25,2,28,35],[10,1,10,35],[50,1,50,35],[52,2,54,35],[33,2,36,35],[4,1,8,35],[12,2,17,35]]}
[]
[null,"INSTRUCTIONS FOR COMPLETING"]
[null,"ANNUAL CHESAPEAKE BAY SPREADSHEET"]
[]
[null,"The Annual Chesapeake Bay Spreadsheet is intended to replace all prior forms of supplemental reporting for facilities with \"cap loads\" in NPDES permits, and is required by DEP's Nutrient Trading Program if a facility intends to generate nutrient credits.  Attach this completed spreadsheet to the Annual DMR due by November 28th each year.  Cells that are available for data entry are highlighted in yellow throughout the spreadsheet; all other cells are locked.  The spreadsheet is formatted to allow users to hit the Tab key to move between editable cells.  For questions concerning this spreadsheet, contact DEP at (717) 787-2137. "]
[]
[]
[]
[]
[]
[null,"ANNUAL NUTRIENT MONITORING WORKSHEET"]
[]
[null,1,"Continuous Discharge Checkbox - By default this box is checked.  DO NOT UNCHECK this box unless there is no (0) discharge from the outfall for an entire day during the Compliance Year.  Flow values must be entered every day if the Continuous Discharge Checkbox is not checked (if the Continuous Discharge Checkbox is checked, flow may only be reported on days in which samples were collected).  If there is any day in which there is no discharge, un-check this box and enter a flow of \"0\" into the appropriate cell in the table.  When this box is not checked, the spreadsheet calculates Monthly and Annual Total Mass Loads using the actual number of days in which there is a discharge > 0, rather than assuming there is a discharge every day."]
[]
[]
[]
[]
[]
[]
[null,2,"Header Information - Enter Facility Name, Muncipality, County, Watershed No., NPDES Permit No., Outfall No., and Permit Expiration Date.  Select Compliance Year from the drop-down list.  Enter the TN and TP Delivery Ratios for the facility - Delivery Ratios are found in the Phase 2 WIP Wastewater Supplement, available on DEP's website at www.dep.pa.gov/npdes-bay.  Enter cap loads (Annual Net Mass Load limits) for TN and TP from the NPDES permit.  If the selected outfall discharges industrial waste instead of sewage, select the radio button for \"Industrial Waste\".  Note that when Industrial Waste is selected, nutrient credit calculations are disabled and the Credits Sold table on the Nutrient Budget worksheet becomes disabled."]
[]
[]
[]
[]
[]
[null,3,"Enter the average daily effluent Flow, in million gallons per day (MGD) and nutrient parameter concentrations (mg/L) for the entire Compliance Year.  Enter results exactly as received from the laboratory.  The worksheet will automatically calculate the daily loading (lbs/day) for all parameters and Total Nitrogen concentrations (in blue).  If no monitoring data are available for the day, leave the row blank.  Use the drop-down list in the \"Q\" (Qualifier) column to select the less than symbol (\"<\") for any result reported as \"non-detect.\""]
[]
[]
[]
[]
[null,4,"Average annual concentrations and mass loadings are automatically calculated.  Daily concentrations for Total Nitrogen are computed by summing the concentrations for TKN and NO2 + NO3 as N."]
[]
[]
[null,null,"Annual Total Mass Loads (lbs/yr) for TN and TP are calculated and shown at the bottom of the table.  Prior to the end of the Compliance Year, the value displayed is an estimate based on the data entered thus far.  In addition, if TP and/or TN credits were generated, the amount of credits that may be verified and registered by DEP are shown.  The formula for calculating credit values is contained within DEP's Phase II WIP Wastewater Supplement (see www.dep.pa.gov/npdes-bay)."]
[]
[]
[]
[]
[null,null,"NOTE - The sum of Monthly Total Mass Loads will generally not match the Annual Total Mass Load because of how the calculations are performed.  Monthly Total statistics consider the number of days in the month, and loads associated with longer months are weighted more heavily than loads associated with shorter months.  Annual Total statistics consider the number of days in the year and smooth the variability in the number of days in each month.  However, both statistics are appropriate for the type of DMR associated with the statistics - Monthly Totals for monthly DMRs and Annual Totals for annual DMRs."]
[]
[]
[]
[]
[]
[null,5,"Enter the name of the person who prepared the form, the person's job title, DEP License No. (if applicable), and date the form was completed after reading the certification statement."]
[]
[]
[null,null,"Below the form is a table of Monthly Total Mass Loads and Average Monthly Concentrations that is calculated upon entry of flow and nutrient concentrations.  These calculated loads and concentrations may be used to report required data on Monthly DMRs."]
[]
[]
[null,"ANNUAL NUTRIENT BUDGET WORKSHEET"]
[]
[null,1,"Most header information is automatically populated when entered on the Annual Nutrient Monitoring sheet.  Answer each question concerning whether credits were purchased or sold or offsets were generated during the compliance year by selecting \"Yes\" or \"No\" from the drop-down menus.  If \"Yes\" is selected, a corresponding table is made available for data entry."]
[]
[]
[]
[null,2,"Use the tables \"Credits Purchased\" and \"Credits Sold\" to report all credits that were purchased and sold, respectively during the Compliance Year AND Truing Period (Oct 1 - Nov 28).   Select the Credit Type (\"Nitrogen\" or \"Phosphorus\"), and enter the Registry Number, Contract Effective Date, DEP Approval Date (date of DEP's letter or email registering credits), and the number of credits purchased or sold during the Compliance Year.  Each purchase or sale transaction should be reported on a separate line. Credits purchased and sold are adjusted by dividing the credits by the TN/TP Delivery Ratio (entered on the Annual Nutrient Monitoring sheet).  Click the box for \"Add Rows\" if additional lines are needed to report credits purchased or sold."]
[]
[]
[]
[]
[]
[]
[null,3,"Use the table \"Offsets\" to report all offsets for the Compliance Year.  Select the Offset Type (\"Nitrogen\" or \"Phosphorus\"), the Source of Offsets and enter the number of offsets claimed (lbs).  For septage (only septage, not holding tank or other hauled in wastes), divide the total gallons of septage received by 1,000 and multiply by 3 to determine the total amount (lbs) of offsets to report in the Offsets table.  Enter the DEP Approval Date for the Offsets and the method of the approval.  For Offsets identified and approved in permits, list the date of permit issuance, otherwise list the date of written DEP approval."]
[]
[]
[]
[]
[]
[null,null,"A summary table is provided to allow tracking of a facility's compliance with cap loads."]
[]
[null,4,"Enter the name of the person who prepared the form, the person's job title, DEP License No. (if applicable), and date the form was completed after reading the certification statement."]